Workbook

Sheet Menu
B2: TABLERO DE CONTROL 2018 INSTITUTO COLOMBIANO DE BIENESTAR FAMILIAR ICBF MENU
C5: Generalidades y metodología de medición del tablero de control
F7: Descripción general y metodología de medición del tablero de control
C8: Tablero de control
C9: El tablero de control 2018, es la herramienta gerencial para medir los avances de la gestión institucional a nivel nacional, regional y centro zonal. A continuación se presentan las siguientes opciones para navegar en la herramienta:
C11: Agosto | F11: Seleccione el mes de corte para revisión de información y de click en el botón gris para actualizar la herramienta
C13: Nacional
C15: Seleccione la opción que desea revisar:
D17: Avances de la gestión institucional a nivel nacional
D18: - Comportamiento Nacional (Tablero de Control, Plan de Acción y Plan Indicativo)
D19: - Plan de Acción Institucional (ranking regional)
D20: - Modelo Integrado de Planeación y Gestión (decreto 2482 de 2012)
D21: - Mapa Estrategico Institucional
D22: - Mapa de Procesos del ICBF
D23: - Analisis general de áreas
D24: - Objetivos SIGE
D25: Comportamiento Plan Indicativo Institucional
D26: Comportamiento SINERGIA
D27: Comportamiento macroregionales
D28: Comportamiento por agregados (indicadores)
D29: Matriz de seguimiento indicadores tablero de control
C31: Áreas
C33: Nutrición | F33: Seleccione el área y escoja una de las siguientes opciones
C35: Seleccione la opción que desea revisar:
D37: Comportamiento áreas (ficha)
C39: Regional
C41: Sucre | E41: =+VLOOKUP(C41,Referencias!$W$2:$X$34,2,FALSE) -> Suc | F41: Seleccione la regional y de click en el botón gris para actualizar la información
C43: Seleccione la opción que desea revisar:
D45: Avances de la gestión institucional a nivel regional
D46: =+"- Comportamiento Regional (Tablero de Control, Plan de Acción, Ranking regional, Centros zonales)" -> - Comportamiento Regional (Tablero de Control, Plan de Acción, Ranking regional, Centros zonales)
D47: - Modelo Integrado de Planeación y Gestión (decreto 2482 de 2012)
D48: - Mapa Estrategico Institucional
D49: - Mapa de Procesos del ICBF
D50: ="- Analisis áreas" -> - Analisis áreas
D51: - Objetivos SIGE
D53: =+"- Revisión Centros zonales:" -> - Revisión Centros zonales: | G53: CZ Boston | K53: =+IFERROR(VLOOKUP($C$41&$G$53,'información graf'!$CR$60:$CU$304,4,FALSE),"") -> 7001
I54: Seleccione el centro zonal a revisar y de click en el boton verde
D55: Matriz de seguimiento indicadores tablero de control regional

Sheet Generalidades
B2: TABLERO DE CONTROL 2018 INSTITUTO COLOMBIANO DE BIENESTAR FAMILIAR ICBF Generalidades tablero de control
E5: Generalidades
E6: Metodología de medición
E7: Agregados
C9: Generalidades
C11: El tablero de control es la principal herramienta para medir la gestión de la Entidad, está compuesto por indicadores de la Sede de la Dirección General, Regionales y Centros Zonales, los cuales están alineados a los Objetivos institucionales, Plan Indicativo, Plan de Acción, mapa estratégico, mapa de procesos, y objetivos SIGE.
E14: Objetivos institucionales
E15: Plan Indicativo 2015 - 2018
E16: Plan de Acción (Decreto 2482 DAFP - Líneas de Politica y sus componentes)
E17: Mapa Estratégico
E18: Mapa de Procesos ICBF
E19: Objetivos SIGE
C21: Está compuesto por un total de 156 indicadores, de los cuales 70 aplican a nivel regional y 21 a nivel centro zonal. Cada uno de los indicadores se identifica por un código de acuerdo a la siguiente categorización:
E23: Indicadores de Plan de Acción | G23: Indicadores estratégicos que hacen parte del Plan de Acción Institucional, denominados con las letras "PA" Ejemplo: PA-01
E24: Indicadores de gestión (funcionales) | G24: Indicadores que no hacen parte del Plan de Acción, sin embargo, aportan al cumplimiento de las metas institucionales, denominados con la nomenclatura de las áreas y los procesos. Ejemplo: M1-PM1-01
C27: Los indicadores cuentan con un ámbito de medición (resultado, producto o gestión) y una dimensión de medición (eficacia, eficiencia y economía)
E29: Metodología de medición
E33: 1. Teniendo en cuenta el número de indicadores formulados en cada vigencia, se le asigna un peso porcentual a cada indicador, que sumados dan el 100% del tablero de control, de los cuales el conjunto de indicadores estratégicos (Plan de Acción)pesa el 80%, y el conjunto de indicadores de gestión (funcionales) pesa el restante 20%.
E36: 2. Para asignar el peso porcentual de cada indicador se tienen en cuenta los siguientes parámetros: a. Clasificación: Estratégicos (Plan de Acción) y de Gestión (Funcionales). b. Ámbito de medición: Resultado, Producto y Gestión, cumpliéndose la siguiente regla: Los indicadores de resultado tendrán un peso mayor a los indicadores de producto, y éstos a su vez tendrán un peso mayor a los indicadores de gestión (funcionales).
E39: 3. Para evaluar cada indicador se utiliza el peso porcentual calculado de acuerdo al punto anterior y la metodología de semáforo que sirve para estandarizar los resultados, basados en los rangos establecidos en la hoja de vida del indicador: ÓPTIMO, ADECUADO, RIESGO, CRÍTICO.
J40: Rango
J41: Optimo
J42: Adecuado
J43: En riesgo
J44: Crítico
E46: A partir de la información anterior, se lleva a cabo la siguiente operación: a. Se homologa el rango de valoración del indicador al sistema de puntos establecido:
J48: Rango | K48: Puntos
J49: Optimo | K49: 4
J50: Adecuado | K50: 3
J51: En riesgo | K51: 2
J52: Crítico | K52: 1
E55: b. Posteriormente, de acuerdo con los puntos establecidos, se asigna un valor entre 0,3 y 1, el cual se multiplica por el peso porcentual del indicador , esta operación se realiza para cada uno de los indicadores del tablero de control:
H57: Rango | I57: Puntos | J57: valor | K57: cálculo
H58: Optimo | I58: 4 | J58: 1 | K58: (peso porcentual del ndicador*valor del rango)
H59: Adecuado | I59: 3 | J59: 0.9
H60: En riesgo | I60: 2 | J60: 0.6
H61: Crítico | I61: 1 | J61: 0.3
E63: c. La sumatoria de los resultados de la operación anterior (denominado porcentaje real) sobre la sumatoria de los pesos porcentuales de los indicadores (denominado porcentaje universo), da como resultado el porcentaje de cumplimiento de cada uno de los agregados del tablero de control (áreas, regionales, centros zonales, procesos, objetivos SIGE, Objetivos Institucionales, líneas de política DAFP, perspectivas del mapa estratégico, entre otros), de acuerdo con los siguientes rangos de evaluación:
I65: 90%≤x≤100% | J65: Satisfactorio
I66: 80%≤x<90% | J66: Requiere mejora
I67: 70%≤x<80% | J67: Atención prioritaria
I68: 0%≤x<70% | J68: Atención inmediata
E70: NOTA : Los indicadores que no aplican en el periodo de medición, no se tendrán en cuenta para la calificación de los agregados.
E71: Agregados
E73: Agregados | G73: No.
E74: Regionales | G74: 33
E75: Centros zonales | G75: 211
E76: Áreas | G76: 22
E77: Objetivos Institucionales | G77: 6
E78: Plan de Acción - Líneas de política | G78: 5
E79: Plan de Acción - componentes | G79: 18
E80: Mapa Estratégico - Perspectivas | G80: 12
E81: Mapa de procesos - procesos | G81: 16
E82: Objetivos SIGE | G82: 10
E84: Objetivos institucionales
E86: Objetivo 1: | F86: Ampliar cobertura y mejorar calidad en la atención integral a la Primera Infancia.
E87: Objetivo 2: | F87: Fortalecer en las familias y comunidades, capacidades que promuevan su desarrollo, fortalezcan sus vínculos de cuidado mutuo y prevengan la violencia intrafamiliar y de género.
E88: Objetivo 3: | F88: Garantizar la protección integral de los NNA en coordinación con las instancias del SNBF.
E89: Objetivo 4: | F89: Lograr una adecuada y eficiente gestión institucional a través de la articulación entre servidores, áreas y niveles territoriales; el apoyo administrativo a los procesos misionales, la apropiación de una cultura de la evaluación y la optimización del uso de los recursos
E90: Objetivo 5: | F90: Promover la seguridad alimentaria y nutricional en el desarrollo de la primera infancia, los NNA y la familia.
E91: Objetivo 6: | F91: Promover los derechos de los NNA y prevenir los riesgos o amenazas de vulneración de los mismos
E94: Plan de Acción (Decreto 2482 DAFP - Líneas de Politica y sus componentes)
E96: Lineas de Politica | J96: Componentes
E97: LP1: | F97: Gestión misional y de gobierno | J97: LP1-C1: | K97: Indicadores y metas de gobierno
E98: LP2: | F98: Transparencia, participación y servicio al ciudadano | J98: LP2-C2: | K98: Participación Ciudadana en la Gestión
J99: LP2-C3: | K99: Rendición de cuentas
J100: LP2-C4: | K100: Servicio al ciudadano
J101: LP2-C5 | K101: Plan Anticorrupción y de Atención al Ciudadano
E102: LP3: | F102: Gestión del talento humano | J102: LP3-C1: | K102: Plan Estratégico de Recursos Humanos
J103: LP3-C2: | K103: Plan Anual de Vacantes
J104: LP3-C3: | K104: Capacitación
J105: LP3-C4: | K105: Bienestar e Incentivos
E106: LP4: | F106: Eficiencia administrativa | J106: LP4-C1: | K106: Gestión de la calidad
J107: LP4-C2: | K107: Eficiencia administrativa y cero papel
J108: LP4-C3: | K108: Racionalización de trámites
J109: LP4-C4: | K109: Modernización institucional
J110: LP4-C5: | K110: Gestión de Tecnologías de información
J111: LP4-C6: | K111: Gestión documental
E112: LP5: | F112: Gestión Financiera | J112: LP5-C1: | K112: Programación y ejecución presupuestal
J113: LP5-C2: | K113: Programa Anual Mensualizado de Caja – PAC
J114: LP5-C4: | K114: Plan Anual de Adquisiciones (PAA)
E118: Mapa Estratégico
E120: PS: Servicios | F120: PS1 | G120: Ampliar cobertura y mejorar calidad en la atención integral de la Primera Infancia
F121: PS2 | G121: Promover los derechos de los niños, niñas y adolescentes y prevenir los riesgos o amenazas de su vulneración
F122: PS3 | G122: Promover el desarrollo, fortalecer los vínculos de cuidado mutuo y prevenir violencia intrafamiliar y de género en las familias y las comunidades
F123: PS4 | G123: Promover la seguridad alimentaria y Nutricional
F124: PS5 | G124: Garantizar la Protección integral de los niños, niñas y adolescentes
E126: PP: Procesos | F126: PP1 | G126: Impulsar una cultura de la evaluación y gestión de la calidad para el mejoramiento continuo
F127: PP2 | G127: Promover condiciones laborales que hagan del ICBF el mejor lugar para trabajar
F128: PP3 | G128: Reducir los impactos ambientales generados por nuestra actividad
F129: PP4 | G129: Gestionar el conocimiento institucional, con sistemas de información integrados y seguros
E131: PAS: Aliados y sociedad | F131: PAS1 | G131: Articular las instancias del Instituto Colombiano de Bienestar Familiar y del Sistema Nacional de Bienestar Familiar
F132: PAS2 | G132: Trabajar con transparencia y buen Gobierno para promover el control social y la participación ciudadana
E134: PF: Financiera | F134: PF | G134: Hacer un uso eficiente de los recursos de los niños, niñas y adolescentes, porque son sagrados
E138: Mapa de Procesos ICBF
E140: Misionales
E141: PM1 | F141: Promoción y prevención
E142: PM2 | F142: Protección
E143: Apoyo
E144: PA1 | F144: Gestión financiera
E145: PA2 | F145: Adquisición de bienes y servicios
E146: PA3 | F146: Servicios administrativos
E147: PA4 | F147: Gestión de talento humano
E148: PA5 | F148: Gestión jurídica
E149: Estratégicos
E150: PE1 | F150: Coordinación y articulación del SNBF y agentes
E151: PE2 | F151: Direccionamiento Estratégico
E152: PE3 | F152: Comunicación estratégica
E153: Evaluación
E154: PEV1 | F154: Inspección vigilancia y control a operadores
E155: PEV2 | F155: Evaluación y monitoreo de la gestión
E156: PEV3 | F156: Evaluación independiente
E157: Transversales
E158: PT1 | F158: Relación con el ciudadano
E159: PT2 | F159: Mejora e Innovación
E160: PT3 | F160: Gestión de la tecnología e información
E163: Objetivos SIGE
E165: SIGE1: | F165: Ampliar cobertura y mejorar calidad en la atención integral a la Primera Infancia.
E166: SIGE2: | F166: Promover los derechos de los NNA y prevenir los riesgos o amenazas de vulneración de los mismos
E167: SIGE3: | F167: Fortalecer en las familias y comunidades capacidades que promuevan su desarrollo, fortalezcan sus vínculos de cuidado mutuo y prevengan la violencia intrafamiliar y de género.
E169: SIGE4: | F169: Promover la seguridad alimentaria y nutricional en el desarrollo de la primera infancia, los NNA y la familia.
E170: SIGE5: | F170: Garantizar la protección integral de los NNA en coordinación con las instancias del SNBF.
E171: SIGE6: | F171: Lograr una adecuada y eficiente gestión institucional a través de la articulación entre servidores, áreas y niveles territoriales; el apoyo administrativo a los procesos misionales, la apropiación de una cultura de la evaluación y la optimización del uso de los recursos
E174: SIGE7: | F174: Promover condiciones laborales que hagan del ICBF el mejor lugar para trabajar.
E175: SIGE8: | F175: Reducir los impactos ambientales generados por nuestra actividad.
E176: SIGE9: | F176: Impulsar una cultura de gestión de la calidad y el mejoramiento. continuo.
E177: SIGE10: | F177: Gestionar el conocimiento institucional, con sistemas de información confiables, integrados y disponibles.
E179: Áreas ICBF
E181: Misionales
E182: M1 | F182: Dirección de Primera Infancia
E183: M2 | F183: Dirección de Niñez y Adolescencia
E184: M3 | F184: Dirección de Familia y Comunidades
E185: M4 | F185: Dirección de Nutrición
E186: M5 | F186: Dirección de Protección
E188: Apoyo
E189: A1 | F189: Dirección de Gestión Humana
E190: A2 | F190: Dirección Financiera
E191: A3 | F191: Oficina de Control Interno Disciplinario
E192: A4 | F192: Dirección de Abastecimiento
E193: A5 | F193: Dirección Administrativa
E194: A6 | F194: Dirección de Contratación
E195: A7 | F195: Oficina Asesora Jurídica
E196: A8 | F196: Oficina de Gestión Regional
E197: A9 | F197: Oficina de Cooperación y Convenios
E198: A10 | F198: Dirección de Servicio y Atención
E199: A11 | F199: Dirección de Información y Tecnología
E200: A12 | F200: Oficina Asesora de Comunicaciones
E201: A13 | F201: Dirección de Planeación
E202: A14 | F202: Dirección del SNBF
E203: A15 | F203: Oficina de Control Interno
E204: A16 | F204: Oficina de Aseguramiento a la calidad
E205: A17 | F205: Subdirección General

Sheet nacional
C2: TABLERO DE CONTROL 2018 INSTITUTO COLOMBIANO DE BIENESTAR FAMILIAR ICBF SEGUIMIENTO TABLERO DE CONTROL - ANÁLISIS GENERAL | X2: Calificación agregados
C5: Mes analisis | D5: =+Menu!C11 -> Agosto | S5: Volver al menú
D6: =+VLOOKUP(D5,Referencias!$A$132:$C$143,3,FALSE) -> Agt | E6: =+VLOOKUP(D6,Referencias!C131:I143,7,FALSE) -> 8
N10: Comportamiento indicadores
N11: T. control | O11: P. Acción | P11: P. Indicativo
L12: 2 | M12: Optimo | N12: =+HLOOKUP($D$6,'información graf'!$BO$3:$BZ$8,2,FALSE) -> 44 | O12: =+HLOOKUP($D$6,'información graf'!$BO$17:$BZ$22,2,FALSE) -> 22 | P12: =+HLOOKUP($D$6,'información graf'!$BO$31:$BZ$36,2,FALSE) -> 13
L13: 3 | M13: Adecuado | N13: =+HLOOKUP($D$6,'información graf'!$BO$3:$BZ$8,3,FALSE) -> 24 | O13: =+HLOOKUP($D$6,'información graf'!$BO$17:$BZ$22,3,FALSE) -> 9 | P13: =+HLOOKUP($D$6,'información graf'!$BO$31:$BZ$36,3,FALSE) -> 4
L14: 4 | M14: En riesgo | N14: =+HLOOKUP($D$6,'información graf'!$BO$3:$BZ$8,4,FALSE) -> 2 | O14: =+HLOOKUP($D$6,'información graf'!$BO$17:$BZ$22,4,FALSE) -> 0 | P14: =+HLOOKUP($D$6,'información graf'!$BO$31:$BZ$36,4,FALSE) -> 0
L15: 5 | M15: Critico | N15: =+HLOOKUP($D$6,'información graf'!$BO$3:$BZ$8,5,FALSE) -> 5 | O15: =+HLOOKUP($D$6,'información graf'!$BO$17:$BZ$22,5,FALSE) -> 4 | P15: =+HLOOKUP($D$6,'información graf'!$BO$31:$BZ$36,5,FALSE) -> 3
L16: 6 | M16: NA | N16: =+HLOOKUP($D$6,'información graf'!$BO$3:$BZ$8,6,FALSE) -> 81 | O16: =+HLOOKUP($D$6,'información graf'!$BO$17:$BZ$22,6,FALSE) -> 55 | P16: =+HLOOKUP($D$6,'información graf'!$BO$31:$BZ$36,6,FALSE) -> 48
L17: 7 | M17: Total | N17: =SUM(N12:N16) -> 156 | O17: =SUM(O12:O16) -> 90 | P17: =SUM(P12:P16) -> 68
M18: Aplicaron en el mes de corte | N18: =+N12+N13+N14+N15 -> 75 | O18: =+O12+O13+O14+O15 -> 35 | P18: =+P12+P13+P14+P15 -> 20 | AG18: Comparación vigencias 2017 - 2018
M19: =+"Corte "&$D$5 -> Corte Agosto
D20: =+"Corte "&$D$5 -> Corte Agosto
C23: Tablero de Control | H23: Plan de Acción | M23: Plan Indicativo
AH44: Tablero | AJ44: Ene | AK44: Feb | AL44: Mar | AM44: Abr | AN44: May | AO44: Jun | AP44: Jul | AQ44: Agt | AR44: Sep | AS44: Oct | AT44: Nov | AU44: Dic
AI45: 2017 | AJ45: =+'información graf'!AM4 -> 0.9168138095 | AK45: =+'información graf'!AN4 -> 0.91983321 | AL45: =+'información graf'!AO4 -> 0.9342227543 | AM45: =+'información graf'!AP4 -> 0.8991814865 | AN45: =+'información graf'!AQ4 -> 0.9310953629 | AO45: =+'información graf'!AR4 -> 0.9527783735 | AP45: =+'información graf'!AS4 -> 0.9524510718 | AQ45: =+'información graf'!AT4 -> 0.9310235879 | AR45: =+'información graf'!AU4 ->  | AS45: =+'información graf'!AV4 ->  | AT45: =+'información graf'!AW4 ->  | AU45: =+'información graf'!AX4 -> 
AI46: 2018 | AJ46: =+'información graf'!AM5 -> 0.9685873192 | AK46: =+'información graf'!AN5 -> 0.9375970454 | AL46: =+'información graf'!AO5 -> 0.9253116537 | AM46: =+'información graf'!AP5 -> 0.9374733134 | AN46: =+'información graf'!AQ5 -> 0.9418385343 | AO46: =+'información graf'!AR5 -> 0.9403193548 | AP46: =+'información graf'!AS5 -> 0.9516812004 | AQ46: =+'información graf'!AT5 -> 0.9152371597 | AR46: =+'información graf'!AU5 ->  | AS46: =+'información graf'!AV5 ->  | AT46: =+'información graf'!AW5 ->  | AU46: =+'información graf'!AX5 -> 
C47: =+"Corte "&$D$5 -> Corte Agosto | H47: =+"Corte "&$D$5 -> Corte Agosto | M47: =+"Corte "&$D$5 -> Corte Agosto | AI47: ∆ | AJ47: =+IFERROR((AJ46/AJ45)-1,0) -> 0.05647112771 | AK47: =+IFERROR((AK46/AK45)-1,0) -> 0.01931201787 | AL47: -0.009538518084 | AM47: 0.0425852039 | AN47: 0.01153820737 | AO47: -0.01307651286 | AP47: -0.0008083054697 | AQ47: -0.01695599159 | AR47: 0 | AS47: 0 | AT47: 0 | AU47: 0
T48: 1 | U48: 2 | V48: 3 | W48: 4 | X48: 5 | Y48: 6 | Z48: 7 | AA48: 8 | AB48: 9 | AC48: 10 | AD48: 11 | AE48: 12
T49: Seguimiento mes a mes gestión ICBF | AH49: Plan de Acción | AJ49: Ene | AK49: Feb | AL49: Mar | AM49: Abr | AN49: May | AO49: Jun | AP49: Jul | AQ49: Agt | AR49: Sep | AS49: Oct | AT49: Nov | AU49: Dic
T50: Ene | U50: Feb | V50: Mar | W50: Abr | X50: May | Y50: Jun | Z50: Jul | AA50: Agt | AB50: Sep | AC50: Oct | AD50: Nov | AE50: Dic | AI50: 2017 | AJ50: =+'información graf'!AM8 -> 0.9090868196 | AK50: =+'información graf'!AN8 -> 0.9101128668 | AL50: =+'información graf'!AO8 -> 0.9427887432 | AM50: =+'información graf'!AP8 -> 0.9168626366 | AN50: =+'información graf'!AQ8 -> 0.926621936 | AO50: =+'información graf'!AR8 -> 0.9595415321 | AP50: =+'información graf'!AS8 -> 0.9610199092 | AQ50: =+'información graf'!AT8 -> 0.9470343563 | AR50: =+'información graf'!AU8 ->  | AS50: =+'información graf'!AV8 ->  | AT50: =+'información graf'!AW8 ->  | AU50: =+'información graf'!AX8 -> 
S51: T. control | T51: =+IFERROR('información graf'!BA4,"") -> 0.9685873192 | U51: =+IFERROR('información graf'!BB4,"") -> 0.9375970454 | V51: =+IFERROR('información graf'!BC4,"") -> 0.9253116537 | W51: =+IFERROR('información graf'!BD4,"") -> 0.9374733134 | X51: =+IFERROR('información graf'!BE4,"") -> 0.9418385343 | Y51: =+IFERROR('información graf'!BF4,"") -> 0.9403193548 | Z51: =+IFERROR('información graf'!BG4,"") -> 0.9516812004 | AA51: =+IFERROR('información graf'!BH4,"") -> 0.9152371597 | AB51: =+IFERROR('información graf'!BI4,"") ->  | AC51: =+IFERROR('información graf'!BJ4,"") ->  | AD51: =+IFERROR('información graf'!BK4,"") ->  | AE51: =+IFERROR('información graf'!BL4,"") ->  | AI51: 2018 | AJ51: =+'información graf'!AM9 -> 0.9746447547 | AK51: =+'información graf'!AN9 -> 0.9326231527 | AL51: =+'información graf'!AO9 -> 0.9479297388 | AM51: =+'información graf'!AP9 -> 0.9711855333 | AN51: =+'información graf'!AQ9 -> 0.9597240252 | AO51: =+'información graf'!AR9 -> 0.9507856422 | AP51: =+'información graf'!AS9 -> 0.9619116304 | AQ51: =+'información graf'!AT9 -> 0.905852997 | AR51: =+'información graf'!AU9 ->  | AS51: =+'información graf'!AV9 ->  | AT51: =+'información graf'!AW9 ->  | AU51: =+'información graf'!AX9 -> 
S52: Aplican | T52: =IF(T$48<=$E$6,Tablero!BM33,"") -> 12 | U52: =IF(U$48<=$E$6,Tablero!BN33,"") -> 32 | V52: =IF(V$48<=$E$6,Tablero!BO33,"") -> 100 | W52: =IF(W$48<=$E$6,Tablero!BP33,"") -> 72 | X52: =IF(X$48<=$E$6,Tablero!BQ33,"") -> 47 | Y52: =IF(Y$48<=$E$6,Tablero!BR33,"") -> 135 | Z52: =IF(Z$48<=$E$6,Tablero!BS33,"") -> 47 | AA52: =IF(AA$48<=$E$6,Tablero!BT33,"") -> 76 | AB52: =IF(AB$48<=$E$6,Tablero!BU33,"") ->  | AC52: =IF(AC$48<=$E$6,Tablero!BV33,"") ->  | AD52: =IF(AD$48<=$E$6,Tablero!BW33,"") ->  | AE52: =IF(AE$48<=$E$6,Tablero!BX33,"") ->  | AI52: ∆ | AJ52: =+IFERROR((AJ51/AJ50)-1,0) -> 0.07211405302 | AK52: 0.02473351022 | AL52: 0.005452966725 | AM52: 0.05924867533 | AN52: 0.03572340333 | AO52: -0.009125076481 | AP52: 0.0009278904341 | AQ52: -0.04348454624 | AR52: 0 | AS52: 0 | AT52: 0 | AU52: 0
S53: P. Acción | T53: =+IFERROR('información graf'!BA5,"") -> 0.9746447547 | U53: =+IFERROR('información graf'!BB5,"") -> 0.9326231527 | V53: =+IFERROR('información graf'!BC5,"") -> 0.9479297388 | W53: =+IFERROR('información graf'!BD5,"") -> 0.9711855333 | X53: =+IFERROR('información graf'!BE5,"") -> 0.9597240252 | Y53: =+IFERROR('información graf'!BF5,"") -> 0.9507856422 | Z53: =+IFERROR('información graf'!BG5,"") -> 0.9619116304 | AA53: =+IFERROR('información graf'!BH5,"") -> 0.905852997 | AB53: =+IFERROR('información graf'!BI5,"") ->  | AC53: =+IFERROR('información graf'!BJ5,"") ->  | AD53: =+IFERROR('información graf'!BK5,"") ->  | AE53: =+IFERROR('información graf'!BL5,"") -> 
S54: Aplican | T54: =IF(T$48<=$E$6,Tablero!BM37,"") -> 8 | U54: =IF(U$48<=$E$6,Tablero!BN37,"") -> 15 | V54: =IF(V$48<=$E$6,Tablero!BO37,"") -> 54 | W54: =IF(W$48<=$E$6,Tablero!BP37,"") -> 32 | X54: =IF(X$48<=$E$6,Tablero!BQ37,"") -> 19 | Y54: =IF(Y$48<=$E$6,Tablero!BR37,"") -> 77 | Z54: =IF(Z$48<=$E$6,Tablero!BS37,"") -> 19 | AA54: =IF(AA$48<=$E$6,Tablero!BT37,"") -> 36 | AB54: =IF(AB$48<=$E$6,Tablero!BU37,"") ->  | AC54: =IF(AC$48<=$E$6,Tablero!BV37,"") ->  | AD54: =IF(AD$48<=$E$6,Tablero!BW37,"") ->  | AE54: =IF(AE$48<=$E$6,Tablero!BX37,"") ->  | AH54: Plan Indicativo | AJ54: Ene | AK54: Feb | AL54: Mar | AM54: Abr | AN54: May | AO54: Jun | AP54: Jul | AQ54: Agt | AR54: Sep | AS54: Oct | AT54: Nov | AU54: Dic
S55: P. Indicativo | T55: =+IFERROR('información graf'!BA6,"") -> 0.9864558582 | U55: =+IFERROR('información graf'!BB6,"") -> 0.9213599735 | V55: =+IFERROR('información graf'!BC6,"") -> 0.9443454572 | W55: =+IFERROR('información graf'!BD6,"") -> 0.9768096037 | X55: =+IFERROR('información graf'!BE6,"") -> 0.9719176898 | Y55: =+IFERROR('información graf'!BF6,"") -> 0.9502471198 | Z55: =+IFERROR('información graf'!BG6,"") -> 0.9758516341 | AA55: =+IFERROR('información graf'!BH6,"") -> 0.9057060657 | AB55: =+IFERROR('información graf'!BI6,"") ->  | AC55: =+IFERROR('información graf'!BJ6,"") ->  | AD55: =+IFERROR('información graf'!BK6,"") ->  | AE55: =+IFERROR('información graf'!BL6,"") ->  | AI55: 2017 | AJ55: =+'información graf'!AM12 -> 0.8877481177 | AK55: =+'información graf'!AN12 -> 0.9212335129 | AL55: =+'información graf'!AO12 -> 0.9467881944 | AM55: =+'información graf'!AP12 -> 0.9376021798 | AN55: =+'información graf'!AQ12 -> 0.9716250262 | AO55: =+'información graf'!AR12 -> 0.9697606625 | AP55: =+'información graf'!AS12 -> 0.9694840339 | AQ55: =+'información graf'!AT12 -> 0.9365035203 | AR55: =+'información graf'!AU12 ->  | AS55: =+'información graf'!AV12 ->  | AT55: =+'información graf'!AW12 ->  | AU55: =+'información graf'!AX12 -> 
S56: Aplican | T56: =IF(T$48<=$E$6,Tablero!BM42,"") -> 6 | U56: =IF(U$48<=$E$6,Tablero!BN42,"") -> 9 | V56: =IF(V$48<=$E$6,Tablero!BO42,"") -> 41 | W56: =IF(W$48<=$E$6,Tablero!BP42,"") -> 19 | X56: =IF(X$48<=$E$6,Tablero!BQ42,"") -> 11 | Y56: =IF(Y$48<=$E$6,Tablero!BR42,"") -> 59 | Z56: =IF(Z$48<=$E$6,Tablero!BS42,"") -> 11 | AA56: =IF(AA$48<=$E$6,Tablero!BT42,"") -> 21 | AB56: =IF(AB$48<=$E$6,Tablero!BU42,"") ->  | AC56: =IF(AC$48<=$E$6,Tablero!BV42,"") ->  | AD56: =IF(AD$48<=$E$6,Tablero!BW42,"") ->  | AE56: =IF(AE$48<=$E$6,Tablero!BX42,"") ->  | AI56: 2018 | AJ56: =+'información graf'!AM13 -> 0.9864558582 | AK56: =+'información graf'!AN13 -> 0.9213599735 | AL56: =+'información graf'!AO13 -> 0.9443454572 | AM56: =+'información graf'!AP13 -> 0.9768096037 | AN56: =+'información graf'!AQ13 -> 0.9719176898 | AO56: =+'información graf'!AR13 -> 0.9502471198 | AP56: =+'información graf'!AS13 -> 0.9758516341 | AQ56: =+'información graf'!AT13 -> 0.9057060657 | AR56: =+'información graf'!AU13 ->  | AS56: =+'información graf'!AV13 ->  | AT56: =+'información graf'!AW13 ->  | AU56: =+'información graf'!AX13 -> 
AI57: ∆ | AJ57: =+IFERROR((AJ56/AJ55)-1,0) -> 0.1111889042 | AK57: 0.0001372731172 | AL57: -0.002580025011 | AM57: 0.04181669449 | AN57: 0.0003012103729 | AO57: -0.02012201918 | AP57: 0.006568029963 | AQ57: -0.03288557274 | AR57: 0 | AS57: 0 | AT57: 0 | AU57: 0
C65: Plan de Acción Institucional | U65: Resultados Plan de Acción frente a la vigencia
M78: Ranking Regional
C93: Macroregiones
S96: % Cumplimiento | U96: =+'información graf'!CN30 -> 0.9689100272 | V96: =+'información graf'!CN31 -> 0.8779987522 | W96: =+'información graf'!CN32 -> 1 | X96: =+'información graf'!CN33 -> 0.9794693299 | Y96: =+'información graf'!CN34 -> 0.9306257216 | Z96: =+'información graf'!CN35 -> 0.9675530092 | AA96: =+'información graf'!CN36 -> 0.9661369146 | AB96: =+'información graf'!CN37 -> 0.9 | AC96: =+'información graf'!CN38 -> 1 | AD96: =+'información graf'!CN39 -> 0.8805827627 | AE96: =+'información graf'!CN40 -> 0.5639379892 | AF96: =+'información graf'!CN41 -> 1 | AG96: =+'información graf'!CN42 -> 0.9340705585 | AH96: =+'información graf'!CN43 -> 0.9333889816 | AI96: =+'información graf'!CN44 -> 0.823608489 | AJ96: =+'información graf'!CN45 -> 0.3 | AK96: =+'información graf'!CN46 -> 1 | AL96: =+'información graf'!CN47 -> 1.296996663 | AM96: =+'información graf'!CN48 -> 1 | AN96: =+'información graf'!CN49 -> 0.975 | AO96: =+'información graf'!CN50 -> 1 | AP96: =+'información graf'!CN51 -> 1 | AQ96: =+'información graf'!CN52 -> 0.9243835435
I116: Pacífico | J116: =+'información graf'!CP63 -> 0.9568616222
I117: Centro Sur | J117: =+'información graf'!CP64 -> 0.9579976742
I118: Llanos | J118: =+'información graf'!CP65 -> 0.9039780527
I119: Eje Cafetero | J119: =+'información graf'!CP66 -> 0.9462188873
I120: Caribe | J120: =+'información graf'!CP67 -> 0.9213531126
I121: Centro Oriente | J121: =+'información graf'!CP68 -> 0.9451107256
C127: Modelo Integrado de Planeación y Gestión - decreto 2482 de 2012, DAFP | AW127: Gestión misional y de Gobierno | BC127: Transparencia, participación y servicio al ciudadano | BJ127: Gestión del talento humano
T129: optimo | U129: adecuado | V129: en riesgo | W129: critico | X129: NA
H130: Líneas de politica | J130: Componentes | S130: Comportamiento agregado de indicadores
Y131: Total
M132: LP1 | N132: Gestión misional y de gobierno | S132: LP1 | T132: =+T133 -> 16 | U132: 5 | V132: 0 | W132: 2 | X132: 34 | Y132: 57
N133: LP1-C1 | O133: Indicadores y metas de Gobierno | S133: LP1-C1 | T133: =+VLOOKUP($S133&T$129,'td1'!$EX$169:$FJ$258,'información graf'!$G$2,FALSE) -> 16 | U133: =+VLOOKUP($S133&U$129,'td1'!$EX$169:$FJ$258,'información graf'!$G$2,FALSE) -> 5 | V133: =+VLOOKUP($S133&V$129,'td1'!$EX$169:$FJ$258,'información graf'!$G$2,FALSE) -> 0 | W133: =+VLOOKUP($S133&W$129,'td1'!$EX$169:$FJ$258,'información graf'!$G$2,FALSE) -> 2 | X133: =+VLOOKUP($S133&X$129,'td1'!$EX$169:$FJ$258,'información graf'!$G$2,FALSE) -> 34 | Y133: =+SUM(T133:X133) -> 57
M134: LP2 | N134: Transparencia, participación y servicio al ciudadano | S134: LP2 | T134: =+T135+T136+T137+T138 -> 1 | U134: 1 | V134: 0 | W134: 0 | X134: 10 | Y134: 12
N135: LP2-C2 | O135: Participación Ciudadana en la Gestión | S135: LP2-C2 | T135: =+VLOOKUP($S135&T$129,'td1'!$EX$169:$FJ$258,'información graf'!$G$2,FALSE) -> 0 | U135: =+VLOOKUP($S135&U$129,'td1'!$EX$169:$FJ$258,'información graf'!$G$2,FALSE) -> 0 | V135: =+VLOOKUP($S135&V$129,'td1'!$EX$169:$FJ$258,'información graf'!$G$2,FALSE) -> 0 | W135: =+VLOOKUP($S135&W$129,'td1'!$EX$169:$FJ$258,'información graf'!$G$2,FALSE) -> 0 | X135: =+VLOOKUP($S135&X$129,'td1'!$EX$169:$FJ$258,'información graf'!$G$2,FALSE) -> 6 | Y135: =+SUM(T135:X135) -> 6
N136: LP2-C3 | O136: Rendición de Cuentas a la ciudadania | S136: LP2-C3 | T136: =+VLOOKUP($S136&T$129,'td1'!$EX$169:$FJ$258,'información graf'!$G$2,FALSE) -> 1 | U136: =+VLOOKUP($S136&U$129,'td1'!$EX$169:$FJ$258,'información graf'!$G$2,FALSE) -> 0 | V136: =+VLOOKUP($S136&V$129,'td1'!$EX$169:$FJ$258,'información graf'!$G$2,FALSE) -> 0 | W136: =+VLOOKUP($S136&W$129,'td1'!$EX$169:$FJ$258,'información graf'!$G$2,FALSE) -> 0 | X136: =+VLOOKUP($S136&X$129,'td1'!$EX$169:$FJ$258,'información graf'!$G$2,FALSE) -> 0 | Y136: =+SUM(T136:X136) -> 1
N137: LP2-C4 | O137: Servicio al Ciudadano | S137: LP2-C4 | T137: =+VLOOKUP($S137&T$129,'td1'!$EX$169:$FJ$258,'información graf'!$G$2,FALSE) -> 0 | U137: =+VLOOKUP($S137&U$129,'td1'!$EX$169:$FJ$258,'información graf'!$G$2,FALSE) -> 1 | V137: =+VLOOKUP($S137&V$129,'td1'!$EX$169:$FJ$258,'información graf'!$G$2,FALSE) -> 0 | W137: =+VLOOKUP($S137&W$129,'td1'!$EX$169:$FJ$258,'información graf'!$G$2,FALSE) -> 0 | X137: =+VLOOKUP($S137&X$129,'td1'!$EX$169:$FJ$258,'información graf'!$G$2,FALSE) -> 2 | Y137: =+SUM(T137:X137) -> 3
N138: LP2-C5 | O138: Plan Anticorrupción y de Atención al Ciudadano | S138: LP2-C5 | T138: =+VLOOKUP($S138&T$129,'td1'!$EX$169:$FJ$258,'información graf'!$G$2,FALSE) -> 0 | U138: =+VLOOKUP($S138&U$129,'td1'!$EX$169:$FJ$258,'información graf'!$G$2,FALSE) -> 0 | V138: =+VLOOKUP($S138&V$129,'td1'!$EX$169:$FJ$258,'información graf'!$G$2,FALSE) -> 0 | W138: =+VLOOKUP($S138&W$129,'td1'!$EX$169:$FJ$258,'información graf'!$G$2,FALSE) -> 0 | X138: =+VLOOKUP($S138&X$129,'td1'!$EX$169:$FJ$258,'información graf'!$G$2,FALSE) -> 2 | Y138: =+SUM(T138:X138) -> 2
M139: LP3 | N139: Gestión del talento humano | S139: LP3 | T139: =+T140+T141+T142+T143 -> 2 | U139: 1 | V139: 0 | W139: 0 | X139: 1 | Y139: 4
N140: LP3-C1 | O140: Plan Estratégico de Recursos Humanos | S140: LP3-C1 | T140: =+VLOOKUP($S140&T$129,'td1'!$EX$169:$FJ$258,'información graf'!$G$2,FALSE) -> 0 | U140: =+VLOOKUP($S140&U$129,'td1'!$EX$169:$FJ$258,'información graf'!$G$2,FALSE) -> 0 | V140: =+VLOOKUP($S140&V$129,'td1'!$EX$169:$FJ$258,'información graf'!$G$2,FALSE) -> 0 | W140: =+VLOOKUP($S140&W$129,'td1'!$EX$169:$FJ$258,'información graf'!$G$2,FALSE) -> 0 | X140: =+VLOOKUP($S140&X$129,'td1'!$EX$169:$FJ$258,'información graf'!$G$2,FALSE) -> 1 | Y140: =+SUM(T140:X140) -> 1
N141: LP3-C2 | O141: Plan Anual de Vacantes | S141: LP3-C2 | T141: =+VLOOKUP($S141&T$129,'td1'!$EX$169:$FJ$258,'información graf'!$G$2,FALSE) -> 0 | U141: =+VLOOKUP($S141&U$129,'td1'!$EX$169:$FJ$258,'información graf'!$G$2,FALSE) -> 1 | V141: =+VLOOKUP($S141&V$129,'td1'!$EX$169:$FJ$258,'información graf'!$G$2,FALSE) -> 0 | W141: =+VLOOKUP($S141&W$129,'td1'!$EX$169:$FJ$258,'información graf'!$G$2,FALSE) -> 0 | X141: =+VLOOKUP($S141&X$129,'td1'!$EX$169:$FJ$258,'información graf'!$G$2,FALSE) -> 0 | Y141: =+SUM(T141:X141) -> 1
N142: LP3-C3 | O142: Capacitación | S142: LP3-C3 | T142: =+VLOOKUP($S142&T$129,'td1'!$EX$169:$FJ$258,'información graf'!$G$2,FALSE) -> 1 | U142: =+VLOOKUP($S142&U$129,'td1'!$EX$169:$FJ$258,'información graf'!$G$2,FALSE) -> 0 | V142: =+VLOOKUP($S142&V$129,'td1'!$EX$169:$FJ$258,'información graf'!$G$2,FALSE) -> 0 | W142: =+VLOOKUP($S142&W$129,'td1'!$EX$169:$FJ$258,'información graf'!$G$2,FALSE) -> 0 | X142: =+VLOOKUP($S142&X$129,'td1'!$EX$169:$FJ$258,'información graf'!$G$2,FALSE) -> 0 | Y142: =+SUM(T142:X142) -> 1
N143: LP3-C4 | O143: Bienestar e Incentivos | S143: LP3-C4 | T143: =+VLOOKUP($S143&T$129,'td1'!$EX$169:$FJ$258,'información graf'!$G$2,FALSE) -> 1 | U143: =+VLOOKUP($S143&U$129,'td1'!$EX$169:$FJ$258,'información graf'!$G$2,FALSE) -> 0 | V143: =+VLOOKUP($S143&V$129,'td1'!$EX$169:$FJ$258,'información graf'!$G$2,FALSE) -> 0 | W143: =+VLOOKUP($S143&W$129,'td1'!$EX$169:$FJ$258,'información graf'!$G$2,FALSE) -> 0 | X143: =+VLOOKUP($S143&X$129,'td1'!$EX$169:$FJ$258,'información graf'!$G$2,FALSE) -> 0 | Y143: =+SUM(T143:X143) -> 1
M144: LP4 | N144: Eficiencia administrativa | S144: LP4 | T144: =+T145+T146+T147+T148+T149+T150 -> 1 | U144: 0 | V144: 0 | W144: 2 | X144: 10 | Y144: 13 | AZ144: Eficiencia administrativa | BI144: Gestión financiera
N145: LP4-C1 | O145: Gestión de la Calidad | S145: LP4-C1 | T145: =+VLOOKUP($S145&T$129,'td1'!$EX$169:$FJ$258,'información graf'!$G$2,FALSE) -> 1 | U145: =+VLOOKUP($S145&U$129,'td1'!$EX$169:$FJ$258,'información graf'!$G$2,FALSE) -> 0 | V145: =+VLOOKUP($S145&V$129,'td1'!$EX$169:$FJ$258,'información graf'!$G$2,FALSE) -> 0 | W145: =+VLOOKUP($S145&W$129,'td1'!$EX$169:$FJ$258,'información graf'!$G$2,FALSE) -> 0 | X145: =+VLOOKUP($S145&X$129,'td1'!$EX$169:$FJ$258,'información graf'!$G$2,FALSE) -> 6 | Y145: =+SUM(T145:X145) -> 7
N146: LP4-C2 | O146: Eficiencia Administrativa y Cero Papel | S146: LP4-C2 | T146: =+VLOOKUP($S146&T$129,'td1'!$EX$169:$FJ$258,'información graf'!$G$2,FALSE) -> 0 | U146: =+VLOOKUP($S146&U$129,'td1'!$EX$169:$FJ$258,'información graf'!$G$2,FALSE) -> 0 | V146: =+VLOOKUP($S146&V$129,'td1'!$EX$169:$FJ$258,'información graf'!$G$2,FALSE) -> 0 | W146: =+VLOOKUP($S146&W$129,'td1'!$EX$169:$FJ$258,'información graf'!$G$2,FALSE) -> 1 | X146: =+VLOOKUP($S146&X$129,'td1'!$EX$169:$FJ$258,'información graf'!$G$2,FALSE) -> 0 | Y146: 1
N147: LP4-C3 | O147: Racionalización de Trámites | S147: LP4-C3 | T147: =+VLOOKUP($S147&T$129,'td1'!$EX$169:$FJ$258,'información graf'!$G$2,FALSE) -> 0 | U147: =+VLOOKUP($S147&U$129,'td1'!$EX$169:$FJ$258,'información graf'!$G$2,FALSE) -> 0 | V147: =+VLOOKUP($S147&V$129,'td1'!$EX$169:$FJ$258,'información graf'!$G$2,FALSE) -> 0 | W147: =+VLOOKUP($S147&W$129,'td1'!$EX$169:$FJ$258,'información graf'!$G$2,FALSE) -> 0 | X147: =+VLOOKUP($S147&X$129,'td1'!$EX$169:$FJ$258,'información graf'!$G$2,FALSE) -> 1 | Y147: 1
N148: LP4-C4 | O148: Modernización Institucional | S148: LP4-C4 | T148: =+VLOOKUP($S148&T$129,'td1'!$EX$169:$FJ$258,'información graf'!$G$2,FALSE) -> 0 | U148: =+VLOOKUP($S148&U$129,'td1'!$EX$169:$FJ$258,'información graf'!$G$2,FALSE) -> 0 | V148: =+VLOOKUP($S148&V$129,'td1'!$EX$169:$FJ$258,'información graf'!$G$2,FALSE) -> 0 | W148: =+VLOOKUP($S148&W$129,'td1'!$EX$169:$FJ$258,'información graf'!$G$2,FALSE) -> 1 | X148: =+VLOOKUP($S148&X$129,'td1'!$EX$169:$FJ$258,'información graf'!$G$2,FALSE) -> 0 | Y148: 1
N149: LP4-C5 | O149: Gestión de Tecnologías de información | S149: LP4-C5 | T149: =+VLOOKUP($S149&T$129,'td1'!$EX$169:$FJ$258,'información graf'!$G$2,FALSE) -> 0 | U149: =+VLOOKUP($S149&U$129,'td1'!$EX$169:$FJ$258,'información graf'!$G$2,FALSE) -> 0 | V149: =+VLOOKUP($S149&V$129,'td1'!$EX$169:$FJ$258,'información graf'!$G$2,FALSE) -> 0 | W149: =+VLOOKUP($S149&W$129,'td1'!$EX$169:$FJ$258,'información graf'!$G$2,FALSE) -> 0 | X149: =+VLOOKUP($S149&X$129,'td1'!$EX$169:$FJ$258,'información graf'!$G$2,FALSE) -> 2 | Y149: 2
N150: LP4-C6 | O150: Gestión Documental | S150: LP4-C6 | T150: =+VLOOKUP($S150&T$129,'td1'!$EX$169:$FJ$258,'información graf'!$G$2,FALSE) -> 0 | U150: =+VLOOKUP($S150&U$129,'td1'!$EX$169:$FJ$258,'información graf'!$G$2,FALSE) -> 0 | V150: =+VLOOKUP($S150&V$129,'td1'!$EX$169:$FJ$258,'información graf'!$G$2,FALSE) -> 0 | W150: =+VLOOKUP($S150&W$129,'td1'!$EX$169:$FJ$258,'información graf'!$G$2,FALSE) -> 0 | X150: =+VLOOKUP($S150&X$129,'td1'!$EX$169:$FJ$258,'información graf'!$G$2,FALSE) -> 1 | Y150: 1
M151: LP5 | N151: Gestión financiera | S151: LP5 | T151: =+T152+T153+T154+T155 -> 2 | U151: 2 | V151: 0 | W151: 0 | X151: 0 | Y151: 4
N152: LP5-C1 | O152: Programación y Ejecución Presupuestal | S152: LP5-C1 | T152: =+VLOOKUP($S152&T$129,'td1'!$EX$169:$FJ$258,'información graf'!$G$2,FALSE) -> 1 | U152: =+VLOOKUP($S152&U$129,'td1'!$EX$169:$FJ$258,'información graf'!$G$2,FALSE) -> 0 | V152: =+VLOOKUP($S152&V$129,'td1'!$EX$169:$FJ$258,'información graf'!$G$2,FALSE) -> 0 | W152: =+VLOOKUP($S152&W$129,'td1'!$EX$169:$FJ$258,'información graf'!$G$2,FALSE) -> 0 | X152: =+VLOOKUP($S152&X$129,'td1'!$EX$169:$FJ$258,'información graf'!$G$2,FALSE) -> 0 | Y152: =+SUM(T152:X152) -> 1
N153: LP5-C2 | O153: Programa Anual Mensualizado de Caja – PAC | S153: LP5-C2 | T153: =+VLOOKUP($S153&T$129,'td1'!$EX$169:$FJ$258,'información graf'!$G$2,FALSE) -> 0 | U153: =+VLOOKUP($S153&U$129,'td1'!$EX$169:$FJ$258,'información graf'!$G$2,FALSE) -> 2 | V153: =+VLOOKUP($S153&V$129,'td1'!$EX$169:$FJ$258,'información graf'!$G$2,FALSE) -> 0 | W153: =+VLOOKUP($S153&W$129,'td1'!$EX$169:$FJ$258,'información graf'!$G$2,FALSE) -> 0 | X153: =+VLOOKUP($S153&X$129,'td1'!$EX$169:$FJ$258,'información graf'!$G$2,FALSE) -> 0 | Y153: =+SUM(T153:X153) -> 2
N154: LP5-C4 | O154: Plan Anual de Adquisiciones (PAA) | S154: LP5-C4 | T154: =+VLOOKUP($S154&T$129,'td1'!$EX$169:$FJ$258,'información graf'!$G$2,FALSE) -> 1 | U154: =+VLOOKUP($S154&U$129,'td1'!$EX$169:$FJ$258,'información graf'!$G$2,FALSE) -> 0 | V154: =+VLOOKUP($S154&V$129,'td1'!$EX$169:$FJ$258,'información graf'!$G$2,FALSE) -> 0 | W154: =+VLOOKUP($S154&W$129,'td1'!$EX$169:$FJ$258,'información graf'!$G$2,FALSE) -> 0 | X154: =+VLOOKUP($S154&X$129,'td1'!$EX$169:$FJ$258,'información graf'!$G$2,FALSE) -> 0 | Y154: =+SUM(T154:X154) -> 1
S156: Total | T156: =+T132+T134+T139+T144+T151 -> 22 | U156: 9 | V156: 0 | W156: 4 | X156: 55 | Y156: 90
T157: =+T156/$Y$156 -> 0.2444444444 | U157: =+U156/$Y$156 -> 0.1 | V157: =+V156/$Y$156 -> 0 | W157: =+W156/$Y$156 -> 0.04444444444 | X157: =+X156/$Y$156 -> 0.6111111111
C163: Mapa Estratégico 2015 -2018
U164: Categoria | Y164: Perspectivas
C166: =+"Corte "&$D$5 -> Corte Agosto
AI173: Comportamiento agregado de indicadores
AI174: 7 | AJ174: optimo | AK174: adecuado | AL174: en riesgo | AM174: critico | AN174: NA
AO175: Total
AH176: Servicios | AJ176: =+SUM(AJ177:AJ181) -> 19 | AK176: =+SUM(AK177:AK181) -> 13 | AL176: =+SUM(AL177:AL181) -> 1 | AM176: =+SUM(AM177:AM181) -> 2 | AN176: =+SUM(AN177:AN181) -> 31 | AO176: =+SUM(AJ176:AN176) -> 66
AI177: PS1 | AJ177: =+VLOOKUP($AI177&AJ$174,'td1'!$EH$169:$ET$228,'información graf'!$G$2,FALSE) -> 0 | AK177: =+VLOOKUP($AI177&AK$174,'td1'!$EH$169:$ET$228,'información graf'!$G$2,FALSE) -> 3 | AL177: =+VLOOKUP($AI177&AL$174,'td1'!$EH$169:$ET$228,'información graf'!$G$2,FALSE) -> 0 | AM177: =+VLOOKUP($AI177&AM$174,'td1'!$EH$169:$ET$228,'información graf'!$G$2,FALSE) -> 0 | AN177: =+VLOOKUP($AI177&AN$174,'td1'!$EH$169:$ET$228,'información graf'!$G$2,FALSE) -> 15 | AO177: =+SUM(AJ177:AN177) -> 18
AI178: PS2 | AJ178: =+VLOOKUP($AI178&AJ$174,'td1'!$EH$169:$ET$228,'información graf'!$G$2,FALSE) -> 3 | AK178: =+VLOOKUP($AI178&AK$174,'td1'!$EH$169:$ET$228,'información graf'!$G$2,FALSE) -> 2 | AL178: =+VLOOKUP($AI178&AL$174,'td1'!$EH$169:$ET$228,'información graf'!$G$2,FALSE) -> 0 | AM178: =+VLOOKUP($AI178&AM$174,'td1'!$EH$169:$ET$228,'información graf'!$G$2,FALSE) -> 0 | AN178: =+VLOOKUP($AI178&AN$174,'td1'!$EH$169:$ET$228,'información graf'!$G$2,FALSE) -> 5 | AO178: 10
AI179: PS3 | AJ179: =+VLOOKUP($AI179&AJ$174,'td1'!$EH$169:$ET$228,'información graf'!$G$2,FALSE) -> 5 | AK179: =+VLOOKUP($AI179&AK$174,'td1'!$EH$169:$ET$228,'información graf'!$G$2,FALSE) -> 1 | AL179: =+VLOOKUP($AI179&AL$174,'td1'!$EH$169:$ET$228,'información graf'!$G$2,FALSE) -> 0 | AM179: =+VLOOKUP($AI179&AM$174,'td1'!$EH$169:$ET$228,'información graf'!$G$2,FALSE) -> 0 | AN179: =+VLOOKUP($AI179&AN$174,'td1'!$EH$169:$ET$228,'información graf'!$G$2,FALSE) -> 2 | AO179: 8
AI180: PS4 | AJ180: =+VLOOKUP($AI180&AJ$174,'td1'!$EH$169:$ET$228,'información graf'!$G$2,FALSE) -> 4 | AK180: =+VLOOKUP($AI180&AK$174,'td1'!$EH$169:$ET$228,'información graf'!$G$2,FALSE) -> 1 | AL180: =+VLOOKUP($AI180&AL$174,'td1'!$EH$169:$ET$228,'información graf'!$G$2,FALSE) -> 0 | AM180: =+VLOOKUP($AI180&AM$174,'td1'!$EH$169:$ET$228,'información graf'!$G$2,FALSE) -> 0 | AN180: =+VLOOKUP($AI180&AN$174,'td1'!$EH$169:$ET$228,'información graf'!$G$2,FALSE) -> 3 | AO180: 8
AI181: PS5 | AJ181: =+VLOOKUP($AI181&AJ$174,'td1'!$EH$169:$ET$228,'información graf'!$G$2,FALSE) -> 7 | AK181: =+VLOOKUP($AI181&AK$174,'td1'!$EH$169:$ET$228,'información graf'!$G$2,FALSE) -> 6 | AL181: =+VLOOKUP($AI181&AL$174,'td1'!$EH$169:$ET$228,'información graf'!$G$2,FALSE) -> 1 | AM181: =+VLOOKUP($AI181&AM$174,'td1'!$EH$169:$ET$228,'información graf'!$G$2,FALSE) -> 2 | AN181: =+VLOOKUP($AI181&AN$174,'td1'!$EH$169:$ET$228,'información graf'!$G$2,FALSE) -> 6 | AO181: 22
AH182: Procesos | AJ182: =+SUM(AJ183:AJ186) -> 13 | AK182: =+SUM(AK183:AK186) -> 1 | AL182: =+SUM(AL183:AL186) -> 0 | AM182: =+SUM(AM183:AM186) -> 2 | AN182: =+SUM(AN183:AN186) -> 23 | AO182: 39
T183: =+"Corte "&$D$5 -> Corte Agosto | AI183: PP1 | AJ183: =+VLOOKUP($AI183&AJ$174,'td1'!$EH$169:$ET$228,'información graf'!$G$2,FALSE) -> 5 | AK183: =+VLOOKUP($AI183&AK$174,'td1'!$EH$169:$ET$228,'información graf'!$G$2,FALSE) -> 0 | AL183: =+VLOOKUP($AI183&AL$174,'td1'!$EH$169:$ET$228,'información graf'!$G$2,FALSE) -> 0 | AM183: =+VLOOKUP($AI183&AM$174,'td1'!$EH$169:$ET$228,'información graf'!$G$2,FALSE) -> 1 | AN183: =+VLOOKUP($AI183&AN$174,'td1'!$EH$169:$ET$228,'información graf'!$G$2,FALSE) -> 16 | AO183: 22
AI184: PP2 | AJ184: =+VLOOKUP($AI184&AJ$174,'td1'!$EH$169:$ET$228,'información graf'!$G$2,FALSE) -> 5 | AK184: =+VLOOKUP($AI184&AK$174,'td1'!$EH$169:$ET$228,'información graf'!$G$2,FALSE) -> 1 | AL184: =+VLOOKUP($AI184&AL$174,'td1'!$EH$169:$ET$228,'información graf'!$G$2,FALSE) -> 0 | AM184: =+VLOOKUP($AI184&AM$174,'td1'!$EH$169:$ET$228,'información graf'!$G$2,FALSE) -> 0 | AN184: =+VLOOKUP($AI184&AN$174,'td1'!$EH$169:$ET$228,'información graf'!$G$2,FALSE) -> 2 | AO184: 8
P185: PS | R185: Perspectiva de Servicios | AI185: PP3 | AJ185: =+VLOOKUP($AI185&AJ$174,'td1'!$EH$169:$ET$228,'información graf'!$G$2,FALSE) -> 3 | AK185: =+VLOOKUP($AI185&AK$174,'td1'!$EH$169:$ET$228,'información graf'!$G$2,FALSE) -> 0 | AL185: =+VLOOKUP($AI185&AL$174,'td1'!$EH$169:$ET$228,'información graf'!$G$2,FALSE) -> 0 | AM185: =+VLOOKUP($AI185&AM$174,'td1'!$EH$169:$ET$228,'información graf'!$G$2,FALSE) -> 1 | AN185: =+VLOOKUP($AI185&AN$174,'td1'!$EH$169:$ET$228,'información graf'!$G$2,FALSE) -> 0 | AO185: 4
R186: PS1 | S186: Ampliar cobertura y mejorar calidad en la atención integral de la Primera Infancia | AI186: PP4 | AJ186: =+VLOOKUP($AI186&AJ$174,'td1'!$EH$169:$ET$228,'información graf'!$G$2,FALSE) -> 0 | AK186: =+VLOOKUP($AI186&AK$174,'td1'!$EH$169:$ET$228,'información graf'!$G$2,FALSE) -> 0 | AL186: =+VLOOKUP($AI186&AL$174,'td1'!$EH$169:$ET$228,'información graf'!$G$2,FALSE) -> 0 | AM186: =+VLOOKUP($AI186&AM$174,'td1'!$EH$169:$ET$228,'información graf'!$G$2,FALSE) -> 0 | AN186: =+VLOOKUP($AI186&AN$174,'td1'!$EH$169:$ET$228,'información graf'!$G$2,FALSE) -> 5 | AO186: 5
R187: PS2 | S187: Promover los derechos de los niños, niñas y adolescentes y prevenir los riesgos o amenazas de su vulneración | AH187: Aliados y Sociedad | AJ187: =+SUM(AJ188:AJ189) -> 6 | AK187: =+SUM(AK188:AK189) -> 4 | AL187: =+SUM(AL188:AL189) -> 1 | AM187: =+SUM(AM188:AM189) -> 1 | AN187: =+SUM(AN188:AN189) -> 21 | AO187: 33
R188: PS3 | S188: Promover el desarrollo, fortalecer los vinculos de cuidado mutuo y prevenir violencia intrafamiliar y de género en las familias y las comunidades | AI188: PAS1 | AJ188: =+VLOOKUP($AI188&AJ$174,'td1'!$EH$169:$ET$228,'información graf'!$G$2,FALSE) -> 3 | AK188: =+VLOOKUP($AI188&AK$174,'td1'!$EH$169:$ET$228,'información graf'!$G$2,FALSE) -> 0 | AL188: =+VLOOKUP($AI188&AL$174,'td1'!$EH$169:$ET$228,'información graf'!$G$2,FALSE) -> 0 | AM188: =+VLOOKUP($AI188&AM$174,'td1'!$EH$169:$ET$228,'información graf'!$G$2,FALSE) -> 0 | AN188: =+VLOOKUP($AI188&AN$174,'td1'!$EH$169:$ET$228,'información graf'!$G$2,FALSE) -> 14 | AO188: 17
R189: PS4 | S189: Promover la seguridad alimentaria y Nutricional | AI189: PAS2 | AJ189: =+VLOOKUP($AI189&AJ$174,'td1'!$EH$169:$ET$228,'información graf'!$G$2,FALSE) -> 3 | AK189: =+VLOOKUP($AI189&AK$174,'td1'!$EH$169:$ET$228,'información graf'!$G$2,FALSE) -> 4 | AL189: =+VLOOKUP($AI189&AL$174,'td1'!$EH$169:$ET$228,'información graf'!$G$2,FALSE) -> 1 | AM189: =+VLOOKUP($AI189&AM$174,'td1'!$EH$169:$ET$228,'información graf'!$G$2,FALSE) -> 1 | AN189: =+VLOOKUP($AI189&AN$174,'td1'!$EH$169:$ET$228,'información graf'!$G$2,FALSE) -> 7 | AO189: 16
R190: PS5 | S190: Garantizar la Protección integral de los niños, niñas y adolescentes | AH190: Financiera | AJ190: =+AJ191 -> 6 | AK190: =+AK191 -> 6 | AL190: =+AL191 -> 0 | AM190: =+AM191 -> 0 | AN190: =+AN191 -> 6 | AO190: 18
P191: PP | R191: Perspectiva de Procesos | AI191: PF | AJ191: =+VLOOKUP($AI191&AJ$174,'td1'!$EH$169:$ET$228,'información graf'!$G$2,FALSE) -> 6 | AK191: =+VLOOKUP($AI191&AK$174,'td1'!$EH$169:$ET$228,'información graf'!$G$2,FALSE) -> 6 | AL191: =+VLOOKUP($AI191&AL$174,'td1'!$EH$169:$ET$228,'información graf'!$G$2,FALSE) -> 0 | AM191: =+VLOOKUP($AI191&AM$174,'td1'!$EH$169:$ET$228,'información graf'!$G$2,FALSE) -> 0 | AN191: =+VLOOKUP($AI191&AN$174,'td1'!$EH$169:$ET$228,'información graf'!$G$2,FALSE) -> 6 | AO191: 18
R192: PP1 | S192: Impulsar una cultura de la evaluación y gestión de la calidad para el mejoramiento continuo | AH192: Total | AJ192: =+AJ176+AJ182+AJ187+AJ190 -> 44 | AK192: 24 | AL192: 2 | AM192: 5 | AN192: 81 | AO192: 156
R193: PP2 | S193: Promover condiciones laborales que hagan del ICBF el mejor lugar para trabajar | AJ193: =+AJ192/$AO$192 -> 0.2820512821 | AK193: =+AK192/$AO$192 -> 0.1538461538 | AL193: =+AL192/$AO$192 -> 0.01282051282 | AM193: =+AM192/$AO$192 -> 0.03205128205 | AN193: =+AN192/$AO$192 -> 0.5192307692
R194: PP3 | S194: Reducir los impactos ambientales generados por nuestra actividad | AI194: =+"Corte "&$D$5 -> Corte Agosto
R195: PP4 | S195: Gestionar el conocimiento institucional, con sistemas de información integrados y seguros
P196: PAS | R196: Perspectiva de Aliados y sociedad
R197: PAS1 | S197: Articular las instancias del Instituto Colombiano de Bienestar Familiar y del Sistema Nacional de Bienestar Familiar
R198: PAS2 | S198: Trabajar con transparencia y buen Gobierno para promover el control social y la participación ciudadana
P199: PF | R199: Perspectiva Financiera
R200: PF | S200: Hacer un uso eficiente de los recursos de los niños, niñas y adolescentes, porque son sagrados
C208: =+"Corte "&$D$5 -> Corte Agosto
T211: Procesos | AA211: Comportamiento agregado de indicadores
AA212: 7 | AB212: optimo | AC212: adecuado | AD212: en riesgo | AE212: critico | AF212: NA
AG213: Total
M214: Misionales | Z214: Misionales | AB214: =+AB215+AB216 -> 14 | AC214: =+AC215+AC216 -> 12 | AD214: =+AD215+AD216 -> 1 | AE214: =+AE215+AE216 -> 1 | AF214: =+AF215+AF216 -> 22 | AG214: =+SUM(AB214:AF214) -> 50
M215: PM1 | N215: Promoción y prevención | AA215: PM1 | AB215: =+VLOOKUP($AA215&AB$212,'td1'!$DR$169:$ED$248,'información graf'!$G$2,FALSE) -> 11 | AC215: =+VLOOKUP($AA215&AC$212,'td1'!$DR$169:$ED$248,'información graf'!$G$2,FALSE) -> 6 | AD215: =+VLOOKUP($AA215&AD$212,'td1'!$DR$169:$ED$248,'información graf'!$G$2,FALSE) -> 0 | AE215: =+VLOOKUP($AA215&AE$212,'td1'!$DR$169:$ED$248,'información graf'!$G$2,FALSE) -> 0 | AF215: =+VLOOKUP($AA215&AF$212,'td1'!$DR$169:$ED$248,'información graf'!$G$2,FALSE) -> 18 | AG215: 35
M216: PM2 | N216: Protección | AA216: PM2 | AB216: =+VLOOKUP($AA216&AB$212,'td1'!$DR$169:$ED$248,'información graf'!$G$2,FALSE) -> 3 | AC216: =+VLOOKUP($AA216&AC$212,'td1'!$DR$169:$ED$248,'información graf'!$G$2,FALSE) -> 6 | AD216: =+VLOOKUP($AA216&AD$212,'td1'!$DR$169:$ED$248,'información graf'!$G$2,FALSE) -> 1 | AE216: =+VLOOKUP($AA216&AE$212,'td1'!$DR$169:$ED$248,'información graf'!$G$2,FALSE) -> 1 | AF216: =+VLOOKUP($AA216&AF$212,'td1'!$DR$169:$ED$248,'información graf'!$G$2,FALSE) -> 4 | AG216: 15
M217: Apoyo | Z217: Apoyo | AB217: =+AB218+AB219+AB220+AB221+AB222 -> 16 | AC217: =+AC218+AC219+AC220+AC221+AC222 -> 7 | AD217: =+AD218+AD219+AD220+AD221+AD222 -> 0 | AE217: =+AE218+AE219+AE220+AE221+AE222 -> 3 | AF217: =+AF218+AF219+AF220+AF221+AF222 -> 12 | AG217: 38
M218: PA1 | N218: Gestión financiera | AA218: PA1 | AB218: =+VLOOKUP($AA218&AB$212,'td1'!$DR$169:$ED$248,'información graf'!$G$2,FALSE) -> 1 | AC218: =+VLOOKUP($AA218&AC$212,'td1'!$DR$169:$ED$248,'información graf'!$G$2,FALSE) -> 6 | AD218: =+VLOOKUP($AA218&AD$212,'td1'!$DR$169:$ED$248,'información graf'!$G$2,FALSE) -> 0 | AE218: =+VLOOKUP($AA218&AE$212,'td1'!$DR$169:$ED$248,'información graf'!$G$2,FALSE) -> 0 | AF218: =+VLOOKUP($AA218&AF$212,'td1'!$DR$169:$ED$248,'información graf'!$G$2,FALSE) -> 0 | AG218: 7
M219: PA2 | N219: Adquisición de bienes y servicios | AA219: PA2 | AB219: =+VLOOKUP($AA219&AB$212,'td1'!$DR$169:$ED$248,'información graf'!$G$2,FALSE) -> 6 | AC219: =+VLOOKUP($AA219&AC$212,'td1'!$DR$169:$ED$248,'información graf'!$G$2,FALSE) -> 0 | AD219: =+VLOOKUP($AA219&AD$212,'td1'!$DR$169:$ED$248,'información graf'!$G$2,FALSE) -> 0 | AE219: =+VLOOKUP($AA219&AE$212,'td1'!$DR$169:$ED$248,'información graf'!$G$2,FALSE) -> 0 | AF219: =+VLOOKUP($AA219&AF$212,'td1'!$DR$169:$ED$248,'información graf'!$G$2,FALSE) -> 2 | AG219: 8
M220: PA3 | N220: Servicios administrativos | AA220: PA3 | AB220: =+VLOOKUP($AA220&AB$212,'td1'!$DR$169:$ED$248,'información graf'!$G$2,FALSE) -> 4 | AC220: =+VLOOKUP($AA220&AC$212,'td1'!$DR$169:$ED$248,'información graf'!$G$2,FALSE) -> 0 | AD220: =+VLOOKUP($AA220&AD$212,'td1'!$DR$169:$ED$248,'información graf'!$G$2,FALSE) -> 0 | AE220: =+VLOOKUP($AA220&AE$212,'td1'!$DR$169:$ED$248,'información graf'!$G$2,FALSE) -> 2 | AF220: =+VLOOKUP($AA220&AF$212,'td1'!$DR$169:$ED$248,'información graf'!$G$2,FALSE) -> 3 | AG220: 9
M221: PA4 | N221: Gestión de talento humano | AA221: PA4 | AB221: =+VLOOKUP($AA221&AB$212,'td1'!$DR$169:$ED$248,'información graf'!$G$2,FALSE) -> 5 | AC221: =+VLOOKUP($AA221&AC$212,'td1'!$DR$169:$ED$248,'información graf'!$G$2,FALSE) -> 1 | AD221: =+VLOOKUP($AA221&AD$212,'td1'!$DR$169:$ED$248,'información graf'!$G$2,FALSE) -> 0 | AE221: =+VLOOKUP($AA221&AE$212,'td1'!$DR$169:$ED$248,'información graf'!$G$2,FALSE) -> 0 | AF221: =+VLOOKUP($AA221&AF$212,'td1'!$DR$169:$ED$248,'información graf'!$G$2,FALSE) -> 4 | AG221: 10
M222: PA5 | N222: Gestión jurídica | AA222: PA5 | AB222: =+VLOOKUP($AA222&AB$212,'td1'!$DR$169:$ED$248,'información graf'!$G$2,FALSE) -> 0 | AC222: =+VLOOKUP($AA222&AC$212,'td1'!$DR$169:$ED$248,'información graf'!$G$2,FALSE) -> 0 | AD222: =+VLOOKUP($AA222&AD$212,'td1'!$DR$169:$ED$248,'información graf'!$G$2,FALSE) -> 0 | AE222: =+VLOOKUP($AA222&AE$212,'td1'!$DR$169:$ED$248,'información graf'!$G$2,FALSE) -> 1 | AF222: =+VLOOKUP($AA222&AF$212,'td1'!$DR$169:$ED$248,'información graf'!$G$2,FALSE) -> 3 | AG222: 4
M223: Estratégicos | Z223: Estratégicos | AB223: =+AB224+AB225+AB226 -> 3 | AC223: =+AC224+AC225+AC226 -> 0 | AD223: =+AD224+AD225+AD226 -> 0 | AE223: =+AE224+AE225+AE226 -> 0 | AF223: =+AF224+AF225+AF226 -> 18 | AG223: 21
M224: PE1 | N224: Coordinación y articulación del SNBF y agentes | AA224: PE1 | AB224: =+VLOOKUP($AA224&AB$212,'td1'!$DR$169:$ED$248,'información graf'!$G$2,FALSE) -> 1 | AC224: =+VLOOKUP($AA224&AC$212,'td1'!$DR$169:$ED$248,'información graf'!$G$2,FALSE) -> 0 | AD224: =+VLOOKUP($AA224&AD$212,'td1'!$DR$169:$ED$248,'información graf'!$G$2,FALSE) -> 0 | AE224: =+VLOOKUP($AA224&AE$212,'td1'!$DR$169:$ED$248,'información graf'!$G$2,FALSE) -> 0 | AF224: =+VLOOKUP($AA224&AF$212,'td1'!$DR$169:$ED$248,'información graf'!$G$2,FALSE) -> 9 | AG224: 10
M225: PE2 | N225: Direccionamiento Estratégico | AA225: PE2 | AB225: =+VLOOKUP($AA225&AB$212,'td1'!$DR$169:$ED$248,'información graf'!$G$2,FALSE) -> 2 | AC225: =+VLOOKUP($AA225&AC$212,'td1'!$DR$169:$ED$248,'información graf'!$G$2,FALSE) -> 0 | AD225: =+VLOOKUP($AA225&AD$212,'td1'!$DR$169:$ED$248,'información graf'!$G$2,FALSE) -> 0 | AE225: =+VLOOKUP($AA225&AE$212,'td1'!$DR$169:$ED$248,'información graf'!$G$2,FALSE) -> 0 | AF225: =+VLOOKUP($AA225&AF$212,'td1'!$DR$169:$ED$248,'información graf'!$G$2,FALSE) -> 6 | AG225: 8
M226: PE3 | N226: Comunicación estratégica | AA226: PE3 | AB226: =+VLOOKUP($AA226&AB$212,'td1'!$DR$169:$ED$248,'información graf'!$G$2,FALSE) -> 0 | AC226: =+VLOOKUP($AA226&AC$212,'td1'!$DR$169:$ED$248,'información graf'!$G$2,FALSE) -> 0 | AD226: =+VLOOKUP($AA226&AD$212,'td1'!$DR$169:$ED$248,'información graf'!$G$2,FALSE) -> 0 | AE226: =+VLOOKUP($AA226&AE$212,'td1'!$DR$169:$ED$248,'información graf'!$G$2,FALSE) -> 0 | AF226: =+VLOOKUP($AA226&AF$212,'td1'!$DR$169:$ED$248,'información graf'!$G$2,FALSE) -> 3 | AG226: 3
M227: Evaluación | Z227: Evaluación | AB227: =+AB228+AB229+AB230 -> 1 | AC227: =+AC228+AC229+AC230 -> 1 | AD227: =+AD228+AD229+AD230 -> 0 | AE227: =+AE228+AE229+AE230 -> 0 | AF227: =+AF228+AF229+AF230 -> 9 | AG227: 11
M228: PEV1 | N228: Inspección vigilancia y control a operadores | AA228: PEV1 | AB228: =+VLOOKUP($AA228&AB$212,'td1'!$DR$169:$ED$248,'información graf'!$G$2,FALSE) -> 0 | AC228: =+VLOOKUP($AA228&AC$212,'td1'!$DR$169:$ED$248,'información graf'!$G$2,FALSE) -> 1 | AD228: =+VLOOKUP($AA228&AD$212,'td1'!$DR$169:$ED$248,'información graf'!$G$2,FALSE) -> 0 | AE228: =+VLOOKUP($AA228&AE$212,'td1'!$DR$169:$ED$248,'información graf'!$G$2,FALSE) -> 0 | AF228: =+VLOOKUP($AA228&AF$212,'td1'!$DR$169:$ED$248,'información graf'!$G$2,FALSE) -> 4 | AG228: 5
M229: PEV2 | N229: Evaluación y monitoreo de la gestión | AA229: PEV2 | AB229: =+VLOOKUP($AA229&AB$212,'td1'!$DR$169:$ED$248,'información graf'!$G$2,FALSE) -> 1 | AC229: =+VLOOKUP($AA229&AC$212,'td1'!$DR$169:$ED$248,'información graf'!$G$2,FALSE) -> 0 | AD229: =+VLOOKUP($AA229&AD$212,'td1'!$DR$169:$ED$248,'información graf'!$G$2,FALSE) -> 0 | AE229: =+VLOOKUP($AA229&AE$212,'td1'!$DR$169:$ED$248,'información graf'!$G$2,FALSE) -> 0 | AF229: =+VLOOKUP($AA229&AF$212,'td1'!$DR$169:$ED$248,'información graf'!$G$2,FALSE) -> 1 | AG229: 2
M230: PEV3 | N230: Evaluación independiente | AA230: PEV3 | AB230: =+VLOOKUP($AA230&AB$212,'td1'!$DR$169:$ED$248,'información graf'!$G$2,FALSE) -> 0 | AC230: =+VLOOKUP($AA230&AC$212,'td1'!$DR$169:$ED$248,'información graf'!$G$2,FALSE) -> 0 | AD230: =+VLOOKUP($AA230&AD$212,'td1'!$DR$169:$ED$248,'información graf'!$G$2,FALSE) -> 0 | AE230: =+VLOOKUP($AA230&AE$212,'td1'!$DR$169:$ED$248,'información graf'!$G$2,FALSE) -> 0 | AF230: =+VLOOKUP($AA230&AF$212,'td1'!$DR$169:$ED$248,'información graf'!$G$2,FALSE) -> 4 | AG230: =+SUM(AB230:AF230) -> 4
M231: Transversales | Z231: Transversales | AB231: =+AB232+AB233+AB234 -> 10 | AC231: =+AC232+AC233+AC234 -> 4 | AD231: =+AD232+AD233+AD234 -> 1 | AE231: =+AE232+AE233+AE234 -> 1 | AF231: =+AF232+AF233+AF234 -> 20 | AG231: 36
M232: PT1 | N232: Relación con el ciudadano | AA232: PT1 | AB232: =+VLOOKUP($AA232&AB$212,'td1'!$DR$169:$ED$248,'información graf'!$G$2,FALSE) -> 3 | AC232: =+VLOOKUP($AA232&AC$212,'td1'!$DR$169:$ED$248,'información graf'!$G$2,FALSE) -> 4 | AD232: =+VLOOKUP($AA232&AD$212,'td1'!$DR$169:$ED$248,'información graf'!$G$2,FALSE) -> 1 | AE232: =+VLOOKUP($AA232&AE$212,'td1'!$DR$169:$ED$248,'información graf'!$G$2,FALSE) -> 0 | AF232: =+VLOOKUP($AA232&AF$212,'td1'!$DR$169:$ED$248,'información graf'!$G$2,FALSE) -> 3 | AG232: 11
M233: PT2 | N233: Mejora e Innovación | AA233: PT2 | AB233: =+VLOOKUP($AA233&AB$212,'td1'!$DR$169:$ED$248,'información graf'!$G$2,FALSE) -> 7 | AC233: =+VLOOKUP($AA233&AC$212,'td1'!$DR$169:$ED$248,'información graf'!$G$2,FALSE) -> 0 | AD233: =+VLOOKUP($AA233&AD$212,'td1'!$DR$169:$ED$248,'información graf'!$G$2,FALSE) -> 0 | AE233: =+VLOOKUP($AA233&AE$212,'td1'!$DR$169:$ED$248,'información graf'!$G$2,FALSE) -> 1 | AF233: =+VLOOKUP($AA233&AF$212,'td1'!$DR$169:$ED$248,'información graf'!$G$2,FALSE) -> 12 | AG233: 20
M234: PT3 | N234: Gestión de la tecnología e información | AA234: PT3 | AB234: =+VLOOKUP($AA234&AB$212,'td1'!$DR$169:$ED$248,'información graf'!$G$2,FALSE) -> 0 | AC234: =+VLOOKUP($AA234&AC$212,'td1'!$DR$169:$ED$248,'información graf'!$G$2,FALSE) -> 0 | AD234: =+VLOOKUP($AA234&AD$212,'td1'!$DR$169:$ED$248,'información graf'!$G$2,FALSE) -> 0 | AE234: =+VLOOKUP($AA234&AE$212,'td1'!$DR$169:$ED$248,'información graf'!$G$2,FALSE) -> 0 | AF234: =+VLOOKUP($AA234&AF$212,'td1'!$DR$169:$ED$248,'información graf'!$G$2,FALSE) -> 5 | AG234: 5
Z235: Total | AB235: =+AB214+AB217+AB223+AB227+AB231 -> 44 | AC235: =+AC214+AC217+AC223+AC227+AC231 -> 24 | AD235: =+AD214+AD217+AD223+AD227+AD231 -> 2 | AE235: =+AE214+AE217+AE223+AE227+AE231 -> 5 | AF235: =+AF214+AF217+AF223+AF227+AF231 -> 81 | AG235: 156
AB236: =+AB235/$AG$235 -> 0.2820512821 | AC236: =+AC235/$AG$235 -> 0.1538461538 | AD236: =+AD235/$AG$235 -> 0.01282051282 | AE236: =+AE235/$AG$235 -> 0.03205128205 | AF236: =+AF235/$AG$235 -> 0.5192307692
Z237: =+"Corte "&$D$5 -> Corte Agosto
C244: Áreas del ICBF
AD247: Comportamiento indicadores directos | AO247: Comportamiento indicadores transversales | AW247: Total Indicadores por área
S248: 32 | AE248: 7 | AF248: optimo | AG248: adecuado | AH248: en riesgo | AI248: critico | AJ248: NA | AO248: 7 | AP248: optimo | AQ248: adecuado | AR248: en riesgo | AS248: critico | AT248: NA | AY248: optimo | AZ248: adecuado | BA248: en riesgo | BB248: critico | BC248: NA
AL249: Total | AU249: Total | BD249: Total
AF250: Misionales | AG250: =+AG251+AG252+AG253+AG254+AG255 -> 19 | AH250: =+AH251+AH252+AH253+AH254+AH255 -> 13 | AI250: =+AI251+AI252+AI253+AI254+AI255 -> 1 | AJ250: =+AJ251+AJ252+AJ253+AJ254+AJ255 -> 2 | AK250: =+AK251+AK252+AK253+AK254+AK255 -> 31 | AL250: =+SUM(AG250:AK250) -> 66 | AO250: Misionales | AX250: Misionales
AC251: M1 | AF251: M1. Primera Infancia | AG251: =+VLOOKUP($AC251&AF$248,'td1'!$GD$169:$GP$278,'información graf'!$G$2,FALSE) -> 0 | AH251: =+VLOOKUP($AC251&AG$248,'td1'!$GD$169:$GP$278,'información graf'!$G$2,FALSE) -> 3 | AI251: =+VLOOKUP($AC251&AH$248,'td1'!$GD$169:$GP$278,'información graf'!$G$2,FALSE) -> 0 | AJ251: =+VLOOKUP($AC251&AI$248,'td1'!$GD$169:$GP$278,'información graf'!$G$2,FALSE) -> 0 | AK251: =+VLOOKUP($AC251&AJ$248,'td1'!$GD$169:$GP$278,'información graf'!$G$2,FALSE) -> 15 | AL251: 18 | AO251: M1 | AP251: =+VLOOKUP($AC251&AP$248,'td1'!$GD$282:$GP$391,'información graf'!$G$2,FALSE) -> 6 | AQ251: =+VLOOKUP($AC251&AQ$248,'td1'!$GD$282:$GP$391,'información graf'!$G$2,FALSE) -> 4 | AR251: =+VLOOKUP($AC251&AR$248,'td1'!$GD$282:$GP$391,'información graf'!$G$2,FALSE) -> 0 | AS251: =+VLOOKUP($AC251&AS$248,'td1'!$GD$282:$GP$391,'información graf'!$G$2,FALSE) -> 0 | AT251: =+VLOOKUP($AC251&AT$248,'td1'!$GD$282:$GP$391,'información graf'!$G$2,FALSE) -> 7 | AU251: =+SUM(AP251:AT251) -> 17 | AX251: M1 | AY251: =+AG251+AP251 -> 6 | AZ251: 7 | BA251: 0 | BB251: 0 | BC251: 22 | BD251: =+SUM(AY251:BC251) -> 35
AC252: M2 | AF252: M2. Niñez | AG252: =+VLOOKUP($AC252&AF$248,'td1'!$GD$169:$GP$278,'información graf'!$G$2,FALSE) -> 6 | AH252: =+VLOOKUP($AC252&AG$248,'td1'!$GD$169:$GP$278,'información graf'!$G$2,FALSE) -> 2 | AI252: =+VLOOKUP($AC252&AH$248,'td1'!$GD$169:$GP$278,'información graf'!$G$2,FALSE) -> 0 | AJ252: =+VLOOKUP($AC252&AI$248,'td1'!$GD$169:$GP$278,'información graf'!$G$2,FALSE) -> 0 | AK252: =+VLOOKUP($AC252&AJ$248,'td1'!$GD$169:$GP$278,'información graf'!$G$2,FALSE) -> 5 | AL252: 13 | AO252: M2 | AP252: =+VLOOKUP($AC252&AP$248,'td1'!$GD$282:$GP$391,'información graf'!$G$2,FALSE) -> 6 | AQ252: =+VLOOKUP($AC252&AQ$248,'td1'!$GD$282:$GP$391,'información graf'!$G$2,FALSE) -> 1 | AR252: =+VLOOKUP($AC252&AR$248,'td1'!$GD$282:$GP$391,'información graf'!$G$2,FALSE) -> 1 | AS252: =+VLOOKUP($AC252&AS$248,'td1'!$GD$282:$GP$391,'información graf'!$G$2,FALSE) -> 0 | AT252: =+VLOOKUP($AC252&AT$248,'td1'!$GD$282:$GP$391,'información graf'!$G$2,FALSE) -> 9 | AU252: 17 | AX252: M2 | AY252: 12 | AZ252: 3 | BA252: 1 | BB252: 0 | BC252: 14 | BD252: =+SUM(AY252:BC252) -> 30
AC253: M3 | AF253: M3. Familias | AG253: =+VLOOKUP($AC253&AF$248,'td1'!$GD$169:$GP$278,'información graf'!$G$2,FALSE) -> 5 | AH253: =+VLOOKUP($AC253&AG$248,'td1'!$GD$169:$GP$278,'información graf'!$G$2,FALSE) -> 1 | AI253: =+VLOOKUP($AC253&AH$248,'td1'!$GD$169:$GP$278,'información graf'!$G$2,FALSE) -> 0 | AJ253: =+VLOOKUP($AC253&AI$248,'td1'!$GD$169:$GP$278,'información graf'!$G$2,FALSE) -> 0 | AK253: =+VLOOKUP($AC253&AJ$248,'td1'!$GD$169:$GP$278,'información graf'!$G$2,FALSE) -> 2 | AL253: 8 | AO253: M3 | AP253: =+VLOOKUP($AC253&AP$248,'td1'!$GD$282:$GP$391,'información graf'!$G$2,FALSE) -> 7 | AQ253: =+VLOOKUP($AC253&AQ$248,'td1'!$GD$282:$GP$391,'información graf'!$G$2,FALSE) -> 2 | AR253: =+VLOOKUP($AC253&AR$248,'td1'!$GD$282:$GP$391,'información graf'!$G$2,FALSE) -> 0 | AS253: =+VLOOKUP($AC253&AS$248,'td1'!$GD$282:$GP$391,'información graf'!$G$2,FALSE) -> 0 | AT253: =+VLOOKUP($AC253&AT$248,'td1'!$GD$282:$GP$391,'información graf'!$G$2,FALSE) -> 8 | AU253: 17 | AX253: M3 | AY253: 12 | AZ253: 3 | BA253: 0 | BB253: 0 | BC253: 10 | BD253: =+SUM(AY253:BC253) -> 25
AC254: M4 | AF254: M4. Nutrición | AG254: =+VLOOKUP($AC254&AF$248,'td1'!$GD$169:$GP$278,'información graf'!$G$2,FALSE) -> 4 | AH254: =+VLOOKUP($AC254&AG$248,'td1'!$GD$169:$GP$278,'información graf'!$G$2,FALSE) -> 1 | AI254: =+VLOOKUP($AC254&AH$248,'td1'!$GD$169:$GP$278,'información graf'!$G$2,FALSE) -> 0 | AJ254: =+VLOOKUP($AC254&AI$248,'td1'!$GD$169:$GP$278,'información graf'!$G$2,FALSE) -> 0 | AK254: =+VLOOKUP($AC254&AJ$248,'td1'!$GD$169:$GP$278,'información graf'!$G$2,FALSE) -> 3 | AL254: 8 | AO254: M4 | AP254: =+VLOOKUP($AC254&AP$248,'td1'!$GD$282:$GP$391,'información graf'!$G$2,FALSE) -> 7 | AQ254: =+VLOOKUP($AC254&AQ$248,'td1'!$GD$282:$GP$391,'información graf'!$G$2,FALSE) -> 2 | AR254: =+VLOOKUP($AC254&AR$248,'td1'!$GD$282:$GP$391,'información graf'!$G$2,FALSE) -> 0 | AS254: =+VLOOKUP($AC254&AS$248,'td1'!$GD$282:$GP$391,'información graf'!$G$2,FALSE) -> 0 | AT254: =+VLOOKUP($AC254&AT$248,'td1'!$GD$282:$GP$391,'información graf'!$G$2,FALSE) -> 8 | AU254: 17 | AX254: M4 | AY254: 11 | AZ254: 3 | BA254: 0 | BB254: 0 | BC254: 11 | BD254: =+SUM(AY254:BC254) -> 25
AC255: M5 | AF255: M5. Protección | AG255: =+VLOOKUP($AC255&AF$248,'td1'!$GD$169:$GP$278,'información graf'!$G$2,FALSE) -> 4 | AH255: =+VLOOKUP($AC255&AG$248,'td1'!$GD$169:$GP$278,'información graf'!$G$2,FALSE) -> 6 | AI255: =+VLOOKUP($AC255&AH$248,'td1'!$GD$169:$GP$278,'información graf'!$G$2,FALSE) -> 1 | AJ255: =+VLOOKUP($AC255&AI$248,'td1'!$GD$169:$GP$278,'información graf'!$G$2,FALSE) -> 2 | AK255: =+VLOOKUP($AC255&AJ$248,'td1'!$GD$169:$GP$278,'información graf'!$G$2,FALSE) -> 6 | AL255: 19 | AO255: M5 | AP255: =+VLOOKUP($AC255&AP$248,'td1'!$GD$282:$GP$391,'información graf'!$G$2,FALSE) -> 4 | AQ255: =+VLOOKUP($AC255&AQ$248,'td1'!$GD$282:$GP$391,'información graf'!$G$2,FALSE) -> 3 | AR255: =+VLOOKUP($AC255&AR$248,'td1'!$GD$282:$GP$391,'información graf'!$G$2,FALSE) -> 1 | AS255: =+VLOOKUP($AC255&AS$248,'td1'!$GD$282:$GP$391,'información graf'!$G$2,FALSE) -> 0 | AT255: =+VLOOKUP($AC255&AT$248,'td1'!$GD$282:$GP$391,'información graf'!$G$2,FALSE) -> 9 | AU255: 17 | AX255: M5 | AY255: 8 | AZ255: 9 | BA255: 2 | BB255: 2 | BC255: 15 | BD255: =+SUM(AY255:BC255) -> 36
AF256: Apoyo | AG256: =+SUM(AG257:AG273) -> 25 | AH256: =+SUM(AH257:AH273) -> 11 | AI256: =+SUM(AI257:AI273) -> 1 | AJ256: =+SUM(AJ257:AJ273) -> 3 | AK256: =+SUM(AK257:AK273) -> 50 | AL256: 90 | AO256: Apoyo | AX256: Apoyo
AC257: A1 | AF257: A1. Gestión Humana | AG257: =+VLOOKUP($AC257&AF$248,'td1'!$GD$169:$GP$278,'información graf'!$G$2,FALSE) -> 5 | AH257: =+VLOOKUP($AC257&AG$248,'td1'!$GD$169:$GP$278,'información graf'!$G$2,FALSE) -> 1 | AI257: =+VLOOKUP($AC257&AH$248,'td1'!$GD$169:$GP$278,'información graf'!$G$2,FALSE) -> 0 | AJ257: =+VLOOKUP($AC257&AI$248,'td1'!$GD$169:$GP$278,'información graf'!$G$2,FALSE) -> 0 | AK257: =+VLOOKUP($AC257&AJ$248,'td1'!$GD$169:$GP$278,'información graf'!$G$2,FALSE) -> 1 | AL257: 7 | AO257: A1 | AP257: =+VLOOKUP($AC257&AP$248,'td1'!$GD$282:$GP$391,'información graf'!$G$2,FALSE) -> 2 | AQ257: =+VLOOKUP($AC257&AQ$248,'td1'!$GD$282:$GP$391,'información graf'!$G$2,FALSE) -> 4 | AR257: =+VLOOKUP($AC257&AR$248,'td1'!$GD$282:$GP$391,'información graf'!$G$2,FALSE) -> 2 | AS257: =+VLOOKUP($AC257&AS$248,'td1'!$GD$282:$GP$391,'información graf'!$G$2,FALSE) -> 2 | AT257: =+VLOOKUP($AC257&AT$248,'td1'!$GD$282:$GP$391,'información graf'!$G$2,FALSE) -> 7 | AU257: 17 | AX257: A1 | AY257: =+AG257+AP257 -> 7 | AZ257: 5 | BA257: 2 | BB257: 2 | BC257: 8 | BD257: =+SUM(AY257:BC257) -> 24
AC258: A2 | AF258: A2. Financiera | AG258: =+VLOOKUP($AC258&AF$248,'td1'!$GD$169:$GP$278,'información graf'!$G$2,FALSE) -> 1 | AH258: =+VLOOKUP($AC258&AG$248,'td1'!$GD$169:$GP$278,'información graf'!$G$2,FALSE) -> 6 | AI258: =+VLOOKUP($AC258&AH$248,'td1'!$GD$169:$GP$278,'información graf'!$G$2,FALSE) -> 0 | AJ258: =+VLOOKUP($AC258&AI$248,'td1'!$GD$169:$GP$278,'información graf'!$G$2,FALSE) -> 0 | AK258: =+VLOOKUP($AC258&AJ$248,'td1'!$GD$169:$GP$278,'información graf'!$G$2,FALSE) -> 0 | AL258: 7 | AO258: A2 | AP258: =+VLOOKUP($AC258&AP$248,'td1'!$GD$282:$GP$391,'información graf'!$G$2,FALSE) -> 5 | AQ258: =+VLOOKUP($AC258&AQ$248,'td1'!$GD$282:$GP$391,'información graf'!$G$2,FALSE) -> 1 | AR258: =+VLOOKUP($AC258&AR$248,'td1'!$GD$282:$GP$391,'información graf'!$G$2,FALSE) -> 1 | AS258: =+VLOOKUP($AC258&AS$248,'td1'!$GD$282:$GP$391,'información graf'!$G$2,FALSE) -> 1 | AT258: =+VLOOKUP($AC258&AT$248,'td1'!$GD$282:$GP$391,'información graf'!$G$2,FALSE) -> 9 | AU258: 17 | AX258: A2 | AY258: 6 | AZ258: 7 | BA258: 1 | BB258: 1 | BC258: 9 | BD258: 24
AC259: A3 | AF259: A3. Control Interno Disc | AG259: =+VLOOKUP($AC259&AF$248,'td1'!$GD$169:$GP$278,'información graf'!$G$2,FALSE) -> 0 | AH259: =+VLOOKUP($AC259&AG$248,'td1'!$GD$169:$GP$278,'información graf'!$G$2,FALSE) -> 0 | AI259: =+VLOOKUP($AC259&AH$248,'td1'!$GD$169:$GP$278,'información graf'!$G$2,FALSE) -> 0 | AJ259: =+VLOOKUP($AC259&AI$248,'td1'!$GD$169:$GP$278,'información graf'!$G$2,FALSE) -> 0 | AK259: =+VLOOKUP($AC259&AJ$248,'td1'!$GD$169:$GP$278,'información graf'!$G$2,FALSE) -> 3 | AL259: 3 | AO259: A3 | AP259: =+VLOOKUP($AC259&AP$248,'td1'!$GD$282:$GP$391,'información graf'!$G$2,FALSE) -> 3 | AQ259: =+VLOOKUP($AC259&AQ$248,'td1'!$GD$282:$GP$391,'información graf'!$G$2,FALSE) -> 0 | AR259: =+VLOOKUP($AC259&AR$248,'td1'!$GD$282:$GP$391,'información graf'!$G$2,FALSE) -> 0 | AS259: =+VLOOKUP($AC259&AS$248,'td1'!$GD$282:$GP$391,'información graf'!$G$2,FALSE) -> 1 | AT259: =+VLOOKUP($AC259&AT$248,'td1'!$GD$282:$GP$391,'información graf'!$G$2,FALSE) -> 13 | AU259: 17 | AX259: A3 | AY259: 3 | AZ259: 0 | BA259: 0 | BB259: 1 | BC259: 16 | BD259: 20
AC260: A4 | AF260: A4. Abastecimiento | AG260: =+VLOOKUP($AC260&AF$248,'td1'!$GD$169:$GP$278,'información graf'!$G$2,FALSE) -> 2 | AH260: =+VLOOKUP($AC260&AG$248,'td1'!$GD$169:$GP$278,'información graf'!$G$2,FALSE) -> 0 | AI260: =+VLOOKUP($AC260&AH$248,'td1'!$GD$169:$GP$278,'información graf'!$G$2,FALSE) -> 0 | AJ260: =+VLOOKUP($AC260&AI$248,'td1'!$GD$169:$GP$278,'información graf'!$G$2,FALSE) -> 0 | AK260: =+VLOOKUP($AC260&AJ$248,'td1'!$GD$169:$GP$278,'información graf'!$G$2,FALSE) -> 2 | AL260: 4 | AO260: A4 | AP260: =+VLOOKUP($AC260&AP$248,'td1'!$GD$282:$GP$391,'información graf'!$G$2,FALSE) -> 6 | AQ260: =+VLOOKUP($AC260&AQ$248,'td1'!$GD$282:$GP$391,'información graf'!$G$2,FALSE) -> 2 | AR260: =+VLOOKUP($AC260&AR$248,'td1'!$GD$282:$GP$391,'información graf'!$G$2,FALSE) -> 0 | AS260: =+VLOOKUP($AC260&AS$248,'td1'!$GD$282:$GP$391,'información graf'!$G$2,FALSE) -> 0 | AT260: =+VLOOKUP($AC260&AT$248,'td1'!$GD$282:$GP$391,'información graf'!$G$2,FALSE) -> 9 | AU260: 17 | AX260: A4 | AY260: 8 | AZ260: 2 | BA260: 0 | BB260: 0 | BC260: 11 | BD260: 21
AC261: A5 | AF261: A5. Administrativa | AG261: =+VLOOKUP($AC261&AF$248,'td1'!$GD$169:$GP$278,'información graf'!$G$2,FALSE) -> 4 | AH261: =+VLOOKUP($AC261&AG$248,'td1'!$GD$169:$GP$278,'información graf'!$G$2,FALSE) -> 0 | AI261: =+VLOOKUP($AC261&AH$248,'td1'!$GD$169:$GP$278,'información graf'!$G$2,FALSE) -> 0 | AJ261: =+VLOOKUP($AC261&AI$248,'td1'!$GD$169:$GP$278,'información graf'!$G$2,FALSE) -> 2 | AK261: =+VLOOKUP($AC261&AJ$248,'td1'!$GD$169:$GP$278,'información graf'!$G$2,FALSE) -> 3 | AL261: 9 | AO261: A5 | AP261: =+VLOOKUP($AC261&AP$248,'td1'!$GD$282:$GP$391,'información graf'!$G$2,FALSE) -> 4 | AQ261: =+VLOOKUP($AC261&AQ$248,'td1'!$GD$282:$GP$391,'información graf'!$G$2,FALSE) -> 2 | AR261: =+VLOOKUP($AC261&AR$248,'td1'!$GD$282:$GP$391,'información graf'!$G$2,FALSE) -> 3 | AS261: =+VLOOKUP($AC261&AS$248,'td1'!$GD$282:$GP$391,'información graf'!$G$2,FALSE) -> 1 | AT261: =+VLOOKUP($AC261&AT$248,'td1'!$GD$282:$GP$391,'información graf'!$G$2,FALSE) -> 7 | AU261: 17 | AX261: A5 | AY261: 8 | AZ261: 2 | BA261: 3 | BB261: 3 | BC261: 10 | BD261: 26
AC262: A6 | AF262: A6. Contratación | AG262: =+VLOOKUP($AC262&AF$248,'td1'!$GD$169:$GP$278,'información graf'!$G$2,FALSE) -> 2 | AH262: =+VLOOKUP($AC262&AG$248,'td1'!$GD$169:$GP$278,'información graf'!$G$2,FALSE) -> 0 | AI262: =+VLOOKUP($AC262&AH$248,'td1'!$GD$169:$GP$278,'información graf'!$G$2,FALSE) -> 0 | AJ262: =+VLOOKUP($AC262&AI$248,'td1'!$GD$169:$GP$278,'información graf'!$G$2,FALSE) -> 0 | AK262: =+VLOOKUP($AC262&AJ$248,'td1'!$GD$169:$GP$278,'información graf'!$G$2,FALSE) -> 0 | AL262: 2 | AO262: A6 | AP262: =+VLOOKUP($AC262&AP$248,'td1'!$GD$282:$GP$391,'información graf'!$G$2,FALSE) -> 5 | AQ262: =+VLOOKUP($AC262&AQ$248,'td1'!$GD$282:$GP$391,'información graf'!$G$2,FALSE) -> 1 | AR262: =+VLOOKUP($AC262&AR$248,'td1'!$GD$282:$GP$391,'información graf'!$G$2,FALSE) -> 0 | AS262: =+VLOOKUP($AC262&AS$248,'td1'!$GD$282:$GP$391,'información graf'!$G$2,FALSE) -> 3 | AT262: =+VLOOKUP($AC262&AT$248,'td1'!$GD$282:$GP$391,'información graf'!$G$2,FALSE) -> 8 | AU262: 17 | AX262: A6 | AY262: 7 | AZ262: 1 | BA262: 0 | BB262: 3 | BC262: 8 | BD262: 19
AC263: A7 | AF263: A7. Jurídica | AG263: =+VLOOKUP($AC263&AF$248,'td1'!$GD$169:$GP$278,'información graf'!$G$2,FALSE) -> 0 | AH263: =+VLOOKUP($AC263&AG$248,'td1'!$GD$169:$GP$278,'información graf'!$G$2,FALSE) -> 0 | AI263: =+VLOOKUP($AC263&AH$248,'td1'!$GD$169:$GP$278,'información graf'!$G$2,FALSE) -> 0 | AJ263: =+VLOOKUP($AC263&AI$248,'td1'!$GD$169:$GP$278,'información graf'!$G$2,FALSE) -> 1 | AK263: =+VLOOKUP($AC263&AJ$248,'td1'!$GD$169:$GP$278,'información graf'!$G$2,FALSE) -> 3 | AL263: 4 | AO263: A7 | AP263: =+VLOOKUP($AC263&AP$248,'td1'!$GD$282:$GP$391,'información graf'!$G$2,FALSE) -> 6 | AQ263: =+VLOOKUP($AC263&AQ$248,'td1'!$GD$282:$GP$391,'información graf'!$G$2,FALSE) -> 0 | AR263: =+VLOOKUP($AC263&AR$248,'td1'!$GD$282:$GP$391,'información graf'!$G$2,FALSE) -> 1 | AS263: =+VLOOKUP($AC263&AS$248,'td1'!$GD$282:$GP$391,'información graf'!$G$2,FALSE) -> 2 | AT263: =+VLOOKUP($AC263&AT$248,'td1'!$GD$282:$GP$391,'información graf'!$G$2,FALSE) -> 8 | AU263: 17 | AX263: A7 | AY263: 6 | AZ263: 0 | BA263: 1 | BB263: 3 | BC263: 11 | BD263: 21
AC264: A8 | AF264: A8. Gestión Regional | AG264: =+VLOOKUP($AC264&AF$248,'td1'!$GD$169:$GP$278,'información graf'!$G$2,FALSE) -> 1 | AH264: =+VLOOKUP($AC264&AG$248,'td1'!$GD$169:$GP$278,'información graf'!$G$2,FALSE) -> 0 | AI264: =+VLOOKUP($AC264&AH$248,'td1'!$GD$169:$GP$278,'información graf'!$G$2,FALSE) -> 0 | AJ264: =+VLOOKUP($AC264&AI$248,'td1'!$GD$169:$GP$278,'información graf'!$G$2,FALSE) -> 0 | AK264: =+VLOOKUP($AC264&AJ$248,'td1'!$GD$169:$GP$278,'información graf'!$G$2,FALSE) -> 1 | AL264: 2 | AO264: A8 | AP264: =+VLOOKUP($AC264&AP$248,'td1'!$GD$282:$GP$391,'información graf'!$G$2,FALSE) -> 2 | AQ264: =+VLOOKUP($AC264&AQ$248,'td1'!$GD$282:$GP$391,'información graf'!$G$2,FALSE) -> 0 | AR264: =+VLOOKUP($AC264&AR$248,'td1'!$GD$282:$GP$391,'información graf'!$G$2,FALSE) -> 0 | AS264: =+VLOOKUP($AC264&AS$248,'td1'!$GD$282:$GP$391,'información graf'!$G$2,FALSE) -> 0 | AT264: =+VLOOKUP($AC264&AT$248,'td1'!$GD$282:$GP$391,'información graf'!$G$2,FALSE) -> 15 | AU264: 17 | AX264: A8 | AY264: 3 | AZ264: 0 | BA264: 0 | BB264: 0 | BC264: 16 | BD264: 19
AC265: A9 | AF265: A9. Cooperación | AG265: =+VLOOKUP($AC265&AF$248,'td1'!$GD$169:$GP$278,'información graf'!$G$2,FALSE) -> 1 | AH265: =+VLOOKUP($AC265&AG$248,'td1'!$GD$169:$GP$278,'información graf'!$G$2,FALSE) -> 0 | AI265: =+VLOOKUP($AC265&AH$248,'td1'!$GD$169:$GP$278,'información graf'!$G$2,FALSE) -> 0 | AJ265: =+VLOOKUP($AC265&AI$248,'td1'!$GD$169:$GP$278,'información graf'!$G$2,FALSE) -> 0 | AK265: =+VLOOKUP($AC265&AJ$248,'td1'!$GD$169:$GP$278,'información graf'!$G$2,FALSE) -> 3 | AL265: 4 | AO265: A9 | AP265: =+VLOOKUP($AC265&AP$248,'td1'!$GD$282:$GP$391,'información graf'!$G$2,FALSE) -> 2 | AQ265: =+VLOOKUP($AC265&AQ$248,'td1'!$GD$282:$GP$391,'información graf'!$G$2,FALSE) -> 0 | AR265: =+VLOOKUP($AC265&AR$248,'td1'!$GD$282:$GP$391,'información graf'!$G$2,FALSE) -> 0 | AS265: =+VLOOKUP($AC265&AS$248,'td1'!$GD$282:$GP$391,'información graf'!$G$2,FALSE) -> 0 | AT265: =+VLOOKUP($AC265&AT$248,'td1'!$GD$282:$GP$391,'información graf'!$G$2,FALSE) -> 15 | AU265: 17 | AX265: A9 | AY265: 3 | AZ265: 0 | BA265: 0 | BB265: 0 | BC265: 18 | BD265: 21
AC266: A10 | AF266: A10. Servicios y Atención | AG266: =+VLOOKUP($AC266&AF$248,'td1'!$GD$169:$GP$278,'información graf'!$G$2,FALSE) -> 2 | AH266: =+VLOOKUP($AC266&AG$248,'td1'!$GD$169:$GP$278,'información graf'!$G$2,FALSE) -> 4 | AI266: =+VLOOKUP($AC266&AH$248,'td1'!$GD$169:$GP$278,'información graf'!$G$2,FALSE) -> 1 | AJ266: =+VLOOKUP($AC266&AI$248,'td1'!$GD$169:$GP$278,'información graf'!$G$2,FALSE) -> 0 | AK266: =+VLOOKUP($AC266&AJ$248,'td1'!$GD$169:$GP$278,'información graf'!$G$2,FALSE) -> 3 | AL266: 10 | AO266: A10 | AP266: =+VLOOKUP($AC266&AP$248,'td1'!$GD$282:$GP$391,'información graf'!$G$2,FALSE) -> 7 | AQ266: =+VLOOKUP($AC266&AQ$248,'td1'!$GD$282:$GP$391,'información graf'!$G$2,FALSE) -> 2 | AR266: =+VLOOKUP($AC266&AR$248,'td1'!$GD$282:$GP$391,'información graf'!$G$2,FALSE) -> 0 | AS266: =+VLOOKUP($AC266&AS$248,'td1'!$GD$282:$GP$391,'información graf'!$G$2,FALSE) -> 0 | AT266: =+VLOOKUP($AC266&AT$248,'td1'!$GD$282:$GP$391,'información graf'!$G$2,FALSE) -> 8 | AU266: 17 | AX266: A10 | AY266: 9 | AZ266: 6 | BA266: 1 | BB266: 0 | BC266: 11 | BD266: 27
AC267: A11 | AF267: A11. Tecnología | AG267: =+VLOOKUP($AC267&AF$248,'td1'!$GD$169:$GP$278,'información graf'!$G$2,FALSE) -> 0 | AH267: =+VLOOKUP($AC267&AG$248,'td1'!$GD$169:$GP$278,'información graf'!$G$2,FALSE) -> 0 | AI267: =+VLOOKUP($AC267&AH$248,'td1'!$GD$169:$GP$278,'información graf'!$G$2,FALSE) -> 0 | AJ267: =+VLOOKUP($AC267&AI$248,'td1'!$GD$169:$GP$278,'información graf'!$G$2,FALSE) -> 0 | AK267: =+VLOOKUP($AC267&AJ$248,'td1'!$GD$169:$GP$278,'información graf'!$G$2,FALSE) -> 5 | AL267: 5 | AO267: A11 | AP267: =+VLOOKUP($AC267&AP$248,'td1'!$GD$282:$GP$391,'información graf'!$G$2,FALSE) -> 6 | AQ267: =+VLOOKUP($AC267&AQ$248,'td1'!$GD$282:$GP$391,'información graf'!$G$2,FALSE) -> 1 | AR267: =+VLOOKUP($AC267&AR$248,'td1'!$GD$282:$GP$391,'información graf'!$G$2,FALSE) -> 0 | AS267: =+VLOOKUP($AC267&AS$248,'td1'!$GD$282:$GP$391,'información graf'!$G$2,FALSE) -> 0 | AT267: =+VLOOKUP($AC267&AT$248,'td1'!$GD$282:$GP$391,'información graf'!$G$2,FALSE) -> 10 | AU267: 17 | AX267: A11 | AY267: 6 | AZ267: 1 | BA267: 0 | BB267: 0 | BC267: 15 | BD267: 22
AC268: A12 | AF268: A12. Comunicaciones | AG268: =+VLOOKUP($AC268&AF$248,'td1'!$GD$169:$GP$278,'información graf'!$G$2,FALSE) -> 0 | AH268: =+VLOOKUP($AC268&AG$248,'td1'!$GD$169:$GP$278,'información graf'!$G$2,FALSE) -> 0 | AI268: =+VLOOKUP($AC268&AH$248,'td1'!$GD$169:$GP$278,'información graf'!$G$2,FALSE) -> 0 | AJ268: =+VLOOKUP($AC268&AI$248,'td1'!$GD$169:$GP$278,'información graf'!$G$2,FALSE) -> 0 | AK268: =+VLOOKUP($AC268&AJ$248,'td1'!$GD$169:$GP$278,'información graf'!$G$2,FALSE) -> 3 | AL268: 3 | AO268: A12 | AP268: =+VLOOKUP($AC268&AP$248,'td1'!$GD$282:$GP$391,'información graf'!$G$2,FALSE) -> 6 | AQ268: =+VLOOKUP($AC268&AQ$248,'td1'!$GD$282:$GP$391,'información graf'!$G$2,FALSE) -> 2 | AR268: =+VLOOKUP($AC268&AR$248,'td1'!$GD$282:$GP$391,'información graf'!$G$2,FALSE) -> 0 | AS268: =+VLOOKUP($AC268&AS$248,'td1'!$GD$282:$GP$391,'información graf'!$G$2,FALSE) -> 1 | AT268: =+VLOOKUP($AC268&AT$248,'td1'!$GD$282:$GP$391,'información graf'!$G$2,FALSE) -> 8 | AU268: 17 | AX268: A12 | AY268: 6 | AZ268: 2 | BA268: 0 | BB268: 1 | BC268: 11 | BD268: 20
AC269: A13 | AF269: A13. Planeación | AG269: =+VLOOKUP($AC269&AF$248,'td1'!$GD$169:$GP$278,'información graf'!$G$2,FALSE) -> 6 | AH269: =+VLOOKUP($AC269&AG$248,'td1'!$GD$169:$GP$278,'información graf'!$G$2,FALSE) -> 0 | AI269: =+VLOOKUP($AC269&AH$248,'td1'!$GD$169:$GP$278,'información graf'!$G$2,FALSE) -> 0 | AJ269: =+VLOOKUP($AC269&AI$248,'td1'!$GD$169:$GP$278,'información graf'!$G$2,FALSE) -> 0 | AK269: =+VLOOKUP($AC269&AJ$248,'td1'!$GD$169:$GP$278,'información graf'!$G$2,FALSE) -> 8 | AL269: 14 | AO269: A13 | AP269: =+VLOOKUP($AC269&AP$248,'td1'!$GD$282:$GP$391,'información graf'!$G$2,FALSE) -> 7 | AQ269: =+VLOOKUP($AC269&AQ$248,'td1'!$GD$282:$GP$391,'información graf'!$G$2,FALSE) -> 0 | AR269: =+VLOOKUP($AC269&AR$248,'td1'!$GD$282:$GP$391,'información graf'!$G$2,FALSE) -> 1 | AS269: =+VLOOKUP($AC269&AS$248,'td1'!$GD$282:$GP$391,'información graf'!$G$2,FALSE) -> 1 | AT269: =+VLOOKUP($AC269&AT$248,'td1'!$GD$282:$GP$391,'información graf'!$G$2,FALSE) -> 8 | AU269: 17 | AX269: A13 | AY269: 13 | AZ269: 0 | BA269: 1 | BB269: 1 | BC269: 16 | BD269: 31
AC270: A14 | AF270: A14. SNBF | AG270: =+VLOOKUP($AC270&AF$248,'td1'!$GD$169:$GP$278,'información graf'!$G$2,FALSE) -> 0 | AH270: =+VLOOKUP($AC270&AG$248,'td1'!$GD$169:$GP$278,'información graf'!$G$2,FALSE) -> 0 | AI270: =+VLOOKUP($AC270&AH$248,'td1'!$GD$169:$GP$278,'información graf'!$G$2,FALSE) -> 0 | AJ270: =+VLOOKUP($AC270&AI$248,'td1'!$GD$169:$GP$278,'información graf'!$G$2,FALSE) -> 0 | AK270: =+VLOOKUP($AC270&AJ$248,'td1'!$GD$169:$GP$278,'información graf'!$G$2,FALSE) -> 6 | AL270: 6 | AO270: A14 | AP270: =+VLOOKUP($AC270&AP$248,'td1'!$GD$282:$GP$391,'información graf'!$G$2,FALSE) -> 3 | AQ270: =+VLOOKUP($AC270&AQ$248,'td1'!$GD$282:$GP$391,'información graf'!$G$2,FALSE) -> 2 | AR270: =+VLOOKUP($AC270&AR$248,'td1'!$GD$282:$GP$391,'información graf'!$G$2,FALSE) -> 1 | AS270: =+VLOOKUP($AC270&AS$248,'td1'!$GD$282:$GP$391,'información graf'!$G$2,FALSE) -> 2 | AT270: =+VLOOKUP($AC270&AT$248,'td1'!$GD$282:$GP$391,'información graf'!$G$2,FALSE) -> 9 | AU270: 17 | AX270: A14 | AY270: 3 | AZ270: 2 | BA270: 1 | BB270: 2 | BC270: 15 | BD270: 23
AC271: A15 | AF271: A15. Control Interno | AG271: =+VLOOKUP($AC271&AF$248,'td1'!$GD$169:$GP$278,'información graf'!$G$2,FALSE) -> 0 | AH271: =+VLOOKUP($AC271&AG$248,'td1'!$GD$169:$GP$278,'información graf'!$G$2,FALSE) -> 0 | AI271: =+VLOOKUP($AC271&AH$248,'td1'!$GD$169:$GP$278,'información graf'!$G$2,FALSE) -> 0 | AJ271: =+VLOOKUP($AC271&AI$248,'td1'!$GD$169:$GP$278,'información graf'!$G$2,FALSE) -> 0 | AK271: =+VLOOKUP($AC271&AJ$248,'td1'!$GD$169:$GP$278,'información graf'!$G$2,FALSE) -> 4 | AL271: 4 | AO271: A15 | AP271: =+VLOOKUP($AC271&AP$248,'td1'!$GD$282:$GP$391,'información graf'!$G$2,FALSE) -> 1 | AQ271: =+VLOOKUP($AC271&AQ$248,'td1'!$GD$282:$GP$391,'información graf'!$G$2,FALSE) -> 0 | AR271: =+VLOOKUP($AC271&AR$248,'td1'!$GD$282:$GP$391,'información graf'!$G$2,FALSE) -> 0 | AS271: =+VLOOKUP($AC271&AS$248,'td1'!$GD$282:$GP$391,'información graf'!$G$2,FALSE) -> 0 | AT271: =+VLOOKUP($AC271&AT$248,'td1'!$GD$282:$GP$391,'información graf'!$G$2,FALSE) -> 16 | AU271: 17 | AX271: A15 | AY271: 1 | AZ271: 0 | BA271: 0 | BB271: 0 | BC271: 20 | BD271: 21
AC272: A16 | AF272: A16. Aseguramiento | AG272: =+VLOOKUP($AC272&AF$248,'td1'!$GD$169:$GP$278,'información graf'!$G$2,FALSE) -> 0 | AH272: =+VLOOKUP($AC272&AG$248,'td1'!$GD$169:$GP$278,'información graf'!$G$2,FALSE) -> 0 | AI272: =+VLOOKUP($AC272&AH$248,'td1'!$GD$169:$GP$278,'información graf'!$G$2,FALSE) -> 0 | AJ272: =+VLOOKUP($AC272&AI$248,'td1'!$GD$169:$GP$278,'información graf'!$G$2,FALSE) -> 0 | AK272: =+VLOOKUP($AC272&AJ$248,'td1'!$GD$169:$GP$278,'información graf'!$G$2,FALSE) -> 3 | AL272: 3 | AO272: A16 | AP272: =+VLOOKUP($AC272&AP$248,'td1'!$GD$282:$GP$391,'información graf'!$G$2,FALSE) -> 4 | AQ272: =+VLOOKUP($AC272&AQ$248,'td1'!$GD$282:$GP$391,'información graf'!$G$2,FALSE) -> 0 | AR272: =+VLOOKUP($AC272&AR$248,'td1'!$GD$282:$GP$391,'información graf'!$G$2,FALSE) -> 0 | AS272: =+VLOOKUP($AC272&AS$248,'td1'!$GD$282:$GP$391,'información graf'!$G$2,FALSE) -> 0 | AT272: =+VLOOKUP($AC272&AT$248,'td1'!$GD$282:$GP$391,'información graf'!$G$2,FALSE) -> 13 | AU272: 17 | AX272: A16 | AY272: 4 | AZ272: 0 | BA272: 0 | BB272: 0 | BC272: 16 | BD272: 20
AC273: A17 | AF273: A17. Subd General | AG273: =+VLOOKUP($AC273&AF$248,'td1'!$GD$169:$GP$278,'información graf'!$G$2,FALSE) -> 1 | AH273: =+VLOOKUP($AC273&AG$248,'td1'!$GD$169:$GP$278,'información graf'!$G$2,FALSE) -> 0 | AI273: =+VLOOKUP($AC273&AH$248,'td1'!$GD$169:$GP$278,'información graf'!$G$2,FALSE) -> 0 | AJ273: =+VLOOKUP($AC273&AI$248,'td1'!$GD$169:$GP$278,'información graf'!$G$2,FALSE) -> 0 | AK273: =+VLOOKUP($AC273&AJ$248,'td1'!$GD$169:$GP$278,'información graf'!$G$2,FALSE) -> 2 | AL273: 3 | AO273: A17 | AP273: =+VLOOKUP($AC273&AP$248,'td1'!$GD$282:$GP$391,'información graf'!$G$2,FALSE) -> 3 | AQ273: =+VLOOKUP($AC273&AQ$248,'td1'!$GD$282:$GP$391,'información graf'!$G$2,FALSE) -> 0 | AR273: =+VLOOKUP($AC273&AR$248,'td1'!$GD$282:$GP$391,'información graf'!$G$2,FALSE) -> 0 | AS273: =+VLOOKUP($AC273&AS$248,'td1'!$GD$282:$GP$391,'información graf'!$G$2,FALSE) -> 1 | AT273: =+VLOOKUP($AC273&AT$248,'td1'!$GD$282:$GP$391,'información graf'!$G$2,FALSE) -> 13 | AU273: 17 | AX273: A17 | AY273: 4 | AZ273: 0 | BA273: 0 | BB273: 1 | BC273: 15 | BD273: 20
AD274: Total | AG274: =+AG250+AG256 -> 44 | AH274: =+AH250+AH256 -> 24 | AI274: =+AI250+AI256 -> 2 | AJ274: =+AJ250+AJ256 -> 5 | AK274: =+AK250+AK256 -> 81 | AL274: 156
AG275: =+AG274/$AL$274 -> 0.2820512821 | AH275: =+AH274/$AL$274 -> 0.1538461538 | AI275: =+AI274/$AL$274 -> 0.01282051282 | AJ275: =+AJ274/$AL$274 -> 0.03205128205 | AK275: =+AK274/$AL$274 -> 0.5192307692
AD276: =+"Corte "&$D$5 -> Corte Agosto
C282: Sistema Integrado de Gestión - Objetivos SIGE
P283: SIGE1 | R283: Ampliar cobertura y mejorar calidad en la atención integral a la Primera Infancia.
P284: SIGE2 | R284: Promover los derechos de los NNA y prevenir los riesgos o amenazas de vulneración de los mismos
P285: SIGE3 | R285: Fortalecer en las familias y comunidades, capacidades que promuevan su desarrollo, fortalezcan sus vínculos de cuidado mutuo y prevengan la violencia intrafamiliar y de género.
P287: SIGE4 | R287: Promover la seguridad alimentaria y nutricional en el desarrollo de la primera infancia, los NNA y la familia.
P288: SIGE5 | R288: Garantizar la protección integral de los NNA en coordinación con las instancias del SNBF.
P289: SIGE6 | R289: Lograr una adecuada y eficiente gestión institucional a través de la articulación entre servidores, áreas y niveles territoriales; el apoyo administrativo a los procesos misionales, la apropiación de una cultura de la evaluación y la optimización del uso de los recursos
P291: SIGE7 | R291: Promover condiciones laborales que hagan del ICBF el mejor lugar para trabajar.
P292: SIGE8 | R292: Reducir los impactos ambientales generados por nuestra actividad.
P293: SIGE9 | R293: Impulsar una cultura de gestión de la calidad y el mejoramiento continuo.
P294: SIGE10 | R294: Gestionar el conocimiento institucional, con sistemas de información confiables, integrados y disponibles.
R296: Objetivos SIGE
X298: optimo | Y298: adecuado | Z298: en riesgo | AA298: critico | AB298: NA
W299: Comportamiento agregado de indicadores
AC300: Total
W301: SIGE1 | X301: =+VLOOKUP($W301&X$298,'td1'!$FN$169:$FZ$218,'información graf'!$G$2,FALSE) -> 0 | Y301: =+VLOOKUP($W301&Y$298,'td1'!$FN$169:$FZ$218,'información graf'!$G$2,FALSE) -> 3 | Z301: =+VLOOKUP($W301&Z$298,'td1'!$FN$169:$FZ$218,'información graf'!$G$2,FALSE) -> 0 | AA301: =+VLOOKUP($W301&AA$298,'td1'!$FN$169:$FZ$218,'información graf'!$G$2,FALSE) -> 0 | AB301: =+VLOOKUP($W301&AB$298,'td1'!$FN$169:$FZ$218,'información graf'!$G$2,FALSE) -> 15 | AC301: =+SUM(X301:AB301) -> 18
W302: SIGE2 | X302: =+VLOOKUP($W302&X$298,'td1'!$FN$169:$FZ$218,'información graf'!$G$2,FALSE) -> 6 | Y302: =+VLOOKUP($W302&Y$298,'td1'!$FN$169:$FZ$218,'información graf'!$G$2,FALSE) -> 2 | Z302: =+VLOOKUP($W302&Z$298,'td1'!$FN$169:$FZ$218,'información graf'!$G$2,FALSE) -> 0 | AA302: =+VLOOKUP($W302&AA$298,'td1'!$FN$169:$FZ$218,'información graf'!$G$2,FALSE) -> 0 | AB302: =+VLOOKUP($W302&AB$298,'td1'!$FN$169:$FZ$218,'información graf'!$G$2,FALSE) -> 5 | AC302: 13
W303: SIGE3 | X303: =+VLOOKUP($W303&X$298,'td1'!$FN$169:$FZ$218,'información graf'!$G$2,FALSE) -> 5 | Y303: =+VLOOKUP($W303&Y$298,'td1'!$FN$169:$FZ$218,'información graf'!$G$2,FALSE) -> 1 | Z303: =+VLOOKUP($W303&Z$298,'td1'!$FN$169:$FZ$218,'información graf'!$G$2,FALSE) -> 0 | AA303: =+VLOOKUP($W303&AA$298,'td1'!$FN$169:$FZ$218,'información graf'!$G$2,FALSE) -> 0 | AB303: =+VLOOKUP($W303&AB$298,'td1'!$FN$169:$FZ$218,'información graf'!$G$2,FALSE) -> 2 | AC303: 8
W304: SIGE4 | X304: =+VLOOKUP($W304&X$298,'td1'!$FN$169:$FZ$218,'información graf'!$G$2,FALSE) -> 4 | Y304: =+VLOOKUP($W304&Y$298,'td1'!$FN$169:$FZ$218,'información graf'!$G$2,FALSE) -> 1 | Z304: =+VLOOKUP($W304&Z$298,'td1'!$FN$169:$FZ$218,'información graf'!$G$2,FALSE) -> 0 | AA304: =+VLOOKUP($W304&AA$298,'td1'!$FN$169:$FZ$218,'información graf'!$G$2,FALSE) -> 0 | AB304: =+VLOOKUP($W304&AB$298,'td1'!$FN$169:$FZ$218,'información graf'!$G$2,FALSE) -> 3 | AC304: 8
W305: SIGE5 | X305: =+VLOOKUP($W305&X$298,'td1'!$FN$169:$FZ$218,'información graf'!$G$2,FALSE) -> 4 | Y305: =+VLOOKUP($W305&Y$298,'td1'!$FN$169:$FZ$218,'información graf'!$G$2,FALSE) -> 6 | Z305: =+VLOOKUP($W305&Z$298,'td1'!$FN$169:$FZ$218,'información graf'!$G$2,FALSE) -> 1 | AA305: =+VLOOKUP($W305&AA$298,'td1'!$FN$169:$FZ$218,'información graf'!$G$2,FALSE) -> 2 | AB305: =+VLOOKUP($W305&AB$298,'td1'!$FN$169:$FZ$218,'información graf'!$G$2,FALSE) -> 6 | AC305: 19
W306: SIGE6 | X306: =+VLOOKUP($W306&X$298,'td1'!$FN$169:$FZ$218,'información graf'!$G$2,FALSE) -> 16 | Y306: =+VLOOKUP($W306&Y$298,'td1'!$FN$169:$FZ$218,'información graf'!$G$2,FALSE) -> 11 | Z306: =+VLOOKUP($W306&Z$298,'td1'!$FN$169:$FZ$218,'información graf'!$G$2,FALSE) -> 1 | AA306: =+VLOOKUP($W306&AA$298,'td1'!$FN$169:$FZ$218,'información graf'!$G$2,FALSE) -> 2 | AB306: =+VLOOKUP($W306&AB$298,'td1'!$FN$169:$FZ$218,'información graf'!$G$2,FALSE) -> 40 | AC306: 70
W307: SIGE7 | X307: =+VLOOKUP($W307&X$298,'td1'!$FN$169:$FZ$218,'información graf'!$G$2,FALSE) -> 3 | Y307: =+VLOOKUP($W307&Y$298,'td1'!$FN$169:$FZ$218,'información graf'!$G$2,FALSE) -> 0 | Z307: =+VLOOKUP($W307&Z$298,'td1'!$FN$169:$FZ$218,'información graf'!$G$2,FALSE) -> 0 | AA307: =+VLOOKUP($W307&AA$298,'td1'!$FN$169:$FZ$218,'información graf'!$G$2,FALSE) -> 0 | AB307: =+VLOOKUP($W307&AB$298,'td1'!$FN$169:$FZ$218,'información graf'!$G$2,FALSE) -> 0 | AC307: 3
W308: SIGE8 | X308: =+VLOOKUP($W308&X$298,'td1'!$FN$169:$FZ$218,'información graf'!$G$2,FALSE) -> 3 | Y308: =+VLOOKUP($W308&Y$298,'td1'!$FN$169:$FZ$218,'información graf'!$G$2,FALSE) -> 0 | Z308: =+VLOOKUP($W308&Z$298,'td1'!$FN$169:$FZ$218,'información graf'!$G$2,FALSE) -> 0 | AA308: =+VLOOKUP($W308&AA$298,'td1'!$FN$169:$FZ$218,'información graf'!$G$2,FALSE) -> 1 | AB308: =+VLOOKUP($W308&AB$298,'td1'!$FN$169:$FZ$218,'información graf'!$G$2,FALSE) -> 0 | AC308: 4
W309: SIGE9 | X309: =+VLOOKUP($W309&X$298,'td1'!$FN$169:$FZ$218,'información graf'!$G$2,FALSE) -> 3 | Y309: =+VLOOKUP($W309&Y$298,'td1'!$FN$169:$FZ$218,'información graf'!$G$2,FALSE) -> 0 | Z309: =+VLOOKUP($W309&Z$298,'td1'!$FN$169:$FZ$218,'información graf'!$G$2,FALSE) -> 0 | AA309: =+VLOOKUP($W309&AA$298,'td1'!$FN$169:$FZ$218,'información graf'!$G$2,FALSE) -> 0 | AB309: =+VLOOKUP($W309&AB$298,'td1'!$FN$169:$FZ$218,'información graf'!$G$2,FALSE) -> 7 | AC309: 10
W310: SIGE10 | X310: =+VLOOKUP($W310&X$298,'td1'!$FN$169:$FZ$218,'información graf'!$G$2,FALSE) -> 0 | Y310: =+VLOOKUP($W310&Y$298,'td1'!$FN$169:$FZ$218,'información graf'!$G$2,FALSE) -> 0 | Z310: =+VLOOKUP($W310&Z$298,'td1'!$FN$169:$FZ$218,'información graf'!$G$2,FALSE) -> 0 | AA310: =+VLOOKUP($W310&AA$298,'td1'!$FN$169:$FZ$218,'información graf'!$G$2,FALSE) -> 0 | AB310: =+VLOOKUP($W310&AB$298,'td1'!$FN$169:$FZ$218,'información graf'!$G$2,FALSE) -> 3 | AC310: 3
W311: Total | X311: =SUM(X301:X310) -> 44 | Y311: 24 | Z311: 2 | AA311: 5 | AB311: 81 | AC311: 156
X312: =+X311/$AC$311 -> 0.2820512821 | Y312: =+Y311/$AC$311 -> 0.1538461538 | Z312: =+Z311/$AC$311 -> 0.01282051282 | AA312: =+AA311/$AC$311 -> 0.03205128205 | AB312: =+AB311/$AC$311 -> 0.5192307692
C319: Análisis "Cómo vamos" ICBF

Sheet regional
C2: TABLERO DE CONTROL 2018 INSTITUTO COLOMBIANO DE BIENESTAR FAMILIAR ICBF SEGUIMIENTO TABLERO DE CONTROL - ANÁLISIS GENERAL | X2: Calificación agregados
C3: =+"Regional "&VLOOKUP(Menu!C41,Referencias!$R$2:$T$34,3,FALSE) -> Regional Sucre
C6: Mes analisis | E6: =+Menu!C11 -> Agosto | S6: Volver al menú
D7: Ene
N11: Comportamiento indicadores
N12: T. control | O12: P. Acción | P12: P. Indicativo
L13: 2 | M13: Optimo | N13: =+VLOOKUP($M13,'td1'!$JA$77:$JM$81,'información graf'!$G$2,FALSE) -> 30 | O13: =+VLOOKUP($M13,'td1'!$JO$77:$KA$81,'información graf'!$G$2,FALSE) -> 11 | P13: =+VLOOKUP($M13,'td1'!$KC$77:$KO$81,'información graf'!$G$2,FALSE) -> 2
L14: 3 | M14: Adecuado | N14: =+VLOOKUP($M14,'td1'!$JA$77:$JM$81,'información graf'!$G$2,FALSE) -> 13 | O14: =+VLOOKUP($M14,'td1'!$JO$77:$KA$81,'información graf'!$G$2,FALSE) -> 3 | P14: =+VLOOKUP($M14,'td1'!$KC$77:$KO$81,'información graf'!$G$2,FALSE) -> 2
L15: 4 | M15: En riesgo | N15: =+VLOOKUP($M15,'td1'!$JA$77:$JM$81,'información graf'!$G$2,FALSE) -> 2 | O15: =+VLOOKUP($M15,'td1'!$JO$77:$KA$81,'información graf'!$G$2,FALSE) -> 1 | P15: =+VLOOKUP($M15,'td1'!$KC$77:$KO$81,'información graf'!$G$2,FALSE) -> 0
L16: 5 | M16: Critico | N16: =+VLOOKUP($M16,'td1'!$JA$77:$JM$81,'información graf'!$G$2,FALSE) -> 3 | O16: =+VLOOKUP($M16,'td1'!$JO$77:$KA$81,'información graf'!$G$2,FALSE) -> 2 | P16: =+VLOOKUP($M16,'td1'!$KC$77:$KO$81,'información graf'!$G$2,FALSE) -> 2
L17: 6 | M17: NA | N17: =+VLOOKUP($M17,'td1'!$JA$77:$JM$81,'información graf'!$G$2,FALSE) -> 22 | O17: =+VLOOKUP($M17,'td1'!$JO$77:$KA$81,'información graf'!$G$2,FALSE) -> 7 | P17: =+VLOOKUP($M17,'td1'!$KC$77:$KO$81,'información graf'!$G$2,FALSE) -> 5
L18: 7 | M18: Total | N18: =SUM(N13:N17) -> 70 | O18: =SUM(O13:O17) -> 24 | P18: =SUM(P13:P17) -> 11
M19: Aplicaron en el mes de corte | N19: =+N13+N14+N15+N16 -> 48 | O19: =+O13+O14+O15+O16 -> 17 | P19: =+P13+P14+P15+P16 -> 6
F20: Calificación agregados | M20: =+"Corte "&$E$6 -> Corte Agosto
D21: =+"Corte "&$E$6 -> Corte Agosto
AG22: Comparación vigencias 2017 vs 2018
C24: Macroregiones | K24: =+"Ranking "&VLOOKUP(Menu!C41,Referencias!$R$2:$T$34,3,FALSE) -> Ranking Sucre
K26: Macroregion | L26: =+VLOOKUP(Menu!C41,'información graf'!$CC$62:$CE$99,3,FALSE) -> Caribe
L28: # | M28: Regional | N28: %
K29: =+$L$26&1 -> Caribe1 | L29: 1 | M29: =IFERROR(VLOOKUP($K29,'información graf'!$CI$62:$CK$99,2,FALSE),"") -> Córdoba | N29: =+IFERROR(VLOOKUP($K29,'información graf'!$CI$62:$CK$99,3,FALSE),"") -> 0.9686966724
K30: =+$L$26&2 -> Caribe2 | L30: =+IF(M30="","",L29+1) -> 2 | M30: =IFERROR(VLOOKUP($K30,'información graf'!$CI$62:$CK$99,2,FALSE),"") -> Cesar | N30: =+IFERROR(VLOOKUP($K30,'información graf'!$CI$62:$CK$99,3,FALSE),"") -> 0.9440699659
K31: =+$L$26&3 -> Caribe3 | L31: 3 | M31: =IFERROR(VLOOKUP($K31,'información graf'!$CI$62:$CK$99,2,FALSE),"") -> Magdalena | N31: =+IFERROR(VLOOKUP($K31,'información graf'!$CI$62:$CK$99,3,FALSE),"") -> 0.933740401
K32: =+$L$26&4 -> Caribe4 | L32: 4 | M32: =IFERROR(VLOOKUP($K32,'información graf'!$CI$62:$CK$99,2,FALSE),"") -> Guajira | N32: =+IFERROR(VLOOKUP($K32,'información graf'!$CI$62:$CK$99,3,FALSE),"") -> 0.9310973342
K33: =+$L$26&5 -> Caribe5 | L33: 5 | M33: =IFERROR(VLOOKUP($K33,'información graf'!$CI$62:$CK$99,2,FALSE),"") -> Atlántico | N33: =+IFERROR(VLOOKUP($K33,'información graf'!$CI$62:$CK$99,3,FALSE),"") -> 0.928100453
K34: =+$L$26&6 -> Caribe6 | L34: 6 | M34: =IFERROR(VLOOKUP($K34,'información graf'!$CI$62:$CK$99,2,FALSE),"") -> San Andrés | N34: =+IFERROR(VLOOKUP($K34,'información graf'!$CI$62:$CK$99,3,FALSE),"") -> 0.925001687
K35: =+$L$26&7 -> Caribe7 | L35: 7 | M35: =IFERROR(VLOOKUP($K35,'información graf'!$CI$62:$CK$99,2,FALSE),"") -> Bolívar | N35: =+IFERROR(VLOOKUP($K35,'información graf'!$CI$62:$CK$99,3,FALSE),"") -> 0.8711230802
K36: =+$L$26&8 -> Caribe8 | L36: 8 | M36: =IFERROR(VLOOKUP($K36,'información graf'!$CI$62:$CK$99,2,FALSE),"") -> Sucre | N36: =+IFERROR(VLOOKUP($K36,'información graf'!$CI$62:$CK$99,3,FALSE),"") -> 0.8689953072
N37: =+IFERROR(VLOOKUP($K37,'información graf'!$CI$62:$CK$99,3,FALSE),"") -> 
K38: Regional | L38: =+Menu!C41 -> Sucre | N38: Caq
L40: # | M40: Centro zonal | O40: %
K41: =+$L$38&1 -> Sucre1 | L41: 1 | M41: =+IFERROR(VLOOKUP($K41,'información graf'!$CY$60:$DB$304,3,FALSE),"") -> CZ La Mojana | O41: =+IFERROR(VLOOKUP($K41,'información graf'!$CY$60:$DB$304,4,FALSE),"") -> 0.9698603615 | P41: =+IFERROR(VLOOKUP($L$38&M41,'información graf'!$CR$60:$CU$304,4,FALSE),"") -> 7004
K42: =+$L$38&2 -> Sucre2 | L42: =+IF(M42="","",L41+1) -> 2 | M42: =+IFERROR(VLOOKUP($K42,'información graf'!$CY$60:$DB$304,3,FALSE),"") -> CZ Boston | O42: =+IFERROR(VLOOKUP($K42,'información graf'!$CY$60:$DB$304,4,FALSE),"") -> 0.8006346314 | P42: =+IFERROR(VLOOKUP($L$38&M42,'información graf'!$CR$60:$CU$304,4,FALSE),"") -> 7001
K43: =+$L$38&3 -> Sucre3 | L43: 3 | M43: =+IFERROR(VLOOKUP($K43,'información graf'!$CY$60:$DB$304,3,FALSE),"") -> CZ Sincelejo | O43: =+IFERROR(VLOOKUP($K43,'información graf'!$CY$60:$DB$304,4,FALSE),"") -> 0.8001713171 | P43: =+IFERROR(VLOOKUP($L$38&M43,'información graf'!$CR$60:$CU$304,4,FALSE),"") -> 7003
K44: =+$L$38&4 -> Sucre4 | L44: 4 | M44: =+IFERROR(VLOOKUP($K44,'información graf'!$CY$60:$DB$304,3,FALSE),"") -> CZ Norte | O44: =+IFERROR(VLOOKUP($K44,'información graf'!$CY$60:$DB$304,4,FALSE),"") -> 0.7770652397 | P44: =+IFERROR(VLOOKUP($L$38&M44,'información graf'!$CR$60:$CU$304,4,FALSE),"") -> 7002
K45: =+$L$38&5 -> Sucre5 | M45: =+IFERROR(VLOOKUP($K45,'información graf'!$CY$60:$DB$304,3,FALSE),"") ->  | O45: =+IFERROR(VLOOKUP($K45,'información graf'!$CY$60:$DB$304,4,FALSE),"") ->  | P45: =+IFERROR(VLOOKUP($L$38&M45,'información graf'!$CR$60:$CU$304,4,FALSE),"") ->  | AH45: Tablero | AI45: Ene | AJ45: Feb | AK45: Mar | AL45: Abr | AM45: May | AN45: Jun | AO45: Jul | AP45: Agt | AQ45: Sep | AR45: Oct | AS45: Nov | AT45: Dic
K46: =+$L$38&6 -> Sucre6 | M46: =+IFERROR(VLOOKUP($K46,'información graf'!$CY$60:$DB$304,3,FALSE),"") ->  | O46: =+IFERROR(VLOOKUP($K46,'información graf'!$CY$60:$DB$304,4,FALSE),"") ->  | P46: =+IFERROR(VLOOKUP($L$38&M46,'información graf'!$CR$60:$CU$304,4,FALSE),"") ->  | AH46: 2017 | AI46: =+'información graf'!AM62 -> 0.9651744026 | AJ46: =+'información graf'!AN62 -> 0.9017748426 | AK46: =+'información graf'!AO62 -> 0.907033985 | AL46: =+'información graf'!AP62 -> 0.8883479563 | AM46: =+'información graf'!AQ62 -> 0.9420442166 | AN46: =+'información graf'!AR62 -> 0.9656588395 | AO46: =+'información graf'!AS62 -> 0.9659591148 | AP46: =+'información graf'!AT62 -> 0.8720532937 | AQ46: =+'información graf'!AU62 ->  | AR46: =+'información graf'!AV62 ->  | AS46: =+'información graf'!AW62 ->  | AT46: =+'información graf'!AX62 -> 
K47: =+$L$38&7 -> Sucre7 | M47: =+IFERROR(VLOOKUP($K47,'información graf'!$CY$60:$DB$304,3,FALSE),"") ->  | O47: =+IFERROR(VLOOKUP($K47,'información graf'!$CY$60:$DB$304,4,FALSE),"") ->  | P47: =+IFERROR(VLOOKUP($L$38&M47,'información graf'!$CR$60:$CU$304,4,FALSE),"") ->  | AH47: 2018 | AI47: =+'información graf'!AM63 -> 0.9961145065 | AJ47: =+'información graf'!AN63 -> 0.9397346328 | AK47: =+'información graf'!AO63 -> 0.8922821548 | AL47: =+'información graf'!AP63 -> 0.8951334272 | AM47: =+'información graf'!AQ63 -> 0.9213362709 | AN47: =+'información graf'!AR63 -> 0.9673638552 | AO47: =+'información graf'!AS63 -> 0.9733875943 | AP47: =+'información graf'!AT63 -> 0.8861794234 | AQ47: =+'información graf'!AU63 ->  | AR47: =+'información graf'!AV63 ->  | AS47: =+'información graf'!AW63 ->  | AT47: =+'información graf'!AX63 -> 
K48: =+$L$38&8 -> Sucre8 | M48: =+IFERROR(VLOOKUP($K48,'información graf'!$CY$60:$DB$304,3,FALSE),"") ->  | O48: =+IFERROR(VLOOKUP($K48,'información graf'!$CY$60:$DB$304,4,FALSE),"") ->  | P48: =+IFERROR(VLOOKUP($L$38&M48,'información graf'!$CR$60:$CU$304,4,FALSE),"") ->  | AH48: ∆ | AI48: =+IFERROR((AI47/AI46)-1,0) -> 0.0320564903 | AJ48: 0.04209453222 | AK48: -0.01626381206 | AL48: 0.007638302939 | AM48: -0.02198192544 | AN48: 0.001765650149 | AO48: 0.007690262911 | AP48: 0.01619870004 | AQ48: 0 | AR48: 0 | AS48: 0 | AT48: 0
K49: =+$L$38&9 -> Sucre9 | M49: =+IFERROR(VLOOKUP($K49,'información graf'!$CY$60:$DB$304,3,FALSE),"") ->  | O49: =+IFERROR(VLOOKUP($K49,'información graf'!$CY$60:$DB$304,4,FALSE),"") ->  | P49: =+IFERROR(VLOOKUP($L$38&M49,'información graf'!$CR$60:$CU$304,4,FALSE),"") -> 
K50: =+$L$38&10 -> Sucre10 | M50: =+IFERROR(VLOOKUP($K50,'información graf'!$CY$60:$DB$304,3,FALSE),"") ->  | O50: =+IFERROR(VLOOKUP($K50,'información graf'!$CY$60:$DB$304,4,FALSE),"") ->  | P50: =+IFERROR(VLOOKUP($L$38&M50,'información graf'!$CR$60:$CU$304,4,FALSE),"") ->  | AH50: Plan de Acción | AI50: Ene | AJ50: Feb | AK50: Mar | AL50: Abr | AM50: May | AN50: Jun | AO50: Jul | AP50: Agt | AQ50: Sep | AR50: Oct | AS50: Nov | AT50: Dic
K51: =+$L$38&11 -> Sucre11 | M51: =+IFERROR(VLOOKUP($K51,'información graf'!$CY$60:$DB$304,3,FALSE),"") ->  | O51: =+IFERROR(VLOOKUP($K51,'información graf'!$CY$60:$DB$304,4,FALSE),"") ->  | P51: =+IFERROR(VLOOKUP($L$38&M51,'información graf'!$CR$60:$CU$304,4,FALSE),"") ->  | AH51: 2017 | AI51: =+'información graf'!AM66 -> 0.9598383696 | AJ51: =+'información graf'!AN66 -> 0.8633592349 | AK51: =+'información graf'!AO66 -> 0.9079963988 | AL51: =+'información graf'!AP66 -> 0.8808724832 | AM51: =+'información graf'!AQ66 -> 0.9362782312 | AN51: =+'información graf'!AR66 -> 0.9708596503 | AO51: =+'información graf'!AS66 -> 0.9905105333 | AP51: =+'información graf'!AT66 -> 0.8301998353 | AQ51: =+'información graf'!AU66 ->  | AR51: =+'información graf'!AV66 ->  | AS51: =+'información graf'!AW66 ->  | AT51: =+'información graf'!AX66 -> 
D52: =+'información graf'!CP63 -> 0.9568616222 | E52: Pacífico | K52: =+$L$38&12 -> Sucre12 | M52: =+IFERROR(VLOOKUP($K52,'información graf'!$CY$60:$DB$304,3,FALSE),"") ->  | O52: =+IFERROR(VLOOKUP($K52,'información graf'!$CY$60:$DB$304,4,FALSE),"") ->  | P52: =+IFERROR(VLOOKUP($L$38&M52,'información graf'!$CR$60:$CU$304,4,FALSE),"") ->  | AH52: 2018 | AI52: =+'información graf'!AM67 -> 1 | AJ52: =+'información graf'!AN67 -> 0.9215854582 | AK52: =+'información graf'!AO67 -> 0.9010490154 | AL52: =+'información graf'!AP67 -> 0.8794105843 | AM52: =+'información graf'!AQ67 -> 0.8954747539 | AN52: =+'información graf'!AR67 -> 0.9724399708 | AO52: =+'información graf'!AS67 -> 0.9742140362 | AP52: =+'información graf'!AT67 -> 0.8689953072 | AQ52: =+'información graf'!AU67 ->  | AR52: =+'información graf'!AV67 ->  | AS52: =+'información graf'!AW67 ->  | AT52: =+'información graf'!AX67 -> 
D53: =+'información graf'!CP64 -> 0.9579976742 | E53: Centro Sur | K53: =+$L$38&13 -> Sucre13 | M53: =+IFERROR(VLOOKUP($K53,'información graf'!$CY$60:$DB$304,3,FALSE),"") ->  | O53: =+IFERROR(VLOOKUP($K53,'información graf'!$CY$60:$DB$304,4,FALSE),"") ->  | P53: =+IFERROR(VLOOKUP($L$38&M53,'información graf'!$CR$60:$CU$304,4,FALSE),"") ->  | T53: Seguimiento mes a mes gestión regional | AH53: ∆ | AI53: =+IFERROR((AI52/AI51)-1,0) -> 0.04184207636 | AJ53: 0.06744147854 | AK53: -0.007651333604 | AL53: -0.001659603398 | AM53: -0.04358050408 | AN53: 0.001627753784 | AO53: -0.01645262373 | AP53: 0.04673028128 | AQ53: 0 | AR53: 0 | AS53: 0 | AT53: 0
D54: =+'información graf'!CP65 -> 0.9039780527 | E54: Llanos | K54: =+$L$38&14 -> Sucre14 | M54: =+IFERROR(VLOOKUP($K54,'información graf'!$CY$60:$DB$304,3,FALSE),"") ->  | O54: =+IFERROR(VLOOKUP($K54,'información graf'!$CY$60:$DB$304,4,FALSE),"") ->  | P54: =+IFERROR(VLOOKUP($L$38&M54,'información graf'!$CR$60:$CU$304,4,FALSE),"") ->  | T54: Ene | U54: Feb | V54: Mar | W54: Abr | X54: May | Y54: Jun | Z54: Jul | AA54: Agt | AB54: Sep | AC54: Oct | AD54: Nov | AE54: Dic
D55: =+'información graf'!CP66 -> 0.9462188873 | E55: Eje Cafetero | K55: =+$L$38&15 -> Sucre15 | M55: =+IFERROR(VLOOKUP($K55,'información graf'!$CY$60:$DB$304,3,FALSE),"") ->  | O55: =+IFERROR(VLOOKUP($K55,'información graf'!$CY$60:$DB$304,4,FALSE),"") ->  | P55: =+IFERROR(VLOOKUP($L$38&M55,'información graf'!$CR$60:$CU$304,4,FALSE),"") ->  | S55: T. control | T55: =IFERROR('información graf'!BA62,"") -> 0.9961145065 | U55: =IFERROR('información graf'!BB62,"") -> 0.9397346328 | V55: =IFERROR('información graf'!BC62,"") -> 0.8922821548 | W55: =IFERROR('información graf'!BD62,"") -> 0.8951334272 | X55: =IFERROR('información graf'!BE62,"") -> 0.9213362709 | Y55: =IFERROR('información graf'!BF62,"") -> 0.9673638552 | Z55: =IFERROR('información graf'!BG62,"") -> 0.9733875943 | AA55: =IFERROR('información graf'!BH62,"") -> 0.8861794234 | AB55: =IFERROR('información graf'!BI62,"") ->  | AC55: =IFERROR('información graf'!BJ62,"") ->  | AD55: =IFERROR('información graf'!BK62,"") ->  | AE55: =IFERROR('información graf'!BL62,"") ->  | AH55: Plan Indicativo | AI55: Ene | AJ55: Feb | AK55: Mar | AL55: Abr | AM55: May | AN55: Jun | AO55: Jul | AP55: Agt | AQ55: Sep | AR55: Oct | AS55: Nov | AT55: Dic
D56: =+'información graf'!CP67 -> 0.9213531126 | E56: Caribe | K56: =+$L$38&16 -> Sucre16 | M56: =+IFERROR(VLOOKUP($K56,'información graf'!$CY$60:$DB$304,3,FALSE),"") ->  | O56: =+IFERROR(VLOOKUP($K56,'información graf'!$CY$60:$DB$304,4,FALSE),"") ->  | P56: =+IFERROR(VLOOKUP($L$38&M56,'información graf'!$CR$60:$CU$304,4,FALSE),"") ->  | S56: P. Acción | T56: =IFERROR('información graf'!BA63,"") -> 1 | U56: =IFERROR('información graf'!BB63,"") -> 0.9215854582 | V56: =IFERROR('información graf'!BC63,"") -> 0.9010490154 | W56: =IFERROR('información graf'!BD63,"") -> 0.8794105843 | X56: =IFERROR('información graf'!BE63,"") -> 0.8954747539 | Y56: =IFERROR('información graf'!BF63,"") -> 0.9724399708 | Z56: =IFERROR('información graf'!BG63,"") -> 0.9742140362 | AA56: =IFERROR('información graf'!BH63,"") -> 0.8689953072 | AB56: =IFERROR('información graf'!BI63,"") ->  | AC56: =IFERROR('información graf'!BJ63,"") ->  | AD56: =IFERROR('información graf'!BK63,"") ->  | AE56: =IFERROR('información graf'!BL63,"") ->  | AH56: 2017 | AI56: =+'información graf'!AM70 -> 0.9328831474 | AJ56: =+'información graf'!AN70 -> 0.7547961998 | AK56: =+'información graf'!AO70 -> 0.8685343411 | AL56: =+'información graf'!AP70 -> 0.8850885157 | AM56: =+'información graf'!AQ70 -> 0.9740581026 | AN56: =+'información graf'!AR70 -> 0.9812191916 | AO56: =+'información graf'!AS70 -> 1 | AP56: =+'información graf'!AT70 -> 0.9390340602 | AQ56: =+'información graf'!AU70 ->  | AR56: =+'información graf'!AV70 ->  | AS56: =+'información graf'!AW70 ->  | AT56: =+'información graf'!AX70 -> 
D57: =+'información graf'!CP68 -> 0.9451107256 | E57: Centro Oriente | K57: =+$L$38&17 -> Sucre17 | M57: =+IFERROR(VLOOKUP($K57,'información graf'!$CY$60:$DB$304,3,FALSE),"") ->  | O57: =+IFERROR(VLOOKUP($K57,'información graf'!$CY$60:$DB$304,4,FALSE),"") ->  | P57: =+IFERROR(VLOOKUP($L$38&M57,'información graf'!$CR$60:$CU$304,4,FALSE),"") ->  | S57: P. Indicativo | T57: =IFERROR('información graf'!BA64,"") -> 1 | U57: =IFERROR('información graf'!BB64,"") -> 0.8673469388 | V57: =IFERROR('información graf'!BC64,"") -> 0.989516129 | W57: =IFERROR('información graf'!BD64,"") -> 0.863559322 | X57: =IFERROR('información graf'!BE64,"") -> 0.9819444444 | Y57: =IFERROR('información graf'!BF64,"") -> 0.989516129 | Z57: =IFERROR('información graf'!BG64,"") -> 0.95 | AA57: =IFERROR('información graf'!BH64,"") -> 0.6966101695 | AB57: =IFERROR('información graf'!BI64,"") ->  | AC57: =IFERROR('información graf'!BJ64,"") ->  | AD57: =IFERROR('información graf'!BK64,"") ->  | AE57: =IFERROR('información graf'!BL64,"") ->  | AH57: 2018 | AI57: =+'información graf'!AM71 -> 1 | AJ57: =+'información graf'!AN71 -> 0.8673469388 | AK57: =+'información graf'!AO71 -> 0.989516129 | AL57: =+'información graf'!AP71 -> 0.863559322 | AM57: =+'información graf'!AQ71 -> 0.9819444444 | AN57: =+'información graf'!AR71 -> 0.989516129 | AO57: =+'información graf'!AS71 -> 0.95 | AP57: =+'información graf'!AT71 -> 0.6966101695 | AQ57: =+'información graf'!AU71 ->  | AR57: =+'información graf'!AV71 ->  | AS57: =+'información graf'!AW71 ->  | AT57: =+'información graf'!AX71 -> 
K58: =+$L$38&18 -> Sucre18 | M58: =+IFERROR(VLOOKUP($K58,'información graf'!$CY$60:$DB$304,3,FALSE),"") ->  | P58: =+IFERROR(VLOOKUP($L$38&M58,'información graf'!$CR$60:$CU$304,4,FALSE),"") ->  | AH58: ∆ | AI58: =+IFERROR((AI57/AI56)-1,0) -> 0.07194561591 | AJ58: 0.1491140774 | AK58: 0.1392941904 | AL58: -0.0243243396 | AM58: 0.008096377245 | AN58: 0.008455743137 | AO58: -0.05 | AP58: -0.2581630433 | AQ58: 0 | AR58: 0 | AS58: 0 | AT58: 0
P59: =+IFERROR(VLOOKUP($L$38&M59,'información graf'!$CR$60:$CU$304,4,FALSE),"") -> 
S60: P. Acción
C64: Modelo Integrado de Planeación y Gestión - decreto 2482 de 2012, DAFP
H67: Líneas de politica | J67: Componentes
T68: optimo | U68: adecuado | V68: en riesgo | W68: critico | X68: NA
S69: Comportamiento agregado de indicadores
Y70: Total
M71: LP1 | N71: Gestión misional y de gobierno | S71: LP1 | T71: =+T72 -> 6 | U71: 2 | V71: 0 | W71: 2 | X71: 3 | Y71: 13
N72: LP1-C1 | O72: Indicadores y metas de Gobierno | S72: LP1-C1 | T72: =+VLOOKUP($S72&T$68,'td1'!$LY$77:$MK$121,'información graf'!$G$2,FALSE) -> 6 | U72: =+VLOOKUP($S72&U$68,'td1'!$LY$77:$MK$121,'información graf'!$G$2,FALSE) -> 2 | V72: =+VLOOKUP($S72&V$68,'td1'!$LY$77:$MK$121,'información graf'!$G$2,FALSE) -> 0 | W72: =+VLOOKUP($S72&W$68,'td1'!$LY$77:$MK$121,'información graf'!$G$2,FALSE) -> 2 | X72: =+VLOOKUP($S72&X$68,'td1'!$LY$77:$MK$121,'información graf'!$G$2,FALSE) -> 3 | Y72: =+SUM(T72:X72) -> 13
M73: LP2 | N73: Transparencia, participación y servicio al ciudadano | S73: LP2 | T73: =+T74+T75+T76 -> 2 | U73: 0 | V73: 0 | W73: 0 | X73: 3 | Y73: 5
N74: LP2-C2 | O74: Participación Ciudadana en la Gestión | S74: LP2-C2 | T74: =+VLOOKUP($S74&T$68,'td1'!$LY$77:$MK$121,'información graf'!$G$2,FALSE) -> 0 | U74: =+VLOOKUP($S74&U$68,'td1'!$LY$77:$MK$121,'información graf'!$G$2,FALSE) -> 0 | V74: =+VLOOKUP($S74&V$68,'td1'!$LY$77:$MK$121,'información graf'!$G$2,FALSE) -> 0 | W74: =+VLOOKUP($S74&W$68,'td1'!$LY$77:$MK$121,'información graf'!$G$2,FALSE) -> 0 | X74: =+VLOOKUP($S74&X$68,'td1'!$LY$77:$MK$121,'información graf'!$G$2,FALSE) -> 3 | Y74: =+SUM(T74:X74) -> 3
N75: LP2-C3 | O75: Rendición de Cuentas a la ciudadania | S75: LP2-C3 | T75: =+VLOOKUP($S75&T$68,'td1'!$LY$77:$MK$121,'información graf'!$G$2,FALSE) -> 1 | U75: =+VLOOKUP($S75&U$68,'td1'!$LY$77:$MK$121,'información graf'!$G$2,FALSE) -> 0 | V75: =+VLOOKUP($S75&V$68,'td1'!$LY$77:$MK$121,'información graf'!$G$2,FALSE) -> 0 | W75: =+VLOOKUP($S75&W$68,'td1'!$LY$77:$MK$121,'información graf'!$G$2,FALSE) -> 0 | X75: =+VLOOKUP($S75&X$68,'td1'!$LY$77:$MK$121,'información graf'!$G$2,FALSE) -> 0 | Y75: =+SUM(T75:X75) -> 1
N76: LP2-C4 | O76: Servicio al Ciudadano | S76: LP2-C4 | T76: =+VLOOKUP($S76&T$68,'td1'!$LY$77:$MK$121,'información graf'!$G$2,FALSE) -> 1 | U76: =+VLOOKUP($S76&U$68,'td1'!$LY$77:$MK$121,'información graf'!$G$2,FALSE) -> 0 | V76: =+VLOOKUP($S76&V$68,'td1'!$LY$77:$MK$121,'información graf'!$G$2,FALSE) -> 0 | W76: =+VLOOKUP($S76&W$68,'td1'!$LY$77:$MK$121,'información graf'!$G$2,FALSE) -> 0 | X76: =+VLOOKUP($S76&X$68,'td1'!$LY$77:$MK$121,'información graf'!$G$2,FALSE) -> 0 | Y76: =+SUM(T76:X76) -> 1
M77: LP3 | N77: Gestión del talento humano | S77: LP3 | T77: =T78+T79 -> 1 | U77: 0 | V77: 1 | W77: 0 | X77: 0 | Y77: 2
N78: LP3-C3 | O78: Capacitación | S78: LP3-C3 | T78: =+VLOOKUP($S78&T$68,'td1'!$LY$77:$MK$121,'información graf'!$G$2,FALSE) -> 1 | U78: =+VLOOKUP($S78&U$68,'td1'!$LY$77:$MK$121,'información graf'!$G$2,FALSE) -> 0 | V78: =+VLOOKUP($S78&V$68,'td1'!$LY$77:$MK$121,'información graf'!$G$2,FALSE) -> 0 | W78: =+VLOOKUP($S78&W$68,'td1'!$LY$77:$MK$121,'información graf'!$G$2,FALSE) -> 0 | X78: =+VLOOKUP($S78&X$68,'td1'!$LY$77:$MK$121,'información graf'!$G$2,FALSE) -> 0 | Y78: =+SUM(T78:X78) -> 1
N79: LP3-C4 | O79: Bienestar e Incentivos | S79: LP3-C4 | T79: =+VLOOKUP($S79&T$68,'td1'!$LY$77:$MK$121,'información graf'!$G$2,FALSE) -> 0 | U79: =+VLOOKUP($S79&U$68,'td1'!$LY$77:$MK$121,'información graf'!$G$2,FALSE) -> 0 | V79: =+VLOOKUP($S79&V$68,'td1'!$LY$77:$MK$121,'información graf'!$G$2,FALSE) -> 1 | W79: =+VLOOKUP($S79&W$68,'td1'!$LY$77:$MK$121,'información graf'!$G$2,FALSE) -> 0 | X79: =+VLOOKUP($S79&X$68,'td1'!$LY$77:$MK$121,'información graf'!$G$2,FALSE) -> 0 | Y79: =+SUM(T79:X79) -> 1
M80: LP4 | N80: Eficiencia administrativa | S80: LP4 | T80: =+T81 -> 0 | U80: 0 | V80: 0 | W80: 0 | X80: 1 | Y80: 1
N81: LP4-C6 | O81: Gestión Documental | S81: LP4-C6 | T81: =+VLOOKUP($S81&T$68,'td1'!$LY$77:$MK$121,'información graf'!$G$2,FALSE) -> 0 | U81: =+VLOOKUP($S81&U$68,'td1'!$LY$77:$MK$121,'información graf'!$G$2,FALSE) -> 0 | V81: =+VLOOKUP($S81&V$68,'td1'!$LY$77:$MK$121,'información graf'!$G$2,FALSE) -> 0 | W81: =+VLOOKUP($S81&W$68,'td1'!$LY$77:$MK$121,'información graf'!$G$2,FALSE) -> 0 | X81: =+VLOOKUP($S81&X$68,'td1'!$LY$77:$MK$121,'información graf'!$G$2,FALSE) -> 1 | Y81: =+SUM(T81:X81) -> 1
M82: LP5 | N82: Gestión financiera | S82: LP5 | T82: =T83+T84 -> 2 | U82: 1 | V82: 0 | W82: 0 | X82: 0 | Y82: 3
N83: LP5-C2 | O83: Programa Anual Mensualizado de Caja – PAC | S83: LP5-C2 | T83: =+VLOOKUP($S83&T$68,'td1'!$LY$77:$MK$121,'información graf'!$G$2,FALSE) -> 1 | U83: =+VLOOKUP($S83&U$68,'td1'!$LY$77:$MK$121,'información graf'!$G$2,FALSE) -> 1 | V83: =+VLOOKUP($S83&V$68,'td1'!$LY$77:$MK$121,'información graf'!$G$2,FALSE) -> 0 | W83: =+VLOOKUP($S83&W$68,'td1'!$LY$77:$MK$121,'información graf'!$G$2,FALSE) -> 0 | X83: =+VLOOKUP($S83&X$68,'td1'!$LY$77:$MK$121,'información graf'!$G$2,FALSE) -> 0 | Y83: =+SUM(T83:X83) -> 2
N84: LP5-C4 | O84: Plan Anual de Adquisiciones (PAA) | S84: LP5-C4 | T84: =+VLOOKUP($S84&T$68,'td1'!$LY$77:$MK$121,'información graf'!$G$2,FALSE) -> 1 | U84: =+VLOOKUP($S84&U$68,'td1'!$LY$77:$MK$121,'información graf'!$G$2,FALSE) -> 0 | V84: =+VLOOKUP($S84&V$68,'td1'!$LY$77:$MK$121,'información graf'!$G$2,FALSE) -> 0 | W84: =+VLOOKUP($S84&W$68,'td1'!$LY$77:$MK$121,'información graf'!$G$2,FALSE) -> 0 | X84: =+VLOOKUP($S84&X$68,'td1'!$LY$77:$MK$121,'información graf'!$G$2,FALSE) -> 0 | Y84: =+SUM(T84:X84) -> 1
S85: Total | T85: =+T71+T73+T77+T80+T82 -> 11 | U85: 3 | V85: 1 | W85: 2 | X85: 7 | Y85: 24
T86: =+T85/$Y$85 -> 0.4583333333 | U86: =+U85/$Y$85 -> 0.125 | V86: =+V85/$Y$85 -> 0.04166666667 | W86: =+W85/$Y$85 -> 0.08333333333 | X86: =+X85/$Y$85 -> 0.2916666667
C95: Mapa Estratégico 2015 -2018
U96: Categoria | Y96: Perspectivas
C98: =+"Corte "&$E$6 -> Corte Agosto
AH105: Comportamiento agregado de indicadores
AH106: 7 | AI106: optimo | AJ106: adecuado | AK106: en riesgo | AL106: critico | AM106: NA
AN107: Total
AH108: Servicios | AI108: =+SUM(AI109:AI113) -> 12 | AJ108: =+SUM(AJ109:AJ113) -> 7 | AK108: =+SUM(AK109:AK113) -> 1 | AL108: =+SUM(AL109:AL113) -> 2 | AM108: =+SUM(AM109:AM113) -> 9 | AN108: =+SUM(AI108:AM108) -> 31
AH109: PS1 | AI109: =+VLOOKUP($AH109&AI$106,'td1'!$LI$77:$LU$136,'información graf'!$G$2,FALSE) -> 0 | AJ109: =+VLOOKUP($AH109&AJ$106,'td1'!$LI$77:$LU$136,'información graf'!$G$2,FALSE) -> 2 | AK109: =+VLOOKUP($AH109&AK$106,'td1'!$LI$77:$LU$136,'información graf'!$G$2,FALSE) -> 0 | AL109: =+VLOOKUP($AH109&AL$106,'td1'!$LI$77:$LU$136,'información graf'!$G$2,FALSE) -> 0 | AM109: =+VLOOKUP($AH109&AM$106,'td1'!$LI$77:$LU$136,'información graf'!$G$2,FALSE) -> 6 | AN109: 8
AH110: PS2 | AI110: =+VLOOKUP($AH110&AI$106,'td1'!$LI$77:$LU$136,'información graf'!$G$2,FALSE) -> 2 | AJ110: =+VLOOKUP($AH110&AJ$106,'td1'!$LI$77:$LU$136,'información graf'!$G$2,FALSE) -> 1 | AK110: =+VLOOKUP($AH110&AK$106,'td1'!$LI$77:$LU$136,'información graf'!$G$2,FALSE) -> 0 | AL110: =+VLOOKUP($AH110&AL$106,'td1'!$LI$77:$LU$136,'información graf'!$G$2,FALSE) -> 0 | AM110: =+VLOOKUP($AH110&AM$106,'td1'!$LI$77:$LU$136,'información graf'!$G$2,FALSE) -> 0 | AN110: 3
AH111: PS3 | AI111: =+VLOOKUP($AH111&AI$106,'td1'!$LI$77:$LU$136,'información graf'!$G$2,FALSE) -> 1 | AJ111: =+VLOOKUP($AH111&AJ$106,'td1'!$LI$77:$LU$136,'información graf'!$G$2,FALSE) -> 1 | AK111: =+VLOOKUP($AH111&AK$106,'td1'!$LI$77:$LU$136,'información graf'!$G$2,FALSE) -> 0 | AL111: =+VLOOKUP($AH111&AL$106,'td1'!$LI$77:$LU$136,'información graf'!$G$2,FALSE) -> 0 | AM111: =+VLOOKUP($AH111&AM$106,'td1'!$LI$77:$LU$136,'información graf'!$G$2,FALSE) -> 0 | AN111: 2
AH112: PS4 | AI112: =+VLOOKUP($AH112&AI$106,'td1'!$LI$77:$LU$136,'información graf'!$G$2,FALSE) -> 0 | AJ112: =+VLOOKUP($AH112&AJ$106,'td1'!$LI$77:$LU$136,'información graf'!$G$2,FALSE) -> 0 | AK112: =+VLOOKUP($AH112&AK$106,'td1'!$LI$77:$LU$136,'información graf'!$G$2,FALSE) -> 0 | AL112: =+VLOOKUP($AH112&AL$106,'td1'!$LI$77:$LU$136,'información graf'!$G$2,FALSE) -> 2 | AM112: =+VLOOKUP($AH112&AM$106,'td1'!$LI$77:$LU$136,'información graf'!$G$2,FALSE) -> 1 | AN112: 3
AH113: PS5 | AI113: =+VLOOKUP($AH113&AI$106,'td1'!$LI$77:$LU$136,'información graf'!$G$2,FALSE) -> 9 | AJ113: =+VLOOKUP($AH113&AJ$106,'td1'!$LI$77:$LU$136,'información graf'!$G$2,FALSE) -> 3 | AK113: =+VLOOKUP($AH113&AK$106,'td1'!$LI$77:$LU$136,'información graf'!$G$2,FALSE) -> 1 | AL113: =+VLOOKUP($AH113&AL$106,'td1'!$LI$77:$LU$136,'información graf'!$G$2,FALSE) -> 0 | AM113: =+VLOOKUP($AH113&AM$106,'td1'!$LI$77:$LU$136,'información graf'!$G$2,FALSE) -> 2 | AN113: 15
AH114: Procesos | AI114: =+SUM(AI115:AI118) -> 6 | AJ114: =+SUM(AJ115:AJ118) -> 2 | AK114: =+SUM(AK115:AK118) -> 1 | AL114: =+SUM(AL115:AL118) -> 1 | AM114: =+SUM(AM115:AM118) -> 8 | AN114: 18
T115: =+"Corte "&$E$6 -> Corte Agosto | AH115: PP1 | AI115: =+VLOOKUP($AH115&AI$106,'td1'!$LI$77:$LU$136,'información graf'!$G$2,FALSE) -> 2 | AJ115: =+VLOOKUP($AH115&AJ$106,'td1'!$LI$77:$LU$136,'información graf'!$G$2,FALSE) -> 1 | AK115: =+VLOOKUP($AH115&AK$106,'td1'!$LI$77:$LU$136,'información graf'!$G$2,FALSE) -> 0 | AL115: =+VLOOKUP($AH115&AL$106,'td1'!$LI$77:$LU$136,'información graf'!$G$2,FALSE) -> 0 | AM115: =+VLOOKUP($AH115&AM$106,'td1'!$LI$77:$LU$136,'información graf'!$G$2,FALSE) -> 6 | AN115: 9
AH116: PP2 | AI116: =+VLOOKUP($AH116&AI$106,'td1'!$LI$77:$LU$136,'información graf'!$G$2,FALSE) -> 2 | AJ116: =+VLOOKUP($AH116&AJ$106,'td1'!$LI$77:$LU$136,'información graf'!$G$2,FALSE) -> 1 | AK116: =+VLOOKUP($AH116&AK$106,'td1'!$LI$77:$LU$136,'información graf'!$G$2,FALSE) -> 1 | AL116: =+VLOOKUP($AH116&AL$106,'td1'!$LI$77:$LU$136,'información graf'!$G$2,FALSE) -> 0 | AM116: =+VLOOKUP($AH116&AM$106,'td1'!$LI$77:$LU$136,'información graf'!$G$2,FALSE) -> 0 | AN116: 4
Q117: PS | R117: Perspectiva de Servicios | AH117: PP3 | AI117: =+VLOOKUP($AH117&AI$106,'td1'!$LI$77:$LU$136,'información graf'!$G$2,FALSE) -> 2 | AJ117: =+VLOOKUP($AH117&AJ$106,'td1'!$LI$77:$LU$136,'información graf'!$G$2,FALSE) -> 0 | AK117: =+VLOOKUP($AH117&AK$106,'td1'!$LI$77:$LU$136,'información graf'!$G$2,FALSE) -> 0 | AL117: =+VLOOKUP($AH117&AL$106,'td1'!$LI$77:$LU$136,'información graf'!$G$2,FALSE) -> 1 | AM117: =+VLOOKUP($AH117&AM$106,'td1'!$LI$77:$LU$136,'información graf'!$G$2,FALSE) -> 0 | AN117: 3
R118: PS1 | S118: Ampliar cobertura y mejorar calidad en la atención integral de la Primera Infancia | AH118: PP4 | AI118: =+VLOOKUP($AH118&AI$106,'td1'!$LI$77:$LU$136,'información graf'!$G$2,FALSE) -> 0 | AJ118: =+VLOOKUP($AH118&AJ$106,'td1'!$LI$77:$LU$136,'información graf'!$G$2,FALSE) -> 0 | AK118: =+VLOOKUP($AH118&AK$106,'td1'!$LI$77:$LU$136,'información graf'!$G$2,FALSE) -> 0 | AL118: =+VLOOKUP($AH118&AL$106,'td1'!$LI$77:$LU$136,'información graf'!$G$2,FALSE) -> 0 | AM118: =+VLOOKUP($AH118&AM$106,'td1'!$LI$77:$LU$136,'información graf'!$G$2,FALSE) -> 2 | AN118: 2
R119: PS2 | S119: Promover los derechos de los niños, niñas y adolescentes y prevenir los riesgos o amenazas de su vulneración | AH119: Aliados y Sociedad | AI119: =+SUM(AI120:AI121) -> 8 | AJ119: =+SUM(AJ120:AJ121) -> 0 | AK119: =+SUM(AK120:AK121) -> 0 | AL119: =+SUM(AL120:AL121) -> 0 | AM119: =+SUM(AM120:AM121) -> 5 | AN119: 13
R120: PS3 | S120: Promover el desarrollo, fortalecer los vinculos de cuidado mutuo y prevenir violencia intrafamiliar y de género en las familias y las comunidades | AH120: PAS1 | AI120: =+VLOOKUP($AH120&AI$106,'td1'!$LI$77:$LU$136,'información graf'!$G$2,FALSE) -> 0 | AJ120: =+VLOOKUP($AH120&AJ$106,'td1'!$LI$77:$LU$136,'información graf'!$G$2,FALSE) -> 0 | AK120: =+VLOOKUP($AH120&AK$106,'td1'!$LI$77:$LU$136,'información graf'!$G$2,FALSE) -> 0 | AL120: =+VLOOKUP($AH120&AL$106,'td1'!$LI$77:$LU$136,'información graf'!$G$2,FALSE) -> 0 | AM120: =+VLOOKUP($AH120&AM$106,'td1'!$LI$77:$LU$136,'información graf'!$G$2,FALSE) -> 5 | AN120: 5
R121: PS4 | S121: Promover la seguridad alimentaria y Nutricional | AH121: PAS2 | AI121: =+VLOOKUP($AH121&AI$106,'td1'!$LI$77:$LU$136,'información graf'!$G$2,FALSE) -> 8 | AJ121: =+VLOOKUP($AH121&AJ$106,'td1'!$LI$77:$LU$136,'información graf'!$G$2,FALSE) -> 0 | AK121: =+VLOOKUP($AH121&AK$106,'td1'!$LI$77:$LU$136,'información graf'!$G$2,FALSE) -> 0 | AL121: =+VLOOKUP($AH121&AL$106,'td1'!$LI$77:$LU$136,'información graf'!$G$2,FALSE) -> 0 | AM121: =+VLOOKUP($AH121&AM$106,'td1'!$LI$77:$LU$136,'información graf'!$G$2,FALSE) -> 0 | AN121: 8
R122: PS5 | S122: Garantizar la Protección integral de los niños, niñas y adolescentes | AH122: Financiera | AI122: =+AI123 -> 4 | AJ122: =+AJ123 -> 4 | AK122: =+AK123 -> 0 | AL122: =+AL123 -> 0 | AM122: =+AM123 -> 0 | AN122: 8
Q123: PP | R123: Perspectiva de Procesos | AH123: PF | AI123: =+VLOOKUP($AH123&AI$106,'td1'!$LI$77:$LU$136,'información graf'!$G$2,FALSE) -> 4 | AJ123: =+VLOOKUP($AH123&AJ$106,'td1'!$LI$77:$LU$136,'información graf'!$G$2,FALSE) -> 4 | AK123: =+VLOOKUP($AH123&AK$106,'td1'!$LI$77:$LU$136,'información graf'!$G$2,FALSE) -> 0 | AL123: =+VLOOKUP($AH123&AL$106,'td1'!$LI$77:$LU$136,'información graf'!$G$2,FALSE) -> 0 | AM123: =+VLOOKUP($AH123&AM$106,'td1'!$LI$77:$LU$136,'información graf'!$G$2,FALSE) -> 0 | AN123: 8
R124: PP1 | S124: Impulsar una cultura de la evaluación y gestión de la calidad para el mejoramiento continuo | AH124: Total | AI124: =+AI108+AI114+AI119+AI122 -> 30 | AJ124: 13 | AK124: 2 | AL124: 3 | AM124: 22 | AN124: 70
R125: PP2 | S125: Promover condiciones laborales que hagan del ICBF el mejor lugar para trabajar | AI125: =+AI124/$AN$124 -> 0.4285714286 | AJ125: =+AJ124/$AN$124 -> 0.1857142857 | AK125: =+AK124/$AN$124 -> 0.02857142857 | AL125: =+AL124/$AN$124 -> 0.04285714286 | AM125: =+AM124/$AN$124 -> 0.3142857143
R126: PP3 | S126: Reducir los impactos ambientales generados por nuestra actividad | AH126: =+"Corte "&$E$6 -> Corte Agosto
R127: PP4 | S127: Gestionar el conocimiento institucional, con sistemas de información integrados y seguros
Q128: PAS | R128: Perspectiva de Aliados y sociedad
R129: PAS1 | S129: Articular las instancias del Instituto Colombiano de Bienestar Familiar y del Sistema Nacional de Bienestar Familiar
R130: PAS2 | S130: Trabajar con transparencia y buen Gobierno para promover el control social y la participación ciudadana
Q131: PF | R131: Perspectiva Financiera
R132: PF | S132: Hacer un uso eficiente de los recursos de los niños, niñas y adolescentes, porque son sagrados
C139: =+"Corte "&$E$6 -> Corte Agosto
T143: Procesos | AA143: Comportamiento agregado de indicadores
AA144: 7 | AB144: optimo | AC144: adecuado | AD144: en riesgo | AE144: critico | AF144: NA
AG145: Total
M146: Misionales | Z146: Misionales | AB146: =+AB147+AB148 -> 11 | AC146: =+AC147+AC148 -> 6 | AD146: =+AD147+AD148 -> 1 | AE146: =+AE147+AE148 -> 2 | AF146: =+AF147+AF148 -> 9 | AG146: =+SUM(AB146:AF146) -> 29
M147: PM1 | N147: Promoción y prevención | AA147: PM1 | AB147: =+VLOOKUP($AA147&AB$144,'td1'!$KS$77:$LE$151,'información graf'!$G$2,FALSE) -> 4 | AC147: =+VLOOKUP($AA147&AC$144,'td1'!$KS$77:$LE$151,'información graf'!$G$2,FALSE) -> 3 | AD147: =+VLOOKUP($AA147&AD$144,'td1'!$KS$77:$LE$151,'información graf'!$G$2,FALSE) -> 0 | AE147: =+VLOOKUP($AA147&AE$144,'td1'!$KS$77:$LE$151,'información graf'!$G$2,FALSE) -> 2 | AF147: =+VLOOKUP($AA147&AF$144,'td1'!$KS$77:$LE$151,'información graf'!$G$2,FALSE) -> 7 | AG147: 16
M148: PM2 | N148: Protección | AA148: PM2 | AB148: =+VLOOKUP($AA148&AB$144,'td1'!$KS$77:$LE$151,'información graf'!$G$2,FALSE) -> 7 | AC148: =+VLOOKUP($AA148&AC$144,'td1'!$KS$77:$LE$151,'información graf'!$G$2,FALSE) -> 3 | AD148: =+VLOOKUP($AA148&AD$144,'td1'!$KS$77:$LE$151,'información graf'!$G$2,FALSE) -> 1 | AE148: =+VLOOKUP($AA148&AE$144,'td1'!$KS$77:$LE$151,'información graf'!$G$2,FALSE) -> 0 | AF148: =+VLOOKUP($AA148&AF$144,'td1'!$KS$77:$LE$151,'información graf'!$G$2,FALSE) -> 2 | AG148: 13
M149: Apoyo | Z149: Apoyo | AB149: =+AB150+AB151+AB152+AB153+AB154 -> 9 | AC149: =+AC150+AC151+AC152+AC153+AC154 -> 5 | AD149: =+AD150+AD151+AD152+AD153+AD154 -> 1 | AE149: =+AE150+AE151+AE152+AE153+AE154 -> 1 | AF149: =+AF150+AF151+AF152+AF153+AF154 -> 4 | AG149: 20
M150: PA1 | N150: Gestión financiera | AA150: PA1 | AB150: =+VLOOKUP($AA150&AB$144,'td1'!$KS$77:$LE$151,'información graf'!$G$2,FALSE) -> 2 | AC150: =+VLOOKUP($AA150&AC$144,'td1'!$KS$77:$LE$151,'información graf'!$G$2,FALSE) -> 3 | AD150: =+VLOOKUP($AA150&AD$144,'td1'!$KS$77:$LE$151,'información graf'!$G$2,FALSE) -> 0 | AE150: =+VLOOKUP($AA150&AE$144,'td1'!$KS$77:$LE$151,'información graf'!$G$2,FALSE) -> 0 | AF150: =+VLOOKUP($AA150&AF$144,'td1'!$KS$77:$LE$151,'información graf'!$G$2,FALSE) -> 0 | AG150: 5
M151: PA2 | N151: Adquisición de bienes y servicios | AA151: PA2 | AB151: =+VLOOKUP($AA151&AB$144,'td1'!$KS$77:$LE$151,'información graf'!$G$2,FALSE) -> 2 | AC151: =+VLOOKUP($AA151&AC$144,'td1'!$KS$77:$LE$151,'información graf'!$G$2,FALSE) -> 1 | AD151: =+VLOOKUP($AA151&AD$144,'td1'!$KS$77:$LE$151,'información graf'!$G$2,FALSE) -> 0 | AE151: =+VLOOKUP($AA151&AE$144,'td1'!$KS$77:$LE$151,'información graf'!$G$2,FALSE) -> 0 | AF151: =+VLOOKUP($AA151&AF$144,'td1'!$KS$77:$LE$151,'información graf'!$G$2,FALSE) -> 0 | AG151: 3
M152: PA3 | N152: Servicios administrativos | AA152: PA3 | AB152: =+VLOOKUP($AA152&AB$144,'td1'!$KS$77:$LE$151,'información graf'!$G$2,FALSE) -> 3 | AC152: =+VLOOKUP($AA152&AC$144,'td1'!$KS$77:$LE$151,'información graf'!$G$2,FALSE) -> 0 | AD152: =+VLOOKUP($AA152&AD$144,'td1'!$KS$77:$LE$151,'información graf'!$G$2,FALSE) -> 0 | AE152: =+VLOOKUP($AA152&AE$144,'td1'!$KS$77:$LE$151,'información graf'!$G$2,FALSE) -> 1 | AF152: =+VLOOKUP($AA152&AF$144,'td1'!$KS$77:$LE$151,'información graf'!$G$2,FALSE) -> 2 | AG152: 6
M153: PA4 | N153: Gestión de talento humano | AA153: PA4 | AB153: =+VLOOKUP($AA153&AB$144,'td1'!$KS$77:$LE$151,'información graf'!$G$2,FALSE) -> 2 | AC153: =+VLOOKUP($AA153&AC$144,'td1'!$KS$77:$LE$151,'información graf'!$G$2,FALSE) -> 1 | AD153: =+VLOOKUP($AA153&AD$144,'td1'!$KS$77:$LE$151,'información graf'!$G$2,FALSE) -> 1 | AE153: =+VLOOKUP($AA153&AE$144,'td1'!$KS$77:$LE$151,'información graf'!$G$2,FALSE) -> 0 | AF153: =+VLOOKUP($AA153&AF$144,'td1'!$KS$77:$LE$151,'información graf'!$G$2,FALSE) -> 0 | AG153: 4
M154: PA5 | N154: Gestión jurídica | AA154: PA5 | AB154: =+VLOOKUP($AA154&AB$144,'td1'!$KS$77:$LE$151,'información graf'!$G$2,FALSE) -> 0 | AC154: =+VLOOKUP($AA154&AC$144,'td1'!$KS$77:$LE$151,'información graf'!$G$2,FALSE) -> 0 | AD154: =+VLOOKUP($AA154&AD$144,'td1'!$KS$77:$LE$151,'información graf'!$G$2,FALSE) -> 0 | AE154: =+VLOOKUP($AA154&AE$144,'td1'!$KS$77:$LE$151,'información graf'!$G$2,FALSE) -> 0 | AF154: =+VLOOKUP($AA154&AF$144,'td1'!$KS$77:$LE$151,'información graf'!$G$2,FALSE) -> 2 | AG154: 2
M155: Estratégicos | Z155: Estratégicos | AB155: =+AB156 -> 0 | AC155: 0 | AD155: 0 | AE155: 0 | AF155: 3 | AG155: 3
M156: PE1 | N156: Coordinación y articulación del SNBF y agentes | AA156: PE1 | AB156: =+VLOOKUP($AA156&AB$144,'td1'!$KS$77:$LE$151,'información graf'!$G$2,FALSE) -> 0 | AC156: =+VLOOKUP($AA156&AC$144,'td1'!$KS$77:$LE$151,'información graf'!$G$2,FALSE) -> 0 | AD156: =+VLOOKUP($AA156&AD$144,'td1'!$KS$77:$LE$151,'información graf'!$G$2,FALSE) -> 0 | AE156: =+VLOOKUP($AA156&AE$144,'td1'!$KS$77:$LE$151,'información graf'!$G$2,FALSE) -> 0 | AF156: =+VLOOKUP($AA156&AF$144,'td1'!$KS$77:$LE$151,'información graf'!$G$2,FALSE) -> 3 | AG156: =+SUM(AB156:AF156) -> 3
M157: PE2 | N157: Direccionamiento Estratégico | Z157: Evaluación | AB157: =+AB158+AB159 -> 0 | AC157: =+AC158+AC159 -> 1 | AD157: =+AD158+AD159 -> 0 | AE157: =+AE158+AE159 -> 0 | AF157: =+AF158+AF159 -> 1 | AG157: 2
M158: PE3 | N158: Comunicación estratégica | AA158: PEV1 | AB158: =+VLOOKUP($AA158&AB$144,'td1'!$KS$77:$LE$151,'información graf'!$G$2,FALSE) -> 0 | AC158: =+VLOOKUP($AA158&AC$144,'td1'!$KS$77:$LE$151,'información graf'!$G$2,FALSE) -> 1 | AD158: =+VLOOKUP($AA158&AD$144,'td1'!$KS$77:$LE$151,'información graf'!$G$2,FALSE) -> 0 | AE158: =+VLOOKUP($AA158&AE$144,'td1'!$KS$77:$LE$151,'información graf'!$G$2,FALSE) -> 0 | AF158: =+VLOOKUP($AA158&AF$144,'td1'!$KS$77:$LE$151,'información graf'!$G$2,FALSE) -> 0 | AG158: 1
M159: Evaluación | AA159: PEV3 | AB159: =+VLOOKUP($AA159&AB$144,'td1'!$KS$77:$LE$151,'información graf'!$G$2,FALSE) -> 0 | AC159: =+VLOOKUP($AA159&AC$144,'td1'!$KS$77:$LE$151,'información graf'!$G$2,FALSE) -> 0 | AD159: =+VLOOKUP($AA159&AD$144,'td1'!$KS$77:$LE$151,'información graf'!$G$2,FALSE) -> 0 | AE159: =+VLOOKUP($AA159&AE$144,'td1'!$KS$77:$LE$151,'información graf'!$G$2,FALSE) -> 0 | AF159: =+VLOOKUP($AA159&AF$144,'td1'!$KS$77:$LE$151,'información graf'!$G$2,FALSE) -> 1 | AG159: 1
M160: PEV1 | N160: Inspección vigilancia y control a operadores | Z160: Transversales | AB160: =+AB161+AB162+AB163 -> 10 | AC160: =+AC161+AC162+AC163 -> 1 | AD160: =+AD161+AD162+AD163 -> 0 | AE160: =+AE161+AE162+AE163 -> 0 | AF160: =+AF161+AF162+AF163 -> 5 | AG160: 16
M161: PEV3 | N161: Evaluación independiente | AA161: PT1 | AB161: =+VLOOKUP($AA161&AB$144,'td1'!$KS$77:$LE$151,'información graf'!$G$2,FALSE) -> 8 | AC161: =+VLOOKUP($AA161&AC$144,'td1'!$KS$77:$LE$151,'información graf'!$G$2,FALSE) -> 0 | AD161: =+VLOOKUP($AA161&AD$144,'td1'!$KS$77:$LE$151,'información graf'!$G$2,FALSE) -> 0 | AE161: =+VLOOKUP($AA161&AE$144,'td1'!$KS$77:$LE$151,'información graf'!$G$2,FALSE) -> 0 | AF161: =+VLOOKUP($AA161&AF$144,'td1'!$KS$77:$LE$151,'información graf'!$G$2,FALSE) -> 0 | AG161: 8
M162: Transversales | AA162: PT2 | AB162: =+VLOOKUP($AA162&AB$144,'td1'!$KS$77:$LE$151,'información graf'!$G$2,FALSE) -> 2 | AC162: =+VLOOKUP($AA162&AC$144,'td1'!$KS$77:$LE$151,'información graf'!$G$2,FALSE) -> 1 | AD162: =+VLOOKUP($AA162&AD$144,'td1'!$KS$77:$LE$151,'información graf'!$G$2,FALSE) -> 0 | AE162: =+VLOOKUP($AA162&AE$144,'td1'!$KS$77:$LE$151,'información graf'!$G$2,FALSE) -> 0 | AF162: =+VLOOKUP($AA162&AF$144,'td1'!$KS$77:$LE$151,'información graf'!$G$2,FALSE) -> 3 | AG162: 6
M163: PT1 | N163: Relación con el ciudadano | AA163: PT3 | AB163: =+VLOOKUP($AA163&AB$144,'td1'!$KS$77:$LE$151,'información graf'!$G$2,FALSE) -> 0 | AC163: =+VLOOKUP($AA163&AC$144,'td1'!$KS$77:$LE$151,'información graf'!$G$2,FALSE) -> 0 | AD163: =+VLOOKUP($AA163&AD$144,'td1'!$KS$77:$LE$151,'información graf'!$G$2,FALSE) -> 0 | AE163: =+VLOOKUP($AA163&AE$144,'td1'!$KS$77:$LE$151,'información graf'!$G$2,FALSE) -> 0 | AF163: =+VLOOKUP($AA163&AF$144,'td1'!$KS$77:$LE$151,'información graf'!$G$2,FALSE) -> 2 | AG163: 2
M164: PT2 | N164: Mejora e Innovación | Z164: Total | AB164: =+AB146+AB149+AB155+AB157+AB160 -> 30 | AC164: =+AC146+AC149+AC155+AC157+AC160 -> 13 | AD164: =+AD146+AD149+AD155+AD157+AD160 -> 2 | AE164: =+AE146+AE149+AE155+AE157+AE160 -> 3 | AF164: =+AF146+AF149+AF155+AF157+AF160 -> 22 | AG164: 70
M165: PT3 | N165: Gestión de la tecnología e información | AB165: =+AB164/$AG$164 -> 0.4285714286 | AC165: =+AC164/$AG$164 -> 0.1857142857 | AD165: =+AD164/$AG$164 -> 0.02857142857 | AE165: =+AE164/$AG$164 -> 0.04285714286 | AF165: =+AF164/$AG$164 -> 0.3142857143
Z166: =+"Corte "&$E$6 -> Corte Agosto
C176: Áreas del CIBF
P179: Áreas | U179: Comportamiento agregado de indicadores
P180: 32 | V180: 7 | W180: optimo | X180: adecuado | Y180: en riesgo | Z180: critico | AA180: NA
AB181: Total
V182: Misionales | W182: =+W183+W184+W185+W186+W187 -> 12 | X182: =+X183+X184+X185+X186+X187 -> 7 | Y182: =+Y183+Y184+Y185+Y186+Y187 -> 1 | Z182: =+Z183+Z184+Z185+Z186+Z187 -> 2 | AA182: =+AA183+AA184+AA185+AA186+AA187 -> 9 | AB182: =+SUM(W182:AA182) -> 31
U183: Primera Infancia | V183: M1 | W183: =+VLOOKUP($V183&W$180,'td1'!$NE$77:$NQ$186,'información graf'!$G$2,FALSE) -> 0 | X183: =+VLOOKUP($V183&X$180,'td1'!$NE$77:$NQ$186,'información graf'!$G$2,FALSE) -> 2 | Y183: =+VLOOKUP($V183&Y$180,'td1'!$NE$77:$NQ$186,'información graf'!$G$2,FALSE) -> 0 | Z183: =+VLOOKUP($V183&Z$180,'td1'!$NE$77:$NQ$186,'información graf'!$G$2,FALSE) -> 0 | AA183: =+VLOOKUP($V183&AA$180,'td1'!$NE$77:$NQ$186,'información graf'!$G$2,FALSE) -> 6 | AB183: 8
U184: Niñez | V184: M2 | W184: =+VLOOKUP($V184&W$180,'td1'!$NE$77:$NQ$186,'información graf'!$G$2,FALSE) -> 4 | X184: =+VLOOKUP($V184&X$180,'td1'!$NE$77:$NQ$186,'información graf'!$G$2,FALSE) -> 1 | Y184: =+VLOOKUP($V184&Y$180,'td1'!$NE$77:$NQ$186,'información graf'!$G$2,FALSE) -> 0 | Z184: =+VLOOKUP($V184&Z$180,'td1'!$NE$77:$NQ$186,'información graf'!$G$2,FALSE) -> 0 | AA184: =+VLOOKUP($V184&AA$180,'td1'!$NE$77:$NQ$186,'información graf'!$G$2,FALSE) -> 0 | AB184: 5
U185: Familias | V185: M3 | W185: =+VLOOKUP($V185&W$180,'td1'!$NE$77:$NQ$186,'información graf'!$G$2,FALSE) -> 1 | X185: =+VLOOKUP($V185&X$180,'td1'!$NE$77:$NQ$186,'información graf'!$G$2,FALSE) -> 1 | Y185: =+VLOOKUP($V185&Y$180,'td1'!$NE$77:$NQ$186,'información graf'!$G$2,FALSE) -> 0 | Z185: =+VLOOKUP($V185&Z$180,'td1'!$NE$77:$NQ$186,'información graf'!$G$2,FALSE) -> 0 | AA185: =+VLOOKUP($V185&AA$180,'td1'!$NE$77:$NQ$186,'información graf'!$G$2,FALSE) -> 0 | AB185: 2
U186: Nutrición | V186: M4 | W186: =+VLOOKUP($V186&W$180,'td1'!$NE$77:$NQ$186,'información graf'!$G$2,FALSE) -> 0 | X186: =+VLOOKUP($V186&X$180,'td1'!$NE$77:$NQ$186,'información graf'!$G$2,FALSE) -> 0 | Y186: =+VLOOKUP($V186&Y$180,'td1'!$NE$77:$NQ$186,'información graf'!$G$2,FALSE) -> 0 | Z186: =+VLOOKUP($V186&Z$180,'td1'!$NE$77:$NQ$186,'información graf'!$G$2,FALSE) -> 2 | AA186: =+VLOOKUP($V186&AA$180,'td1'!$NE$77:$NQ$186,'información graf'!$G$2,FALSE) -> 1 | AB186: 3
U187: Protección | V187: M5 | W187: =+VLOOKUP($V187&W$180,'td1'!$NE$77:$NQ$186,'información graf'!$G$2,FALSE) -> 7 | X187: =+VLOOKUP($V187&X$180,'td1'!$NE$77:$NQ$186,'información graf'!$G$2,FALSE) -> 3 | Y187: =+VLOOKUP($V187&Y$180,'td1'!$NE$77:$NQ$186,'información graf'!$G$2,FALSE) -> 1 | Z187: =+VLOOKUP($V187&Z$180,'td1'!$NE$77:$NQ$186,'información graf'!$G$2,FALSE) -> 0 | AA187: =+VLOOKUP($V187&AA$180,'td1'!$NE$77:$NQ$186,'información graf'!$G$2,FALSE) -> 2 | AB187: 13
V188: Apoyo | W188: =+SUM(W189:W199) -> 18 | X188: 6 | Y188: 1 | Z188: 1 | AA188: 13 | AB188: 39
U189: Gestión Humana | V189: A1 | W189: =+VLOOKUP($V189&W$180,'td1'!$NE$77:$NQ$156,'información graf'!$G$2,FALSE) -> 2 | X189: =+VLOOKUP($V189&X$180,'td1'!$NE$77:$NQ$156,'información graf'!$G$2,FALSE) -> 1 | Y189: =+VLOOKUP($V189&Y$180,'td1'!$NE$77:$NQ$156,'información graf'!$G$2,FALSE) -> 1 | Z189: =+VLOOKUP($V189&Z$180,'td1'!$NE$77:$NQ$156,'información graf'!$G$2,FALSE) -> 0 | AA189: =+VLOOKUP($V189&AA$180,'td1'!$NE$77:$NQ$156,'información graf'!$G$2,FALSE) -> 0 | AB189: =+SUM(W189:AA189) -> 4
U190: Financiera | V190: A2 | W190: =+VLOOKUP($V190&W$180,'td1'!$NE$77:$NQ$156,'información graf'!$G$2,FALSE) -> 2 | X190: =+VLOOKUP($V190&X$180,'td1'!$NE$77:$NQ$156,'información graf'!$G$2,FALSE) -> 3 | Y190: =+VLOOKUP($V190&Y$180,'td1'!$NE$77:$NQ$156,'información graf'!$G$2,FALSE) -> 0 | Z190: =+VLOOKUP($V190&Z$180,'td1'!$NE$77:$NQ$156,'información graf'!$G$2,FALSE) -> 0 | AA190: =+VLOOKUP($V190&AA$180,'td1'!$NE$77:$NQ$156,'información graf'!$G$2,FALSE) -> 0 | AB190: 5
U191: Abastecimiento | V191: A4 | W191: =+VLOOKUP($V191&W$180,'td1'!$NE$77:$NQ$156,'información graf'!$G$2,FALSE) -> 1 | X191: =+VLOOKUP($V191&X$180,'td1'!$NE$77:$NQ$156,'información graf'!$G$2,FALSE) -> 0 | Y191: =+VLOOKUP($V191&Y$180,'td1'!$NE$77:$NQ$156,'información graf'!$G$2,FALSE) -> 0 | Z191: =+VLOOKUP($V191&Z$180,'td1'!$NE$77:$NQ$156,'información graf'!$G$2,FALSE) -> 0 | AA191: =+VLOOKUP($V191&AA$180,'td1'!$NE$77:$NQ$156,'información graf'!$G$2,FALSE) -> 0 | AB191: 1
U192: Administrativa | V192: A5 | W192: =+VLOOKUP($V192&W$180,'td1'!$NE$77:$NQ$156,'información graf'!$G$2,FALSE) -> 3 | X192: =+VLOOKUP($V192&X$180,'td1'!$NE$77:$NQ$156,'información graf'!$G$2,FALSE) -> 0 | Y192: =+VLOOKUP($V192&Y$180,'td1'!$NE$77:$NQ$156,'información graf'!$G$2,FALSE) -> 0 | Z192: =+VLOOKUP($V192&Z$180,'td1'!$NE$77:$NQ$156,'información graf'!$G$2,FALSE) -> 1 | AA192: =+VLOOKUP($V192&AA$180,'td1'!$NE$77:$NQ$156,'información graf'!$G$2,FALSE) -> 2 | AB192: 6
U193: Contratación | V193: A6 | W193: =+VLOOKUP($V193&W$180,'td1'!$NE$77:$NQ$156,'información graf'!$G$2,FALSE) -> 1 | X193: =+VLOOKUP($V193&X$180,'td1'!$NE$77:$NQ$156,'información graf'!$G$2,FALSE) -> 1 | Y193: =+VLOOKUP($V193&Y$180,'td1'!$NE$77:$NQ$156,'información graf'!$G$2,FALSE) -> 0 | Z193: =+VLOOKUP($V193&Z$180,'td1'!$NE$77:$NQ$156,'información graf'!$G$2,FALSE) -> 0 | AA193: =+VLOOKUP($V193&AA$180,'td1'!$NE$77:$NQ$156,'información graf'!$G$2,FALSE) -> 0 | AB193: 2
U194: Jurídica | V194: A7 | W194: =+VLOOKUP($V194&W$180,'td1'!$NE$77:$NQ$156,'información graf'!$G$2,FALSE) -> 0 | X194: =+VLOOKUP($V194&X$180,'td1'!$NE$77:$NQ$156,'información graf'!$G$2,FALSE) -> 0 | Y194: =+VLOOKUP($V194&Y$180,'td1'!$NE$77:$NQ$156,'información graf'!$G$2,FALSE) -> 0 | Z194: =+VLOOKUP($V194&Z$180,'td1'!$NE$77:$NQ$156,'información graf'!$G$2,FALSE) -> 0 | AA194: =+VLOOKUP($V194&AA$180,'td1'!$NE$77:$NQ$156,'información graf'!$G$2,FALSE) -> 2 | AB194: 2
U195: Servicios y Atención | V195: A10 | W195: =+VLOOKUP($V195&W$180,'td1'!$NE$77:$NQ$156,'información graf'!$G$2,FALSE) -> 7 | X195: =+VLOOKUP($V195&X$180,'td1'!$NE$77:$NQ$156,'información graf'!$G$2,FALSE) -> 0 | Y195: =+VLOOKUP($V195&Y$180,'td1'!$NE$77:$NQ$156,'información graf'!$G$2,FALSE) -> 0 | Z195: =+VLOOKUP($V195&Z$180,'td1'!$NE$77:$NQ$156,'información graf'!$G$2,FALSE) -> 0 | AA195: =+VLOOKUP($V195&AA$180,'td1'!$NE$77:$NQ$156,'información graf'!$G$2,FALSE) -> 0 | AB195: 7
U196: Tecnología | V196: A11 | W196: =+VLOOKUP($V196&W$180,'td1'!$NE$77:$NQ$156,'información graf'!$G$2,FALSE) -> 0 | X196: =+VLOOKUP($V196&X$180,'td1'!$NE$77:$NQ$156,'información graf'!$G$2,FALSE) -> 0 | Y196: =+VLOOKUP($V196&Y$180,'td1'!$NE$77:$NQ$156,'información graf'!$G$2,FALSE) -> 0 | Z196: =+VLOOKUP($V196&Z$180,'td1'!$NE$77:$NQ$156,'información graf'!$G$2,FALSE) -> 0 | AA196: =+VLOOKUP($V196&AA$180,'td1'!$NE$77:$NQ$156,'información graf'!$G$2,FALSE) -> 2 | AB196: 2
U197: Planeación | V197: A13 | W197: =+VLOOKUP($V197&W$180,'td1'!$NE$77:$NQ$156,'información graf'!$G$2,FALSE) -> 2 | X197: =+VLOOKUP($V197&X$180,'td1'!$NE$77:$NQ$156,'información graf'!$G$2,FALSE) -> 1 | Y197: =+VLOOKUP($V197&Y$180,'td1'!$NE$77:$NQ$156,'información graf'!$G$2,FALSE) -> 0 | Z197: =+VLOOKUP($V197&Z$180,'td1'!$NE$77:$NQ$156,'información graf'!$G$2,FALSE) -> 0 | AA197: =+VLOOKUP($V197&AA$180,'td1'!$NE$77:$NQ$156,'información graf'!$G$2,FALSE) -> 3 | AB197: 6
U198: SNBF | V198: A14 | W198: =+VLOOKUP($V198&W$180,'td1'!$NE$77:$NQ$156,'información graf'!$G$2,FALSE) -> 0 | X198: =+VLOOKUP($V198&X$180,'td1'!$NE$77:$NQ$156,'información graf'!$G$2,FALSE) -> 0 | Y198: =+VLOOKUP($V198&Y$180,'td1'!$NE$77:$NQ$156,'información graf'!$G$2,FALSE) -> 0 | Z198: =+VLOOKUP($V198&Z$180,'td1'!$NE$77:$NQ$156,'información graf'!$G$2,FALSE) -> 0 | AA198: =+VLOOKUP($V198&AA$180,'td1'!$NE$77:$NQ$156,'información graf'!$G$2,FALSE) -> 3 | AB198: 3
U199: Control Interno | V199: A15 | W199: =+VLOOKUP($V199&W$180,'td1'!$NE$77:$NQ$156,'información graf'!$G$2,FALSE) -> 0 | X199: =+VLOOKUP($V199&X$180,'td1'!$NE$77:$NQ$156,'información graf'!$G$2,FALSE) -> 0 | Y199: =+VLOOKUP($V199&Y$180,'td1'!$NE$77:$NQ$156,'información graf'!$G$2,FALSE) -> 0 | Z199: =+VLOOKUP($V199&Z$180,'td1'!$NE$77:$NQ$156,'información graf'!$G$2,FALSE) -> 0 | AA199: =+VLOOKUP($V199&AA$180,'td1'!$NE$77:$NQ$156,'información graf'!$G$2,FALSE) -> 1 | AB199: 1
U200: Total | V200: Total | W200: =+W182+W188 -> 30 | X200: 13 | Y200: 2 | Z200: 3 | AA200: 22 | AB200: 70
W201: =+W200/$AB$200 -> 0.4285714286 | X201: =+X200/$AB$200 -> 0.1857142857 | Y201: =+Y200/$AB$200 -> 0.02857142857 | Z201: =+Z200/$AB$200 -> 0.04285714286 | AA201: =+AA200/$AB$200 -> 0.3142857143
U202: =+"Corte "&$E$6 -> Corte Agosto
C214: Sistema Integrado de Gestión - Objetivos SIGE
Q215: SIGE1 | R215: Ampliar cobertura y mejorar calidad en la atención integral a la Primera Infancia.
Q216: SIGE2 | R216: Promover los derechos de los NNA y prevenir los riesgos o amenazas de vulneración de los mismos
Q217: SIGE3 | R217: Fortalecer en las familias y comunidades, capacidades que promuevan su desarrollo, fortalezcan sus vínculos de cuidado mutuo y prevengan la violencia intrafamiliar y de género.
Q219: SIGE4 | R219: Promover la seguridad alimentaria y nutricional en el desarrollo de la primera infancia, los NNA y la familia.
Q220: SIGE5 | R220: Garantizar la protección integral de los NNA en coordinación con las instancias del SNBF.
Q221: SIGE6 | R221: Lograr una adecuada y eficiente gestión institucional a través de la articulación entre servidores, áreas y niveles territoriales; el apoyo administrativo a los procesos misionales, la apropiación de una cultura de la evaluación y la optimización del uso de los recursos
Q223: SIGE7 | R223: Promover condiciones laborales que hagan del ICBF el mejor lugar para trabajar.
Q224: SIGE8 | R224: Reducir los impactos ambientales generados por nuestra actividad.
Q225: SIGE9 | R225: Impulsar una cultura de gestión de la calidad y el mejoramiento continuo.
Q226: SIGE10 | R226: Gestionar el conocimiento institucional, con sistemas de información confiables, integrados y disponibles.
R228: Objetivos SIGE
X230: optimo | Y230: adecuado | Z230: en riesgo | AA230: critico | AB230: NA
W231: Comportamiento agregado de indicadores
AC232: Total
W233: SIGE1 | X233: =+VLOOKUP($W233&X$230,'td1'!$MO$77:$NA$126,'información graf'!$G$2,FALSE) -> 0 | Y233: =+VLOOKUP($W233&Y$230,'td1'!$MO$77:$NA$126,'información graf'!$G$2,FALSE) -> 2 | Z233: =+VLOOKUP($W233&Z$230,'td1'!$MO$77:$NA$126,'información graf'!$G$2,FALSE) -> 0 | AA233: =+VLOOKUP($W233&AA$230,'td1'!$MO$77:$NA$126,'información graf'!$G$2,FALSE) -> 0 | AB233: =+VLOOKUP($W233&AB$230,'td1'!$MO$77:$NA$126,'información graf'!$G$2,FALSE) -> 6 | AC233: =+SUM(X233:AB233) -> 8
W234: SIGE2 | X234: =+VLOOKUP($W234&X$230,'td1'!$MO$77:$NA$126,'información graf'!$G$2,FALSE) -> 4 | Y234: =+VLOOKUP($W234&Y$230,'td1'!$MO$77:$NA$126,'información graf'!$G$2,FALSE) -> 1 | Z234: =+VLOOKUP($W234&Z$230,'td1'!$MO$77:$NA$126,'información graf'!$G$2,FALSE) -> 0 | AA234: =+VLOOKUP($W234&AA$230,'td1'!$MO$77:$NA$126,'información graf'!$G$2,FALSE) -> 0 | AB234: =+VLOOKUP($W234&AB$230,'td1'!$MO$77:$NA$126,'información graf'!$G$2,FALSE) -> 0 | AC234: 5
W235: SIGE3 | X235: =+VLOOKUP($W235&X$230,'td1'!$MO$77:$NA$126,'información graf'!$G$2,FALSE) -> 1 | Y235: =+VLOOKUP($W235&Y$230,'td1'!$MO$77:$NA$126,'información graf'!$G$2,FALSE) -> 1 | Z235: =+VLOOKUP($W235&Z$230,'td1'!$MO$77:$NA$126,'información graf'!$G$2,FALSE) -> 0 | AA235: =+VLOOKUP($W235&AA$230,'td1'!$MO$77:$NA$126,'información graf'!$G$2,FALSE) -> 0 | AB235: =+VLOOKUP($W235&AB$230,'td1'!$MO$77:$NA$126,'información graf'!$G$2,FALSE) -> 0 | AC235: 2
W236: SIGE4 | X236: =+VLOOKUP($W236&X$230,'td1'!$MO$77:$NA$126,'información graf'!$G$2,FALSE) -> 0 | Y236: =+VLOOKUP($W236&Y$230,'td1'!$MO$77:$NA$126,'información graf'!$G$2,FALSE) -> 0 | Z236: =+VLOOKUP($W236&Z$230,'td1'!$MO$77:$NA$126,'información graf'!$G$2,FALSE) -> 0 | AA236: =+VLOOKUP($W236&AA$230,'td1'!$MO$77:$NA$126,'información graf'!$G$2,FALSE) -> 2 | AB236: =+VLOOKUP($W236&AB$230,'td1'!$MO$77:$NA$126,'información graf'!$G$2,FALSE) -> 1 | AC236: 3
W237: SIGE5 | X237: =+VLOOKUP($W237&X$230,'td1'!$MO$77:$NA$126,'información graf'!$G$2,FALSE) -> 7 | Y237: =+VLOOKUP($W237&Y$230,'td1'!$MO$77:$NA$126,'información graf'!$G$2,FALSE) -> 3 | Z237: =+VLOOKUP($W237&Z$230,'td1'!$MO$77:$NA$126,'información graf'!$G$2,FALSE) -> 1 | AA237: =+VLOOKUP($W237&AA$230,'td1'!$MO$77:$NA$126,'información graf'!$G$2,FALSE) -> 0 | AB237: =+VLOOKUP($W237&AB$230,'td1'!$MO$77:$NA$126,'información graf'!$G$2,FALSE) -> 2 | AC237: 13
W238: SIGE6 | X238: =+VLOOKUP($W238&X$230,'td1'!$MO$77:$NA$126,'información graf'!$G$2,FALSE) -> 15 | Y238: =+VLOOKUP($W238&Y$230,'td1'!$MO$77:$NA$126,'información graf'!$G$2,FALSE) -> 4 | Z238: =+VLOOKUP($W238&Z$230,'td1'!$MO$77:$NA$126,'información graf'!$G$2,FALSE) -> 0 | AA238: =+VLOOKUP($W238&AA$230,'td1'!$MO$77:$NA$126,'información graf'!$G$2,FALSE) -> 0 | AB238: =+VLOOKUP($W238&AB$230,'td1'!$MO$77:$NA$126,'información graf'!$G$2,FALSE) -> 9 | AC238: 28
W239: SIGE7 | X239: =+VLOOKUP($W239&X$230,'td1'!$MO$77:$NA$126,'información graf'!$G$2,FALSE) -> 0 | Y239: =+VLOOKUP($W239&Y$230,'td1'!$MO$77:$NA$126,'información graf'!$G$2,FALSE) -> 1 | Z239: =+VLOOKUP($W239&Z$230,'td1'!$MO$77:$NA$126,'información graf'!$G$2,FALSE) -> 1 | AA239: =+VLOOKUP($W239&AA$230,'td1'!$MO$77:$NA$126,'información graf'!$G$2,FALSE) -> 0 | AB239: =+VLOOKUP($W239&AB$230,'td1'!$MO$77:$NA$126,'información graf'!$G$2,FALSE) -> 0 | AC239: 2
W240: SIGE8 | X240: =+VLOOKUP($W240&X$230,'td1'!$MO$77:$NA$126,'información graf'!$G$2,FALSE) -> 2 | Y240: =+VLOOKUP($W240&Y$230,'td1'!$MO$77:$NA$126,'información graf'!$G$2,FALSE) -> 0 | Z240: =+VLOOKUP($W240&Z$230,'td1'!$MO$77:$NA$126,'información graf'!$G$2,FALSE) -> 0 | AA240: =+VLOOKUP($W240&AA$230,'td1'!$MO$77:$NA$126,'información graf'!$G$2,FALSE) -> 1 | AB240: =+VLOOKUP($W240&AB$230,'td1'!$MO$77:$NA$126,'información graf'!$G$2,FALSE) -> 0 | AC240: 3
W241: SIGE9 | X241: =+VLOOKUP($W241&X$230,'td1'!$MO$77:$NA$126,'información graf'!$G$2,FALSE) -> 1 | Y241: =+VLOOKUP($W241&Y$230,'td1'!$MO$77:$NA$126,'información graf'!$G$2,FALSE) -> 1 | Z241: =+VLOOKUP($W241&Z$230,'td1'!$MO$77:$NA$126,'información graf'!$G$2,FALSE) -> 0 | AA241: =+VLOOKUP($W241&AA$230,'td1'!$MO$77:$NA$126,'información graf'!$G$2,FALSE) -> 0 | AB241: =+VLOOKUP($W241&AB$230,'td1'!$MO$77:$NA$126,'información graf'!$G$2,FALSE) -> 3 | AC241: 5
W242: SIGE10 | X242: =+VLOOKUP($W242&X$230,'td1'!$MO$77:$NA$126,'información graf'!$G$2,FALSE) -> 0 | Y242: =+VLOOKUP($W242&Y$230,'td1'!$MO$77:$NA$126,'información graf'!$G$2,FALSE) -> 0 | Z242: =+VLOOKUP($W242&Z$230,'td1'!$MO$77:$NA$126,'información graf'!$G$2,FALSE) -> 0 | AA242: =+VLOOKUP($W242&AA$230,'td1'!$MO$77:$NA$126,'información graf'!$G$2,FALSE) -> 0 | AB242: =+VLOOKUP($W242&AB$230,'td1'!$MO$77:$NA$126,'información graf'!$G$2,FALSE) -> 1 | AC242: 1
W243: Total | X243: =SUM(X233:X242) -> 30 | Y243: 13 | Z243: 2 | AA243: 3 | AB243: 22 | AC243: =SUM(AC233:AC242) -> 70
X244: =+X243/$AC$243 -> 0.4285714286 | Y244: =+Y243/$AC$243 -> 0.1857142857 | Z244: =+Z243/$AC$243 -> 0.02857142857 | AA244: =+AA243/$AC$243 -> 0.04285714286 | AB244: =+AB243/$AC$243 -> 0.3142857143

Sheet zonal
C2: TABLERO DE CONTROL 2018 INSTITUTO COLOMBIANO DE BIENESTAR FAMILIAR ICBF SEGUIMIENTO TABLERO DE CONTROL - ANÁLISIS GENERAL | X2: Calificación agregados
C3: =+"Regional "&VLOOKUP(Menu!C41,Referencias!$R$2:$T$34,3,FALSE)&" - "&Menu!G53 -> Regional Sucre - CZ Boston
C6: Mes analisis | E6: =+Menu!C11 -> Agosto | S6: Volver al menú
D7: Ene
S8: Revisar tablero de control del centro zonal
D12: Comportamiento centros zonales
I13: =+"Comportamiento mes a mes - "&Menu!G53 -> Comportamiento mes a mes - CZ Boston
D14: =Menu!C41 -> Sucre | V14: =+"Seguimiento mes a mes centros zonales - "&regional!C3 -> Seguimiento mes a mes centros zonales - Regional Sucre
V15: 2 | W15: 3 | X15: 4 | Y15: 5 | Z15: 6 | AA15: 7 | AB15: 8 | AC15: 9 | AD15: 10 | AE15: 11 | AF15: 12 | AG15: 13
D16: # | E16: Centro zonal | G16: % | V16: Ene | W16: Feb | X16: Mar | Y16: Abr | Z16: May | AA16: Jun | AB16: Jul | AC16: Agt | AD16: Sep | AE16: Oct | AF16: Nov | AG16: Dic
D17: =+regional!L41 -> 1 | E17: =+regional!M41 -> CZ La Mojana | G17: =+regional!O41 -> 0.9698603615 | U17: =+regional!M41 -> CZ La Mojana | V17: =IFERROR(VLOOKUP("tc."&$AH17,'td1'!$AC$2690:$AO$2898,V$15,FALSE),"") -> 1 | W17: =IFERROR(VLOOKUP("tc."&$AH17,'td1'!$AC$2690:$AO$2898,W$15,FALSE),"") -> 1 | X17: =IFERROR(VLOOKUP("tc."&$AH17,'td1'!$AC$2690:$AO$2898,X$15,FALSE),"") -> 0.9939962106 | Y17: =IFERROR(VLOOKUP("tc."&$AH17,'td1'!$AC$2690:$AO$2898,Y$15,FALSE),"") -> 0.7886394819 | Z17: =IFERROR(VLOOKUP("tc."&$AH17,'td1'!$AC$2690:$AO$2898,Z$15,FALSE),"") -> 0.9682620194 | AA17: =IFERROR(VLOOKUP("tc."&$AH17,'td1'!$AC$2690:$AO$2898,AA$15,FALSE),"") -> 0.9960695643 | AB17: =IFERROR(VLOOKUP("tc."&$AH17,'td1'!$AC$2690:$AO$2898,AB$15,FALSE),"") -> 0.9969981053 | AC17: =IFERROR(VLOOKUP("tc."&$AH17,'td1'!$AC$2690:$AO$2898,AC$15,FALSE),"") -> 0.9698603615 | AD17: =IFERROR(VLOOKUP("tc."&$AH17,'td1'!$AC$2690:$AO$2898,AD$15,FALSE),"") ->  | AE17: =IFERROR(VLOOKUP("tc."&$AH17,'td1'!$AC$2690:$AO$2898,AE$15,FALSE),"") ->  | AF17: =IFERROR(VLOOKUP("tc."&$AH17,'td1'!$AC$2690:$AO$2898,AF$15,FALSE),"") ->  | AG17: =IFERROR(VLOOKUP("tc."&$AH17,'td1'!$AC$2690:$AO$2898,AG$15,FALSE),"") ->  | AH17: =+regional!P41 -> 7004
D18: =+regional!L42 -> 2 | E18: =+regional!M42 -> CZ Boston | G18: =+regional!O42 -> 0.8006346314 | U18: =+regional!M42 -> CZ Boston | V18: =IFERROR(VLOOKUP("tc."&$AH18,'td1'!$AC$2690:$AO$2898,V$15,FALSE),"") -> 0.9898681055 | W18: =IFERROR(VLOOKUP("tc."&$AH18,'td1'!$AC$2690:$AO$2898,W$15,FALSE),"") -> 0.9706840801 | X18: =IFERROR(VLOOKUP("tc."&$AH18,'td1'!$AC$2690:$AO$2898,X$15,FALSE),"") -> 0.9583642536 | Y18: =IFERROR(VLOOKUP("tc."&$AH18,'td1'!$AC$2690:$AO$2898,Y$15,FALSE),"") -> 0.8675661073 | Z18: =IFERROR(VLOOKUP("tc."&$AH18,'td1'!$AC$2690:$AO$2898,Z$15,FALSE),"") -> 0.9694422515 | AA18: =IFERROR(VLOOKUP("tc."&$AH18,'td1'!$AC$2690:$AO$2898,AA$15,FALSE),"") -> 0.953252546 | AB18: =IFERROR(VLOOKUP("tc."&$AH18,'td1'!$AC$2690:$AO$2898,AB$15,FALSE),"") -> 0.9724441462 | AC18: =IFERROR(VLOOKUP("tc."&$AH18,'td1'!$AC$2690:$AO$2898,AC$15,FALSE),"") -> 0.8006346314 | AD18: =IFERROR(VLOOKUP("tc."&$AH18,'td1'!$AC$2690:$AO$2898,AD$15,FALSE),"") ->  | AE18: =IFERROR(VLOOKUP("tc."&$AH18,'td1'!$AC$2690:$AO$2898,AE$15,FALSE),"") ->  | AF18: =IFERROR(VLOOKUP("tc."&$AH18,'td1'!$AC$2690:$AO$2898,AF$15,FALSE),"") ->  | AG18: =IFERROR(VLOOKUP("tc."&$AH18,'td1'!$AC$2690:$AO$2898,AG$15,FALSE),"") ->  | AH18: =+regional!P42 -> 7001
D19: =+regional!L43 -> 3 | E19: =+regional!M43 -> CZ Sincelejo | G19: =+regional!O43 -> 0.8001713171 | U19: =+regional!M43 -> CZ Sincelejo | V19: =IFERROR(VLOOKUP("tc."&$AH19,'td1'!$AC$2690:$AO$2898,V$15,FALSE),"") -> 0.9898681055 | W19: =IFERROR(VLOOKUP("tc."&$AH19,'td1'!$AC$2690:$AO$2898,W$15,FALSE),"") -> 0.9738777139 | X19: =IFERROR(VLOOKUP("tc."&$AH19,'td1'!$AC$2690:$AO$2898,X$15,FALSE),"") -> 0.9428159785 | Y19: =IFERROR(VLOOKUP("tc."&$AH19,'td1'!$AC$2690:$AO$2898,Y$15,FALSE),"") -> 0.9817140803 | Z19: =IFERROR(VLOOKUP("tc."&$AH19,'td1'!$AC$2690:$AO$2898,Z$15,FALSE),"") -> 0.9488197679 | AA19: =IFERROR(VLOOKUP("tc."&$AH19,'td1'!$AC$2690:$AO$2898,AA$15,FALSE),"") -> 0.9754460409 | AB19: =IFERROR(VLOOKUP("tc."&$AH19,'td1'!$AC$2690:$AO$2898,AB$15,FALSE),"") -> 0.9754460409 | AC19: =IFERROR(VLOOKUP("tc."&$AH19,'td1'!$AC$2690:$AO$2898,AC$15,FALSE),"") -> 0.8001713171 | AD19: =IFERROR(VLOOKUP("tc."&$AH19,'td1'!$AC$2690:$AO$2898,AD$15,FALSE),"") ->  | AE19: =IFERROR(VLOOKUP("tc."&$AH19,'td1'!$AC$2690:$AO$2898,AE$15,FALSE),"") ->  | AF19: =IFERROR(VLOOKUP("tc."&$AH19,'td1'!$AC$2690:$AO$2898,AF$15,FALSE),"") ->  | AG19: =IFERROR(VLOOKUP("tc."&$AH19,'td1'!$AC$2690:$AO$2898,AG$15,FALSE),"") ->  | AH19: =+regional!P43 -> 7003
D20: =+regional!L44 -> 4 | E20: =+regional!M44 -> CZ Norte | G20: =+regional!O44 -> 0.7770652397 | U20: =+regional!M44 -> CZ Norte | V20: =IFERROR(VLOOKUP("tc."&$AH20,'td1'!$AC$2690:$AO$2898,V$15,FALSE),"") -> 1 | W20: =IFERROR(VLOOKUP("tc."&$AH20,'td1'!$AC$2690:$AO$2898,W$15,FALSE),"") -> 0.8419770824 | X20: =IFERROR(VLOOKUP("tc."&$AH20,'td1'!$AC$2690:$AO$2898,X$15,FALSE),"") -> 0.8707076325 | Y20: =IFERROR(VLOOKUP("tc."&$AH20,'td1'!$AC$2690:$AO$2898,Y$15,FALSE),"") -> 0.8876421454 | Z20: =IFERROR(VLOOKUP("tc."&$AH20,'td1'!$AC$2690:$AO$2898,Z$15,FALSE),"") -> 0.9588199288 | AA20: =IFERROR(VLOOKUP("tc."&$AH20,'td1'!$AC$2690:$AO$2898,AA$15,FALSE),"") -> 0.9588199288 | AB20: =IFERROR(VLOOKUP("tc."&$AH20,'td1'!$AC$2690:$AO$2898,AB$15,FALSE),"") -> 0.9588199288 | AC20: =IFERROR(VLOOKUP("tc."&$AH20,'td1'!$AC$2690:$AO$2898,AC$15,FALSE),"") -> 0.7770652397 | AD20: =IFERROR(VLOOKUP("tc."&$AH20,'td1'!$AC$2690:$AO$2898,AD$15,FALSE),"") ->  | AE20: =IFERROR(VLOOKUP("tc."&$AH20,'td1'!$AC$2690:$AO$2898,AE$15,FALSE),"") ->  | AF20: =IFERROR(VLOOKUP("tc."&$AH20,'td1'!$AC$2690:$AO$2898,AF$15,FALSE),"") ->  | AG20: =IFERROR(VLOOKUP("tc."&$AH20,'td1'!$AC$2690:$AO$2898,AG$15,FALSE),"") ->  | AH20: =+regional!P44 -> 7002
D21: =+regional!L45 ->  | E21: =+regional!M45 ->  | G21: =+regional!O45 ->  | U21: =+regional!M45 ->  | V21: =IFERROR(VLOOKUP("tc."&$AH21,'td1'!$AC$2690:$AO$2898,V$15,FALSE),"") ->  | W21: =IFERROR(VLOOKUP("tc."&$AH21,'td1'!$AC$2690:$AO$2898,W$15,FALSE),"") ->  | X21: =IFERROR(VLOOKUP("tc."&$AH21,'td1'!$AC$2690:$AO$2898,X$15,FALSE),"") ->  | Y21: =IFERROR(VLOOKUP("tc."&$AH21,'td1'!$AC$2690:$AO$2898,Y$15,FALSE),"") ->  | Z21: =IFERROR(VLOOKUP("tc."&$AH21,'td1'!$AC$2690:$AO$2898,Z$15,FALSE),"") ->  | AA21: =IFERROR(VLOOKUP("tc."&$AH21,'td1'!$AC$2690:$AO$2898,AA$15,FALSE),"") ->  | AB21: =IFERROR(VLOOKUP("tc."&$AH21,'td1'!$AC$2690:$AO$2898,AB$15,FALSE),"") ->  | AC21: =IFERROR(VLOOKUP("tc."&$AH21,'td1'!$AC$2690:$AO$2898,AC$15,FALSE),"") ->  | AD21: =IFERROR(VLOOKUP("tc."&$AH21,'td1'!$AC$2690:$AO$2898,AD$15,FALSE),"") ->  | AE21: =IFERROR(VLOOKUP("tc."&$AH21,'td1'!$AC$2690:$AO$2898,AE$15,FALSE),"") ->  | AF21: =IFERROR(VLOOKUP("tc."&$AH21,'td1'!$AC$2690:$AO$2898,AF$15,FALSE),"") ->  | AG21: =IFERROR(VLOOKUP("tc."&$AH21,'td1'!$AC$2690:$AO$2898,AG$15,FALSE),"") ->  | AH21: =+regional!P45 -> 
D22: =+regional!L46 ->  | E22: =+regional!M46 ->  | G22: =+regional!O46 ->  | U22: =+regional!M46 ->  | V22: =IFERROR(VLOOKUP("tc."&$AH22,'td1'!$AC$2690:$AO$2898,V$15,FALSE),"") ->  | W22: =IFERROR(VLOOKUP("tc."&$AH22,'td1'!$AC$2690:$AO$2898,W$15,FALSE),"") ->  | X22: =IFERROR(VLOOKUP("tc."&$AH22,'td1'!$AC$2690:$AO$2898,X$15,FALSE),"") ->  | Y22: =IFERROR(VLOOKUP("tc."&$AH22,'td1'!$AC$2690:$AO$2898,Y$15,FALSE),"") ->  | Z22: =IFERROR(VLOOKUP("tc."&$AH22,'td1'!$AC$2690:$AO$2898,Z$15,FALSE),"") ->  | AA22: =IFERROR(VLOOKUP("tc."&$AH22,'td1'!$AC$2690:$AO$2898,AA$15,FALSE),"") ->  | AB22: =IFERROR(VLOOKUP("tc."&$AH22,'td1'!$AC$2690:$AO$2898,AB$15,FALSE),"") ->  | AC22: =IFERROR(VLOOKUP("tc."&$AH22,'td1'!$AC$2690:$AO$2898,AC$15,FALSE),"") ->  | AD22: =IFERROR(VLOOKUP("tc."&$AH22,'td1'!$AC$2690:$AO$2898,AD$15,FALSE),"") ->  | AE22: =IFERROR(VLOOKUP("tc."&$AH22,'td1'!$AC$2690:$AO$2898,AE$15,FALSE),"") ->  | AF22: =IFERROR(VLOOKUP("tc."&$AH22,'td1'!$AC$2690:$AO$2898,AF$15,FALSE),"") ->  | AG22: =IFERROR(VLOOKUP("tc."&$AH22,'td1'!$AC$2690:$AO$2898,AG$15,FALSE),"") ->  | AH22: =+regional!P46 -> 
D23: =+regional!L47 ->  | E23: =+regional!M47 ->  | G23: =+regional!O47 ->  | U23: =+regional!M47 ->  | V23: =IFERROR(VLOOKUP("tc."&$AH23,'td1'!$AC$2690:$AO$2898,V$15,FALSE),"") ->  | W23: =IFERROR(VLOOKUP("tc."&$AH23,'td1'!$AC$2690:$AO$2898,W$15,FALSE),"") ->  | X23: =IFERROR(VLOOKUP("tc."&$AH23,'td1'!$AC$2690:$AO$2898,X$15,FALSE),"") ->  | Y23: =IFERROR(VLOOKUP("tc."&$AH23,'td1'!$AC$2690:$AO$2898,Y$15,FALSE),"") ->  | Z23: =IFERROR(VLOOKUP("tc."&$AH23,'td1'!$AC$2690:$AO$2898,Z$15,FALSE),"") ->  | AA23: =IFERROR(VLOOKUP("tc."&$AH23,'td1'!$AC$2690:$AO$2898,AA$15,FALSE),"") ->  | AB23: =IFERROR(VLOOKUP("tc."&$AH23,'td1'!$AC$2690:$AO$2898,AB$15,FALSE),"") ->  | AC23: =IFERROR(VLOOKUP("tc."&$AH23,'td1'!$AC$2690:$AO$2898,AC$15,FALSE),"") ->  | AD23: =IFERROR(VLOOKUP("tc."&$AH23,'td1'!$AC$2690:$AO$2898,AD$15,FALSE),"") ->  | AE23: =IFERROR(VLOOKUP("tc."&$AH23,'td1'!$AC$2690:$AO$2898,AE$15,FALSE),"") ->  | AF23: =IFERROR(VLOOKUP("tc."&$AH23,'td1'!$AC$2690:$AO$2898,AF$15,FALSE),"") ->  | AG23: =IFERROR(VLOOKUP("tc."&$AH23,'td1'!$AC$2690:$AO$2898,AG$15,FALSE),"") ->  | AH23: =+regional!P47 -> 
D24: =+regional!L48 ->  | E24: =+regional!M48 ->  | G24: =+regional!O48 ->  | U24: =+regional!M48 ->  | V24: =IFERROR(VLOOKUP("tc."&$AH24,'td1'!$AC$2690:$AO$2898,V$15,FALSE),"") ->  | W24: =IFERROR(VLOOKUP("tc."&$AH24,'td1'!$AC$2690:$AO$2898,W$15,FALSE),"") ->  | X24: =IFERROR(VLOOKUP("tc."&$AH24,'td1'!$AC$2690:$AO$2898,X$15,FALSE),"") ->  | Y24: =IFERROR(VLOOKUP("tc."&$AH24,'td1'!$AC$2690:$AO$2898,Y$15,FALSE),"") ->  | Z24: =IFERROR(VLOOKUP("tc."&$AH24,'td1'!$AC$2690:$AO$2898,Z$15,FALSE),"") ->  | AA24: =IFERROR(VLOOKUP("tc."&$AH24,'td1'!$AC$2690:$AO$2898,AA$15,FALSE),"") ->  | AB24: =IFERROR(VLOOKUP("tc."&$AH24,'td1'!$AC$2690:$AO$2898,AB$15,FALSE),"") ->  | AC24: =IFERROR(VLOOKUP("tc."&$AH24,'td1'!$AC$2690:$AO$2898,AC$15,FALSE),"") ->  | AD24: =IFERROR(VLOOKUP("tc."&$AH24,'td1'!$AC$2690:$AO$2898,AD$15,FALSE),"") ->  | AE24: =IFERROR(VLOOKUP("tc."&$AH24,'td1'!$AC$2690:$AO$2898,AE$15,FALSE),"") ->  | AF24: =IFERROR(VLOOKUP("tc."&$AH24,'td1'!$AC$2690:$AO$2898,AF$15,FALSE),"") ->  | AG24: =IFERROR(VLOOKUP("tc."&$AH24,'td1'!$AC$2690:$AO$2898,AG$15,FALSE),"") ->  | AH24: =+regional!P48 -> 
D25: =+regional!L49 ->  | E25: =+regional!M49 ->  | G25: =+regional!O49 ->  | U25: =+regional!M49 ->  | V25: =IFERROR(VLOOKUP("tc."&$AH25,'td1'!$AC$2690:$AO$2898,V$15,FALSE),"") ->  | W25: =IFERROR(VLOOKUP("tc."&$AH25,'td1'!$AC$2690:$AO$2898,W$15,FALSE),"") ->  | X25: =IFERROR(VLOOKUP("tc."&$AH25,'td1'!$AC$2690:$AO$2898,X$15,FALSE),"") ->  | Y25: =IFERROR(VLOOKUP("tc."&$AH25,'td1'!$AC$2690:$AO$2898,Y$15,FALSE),"") ->  | Z25: =IFERROR(VLOOKUP("tc."&$AH25,'td1'!$AC$2690:$AO$2898,Z$15,FALSE),"") ->  | AA25: =IFERROR(VLOOKUP("tc."&$AH25,'td1'!$AC$2690:$AO$2898,AA$15,FALSE),"") ->  | AB25: =IFERROR(VLOOKUP("tc."&$AH25,'td1'!$AC$2690:$AO$2898,AB$15,FALSE),"") ->  | AC25: =IFERROR(VLOOKUP("tc."&$AH25,'td1'!$AC$2690:$AO$2898,AC$15,FALSE),"") ->  | AD25: =IFERROR(VLOOKUP("tc."&$AH25,'td1'!$AC$2690:$AO$2898,AD$15,FALSE),"") ->  | AE25: =IFERROR(VLOOKUP("tc."&$AH25,'td1'!$AC$2690:$AO$2898,AE$15,FALSE),"") ->  | AF25: =IFERROR(VLOOKUP("tc."&$AH25,'td1'!$AC$2690:$AO$2898,AF$15,FALSE),"") ->  | AG25: =IFERROR(VLOOKUP("tc."&$AH25,'td1'!$AC$2690:$AO$2898,AG$15,FALSE),"") ->  | AH25: =+regional!P49 -> 
D26: =+regional!L50 ->  | E26: =+regional!M50 ->  | G26: =+regional!O50 ->  | U26: =+regional!M50 ->  | V26: =IFERROR(VLOOKUP("tc."&$AH26,'td1'!$AC$2690:$AO$2898,V$15,FALSE),"") ->  | W26: =IFERROR(VLOOKUP("tc."&$AH26,'td1'!$AC$2690:$AO$2898,W$15,FALSE),"") ->  | X26: =IFERROR(VLOOKUP("tc."&$AH26,'td1'!$AC$2690:$AO$2898,X$15,FALSE),"") ->  | Y26: =IFERROR(VLOOKUP("tc."&$AH26,'td1'!$AC$2690:$AO$2898,Y$15,FALSE),"") ->  | Z26: =IFERROR(VLOOKUP("tc."&$AH26,'td1'!$AC$2690:$AO$2898,Z$15,FALSE),"") ->  | AA26: =IFERROR(VLOOKUP("tc."&$AH26,'td1'!$AC$2690:$AO$2898,AA$15,FALSE),"") ->  | AB26: =IFERROR(VLOOKUP("tc."&$AH26,'td1'!$AC$2690:$AO$2898,AB$15,FALSE),"") ->  | AC26: =IFERROR(VLOOKUP("tc."&$AH26,'td1'!$AC$2690:$AO$2898,AC$15,FALSE),"") ->  | AD26: =IFERROR(VLOOKUP("tc."&$AH26,'td1'!$AC$2690:$AO$2898,AD$15,FALSE),"") ->  | AE26: =IFERROR(VLOOKUP("tc."&$AH26,'td1'!$AC$2690:$AO$2898,AE$15,FALSE),"") ->  | AF26: =IFERROR(VLOOKUP("tc."&$AH26,'td1'!$AC$2690:$AO$2898,AF$15,FALSE),"") ->  | AG26: =IFERROR(VLOOKUP("tc."&$AH26,'td1'!$AC$2690:$AO$2898,AG$15,FALSE),"") ->  | AH26: =+regional!P50 -> 
D27: =+regional!L51 ->  | E27: =+regional!M51 ->  | G27: =+regional!O51 ->  | U27: =+regional!M51 ->  | V27: =IFERROR(VLOOKUP("tc."&$AH27,'td1'!$AC$2690:$AO$2898,V$15,FALSE),"") ->  | W27: =IFERROR(VLOOKUP("tc."&$AH27,'td1'!$AC$2690:$AO$2898,W$15,FALSE),"") ->  | X27: =IFERROR(VLOOKUP("tc."&$AH27,'td1'!$AC$2690:$AO$2898,X$15,FALSE),"") ->  | Y27: =IFERROR(VLOOKUP("tc."&$AH27,'td1'!$AC$2690:$AO$2898,Y$15,FALSE),"") ->  | Z27: =IFERROR(VLOOKUP("tc."&$AH27,'td1'!$AC$2690:$AO$2898,Z$15,FALSE),"") ->  | AA27: =IFERROR(VLOOKUP("tc."&$AH27,'td1'!$AC$2690:$AO$2898,AA$15,FALSE),"") ->  | AB27: =IFERROR(VLOOKUP("tc."&$AH27,'td1'!$AC$2690:$AO$2898,AB$15,FALSE),"") ->  | AC27: =IFERROR(VLOOKUP("tc."&$AH27,'td1'!$AC$2690:$AO$2898,AC$15,FALSE),"") ->  | AD27: =IFERROR(VLOOKUP("tc."&$AH27,'td1'!$AC$2690:$AO$2898,AD$15,FALSE),"") ->  | AE27: =IFERROR(VLOOKUP("tc."&$AH27,'td1'!$AC$2690:$AO$2898,AE$15,FALSE),"") ->  | AF27: =IFERROR(VLOOKUP("tc."&$AH27,'td1'!$AC$2690:$AO$2898,AF$15,FALSE),"") ->  | AG27: =IFERROR(VLOOKUP("tc."&$AH27,'td1'!$AC$2690:$AO$2898,AG$15,FALSE),"") ->  | AH27: =+regional!P51 -> 
D28: =+regional!L52 ->  | E28: =+regional!M52 ->  | G28: =+regional!O52 ->  | U28: =+regional!M52 ->  | V28: =IFERROR(VLOOKUP("tc."&$AH28,'td1'!$AC$2690:$AO$2898,V$15,FALSE),"") ->  | W28: =IFERROR(VLOOKUP("tc."&$AH28,'td1'!$AC$2690:$AO$2898,W$15,FALSE),"") ->  | X28: =IFERROR(VLOOKUP("tc."&$AH28,'td1'!$AC$2690:$AO$2898,X$15,FALSE),"") ->  | Y28: =IFERROR(VLOOKUP("tc."&$AH28,'td1'!$AC$2690:$AO$2898,Y$15,FALSE),"") ->  | Z28: =IFERROR(VLOOKUP("tc."&$AH28,'td1'!$AC$2690:$AO$2898,Z$15,FALSE),"") ->  | AA28: =IFERROR(VLOOKUP("tc."&$AH28,'td1'!$AC$2690:$AO$2898,AA$15,FALSE),"") ->  | AB28: =IFERROR(VLOOKUP("tc."&$AH28,'td1'!$AC$2690:$AO$2898,AB$15,FALSE),"") ->  | AC28: =IFERROR(VLOOKUP("tc."&$AH28,'td1'!$AC$2690:$AO$2898,AC$15,FALSE),"") ->  | AD28: =IFERROR(VLOOKUP("tc."&$AH28,'td1'!$AC$2690:$AO$2898,AD$15,FALSE),"") ->  | AE28: =IFERROR(VLOOKUP("tc."&$AH28,'td1'!$AC$2690:$AO$2898,AE$15,FALSE),"") ->  | AF28: =IFERROR(VLOOKUP("tc."&$AH28,'td1'!$AC$2690:$AO$2898,AF$15,FALSE),"") ->  | AG28: =IFERROR(VLOOKUP("tc."&$AH28,'td1'!$AC$2690:$AO$2898,AG$15,FALSE),"") ->  | AH28: =+regional!P52 -> 
D29: =+regional!L53 ->  | E29: =+regional!M53 ->  | G29: =+regional!O53 ->  | U29: =+regional!M53 ->  | V29: =IFERROR(VLOOKUP("tc."&$AH29,'td1'!$AC$2690:$AO$2898,V$15,FALSE),"") ->  | W29: =IFERROR(VLOOKUP("tc."&$AH29,'td1'!$AC$2690:$AO$2898,W$15,FALSE),"") ->  | X29: =IFERROR(VLOOKUP("tc."&$AH29,'td1'!$AC$2690:$AO$2898,X$15,FALSE),"") ->  | Y29: =IFERROR(VLOOKUP("tc."&$AH29,'td1'!$AC$2690:$AO$2898,Y$15,FALSE),"") ->  | Z29: =IFERROR(VLOOKUP("tc."&$AH29,'td1'!$AC$2690:$AO$2898,Z$15,FALSE),"") ->  | AA29: =IFERROR(VLOOKUP("tc."&$AH29,'td1'!$AC$2690:$AO$2898,AA$15,FALSE),"") ->  | AB29: =IFERROR(VLOOKUP("tc."&$AH29,'td1'!$AC$2690:$AO$2898,AB$15,FALSE),"") ->  | AC29: =IFERROR(VLOOKUP("tc."&$AH29,'td1'!$AC$2690:$AO$2898,AC$15,FALSE),"") ->  | AD29: =IFERROR(VLOOKUP("tc."&$AH29,'td1'!$AC$2690:$AO$2898,AD$15,FALSE),"") ->  | AE29: =IFERROR(VLOOKUP("tc."&$AH29,'td1'!$AC$2690:$AO$2898,AE$15,FALSE),"") ->  | AF29: =IFERROR(VLOOKUP("tc."&$AH29,'td1'!$AC$2690:$AO$2898,AF$15,FALSE),"") ->  | AG29: =IFERROR(VLOOKUP("tc."&$AH29,'td1'!$AC$2690:$AO$2898,AG$15,FALSE),"") ->  | AH29: =+regional!P53 -> 
D30: =+regional!L54 ->  | E30: =+regional!M54 ->  | G30: =+regional!O54 ->  | U30: =+regional!M54 ->  | V30: =IFERROR(VLOOKUP("tc."&$AH30,'td1'!$AC$2690:$AO$2898,V$15,FALSE),"") ->  | W30: =IFERROR(VLOOKUP("tc."&$AH30,'td1'!$AC$2690:$AO$2898,W$15,FALSE),"") ->  | X30: =IFERROR(VLOOKUP("tc."&$AH30,'td1'!$AC$2690:$AO$2898,X$15,FALSE),"") ->  | Y30: =IFERROR(VLOOKUP("tc."&$AH30,'td1'!$AC$2690:$AO$2898,Y$15,FALSE),"") ->  | Z30: =IFERROR(VLOOKUP("tc."&$AH30,'td1'!$AC$2690:$AO$2898,Z$15,FALSE),"") ->  | AA30: =IFERROR(VLOOKUP("tc."&$AH30,'td1'!$AC$2690:$AO$2898,AA$15,FALSE),"") ->  | AB30: =IFERROR(VLOOKUP("tc."&$AH30,'td1'!$AC$2690:$AO$2898,AB$15,FALSE),"") ->  | AC30: =IFERROR(VLOOKUP("tc."&$AH30,'td1'!$AC$2690:$AO$2898,AC$15,FALSE),"") ->  | AD30: =IFERROR(VLOOKUP("tc."&$AH30,'td1'!$AC$2690:$AO$2898,AD$15,FALSE),"") ->  | AE30: =IFERROR(VLOOKUP("tc."&$AH30,'td1'!$AC$2690:$AO$2898,AE$15,FALSE),"") ->  | AF30: =IFERROR(VLOOKUP("tc."&$AH30,'td1'!$AC$2690:$AO$2898,AF$15,FALSE),"") ->  | AG30: =IFERROR(VLOOKUP("tc."&$AH30,'td1'!$AC$2690:$AO$2898,AG$15,FALSE),"") ->  | AH30: =+regional!P54 -> 
D31: =+regional!L55 ->  | E31: =+regional!M55 ->  | G31: =+regional!O55 ->  | U31: =+regional!M55 ->  | V31: =IFERROR(VLOOKUP("tc."&$AH31,'td1'!$AC$2690:$AO$2898,V$15,FALSE),"") ->  | W31: =IFERROR(VLOOKUP("tc."&$AH31,'td1'!$AC$2690:$AO$2898,W$15,FALSE),"") ->  | X31: =IFERROR(VLOOKUP("tc."&$AH31,'td1'!$AC$2690:$AO$2898,X$15,FALSE),"") ->  | Y31: =IFERROR(VLOOKUP("tc."&$AH31,'td1'!$AC$2690:$AO$2898,Y$15,FALSE),"") ->  | Z31: =IFERROR(VLOOKUP("tc."&$AH31,'td1'!$AC$2690:$AO$2898,Z$15,FALSE),"") ->  | AA31: =IFERROR(VLOOKUP("tc."&$AH31,'td1'!$AC$2690:$AO$2898,AA$15,FALSE),"") ->  | AB31: =IFERROR(VLOOKUP("tc."&$AH31,'td1'!$AC$2690:$AO$2898,AB$15,FALSE),"") ->  | AC31: =IFERROR(VLOOKUP("tc."&$AH31,'td1'!$AC$2690:$AO$2898,AC$15,FALSE),"") ->  | AD31: =IFERROR(VLOOKUP("tc."&$AH31,'td1'!$AC$2690:$AO$2898,AD$15,FALSE),"") ->  | AE31: =IFERROR(VLOOKUP("tc."&$AH31,'td1'!$AC$2690:$AO$2898,AE$15,FALSE),"") ->  | AF31: =IFERROR(VLOOKUP("tc."&$AH31,'td1'!$AC$2690:$AO$2898,AF$15,FALSE),"") ->  | AG31: =IFERROR(VLOOKUP("tc."&$AH31,'td1'!$AC$2690:$AO$2898,AG$15,FALSE),"") ->  | AH31: =+regional!P55 -> 
D32: =+regional!L56 ->  | E32: Calificación agregados | G32: =+regional!O56 ->  | U32: =+regional!M56 ->  | V32: =IFERROR(VLOOKUP("tc."&$AH32,'td1'!$AC$2690:$AO$2898,V$15,FALSE),"") ->  | W32: =IFERROR(VLOOKUP("tc."&$AH32,'td1'!$AC$2690:$AO$2898,W$15,FALSE),"") ->  | X32: =IFERROR(VLOOKUP("tc."&$AH32,'td1'!$AC$2690:$AO$2898,X$15,FALSE),"") ->  | Y32: =IFERROR(VLOOKUP("tc."&$AH32,'td1'!$AC$2690:$AO$2898,Y$15,FALSE),"") ->  | Z32: =IFERROR(VLOOKUP("tc."&$AH32,'td1'!$AC$2690:$AO$2898,Z$15,FALSE),"") ->  | AA32: =IFERROR(VLOOKUP("tc."&$AH32,'td1'!$AC$2690:$AO$2898,AA$15,FALSE),"") ->  | AB32: =IFERROR(VLOOKUP("tc."&$AH32,'td1'!$AC$2690:$AO$2898,AB$15,FALSE),"") ->  | AC32: =IFERROR(VLOOKUP("tc."&$AH32,'td1'!$AC$2690:$AO$2898,AC$15,FALSE),"") ->  | AD32: =IFERROR(VLOOKUP("tc."&$AH32,'td1'!$AC$2690:$AO$2898,AD$15,FALSE),"") ->  | AE32: =IFERROR(VLOOKUP("tc."&$AH32,'td1'!$AC$2690:$AO$2898,AE$15,FALSE),"") ->  | AF32: =IFERROR(VLOOKUP("tc."&$AH32,'td1'!$AC$2690:$AO$2898,AF$15,FALSE),"") ->  | AG32: =IFERROR(VLOOKUP("tc."&$AH32,'td1'!$AC$2690:$AO$2898,AG$15,FALSE),"") ->  | AH32: =+regional!P56 -> 
D33: =+regional!L57 ->  | E33: =+regional!M57 ->  | G33: =+regional!O57 ->  | U33: =+regional!M57 ->  | V33: =IFERROR(VLOOKUP("tc."&$AH33,'td1'!$AC$2690:$AO$2898,V$15,FALSE),"") ->  | W33: =IFERROR(VLOOKUP("tc."&$AH33,'td1'!$AC$2690:$AO$2898,W$15,FALSE),"") ->  | X33: =IFERROR(VLOOKUP("tc."&$AH33,'td1'!$AC$2690:$AO$2898,X$15,FALSE),"") ->  | Y33: =IFERROR(VLOOKUP("tc."&$AH33,'td1'!$AC$2690:$AO$2898,Y$15,FALSE),"") ->  | Z33: =IFERROR(VLOOKUP("tc."&$AH33,'td1'!$AC$2690:$AO$2898,Z$15,FALSE),"") ->  | AA33: =IFERROR(VLOOKUP("tc."&$AH33,'td1'!$AC$2690:$AO$2898,AA$15,FALSE),"") ->  | AB33: =IFERROR(VLOOKUP("tc."&$AH33,'td1'!$AC$2690:$AO$2898,AB$15,FALSE),"") ->  | AC33: =IFERROR(VLOOKUP("tc."&$AH33,'td1'!$AC$2690:$AO$2898,AC$15,FALSE),"") ->  | AD33: =IFERROR(VLOOKUP("tc."&$AH33,'td1'!$AC$2690:$AO$2898,AD$15,FALSE),"") ->  | AE33: =IFERROR(VLOOKUP("tc."&$AH33,'td1'!$AC$2690:$AO$2898,AE$15,FALSE),"") ->  | AF33: =IFERROR(VLOOKUP("tc."&$AH33,'td1'!$AC$2690:$AO$2898,AF$15,FALSE),"") ->  | AG33: =IFERROR(VLOOKUP("tc."&$AH33,'td1'!$AC$2690:$AO$2898,AG$15,FALSE),"") ->  | AH33: =+regional!P57 -> 
D34: =+regional!L58 ->  | E34: =+regional!M58 ->  | G34: =+regional!O58 ->  | U34: =+regional!M58 ->  | V34: =IFERROR(VLOOKUP("tc."&$AH34,'td1'!$AC$2690:$AO$2898,V$15,FALSE),"") ->  | W34: =IFERROR(VLOOKUP("tc."&$AH34,'td1'!$AC$2690:$AO$2898,W$15,FALSE),"") ->  | X34: =IFERROR(VLOOKUP("tc."&$AH34,'td1'!$AC$2690:$AO$2898,X$15,FALSE),"") ->  | Y34: =IFERROR(VLOOKUP("tc."&$AH34,'td1'!$AC$2690:$AO$2898,Y$15,FALSE),"") ->  | Z34: =IFERROR(VLOOKUP("tc."&$AH34,'td1'!$AC$2690:$AO$2898,Z$15,FALSE),"") ->  | AA34: =IFERROR(VLOOKUP("tc."&$AH34,'td1'!$AC$2690:$AO$2898,AA$15,FALSE),"") ->  | AB34: =IFERROR(VLOOKUP("tc."&$AH34,'td1'!$AC$2690:$AO$2898,AB$15,FALSE),"") ->  | AC34: =IFERROR(VLOOKUP("tc."&$AH34,'td1'!$AC$2690:$AO$2898,AC$15,FALSE),"") ->  | AD34: =IFERROR(VLOOKUP("tc."&$AH34,'td1'!$AC$2690:$AO$2898,AD$15,FALSE),"") ->  | AE34: =IFERROR(VLOOKUP("tc."&$AH34,'td1'!$AC$2690:$AO$2898,AE$15,FALSE),"") ->  | AF34: =IFERROR(VLOOKUP("tc."&$AH34,'td1'!$AC$2690:$AO$2898,AF$15,FALSE),"") ->  | AG34: =IFERROR(VLOOKUP("tc."&$AH34,'td1'!$AC$2690:$AO$2898,AG$15,FALSE),"") ->  | AH34: =+regional!P58 -> 
E36: Comportamiento objetivos SIGE -
W38: Comparación Centros zonales 2017 vs 2018
Z40: =Menu!C11 -> Agosto
Z41: 2017 | AA41: 2018 | AB41: ∆
V42: 1 | Y42: =+U17 -> CZ La Mojana | Z42: =+'información graf'!ET65 -> 0.9923476552 | AA42: =+'información graf'!EU65 -> 0.9698603615 | AB42: =+IFERROR((AA42/Z42)-1,0) -> -0.02266070114 | AC42: =+IF(AB42>0,"mejoró",IF(AB42=0,"","desmejoró")) -> desmejoró
V43: =+IF(Y43="","",V42+1) -> 2 | Y43: CZ Boston | Z43: =+'información graf'!ET66 -> 0.9695310306 | AA43: =+'información graf'!EU66 -> 0.8006346314 | AB43: -0.1742042224 | AC43: desmejoró
V44: 3 | Y44: CZ Sincelejo | Z44: =+'información graf'!ET67 -> 0.6509784245 | AA44: =+'información graf'!EU67 -> 0.8001713171 | AB44: 0.2291825459 | AC44: mejoró
V45: 4 | Y45: CZ Norte | Z45: =+'información graf'!ET68 -> 0.98310943 | AA45: =+'información graf'!EU68 -> 0.7770652397 | AB45: -0.2095841867 | AC45: desmejoró
Z46: =+'información graf'!ET69 ->  | AA46: =+'información graf'!EU69 ->  | AB46: 0
Z47: =+'información graf'!ET70 ->  | AA47: =+'información graf'!EU70 ->  | AB47: 0
Z48: =+'información graf'!ET71 ->  | AA48: =+'información graf'!EU71 ->  | AB48: 0
Z49: =+'información graf'!ET72 ->  | AA49: =+'información graf'!EU72 ->  | AB49: 0
Z50: =+'información graf'!ET73 ->  | AA50: =+'información graf'!EU73 ->  | AB50: 0
A51: - | Z51: =+'información graf'!ET74 ->  | AA51: =+'información graf'!EU74 ->  | AB51: 0
Z52: =+'información graf'!ET75 ->  | AA52: =+'información graf'!EU75 ->  | AB52: 0
Z53: =+'información graf'!ET76 ->  | AA53: =+'información graf'!EU76 ->  | AB53: 0
Z54: =+'información graf'!ET77 ->  | AA54: =+'información graf'!EU77 ->  | AB54: 0
Z55: =+'información graf'!ET78 ->  | AA55: =+'información graf'!EU78 ->  | AB55: 0
Z56: =+'información graf'!ET79 ->  | AA56: =+'información graf'!EU79 ->  | AB56: 0
Z57: =+'información graf'!ET80 ->  | AA57: =+'información graf'!EU80 ->  | AB57: 0
Z58: =+'información graf'!ET81 ->  | AA58: =+'información graf'!EU81 ->  | AB58: 0
Z59: =+'información graf'!ET82 ->  | AA59: =+'información graf'!EU82 ->  | AB59: 0

Sheet Plan Indicativo Institucional
B2: TABLERO DE CONTROL 2018 INSTITUTO COLOMBIANO DE BIENESTAR FAMILIAR PLAN INDICATIVO INSTITUCIONAL 2015-2018 "Estamos Cambiando El Mundo"
B5: Mes analisis | D5: Finalizó medición | E5: LB cuatrienio | P5: Volver al menú | Z5: =VLOOKUP(Z$8,Referencias!$A$132:$G$143,7,FALSE) -> 7 | AA5: =VLOOKUP(AA$8,Referencias!$A$132:$G$143,7,FALSE) -> 12 | AB5: =VLOOKUP(AB$8,Referencias!$A$132:$G$143,7,FALSE) -> 17 | AC5: =VLOOKUP(AC$8,Referencias!$A$132:$G$143,7,FALSE) -> 22 | AD5: =VLOOKUP(AD$8,Referencias!$A$132:$G$143,7,FALSE) -> 27 | AE5: =VLOOKUP(AE$8,Referencias!$A$132:$G$143,7,FALSE) -> 32 | AF5: =VLOOKUP(AF$8,Referencias!$A$132:$G$143,7,FALSE) -> 37 | AG5: =VLOOKUP(AG$8,Referencias!$A$132:$G$143,7,FALSE) -> 42 | AH5: =VLOOKUP(AH$8,Referencias!$A$132:$G$143,7,FALSE) -> 47 | AI5: =VLOOKUP(AI$8,Referencias!$A$132:$G$143,7,FALSE) -> 52 | AJ5: =VLOOKUP(AJ$8,Referencias!$A$132:$G$143,7,FALSE) -> 57 | AK5: =VLOOKUP(AK$8,Referencias!$A$132:$G$143,7,FALSE) -> 62
B6: =+Menu!C11 -> Agosto | E6: LB año | P6: =+VLOOKUP(B6,Referencias!$A$132:$H$143,6,FALSE) -> 41 | Z6: =VLOOKUP(Z$8,Referencias!$A$132:$G$143,6,FALSE) -> 6 | AA6: =VLOOKUP(AA$8,Referencias!$A$132:$G$143,6,FALSE) -> 11 | AB6: =VLOOKUP(AB$8,Referencias!$A$132:$G$143,6,FALSE) -> 16 | AC6: =VLOOKUP(AC$8,Referencias!$A$132:$G$143,6,FALSE) -> 21 | AD6: =VLOOKUP(AD$8,Referencias!$A$132:$G$143,6,FALSE) -> 26 | AE6: =VLOOKUP(AE$8,Referencias!$A$132:$G$143,6,FALSE) -> 31 | AF6: =VLOOKUP(AF$8,Referencias!$A$132:$G$143,6,FALSE) -> 36 | AG6: =VLOOKUP(AG$8,Referencias!$A$132:$G$143,6,FALSE) -> 41 | AH6: =VLOOKUP(AH$8,Referencias!$A$132:$G$143,6,FALSE) -> 46 | AI6: =VLOOKUP(AI$8,Referencias!$A$132:$G$143,6,FALSE) -> 51 | AJ6: =VLOOKUP(AJ$8,Referencias!$A$132:$G$143,6,FALSE) -> 56 | AK6: =VLOOKUP(AK$8,Referencias!$A$132:$G$143,6,FALSE) -> 61
F7: Cuatrienio | I7: 2015 | L7: 2016 | O7: 2017 | R7: 2018 | Z7: Resultados 2018
B8: Cod | C8: Indicador tablero vigencia 2017 | D8: Meta gob | E8: Linea base | F8: Meta | G8: Avance | H8: % cuatrienio | I8: Meta | J8: Avance | K8: 20.15 | L8: Meta | M8: Avance | N8: 20.16 | O8: Meta | P8: Avance | Q8: 20.17 | R8: Meta | S8: Avance | T8: 20.18 | Z8: Enero | AA8: Febrero | AB8: Marzo | AC8: Abril | AD8: Mayo | AE8: Junio | AF8: Julio | AG8: Agosto | AH8: Septiembre | AI8: Octubre | AJ8: Noviembre | AK8: Diciembre
B9: PA-01 | C9: =+VLOOKUP(B9,'tablero nal'!$W$9:$X$169,2,FALSE) -> Número de niños y niñas atendidos en el marco de la Atención Integral. | D9: X | E9: 1054857 | F9: =+VLOOKUP(B9,'tablero nal'!$W$9:$BB$169,4,FALSE) -> 1350000 | G9: =IF(S9="NA",P9,S9) -> 1362604 | H9: =+IFERROR(G9/F9,"-") -> 1.009336296 | I9: 1100000 | J9: 1123376 | K9: 1.021250909 | L9: 1150000 | M9: 1236100 | N9: 1.074869565 | O9: 1150000 | P9: 1208216 | Q9: =IFERROR(P9/O9,"NA") -> 1.050622609 | R9: =+VLOOKUP(B9,'tablero nal'!$W$9:$AB$169,6,FALSE) -> 1350000 | S9: =+IFERROR(LOOKUP(10000000,$Z9:$AK9),"NA") -> 1362604 | T9: =IFERROR(S9/R9,"NA") -> 1.009336296 | Y9: =+VLOOKUP(B9,'tablero nal'!$W$9:$AL$169,16,FALSE) -> Número | Z9: =IF(IF($Y9="Número",VLOOKUP($B9&"_1",Base!$E$4:$BO$7924,Z$6,FALSE),VLOOKUP($B9&"_1",Base!$E$4:$BO$7924,Z$5,FALSE))="","",IF($Y9="Número",VLOOKUP($B9&"_1",Base!$E$4:$BO$7924,Z$6,FALSE),VLOOKUP($B9&"_1",Base!$E$4:$BO$7924,Z$5,FALSE))) -> NA | AA9: =IF(IF($Y9="Número",VLOOKUP($B9&"_1",Base!$E$4:$BO$7924,AA$6,FALSE),VLOOKUP($B9&"_1",Base!$E$4:$BO$7924,AA$5,FALSE))="","",IF($Y9="Número",VLOOKUP($B9&"_1",Base!$E$4:$BO$7924,AA$6,FALSE),VLOOKUP($B9&"_1",Base!$E$4:$BO$7924,AA$5,FALSE))) -> NA | AB9: =IF(IF($Y9="Número",VLOOKUP($B9&"_1",Base!$E$4:$BO$7924,AB$6,FALSE),VLOOKUP($B9&"_1",Base!$E$4:$BO$7924,AB$5,FALSE))="","",IF($Y9="Número",VLOOKUP($B9&"_1",Base!$E$4:$BO$7924,AB$6,FALSE),VLOOKUP($B9&"_1",Base!$E$4:$BO$7924,AB$5,FALSE))) -> 1069561 | AC9: =IF(IF($Y9="Número",VLOOKUP($B9&"_1",Base!$E$4:$BO$7924,AC$6,FALSE),VLOOKUP($B9&"_1",Base!$E$4:$BO$7924,AC$5,FALSE))="","",IF($Y9="Número",VLOOKUP($B9&"_1",Base!$E$4:$BO$7924,AC$6,FALSE),VLOOKUP($B9&"_1",Base!$E$4:$BO$7924,AC$5,FALSE))) -> NA | AD9: =IF(IF($Y9="Número",VLOOKUP($B9&"_1",Base!$E$4:$BO$7924,AD$6,FALSE),VLOOKUP($B9&"_1",Base!$E$4:$BO$7924,AD$5,FALSE))="","",IF($Y9="Número",VLOOKUP($B9&"_1",Base!$E$4:$BO$7924,AD$6,FALSE),VLOOKUP($B9&"_1",Base!$E$4:$BO$7924,AD$5,FALSE))) -> NA | AE9: =IF(IF($Y9="Número",VLOOKUP($B9&"_1",Base!$E$4:$BO$7924,AE$6,FALSE),VLOOKUP($B9&"_1",Base!$E$4:$BO$7924,AE$5,FALSE))="","",IF($Y9="Número",VLOOKUP($B9&"_1",Base!$E$4:$BO$7924,AE$6,FALSE),VLOOKUP($B9&"_1",Base!$E$4:$BO$7924,AE$5,FALSE))) -> 1362604 | AF9: =IF(IF($Y9="Número",VLOOKUP($B9&"_1",Base!$E$4:$BO$7924,AF$6,FALSE),VLOOKUP($B9&"_1",Base!$E$4:$BO$7924,AF$5,FALSE))="","",IF($Y9="Número",VLOOKUP($B9&"_1",Base!$E$4:$BO$7924,AF$6,FALSE),VLOOKUP($B9&"_1",Base!$E$4:$BO$7924,AF$5,FALSE))) -> NA | AG9: =IF(IF($Y9="Número",VLOOKUP($B9&"_1",Base!$E$4:$BO$7924,AG$6,FALSE),VLOOKUP($B9&"_1",Base!$E$4:$BO$7924,AG$5,FALSE))="","",IF($Y9="Número",VLOOKUP($B9&"_1",Base!$E$4:$BO$7924,AG$6,FALSE),VLOOKUP($B9&"_1",Base!$E$4:$BO$7924,AG$5,FALSE))) -> NA | AH9: =IF(IF($Y9="Número",VLOOKUP($B9&"_1",Base!$E$4:$BO$7924,AH$6,FALSE),VLOOKUP($B9&"_1",Base!$E$4:$BO$7924,AH$5,FALSE))="","",IF($Y9="Número",VLOOKUP($B9&"_1",Base!$E$4:$BO$7924,AH$6,FALSE),VLOOKUP($B9&"_1",Base!$E$4:$BO$7924,AH$5,FALSE))) ->  | AI9: =IF(IF($Y9="Número",VLOOKUP($B9&"_1",Base!$E$4:$BO$7924,AI$6,FALSE),VLOOKUP($B9&"_1",Base!$E$4:$BO$7924,AI$5,FALSE))="","",IF($Y9="Número",VLOOKUP($B9&"_1",Base!$E$4:$BO$7924,AI$6,FALSE),VLOOKUP($B9&"_1",Base!$E$4:$BO$7924,AI$5,FALSE))) ->  | AJ9: =IF(IF($Y9="Número",VLOOKUP($B9&"_1",Base!$E$4:$BO$7924,AJ$6,FALSE),VLOOKUP($B9&"_1",Base!$E$4:$BO$7924,AJ$5,FALSE))="","",IF($Y9="Número",VLOOKUP($B9&"_1",Base!$E$4:$BO$7924,AJ$6,FALSE),VLOOKUP($B9&"_1",Base!$E$4:$BO$7924,AJ$5,FALSE))) ->  | AK9: =IF(IF($Y9="Número",VLOOKUP($B9&"_1",Base!$E$4:$BO$7924,AK$6,FALSE),VLOOKUP($B9&"_1",Base!$E$4:$BO$7924,AK$5,FALSE))="","",IF($Y9="Número",VLOOKUP($B9&"_1",Base!$E$4:$BO$7924,AK$6,FALSE),VLOOKUP($B9&"_1",Base!$E$4:$BO$7924,AK$5,FALSE))) -> 
B10: PA-02 | C10: Porcentaje de niños y niñas atendidos en Hogares Comunitarios que transitaron de modalidad tradicional a Modalidad de Atención Integral | E10: - | F10: 0.13 | G10: =+P10 -> 0.137 | H10: =+IFERROR(G10/F10,"-") -> 1.053846154 | I10: 0.09 | J10: 0.0994 | K10: 1.104444444 | L10: 0.13 | M10: 0.1 | N10: 0.7692307692 | O10: 0.13 | P10: 0.137 | Q10: =IFERROR(P10/O10,"NA") -> 1.053846154 | R10: NA | S10: NA | T10: NA | Y10: =+VLOOKUP(B10,'tablero nal'!$W$9:$AL$169,16,FALSE) ->  | Z10: =IF(IF($Y10="Número",VLOOKUP($B10&"_1",Base!$E$4:$BO$7924,Z$6,FALSE),VLOOKUP($B10&"_1",Base!$E$4:$BO$7924,Z$5,FALSE))="","",IF($Y10="Número",VLOOKUP($B10&"_1",Base!$E$4:$BO$7924,Z$6,FALSE),VLOOKUP($B10&"_1",Base!$E$4:$BO$7924,Z$5,FALSE))) ->  | AA10: =IF(IF($Y10="Número",VLOOKUP($B10&"_1",Base!$E$4:$BO$7924,AA$6,FALSE),VLOOKUP($B10&"_1",Base!$E$4:$BO$7924,AA$5,FALSE))="","",IF($Y10="Número",VLOOKUP($B10&"_1",Base!$E$4:$BO$7924,AA$6,FALSE),VLOOKUP($B10&"_1",Base!$E$4:$BO$7924,AA$5,FALSE))) ->  | AB10: =IF(IF($Y10="Número",VLOOKUP($B10&"_1",Base!$E$4:$BO$7924,AB$6,FALSE),VLOOKUP($B10&"_1",Base!$E$4:$BO$7924,AB$5,FALSE))="","",IF($Y10="Número",VLOOKUP($B10&"_1",Base!$E$4:$BO$7924,AB$6,FALSE),VLOOKUP($B10&"_1",Base!$E$4:$BO$7924,AB$5,FALSE))) ->  | AC10: =IF(IF($Y10="Número",VLOOKUP($B10&"_1",Base!$E$4:$BO$7924,AC$6,FALSE),VLOOKUP($B10&"_1",Base!$E$4:$BO$7924,AC$5,FALSE))="","",IF($Y10="Número",VLOOKUP($B10&"_1",Base!$E$4:$BO$7924,AC$6,FALSE),VLOOKUP($B10&"_1",Base!$E$4:$BO$7924,AC$5,FALSE))) ->  | AD10: =IF(IF($Y10="Número",VLOOKUP($B10&"_1",Base!$E$4:$BO$7924,AD$6,FALSE),VLOOKUP($B10&"_1",Base!$E$4:$BO$7924,AD$5,FALSE))="","",IF($Y10="Número",VLOOKUP($B10&"_1",Base!$E$4:$BO$7924,AD$6,FALSE),VLOOKUP($B10&"_1",Base!$E$4:$BO$7924,AD$5,FALSE))) ->  | AE10: =IF(IF($Y10="Número",VLOOKUP($B10&"_1",Base!$E$4:$BO$7924,AE$6,FALSE),VLOOKUP($B10&"_1",Base!$E$4:$BO$7924,AE$5,FALSE))="","",IF($Y10="Número",VLOOKUP($B10&"_1",Base!$E$4:$BO$7924,AE$6,FALSE),VLOOKUP($B10&"_1",Base!$E$4:$BO$7924,AE$5,FALSE))) ->  | AF10: =IF(IF($Y10="Número",VLOOKUP($B10&"_1",Base!$E$4:$BO$7924,AF$6,FALSE),VLOOKUP($B10&"_1",Base!$E$4:$BO$7924,AF$5,FALSE))="","",IF($Y10="Número",VLOOKUP($B10&"_1",Base!$E$4:$BO$7924,AF$6,FALSE),VLOOKUP($B10&"_1",Base!$E$4:$BO$7924,AF$5,FALSE))) ->  | AG10: =IF(IF($Y10="Número",VLOOKUP($B10&"_1",Base!$E$4:$BO$7924,AG$6,FALSE),VLOOKUP($B10&"_1",Base!$E$4:$BO$7924,AG$5,FALSE))="","",IF($Y10="Número",VLOOKUP($B10&"_1",Base!$E$4:$BO$7924,AG$6,FALSE),VLOOKUP($B10&"_1",Base!$E$4:$BO$7924,AG$5,FALSE))) ->  | AH10: =IF(IF($Y10="Número",VLOOKUP($B10&"_1",Base!$E$4:$BO$7924,AH$6,FALSE),VLOOKUP($B10&"_1",Base!$E$4:$BO$7924,AH$5,FALSE))="","",IF($Y10="Número",VLOOKUP($B10&"_1",Base!$E$4:$BO$7924,AH$6,FALSE),VLOOKUP($B10&"_1",Base!$E$4:$BO$7924,AH$5,FALSE))) ->  | AI10: =IF(IF($Y10="Número",VLOOKUP($B10&"_1",Base!$E$4:$BO$7924,AI$6,FALSE),VLOOKUP($B10&"_1",Base!$E$4:$BO$7924,AI$5,FALSE))="","",IF($Y10="Número",VLOOKUP($B10&"_1",Base!$E$4:$BO$7924,AI$6,FALSE),VLOOKUP($B10&"_1",Base!$E$4:$BO$7924,AI$5,FALSE))) ->  | AJ10: =IF(IF($Y10="Número",VLOOKUP($B10&"_1",Base!$E$4:$BO$7924,AJ$6,FALSE),VLOOKUP($B10&"_1",Base!$E$4:$BO$7924,AJ$5,FALSE))="","",IF($Y10="Número",VLOOKUP($B10&"_1",Base!$E$4:$BO$7924,AJ$6,FALSE),VLOOKUP($B10&"_1",Base!$E$4:$BO$7924,AJ$5,FALSE))) ->  | AK10: =IF(IF($Y10="Número",VLOOKUP($B10&"_1",Base!$E$4:$BO$7924,AK$6,FALSE),VLOOKUP($B10&"_1",Base!$E$4:$BO$7924,AK$5,FALSE))="","",IF($Y10="Número",VLOOKUP($B10&"_1",Base!$E$4:$BO$7924,AK$6,FALSE),VLOOKUP($B10&"_1",Base!$E$4:$BO$7924,AK$5,FALSE))) -> 
B11: PA-03 | C11: =+VLOOKUP(B11,'tablero nal'!$W$9:$X$169,2,FALSE) -> Porcentaje de niños y niñas de las modalidades de Primera Infancia, reportados al Ministerio de Educación para la matricula al sistema educativo. | E11: - | F11: =+VLOOKUP(B11,'tablero nal'!$W$9:$BB$169,4,FALSE) -> 1 | G11: =IF(S11="NA",P11,S11) -> 1 | H11: 1 | I11: 0.8 | J11: 0.9998 | K11: 1.24975 | L11: 0.8 | M11: 1 | N11: 1.25 | O11: 1 | P11: 1 | Q11: 1 | R11: =+VLOOKUP(B11,'tablero nal'!$W$9:$AB$169,6,FALSE) -> 1 | S11: =+IFERROR(LOOKUP(10000000,$Z11:$AK11),"NA") -> 1 | T11: =IFERROR(S11/R11,"NA") -> 1 | Y11: =+VLOOKUP(B11,'tablero nal'!$W$9:$AL$169,16,FALSE) -> Porcentaje | Z11: =IF(IF($Y11="Número",VLOOKUP($B11&"_1",Base!$E$4:$BO$7924,Z$6,FALSE),VLOOKUP($B11&"_1",Base!$E$4:$BO$7924,Z$5,FALSE))="","",IF($Y11="Número",VLOOKUP($B11&"_1",Base!$E$4:$BO$7924,Z$6,FALSE),VLOOKUP($B11&"_1",Base!$E$4:$BO$7924,Z$5,FALSE))) -> NA | AA11: =IF(IF($Y11="Número",VLOOKUP($B11&"_1",Base!$E$4:$BO$7924,AA$6,FALSE),VLOOKUP($B11&"_1",Base!$E$4:$BO$7924,AA$5,FALSE))="","",IF($Y11="Número",VLOOKUP($B11&"_1",Base!$E$4:$BO$7924,AA$6,FALSE),VLOOKUP($B11&"_1",Base!$E$4:$BO$7924,AA$5,FALSE))) -> NA | AB11: =IF(IF($Y11="Número",VLOOKUP($B11&"_1",Base!$E$4:$BO$7924,AB$6,FALSE),VLOOKUP($B11&"_1",Base!$E$4:$BO$7924,AB$5,FALSE))="","",IF($Y11="Número",VLOOKUP($B11&"_1",Base!$E$4:$BO$7924,AB$6,FALSE),VLOOKUP($B11&"_1",Base!$E$4:$BO$7924,AB$5,FALSE))) -> 1 | AC11: =IF(IF($Y11="Número",VLOOKUP($B11&"_1",Base!$E$4:$BO$7924,AC$6,FALSE),VLOOKUP($B11&"_1",Base!$E$4:$BO$7924,AC$5,FALSE))="","",IF($Y11="Número",VLOOKUP($B11&"_1",Base!$E$4:$BO$7924,AC$6,FALSE),VLOOKUP($B11&"_1",Base!$E$4:$BO$7924,AC$5,FALSE))) -> NA | AD11: =IF(IF($Y11="Número",VLOOKUP($B11&"_1",Base!$E$4:$BO$7924,AD$6,FALSE),VLOOKUP($B11&"_1",Base!$E$4:$BO$7924,AD$5,FALSE))="","",IF($Y11="Número",VLOOKUP($B11&"_1",Base!$E$4:$BO$7924,AD$6,FALSE),VLOOKUP($B11&"_1",Base!$E$4:$BO$7924,AD$5,FALSE))) -> NA | AE11: =IF(IF($Y11="Número",VLOOKUP($B11&"_1",Base!$E$4:$BO$7924,AE$6,FALSE),VLOOKUP($B11&"_1",Base!$E$4:$BO$7924,AE$5,FALSE))="","",IF($Y11="Número",VLOOKUP($B11&"_1",Base!$E$4:$BO$7924,AE$6,FALSE),VLOOKUP($B11&"_1",Base!$E$4:$BO$7924,AE$5,FALSE))) -> 1 | AF11: =IF(IF($Y11="Número",VLOOKUP($B11&"_1",Base!$E$4:$BO$7924,AF$6,FALSE),VLOOKUP($B11&"_1",Base!$E$4:$BO$7924,AF$5,FALSE))="","",IF($Y11="Número",VLOOKUP($B11&"_1",Base!$E$4:$BO$7924,AF$6,FALSE),VLOOKUP($B11&"_1",Base!$E$4:$BO$7924,AF$5,FALSE))) -> NA | AG11: =IF(IF($Y11="Número",VLOOKUP($B11&"_1",Base!$E$4:$BO$7924,AG$6,FALSE),VLOOKUP($B11&"_1",Base!$E$4:$BO$7924,AG$5,FALSE))="","",IF($Y11="Número",VLOOKUP($B11&"_1",Base!$E$4:$BO$7924,AG$6,FALSE),VLOOKUP($B11&"_1",Base!$E$4:$BO$7924,AG$5,FALSE))) -> NA | AH11: =IF(IF($Y11="Número",VLOOKUP($B11&"_1",Base!$E$4:$BO$7924,AH$6,FALSE),VLOOKUP($B11&"_1",Base!$E$4:$BO$7924,AH$5,FALSE))="","",IF($Y11="Número",VLOOKUP($B11&"_1",Base!$E$4:$BO$7924,AH$6,FALSE),VLOOKUP($B11&"_1",Base!$E$4:$BO$7924,AH$5,FALSE))) ->  | AI11: =IF(IF($Y11="Número",VLOOKUP($B11&"_1",Base!$E$4:$BO$7924,AI$6,FALSE),VLOOKUP($B11&"_1",Base!$E$4:$BO$7924,AI$5,FALSE))="","",IF($Y11="Número",VLOOKUP($B11&"_1",Base!$E$4:$BO$7924,AI$6,FALSE),VLOOKUP($B11&"_1",Base!$E$4:$BO$7924,AI$5,FALSE))) ->  | AJ11: =IF(IF($Y11="Número",VLOOKUP($B11&"_1",Base!$E$4:$BO$7924,AJ$6,FALSE),VLOOKUP($B11&"_1",Base!$E$4:$BO$7924,AJ$5,FALSE))="","",IF($Y11="Número",VLOOKUP($B11&"_1",Base!$E$4:$BO$7924,AJ$6,FALSE),VLOOKUP($B11&"_1",Base!$E$4:$BO$7924,AJ$5,FALSE))) ->  | AK11: =IF(IF($Y11="Número",VLOOKUP($B11&"_1",Base!$E$4:$BO$7924,AK$6,FALSE),VLOOKUP($B11&"_1",Base!$E$4:$BO$7924,AK$5,FALSE))="","",IF($Y11="Número",VLOOKUP($B11&"_1",Base!$E$4:$BO$7924,AK$6,FALSE),VLOOKUP($B11&"_1",Base!$E$4:$BO$7924,AK$5,FALSE))) -> 
B12: PA-04 | C12: Porcentaje de Hogares Comunitarios que cumplen los estándares de la estrategia de Cero a Siempre | D12: X | E12: - | F12: 0.5 | G12: =+P12 -> 0.502 | H12: 1.004 | I12: 0.2 | J12: 0.2889 | K12: 1.4445 | L12: 0.3 | M12: 0.325 | N12: 1.083333333 | O12: 0.4 | P12: 0.502 | Q12: 1.255 | R12: NA | S12: NA | T12: NA | Y12: =+VLOOKUP(B12,'tablero nal'!$W$9:$AL$169,16,FALSE) ->  | Z12: =IF(IF($Y12="Número",VLOOKUP($B12&"_1",Base!$E$4:$BO$7924,Z$6,FALSE),VLOOKUP($B12&"_1",Base!$E$4:$BO$7924,Z$5,FALSE))="","",IF($Y12="Número",VLOOKUP($B12&"_1",Base!$E$4:$BO$7924,Z$6,FALSE),VLOOKUP($B12&"_1",Base!$E$4:$BO$7924,Z$5,FALSE))) ->  | AA12: =IF(IF($Y12="Número",VLOOKUP($B12&"_1",Base!$E$4:$BO$7924,AA$6,FALSE),VLOOKUP($B12&"_1",Base!$E$4:$BO$7924,AA$5,FALSE))="","",IF($Y12="Número",VLOOKUP($B12&"_1",Base!$E$4:$BO$7924,AA$6,FALSE),VLOOKUP($B12&"_1",Base!$E$4:$BO$7924,AA$5,FALSE))) ->  | AB12: =IF(IF($Y12="Número",VLOOKUP($B12&"_1",Base!$E$4:$BO$7924,AB$6,FALSE),VLOOKUP($B12&"_1",Base!$E$4:$BO$7924,AB$5,FALSE))="","",IF($Y12="Número",VLOOKUP($B12&"_1",Base!$E$4:$BO$7924,AB$6,FALSE),VLOOKUP($B12&"_1",Base!$E$4:$BO$7924,AB$5,FALSE))) ->  | AC12: =IF(IF($Y12="Número",VLOOKUP($B12&"_1",Base!$E$4:$BO$7924,AC$6,FALSE),VLOOKUP($B12&"_1",Base!$E$4:$BO$7924,AC$5,FALSE))="","",IF($Y12="Número",VLOOKUP($B12&"_1",Base!$E$4:$BO$7924,AC$6,FALSE),VLOOKUP($B12&"_1",Base!$E$4:$BO$7924,AC$5,FALSE))) ->  | AD12: =IF(IF($Y12="Número",VLOOKUP($B12&"_1",Base!$E$4:$BO$7924,AD$6,FALSE),VLOOKUP($B12&"_1",Base!$E$4:$BO$7924,AD$5,FALSE))="","",IF($Y12="Número",VLOOKUP($B12&"_1",Base!$E$4:$BO$7924,AD$6,FALSE),VLOOKUP($B12&"_1",Base!$E$4:$BO$7924,AD$5,FALSE))) ->  | AE12: =IF(IF($Y12="Número",VLOOKUP($B12&"_1",Base!$E$4:$BO$7924,AE$6,FALSE),VLOOKUP($B12&"_1",Base!$E$4:$BO$7924,AE$5,FALSE))="","",IF($Y12="Número",VLOOKUP($B12&"_1",Base!$E$4:$BO$7924,AE$6,FALSE),VLOOKUP($B12&"_1",Base!$E$4:$BO$7924,AE$5,FALSE))) ->  | AF12: =IF(IF($Y12="Número",VLOOKUP($B12&"_1",Base!$E$4:$BO$7924,AF$6,FALSE),VLOOKUP($B12&"_1",Base!$E$4:$BO$7924,AF$5,FALSE))="","",IF($Y12="Número",VLOOKUP($B12&"_1",Base!$E$4:$BO$7924,AF$6,FALSE),VLOOKUP($B12&"_1",Base!$E$4:$BO$7924,AF$5,FALSE))) ->  | AG12: =IF(IF($Y12="Número",VLOOKUP($B12&"_1",Base!$E$4:$BO$7924,AG$6,FALSE),VLOOKUP($B12&"_1",Base!$E$4:$BO$7924,AG$5,FALSE))="","",IF($Y12="Número",VLOOKUP($B12&"_1",Base!$E$4:$BO$7924,AG$6,FALSE),VLOOKUP($B12&"_1",Base!$E$4:$BO$7924,AG$5,FALSE))) ->  | AH12: =IF(IF($Y12="Número",VLOOKUP($B12&"_1",Base!$E$4:$BO$7924,AH$6,FALSE),VLOOKUP($B12&"_1",Base!$E$4:$BO$7924,AH$5,FALSE))="","",IF($Y12="Número",VLOOKUP($B12&"_1",Base!$E$4:$BO$7924,AH$6,FALSE),VLOOKUP($B12&"_1",Base!$E$4:$BO$7924,AH$5,FALSE))) ->  | AI12: =IF(IF($Y12="Número",VLOOKUP($B12&"_1",Base!$E$4:$BO$7924,AI$6,FALSE),VLOOKUP($B12&"_1",Base!$E$4:$BO$7924,AI$5,FALSE))="","",IF($Y12="Número",VLOOKUP($B12&"_1",Base!$E$4:$BO$7924,AI$6,FALSE),VLOOKUP($B12&"_1",Base!$E$4:$BO$7924,AI$5,FALSE))) ->  | AJ12: =IF(IF($Y12="Número",VLOOKUP($B12&"_1",Base!$E$4:$BO$7924,AJ$6,FALSE),VLOOKUP($B12&"_1",Base!$E$4:$BO$7924,AJ$5,FALSE))="","",IF($Y12="Número",VLOOKUP($B12&"_1",Base!$E$4:$BO$7924,AJ$6,FALSE),VLOOKUP($B12&"_1",Base!$E$4:$BO$7924,AJ$5,FALSE))) ->  | AK12: =IF(IF($Y12="Número",VLOOKUP($B12&"_1",Base!$E$4:$BO$7924,AK$6,FALSE),VLOOKUP($B12&"_1",Base!$E$4:$BO$7924,AK$5,FALSE))="","",IF($Y12="Número",VLOOKUP($B12&"_1",Base!$E$4:$BO$7924,AK$6,FALSE),VLOOKUP($B12&"_1",Base!$E$4:$BO$7924,AK$5,FALSE))) -> 
B13: PA-05 | C13: =+VLOOKUP(B13,'tablero nal'!$W$9:$X$169,2,FALSE) -> Número de agentes educativos en proceso de formación y/o cualificación en Atención Integral a la Primera Infancia. | D13: X | E13: 49672 | F13: =+VLOOKUP(B13,'tablero nal'!$W$9:$BB$169,4,FALSE) -> 60000 | G13: 63611 | H13: 1.060183333 | I13: 20000 | J13: 20000 | K13: 1 | L13: 30000 | M13: 30271 | N13: 1.009033333 | O13: 45000 | P13: 45544 | Q13: 1.012088889 | R13: =+VLOOKUP(B13,'tablero nal'!$W$9:$AB$169,6,FALSE) -> 60000 | S13: 63611 | T13: 1.060183333 | Y13: =+VLOOKUP(B13,'tablero nal'!$W$9:$AL$169,16,FALSE) -> Número | Z13: =IF(IF($Y13="Número",VLOOKUP($B13&"_1",Base!$E$4:$BO$7924,Z$6,FALSE),VLOOKUP($B13&"_1",Base!$E$4:$BO$7924,Z$5,FALSE))="","",IF($Y13="Número",VLOOKUP($B13&"_1",Base!$E$4:$BO$7924,Z$6,FALSE),VLOOKUP($B13&"_1",Base!$E$4:$BO$7924,Z$5,FALSE))) -> NA | AA13: =IF(IF($Y13="Número",VLOOKUP($B13&"_1",Base!$E$4:$BO$7924,AA$6,FALSE),VLOOKUP($B13&"_1",Base!$E$4:$BO$7924,AA$5,FALSE))="","",IF($Y13="Número",VLOOKUP($B13&"_1",Base!$E$4:$BO$7924,AA$6,FALSE),VLOOKUP($B13&"_1",Base!$E$4:$BO$7924,AA$5,FALSE))) -> NA | AB13: =IF(IF($Y13="Número",VLOOKUP($B13&"_1",Base!$E$4:$BO$7924,AB$6,FALSE),VLOOKUP($B13&"_1",Base!$E$4:$BO$7924,AB$5,FALSE))="","",IF($Y13="Número",VLOOKUP($B13&"_1",Base!$E$4:$BO$7924,AB$6,FALSE),VLOOKUP($B13&"_1",Base!$E$4:$BO$7924,AB$5,FALSE))) -> NA | AC13: =IF(IF($Y13="Número",VLOOKUP($B13&"_1",Base!$E$4:$BO$7924,AC$6,FALSE),VLOOKUP($B13&"_1",Base!$E$4:$BO$7924,AC$5,FALSE))="","",IF($Y13="Número",VLOOKUP($B13&"_1",Base!$E$4:$BO$7924,AC$6,FALSE),VLOOKUP($B13&"_1",Base!$E$4:$BO$7924,AC$5,FALSE))) -> NA | AD13: =IF(IF($Y13="Número",VLOOKUP($B13&"_1",Base!$E$4:$BO$7924,AD$6,FALSE),VLOOKUP($B13&"_1",Base!$E$4:$BO$7924,AD$5,FALSE))="","",IF($Y13="Número",VLOOKUP($B13&"_1",Base!$E$4:$BO$7924,AD$6,FALSE),VLOOKUP($B13&"_1",Base!$E$4:$BO$7924,AD$5,FALSE))) -> NA | AE13: =IF(IF($Y13="Número",VLOOKUP($B13&"_1",Base!$E$4:$BO$7924,AE$6,FALSE),VLOOKUP($B13&"_1",Base!$E$4:$BO$7924,AE$5,FALSE))="","",IF($Y13="Número",VLOOKUP($B13&"_1",Base!$E$4:$BO$7924,AE$6,FALSE),VLOOKUP($B13&"_1",Base!$E$4:$BO$7924,AE$5,FALSE))) -> 63611 | AF13: =IF(IF($Y13="Número",VLOOKUP($B13&"_1",Base!$E$4:$BO$7924,AF$6,FALSE),VLOOKUP($B13&"_1",Base!$E$4:$BO$7924,AF$5,FALSE))="","",IF($Y13="Número",VLOOKUP($B13&"_1",Base!$E$4:$BO$7924,AF$6,FALSE),VLOOKUP($B13&"_1",Base!$E$4:$BO$7924,AF$5,FALSE))) -> NA | AG13: =IF(IF($Y13="Número",VLOOKUP($B13&"_1",Base!$E$4:$BO$7924,AG$6,FALSE),VLOOKUP($B13&"_1",Base!$E$4:$BO$7924,AG$5,FALSE))="","",IF($Y13="Número",VLOOKUP($B13&"_1",Base!$E$4:$BO$7924,AG$6,FALSE),VLOOKUP($B13&"_1",Base!$E$4:$BO$7924,AG$5,FALSE))) -> NA | AH13: =IF(IF($Y13="Número",VLOOKUP($B13&"_1",Base!$E$4:$BO$7924,AH$6,FALSE),VLOOKUP($B13&"_1",Base!$E$4:$BO$7924,AH$5,FALSE))="","",IF($Y13="Número",VLOOKUP($B13&"_1",Base!$E$4:$BO$7924,AH$6,FALSE),VLOOKUP($B13&"_1",Base!$E$4:$BO$7924,AH$5,FALSE))) ->  | AI13: =IF(IF($Y13="Número",VLOOKUP($B13&"_1",Base!$E$4:$BO$7924,AI$6,FALSE),VLOOKUP($B13&"_1",Base!$E$4:$BO$7924,AI$5,FALSE))="","",IF($Y13="Número",VLOOKUP($B13&"_1",Base!$E$4:$BO$7924,AI$6,FALSE),VLOOKUP($B13&"_1",Base!$E$4:$BO$7924,AI$5,FALSE))) ->  | AJ13: =IF(IF($Y13="Número",VLOOKUP($B13&"_1",Base!$E$4:$BO$7924,AJ$6,FALSE),VLOOKUP($B13&"_1",Base!$E$4:$BO$7924,AJ$5,FALSE))="","",IF($Y13="Número",VLOOKUP($B13&"_1",Base!$E$4:$BO$7924,AJ$6,FALSE),VLOOKUP($B13&"_1",Base!$E$4:$BO$7924,AJ$5,FALSE))) ->  | AK13: =IF(IF($Y13="Número",VLOOKUP($B13&"_1",Base!$E$4:$BO$7924,AK$6,FALSE),VLOOKUP($B13&"_1",Base!$E$4:$BO$7924,AK$5,FALSE))="","",IF($Y13="Número",VLOOKUP($B13&"_1",Base!$E$4:$BO$7924,AK$6,FALSE),VLOOKUP($B13&"_1",Base!$E$4:$BO$7924,AK$5,FALSE))) -> 
B14: PA-06 | C14: =+VLOOKUP(B14,'tablero nal'!$W$9:$X$169,2,FALSE) -> Número de infraestructuras entregadas para operación de la modalidades de Atención Integral a la Primera Infancia | E14: - | F14: =+VLOOKUP(B14,'tablero nal'!$W$9:$BB$169,4,FALSE) -> 150 | G14: 150 | H14: 1 | I14: 50 | J14: 77 | K14: 1.54 | L14: 80 | M14: 80 | N14: 1 | O14: 120 | P14: 123 | Q14: 1.025 | R14: =+VLOOKUP(B14,'tablero nal'!$W$9:$AB$169,6,FALSE) -> 150 | S14: 150 | T14: 1 | Y14: =+VLOOKUP(B14,'tablero nal'!$W$9:$AL$169,16,FALSE) -> Número | Z14: =IF(IF($Y14="Número",VLOOKUP($B14&"_1",Base!$E$4:$BO$7924,Z$6,FALSE),VLOOKUP($B14&"_1",Base!$E$4:$BO$7924,Z$5,FALSE))="","",IF($Y14="Número",VLOOKUP($B14&"_1",Base!$E$4:$BO$7924,Z$6,FALSE),VLOOKUP($B14&"_1",Base!$E$4:$BO$7924,Z$5,FALSE))) -> NA | AA14: =IF(IF($Y14="Número",VLOOKUP($B14&"_1",Base!$E$4:$BO$7924,AA$6,FALSE),VLOOKUP($B14&"_1",Base!$E$4:$BO$7924,AA$5,FALSE))="","",IF($Y14="Número",VLOOKUP($B14&"_1",Base!$E$4:$BO$7924,AA$6,FALSE),VLOOKUP($B14&"_1",Base!$E$4:$BO$7924,AA$5,FALSE))) -> NA | AB14: =IF(IF($Y14="Número",VLOOKUP($B14&"_1",Base!$E$4:$BO$7924,AB$6,FALSE),VLOOKUP($B14&"_1",Base!$E$4:$BO$7924,AB$5,FALSE))="","",IF($Y14="Número",VLOOKUP($B14&"_1",Base!$E$4:$BO$7924,AB$6,FALSE),VLOOKUP($B14&"_1",Base!$E$4:$BO$7924,AB$5,FALSE))) -> 138 | AC14: =IF(IF($Y14="Número",VLOOKUP($B14&"_1",Base!$E$4:$BO$7924,AC$6,FALSE),VLOOKUP($B14&"_1",Base!$E$4:$BO$7924,AC$5,FALSE))="","",IF($Y14="Número",VLOOKUP($B14&"_1",Base!$E$4:$BO$7924,AC$6,FALSE),VLOOKUP($B14&"_1",Base!$E$4:$BO$7924,AC$5,FALSE))) -> NA | AD14: =IF(IF($Y14="Número",VLOOKUP($B14&"_1",Base!$E$4:$BO$7924,AD$6,FALSE),VLOOKUP($B14&"_1",Base!$E$4:$BO$7924,AD$5,FALSE))="","",IF($Y14="Número",VLOOKUP($B14&"_1",Base!$E$4:$BO$7924,AD$6,FALSE),VLOOKUP($B14&"_1",Base!$E$4:$BO$7924,AD$5,FALSE))) -> NA | AE14: =IF(IF($Y14="Número",VLOOKUP($B14&"_1",Base!$E$4:$BO$7924,AE$6,FALSE),VLOOKUP($B14&"_1",Base!$E$4:$BO$7924,AE$5,FALSE))="","",IF($Y14="Número",VLOOKUP($B14&"_1",Base!$E$4:$BO$7924,AE$6,FALSE),VLOOKUP($B14&"_1",Base!$E$4:$BO$7924,AE$5,FALSE))) -> 150 | AF14: =IF(IF($Y14="Número",VLOOKUP($B14&"_1",Base!$E$4:$BO$7924,AF$6,FALSE),VLOOKUP($B14&"_1",Base!$E$4:$BO$7924,AF$5,FALSE))="","",IF($Y14="Número",VLOOKUP($B14&"_1",Base!$E$4:$BO$7924,AF$6,FALSE),VLOOKUP($B14&"_1",Base!$E$4:$BO$7924,AF$5,FALSE))) -> NA | AG14: =IF(IF($Y14="Número",VLOOKUP($B14&"_1",Base!$E$4:$BO$7924,AG$6,FALSE),VLOOKUP($B14&"_1",Base!$E$4:$BO$7924,AG$5,FALSE))="","",IF($Y14="Número",VLOOKUP($B14&"_1",Base!$E$4:$BO$7924,AG$6,FALSE),VLOOKUP($B14&"_1",Base!$E$4:$BO$7924,AG$5,FALSE))) -> NA | AH14: =IF(IF($Y14="Número",VLOOKUP($B14&"_1",Base!$E$4:$BO$7924,AH$6,FALSE),VLOOKUP($B14&"_1",Base!$E$4:$BO$7924,AH$5,FALSE))="","",IF($Y14="Número",VLOOKUP($B14&"_1",Base!$E$4:$BO$7924,AH$6,FALSE),VLOOKUP($B14&"_1",Base!$E$4:$BO$7924,AH$5,FALSE))) ->  | AI14: =IF(IF($Y14="Número",VLOOKUP($B14&"_1",Base!$E$4:$BO$7924,AI$6,FALSE),VLOOKUP($B14&"_1",Base!$E$4:$BO$7924,AI$5,FALSE))="","",IF($Y14="Número",VLOOKUP($B14&"_1",Base!$E$4:$BO$7924,AI$6,FALSE),VLOOKUP($B14&"_1",Base!$E$4:$BO$7924,AI$5,FALSE))) ->  | AJ14: =IF(IF($Y14="Número",VLOOKUP($B14&"_1",Base!$E$4:$BO$7924,AJ$6,FALSE),VLOOKUP($B14&"_1",Base!$E$4:$BO$7924,AJ$5,FALSE))="","",IF($Y14="Número",VLOOKUP($B14&"_1",Base!$E$4:$BO$7924,AJ$6,FALSE),VLOOKUP($B14&"_1",Base!$E$4:$BO$7924,AJ$5,FALSE))) ->  | AK14: =IF(IF($Y14="Número",VLOOKUP($B14&"_1",Base!$E$4:$BO$7924,AK$6,FALSE),VLOOKUP($B14&"_1",Base!$E$4:$BO$7924,AK$5,FALSE))="","",IF($Y14="Número",VLOOKUP($B14&"_1",Base!$E$4:$BO$7924,AK$6,FALSE),VLOOKUP($B14&"_1",Base!$E$4:$BO$7924,AK$5,FALSE))) -> 
B15: PA-07 | C15: Número de Unidades de servicio con planes de implementación para salas de lectura. | D15: X | E15: 28 | F15: 150 | G15: =+P15 -> 150 | H15: 1 | I15: 70 | J15: 70 | K15: 1 | L15: 110 | M15: 148 | N15: 1.345454545 | O15: 150 | P15: 150 | Q15: 1 | R15: NA | S15: NA | T15: NA | Y15: =+VLOOKUP(B15,'tablero nal'!$W$9:$AL$169,16,FALSE) ->  | Z15: =IF(IF($Y15="Número",VLOOKUP($B15&"_1",Base!$E$4:$BO$7924,Z$6,FALSE),VLOOKUP($B15&"_1",Base!$E$4:$BO$7924,Z$5,FALSE))="","",IF($Y15="Número",VLOOKUP($B15&"_1",Base!$E$4:$BO$7924,Z$6,FALSE),VLOOKUP($B15&"_1",Base!$E$4:$BO$7924,Z$5,FALSE))) ->  | AA15: =IF(IF($Y15="Número",VLOOKUP($B15&"_1",Base!$E$4:$BO$7924,AA$6,FALSE),VLOOKUP($B15&"_1",Base!$E$4:$BO$7924,AA$5,FALSE))="","",IF($Y15="Número",VLOOKUP($B15&"_1",Base!$E$4:$BO$7924,AA$6,FALSE),VLOOKUP($B15&"_1",Base!$E$4:$BO$7924,AA$5,FALSE))) ->  | AB15: =IF(IF($Y15="Número",VLOOKUP($B15&"_1",Base!$E$4:$BO$7924,AB$6,FALSE),VLOOKUP($B15&"_1",Base!$E$4:$BO$7924,AB$5,FALSE))="","",IF($Y15="Número",VLOOKUP($B15&"_1",Base!$E$4:$BO$7924,AB$6,FALSE),VLOOKUP($B15&"_1",Base!$E$4:$BO$7924,AB$5,FALSE))) ->  | AC15: =IF(IF($Y15="Número",VLOOKUP($B15&"_1",Base!$E$4:$BO$7924,AC$6,FALSE),VLOOKUP($B15&"_1",Base!$E$4:$BO$7924,AC$5,FALSE))="","",IF($Y15="Número",VLOOKUP($B15&"_1",Base!$E$4:$BO$7924,AC$6,FALSE),VLOOKUP($B15&"_1",Base!$E$4:$BO$7924,AC$5,FALSE))) ->  | AD15: =IF(IF($Y15="Número",VLOOKUP($B15&"_1",Base!$E$4:$BO$7924,AD$6,FALSE),VLOOKUP($B15&"_1",Base!$E$4:$BO$7924,AD$5,FALSE))="","",IF($Y15="Número",VLOOKUP($B15&"_1",Base!$E$4:$BO$7924,AD$6,FALSE),VLOOKUP($B15&"_1",Base!$E$4:$BO$7924,AD$5,FALSE))) ->  | AE15: =IF(IF($Y15="Número",VLOOKUP($B15&"_1",Base!$E$4:$BO$7924,AE$6,FALSE),VLOOKUP($B15&"_1",Base!$E$4:$BO$7924,AE$5,FALSE))="","",IF($Y15="Número",VLOOKUP($B15&"_1",Base!$E$4:$BO$7924,AE$6,FALSE),VLOOKUP($B15&"_1",Base!$E$4:$BO$7924,AE$5,FALSE))) ->  | AF15: =IF(IF($Y15="Número",VLOOKUP($B15&"_1",Base!$E$4:$BO$7924,AF$6,FALSE),VLOOKUP($B15&"_1",Base!$E$4:$BO$7924,AF$5,FALSE))="","",IF($Y15="Número",VLOOKUP($B15&"_1",Base!$E$4:$BO$7924,AF$6,FALSE),VLOOKUP($B15&"_1",Base!$E$4:$BO$7924,AF$5,FALSE))) ->  | AG15: =IF(IF($Y15="Número",VLOOKUP($B15&"_1",Base!$E$4:$BO$7924,AG$6,FALSE),VLOOKUP($B15&"_1",Base!$E$4:$BO$7924,AG$5,FALSE))="","",IF($Y15="Número",VLOOKUP($B15&"_1",Base!$E$4:$BO$7924,AG$6,FALSE),VLOOKUP($B15&"_1",Base!$E$4:$BO$7924,AG$5,FALSE))) ->  | AH15: =IF(IF($Y15="Número",VLOOKUP($B15&"_1",Base!$E$4:$BO$7924,AH$6,FALSE),VLOOKUP($B15&"_1",Base!$E$4:$BO$7924,AH$5,FALSE))="","",IF($Y15="Número",VLOOKUP($B15&"_1",Base!$E$4:$BO$7924,AH$6,FALSE),VLOOKUP($B15&"_1",Base!$E$4:$BO$7924,AH$5,FALSE))) ->  | AI15: =IF(IF($Y15="Número",VLOOKUP($B15&"_1",Base!$E$4:$BO$7924,AI$6,FALSE),VLOOKUP($B15&"_1",Base!$E$4:$BO$7924,AI$5,FALSE))="","",IF($Y15="Número",VLOOKUP($B15&"_1",Base!$E$4:$BO$7924,AI$6,FALSE),VLOOKUP($B15&"_1",Base!$E$4:$BO$7924,AI$5,FALSE))) ->  | AJ15: =IF(IF($Y15="Número",VLOOKUP($B15&"_1",Base!$E$4:$BO$7924,AJ$6,FALSE),VLOOKUP($B15&"_1",Base!$E$4:$BO$7924,AJ$5,FALSE))="","",IF($Y15="Número",VLOOKUP($B15&"_1",Base!$E$4:$BO$7924,AJ$6,FALSE),VLOOKUP($B15&"_1",Base!$E$4:$BO$7924,AJ$5,FALSE))) ->  | AK15: =IF(IF($Y15="Número",VLOOKUP($B15&"_1",Base!$E$4:$BO$7924,AK$6,FALSE),VLOOKUP($B15&"_1",Base!$E$4:$BO$7924,AK$5,FALSE))="","",IF($Y15="Número",VLOOKUP($B15&"_1",Base!$E$4:$BO$7924,AK$6,FALSE),VLOOKUP($B15&"_1",Base!$E$4:$BO$7924,AK$5,FALSE))) -> 
B16: PA-08 | C16: =+VLOOKUP(B16,'tablero nal'!$W$9:$X$169,2,FALSE) -> Porcentaje de Entidades Administradoras de Servicio Integral con esquemas de fortalecimiento implementados que generen capacidades para gestionar procesos de calidad. | D16: X | E16: - | F16: 0.5 | G16: 0.504 | H16: 1.008 | I16: 0.5 | J16: 0.5015 | K16: 1.003 | L16: 0.9 | M16: 0.689 | N16: 0.7655555556 | O16: 0.5 | P16: 0.664 | Q16: 1.328 | R16: =+VLOOKUP(B16,'tablero nal'!$W$9:$AB$169,6,FALSE) -> 0.5 | S16: 0.504 | T16: 1.008 | Y16: =+VLOOKUP(B16,'tablero nal'!$W$9:$AL$169,16,FALSE) -> Porcentaje | Z16: =IF(IF($Y16="Número",VLOOKUP($B16&"_1",Base!$E$4:$BO$7924,Z$6,FALSE),VLOOKUP($B16&"_1",Base!$E$4:$BO$7924,Z$5,FALSE))="","",IF($Y16="Número",VLOOKUP($B16&"_1",Base!$E$4:$BO$7924,Z$6,FALSE),VLOOKUP($B16&"_1",Base!$E$4:$BO$7924,Z$5,FALSE))) -> NA | AA16: =IF(IF($Y16="Número",VLOOKUP($B16&"_1",Base!$E$4:$BO$7924,AA$6,FALSE),VLOOKUP($B16&"_1",Base!$E$4:$BO$7924,AA$5,FALSE))="","",IF($Y16="Número",VLOOKUP($B16&"_1",Base!$E$4:$BO$7924,AA$6,FALSE),VLOOKUP($B16&"_1",Base!$E$4:$BO$7924,AA$5,FALSE))) -> NA | AB16: =IF(IF($Y16="Número",VLOOKUP($B16&"_1",Base!$E$4:$BO$7924,AB$6,FALSE),VLOOKUP($B16&"_1",Base!$E$4:$BO$7924,AB$5,FALSE))="","",IF($Y16="Número",VLOOKUP($B16&"_1",Base!$E$4:$BO$7924,AB$6,FALSE),VLOOKUP($B16&"_1",Base!$E$4:$BO$7924,AB$5,FALSE))) -> 0.49 | AC16: =IF(IF($Y16="Número",VLOOKUP($B16&"_1",Base!$E$4:$BO$7924,AC$6,FALSE),VLOOKUP($B16&"_1",Base!$E$4:$BO$7924,AC$5,FALSE))="","",IF($Y16="Número",VLOOKUP($B16&"_1",Base!$E$4:$BO$7924,AC$6,FALSE),VLOOKUP($B16&"_1",Base!$E$4:$BO$7924,AC$5,FALSE))) -> NA | AD16: =IF(IF($Y16="Número",VLOOKUP($B16&"_1",Base!$E$4:$BO$7924,AD$6,FALSE),VLOOKUP($B16&"_1",Base!$E$4:$BO$7924,AD$5,FALSE))="","",IF($Y16="Número",VLOOKUP($B16&"_1",Base!$E$4:$BO$7924,AD$6,FALSE),VLOOKUP($B16&"_1",Base!$E$4:$BO$7924,AD$5,FALSE))) -> NA | AE16: =IF(IF($Y16="Número",VLOOKUP($B16&"_1",Base!$E$4:$BO$7924,AE$6,FALSE),VLOOKUP($B16&"_1",Base!$E$4:$BO$7924,AE$5,FALSE))="","",IF($Y16="Número",VLOOKUP($B16&"_1",Base!$E$4:$BO$7924,AE$6,FALSE),VLOOKUP($B16&"_1",Base!$E$4:$BO$7924,AE$5,FALSE))) -> 0.504 | AF16: =IF(IF($Y16="Número",VLOOKUP($B16&"_1",Base!$E$4:$BO$7924,AF$6,FALSE),VLOOKUP($B16&"_1",Base!$E$4:$BO$7924,AF$5,FALSE))="","",IF($Y16="Número",VLOOKUP($B16&"_1",Base!$E$4:$BO$7924,AF$6,FALSE),VLOOKUP($B16&"_1",Base!$E$4:$BO$7924,AF$5,FALSE))) -> NA | AG16: =IF(IF($Y16="Número",VLOOKUP($B16&"_1",Base!$E$4:$BO$7924,AG$6,FALSE),VLOOKUP($B16&"_1",Base!$E$4:$BO$7924,AG$5,FALSE))="","",IF($Y16="Número",VLOOKUP($B16&"_1",Base!$E$4:$BO$7924,AG$6,FALSE),VLOOKUP($B16&"_1",Base!$E$4:$BO$7924,AG$5,FALSE))) -> NA | AH16: =IF(IF($Y16="Número",VLOOKUP($B16&"_1",Base!$E$4:$BO$7924,AH$6,FALSE),VLOOKUP($B16&"_1",Base!$E$4:$BO$7924,AH$5,FALSE))="","",IF($Y16="Número",VLOOKUP($B16&"_1",Base!$E$4:$BO$7924,AH$6,FALSE),VLOOKUP($B16&"_1",Base!$E$4:$BO$7924,AH$5,FALSE))) ->  | AI16: =IF(IF($Y16="Número",VLOOKUP($B16&"_1",Base!$E$4:$BO$7924,AI$6,FALSE),VLOOKUP($B16&"_1",Base!$E$4:$BO$7924,AI$5,FALSE))="","",IF($Y16="Número",VLOOKUP($B16&"_1",Base!$E$4:$BO$7924,AI$6,FALSE),VLOOKUP($B16&"_1",Base!$E$4:$BO$7924,AI$5,FALSE))) ->  | AJ16: =IF(IF($Y16="Número",VLOOKUP($B16&"_1",Base!$E$4:$BO$7924,AJ$6,FALSE),VLOOKUP($B16&"_1",Base!$E$4:$BO$7924,AJ$5,FALSE))="","",IF($Y16="Número",VLOOKUP($B16&"_1",Base!$E$4:$BO$7924,AJ$6,FALSE),VLOOKUP($B16&"_1",Base!$E$4:$BO$7924,AJ$5,FALSE))) ->  | AK16: =IF(IF($Y16="Número",VLOOKUP($B16&"_1",Base!$E$4:$BO$7924,AK$6,FALSE),VLOOKUP($B16&"_1",Base!$E$4:$BO$7924,AK$5,FALSE))="","",IF($Y16="Número",VLOOKUP($B16&"_1",Base!$E$4:$BO$7924,AK$6,FALSE),VLOOKUP($B16&"_1",Base!$E$4:$BO$7924,AK$5,FALSE))) -> 
B17: PA-10 | C17: =+VLOOKUP(B17,'tablero nal'!$W$9:$X$169,2,FALSE) -> Número de visitas de supervisión realizadas a las modalidades de Primera Infancia. | E17: - | F17: =+VLOOKUP(B17,'tablero nal'!$W$9:$BB$169,4,FALSE) -> 240000 | G17: 209757 | H17: 0.8739875 | I17: 54000 | J17: 62948 | K17: 1.165703704 | L17: 50000 | M17: 67851 | N17: 1.35702 | O17: 50000 | P17: 72632 | Q17: 1.45264 | R17: =+VLOOKUP(B17,'tablero nal'!$W$9:$AB$169,6,FALSE) -> 240000 | S17: 209757 | T17: 0.8739875 | Y17: =+VLOOKUP(B17,'tablero nal'!$W$9:$AL$169,16,FALSE) -> Número | Z17: =IF(IF($Y17="Número",VLOOKUP($B17&"_1",Base!$E$4:$BO$7924,Z$6,FALSE),VLOOKUP($B17&"_1",Base!$E$4:$BO$7924,Z$5,FALSE))="","",IF($Y17="Número",VLOOKUP($B17&"_1",Base!$E$4:$BO$7924,Z$6,FALSE),VLOOKUP($B17&"_1",Base!$E$4:$BO$7924,Z$5,FALSE))) -> NA | AA17: =IF(IF($Y17="Número",VLOOKUP($B17&"_1",Base!$E$4:$BO$7924,AA$6,FALSE),VLOOKUP($B17&"_1",Base!$E$4:$BO$7924,AA$5,FALSE))="","",IF($Y17="Número",VLOOKUP($B17&"_1",Base!$E$4:$BO$7924,AA$6,FALSE),VLOOKUP($B17&"_1",Base!$E$4:$BO$7924,AA$5,FALSE))) -> NA | AB17: =IF(IF($Y17="Número",VLOOKUP($B17&"_1",Base!$E$4:$BO$7924,AB$6,FALSE),VLOOKUP($B17&"_1",Base!$E$4:$BO$7924,AB$5,FALSE))="","",IF($Y17="Número",VLOOKUP($B17&"_1",Base!$E$4:$BO$7924,AB$6,FALSE),VLOOKUP($B17&"_1",Base!$E$4:$BO$7924,AB$5,FALSE))) -> 205700 | AC17: =IF(IF($Y17="Número",VLOOKUP($B17&"_1",Base!$E$4:$BO$7924,AC$6,FALSE),VLOOKUP($B17&"_1",Base!$E$4:$BO$7924,AC$5,FALSE))="","",IF($Y17="Número",VLOOKUP($B17&"_1",Base!$E$4:$BO$7924,AC$6,FALSE),VLOOKUP($B17&"_1",Base!$E$4:$BO$7924,AC$5,FALSE))) -> NA | AD17: =IF(IF($Y17="Número",VLOOKUP($B17&"_1",Base!$E$4:$BO$7924,AD$6,FALSE),VLOOKUP($B17&"_1",Base!$E$4:$BO$7924,AD$5,FALSE))="","",IF($Y17="Número",VLOOKUP($B17&"_1",Base!$E$4:$BO$7924,AD$6,FALSE),VLOOKUP($B17&"_1",Base!$E$4:$BO$7924,AD$5,FALSE))) -> NA | AE17: =IF(IF($Y17="Número",VLOOKUP($B17&"_1",Base!$E$4:$BO$7924,AE$6,FALSE),VLOOKUP($B17&"_1",Base!$E$4:$BO$7924,AE$5,FALSE))="","",IF($Y17="Número",VLOOKUP($B17&"_1",Base!$E$4:$BO$7924,AE$6,FALSE),VLOOKUP($B17&"_1",Base!$E$4:$BO$7924,AE$5,FALSE))) -> 209757 | AF17: =IF(IF($Y17="Número",VLOOKUP($B17&"_1",Base!$E$4:$BO$7924,AF$6,FALSE),VLOOKUP($B17&"_1",Base!$E$4:$BO$7924,AF$5,FALSE))="","",IF($Y17="Número",VLOOKUP($B17&"_1",Base!$E$4:$BO$7924,AF$6,FALSE),VLOOKUP($B17&"_1",Base!$E$4:$BO$7924,AF$5,FALSE))) -> NA | AG17: =IF(IF($Y17="Número",VLOOKUP($B17&"_1",Base!$E$4:$BO$7924,AG$6,FALSE),VLOOKUP($B17&"_1",Base!$E$4:$BO$7924,AG$5,FALSE))="","",IF($Y17="Número",VLOOKUP($B17&"_1",Base!$E$4:$BO$7924,AG$6,FALSE),VLOOKUP($B17&"_1",Base!$E$4:$BO$7924,AG$5,FALSE))) -> NA | AH17: =IF(IF($Y17="Número",VLOOKUP($B17&"_1",Base!$E$4:$BO$7924,AH$6,FALSE),VLOOKUP($B17&"_1",Base!$E$4:$BO$7924,AH$5,FALSE))="","",IF($Y17="Número",VLOOKUP($B17&"_1",Base!$E$4:$BO$7924,AH$6,FALSE),VLOOKUP($B17&"_1",Base!$E$4:$BO$7924,AH$5,FALSE))) ->  | AI17: =IF(IF($Y17="Número",VLOOKUP($B17&"_1",Base!$E$4:$BO$7924,AI$6,FALSE),VLOOKUP($B17&"_1",Base!$E$4:$BO$7924,AI$5,FALSE))="","",IF($Y17="Número",VLOOKUP($B17&"_1",Base!$E$4:$BO$7924,AI$6,FALSE),VLOOKUP($B17&"_1",Base!$E$4:$BO$7924,AI$5,FALSE))) ->  | AJ17: =IF(IF($Y17="Número",VLOOKUP($B17&"_1",Base!$E$4:$BO$7924,AJ$6,FALSE),VLOOKUP($B17&"_1",Base!$E$4:$BO$7924,AJ$5,FALSE))="","",IF($Y17="Número",VLOOKUP($B17&"_1",Base!$E$4:$BO$7924,AJ$6,FALSE),VLOOKUP($B17&"_1",Base!$E$4:$BO$7924,AJ$5,FALSE))) ->  | AK17: =IF(IF($Y17="Número",VLOOKUP($B17&"_1",Base!$E$4:$BO$7924,AK$6,FALSE),VLOOKUP($B17&"_1",Base!$E$4:$BO$7924,AK$5,FALSE))="","",IF($Y17="Número",VLOOKUP($B17&"_1",Base!$E$4:$BO$7924,AK$6,FALSE),VLOOKUP($B17&"_1",Base!$E$4:$BO$7924,AK$5,FALSE))) -> 
B18: PA-11 | C18: =+VLOOKUP(B18,'tablero nal'!$W$9:$X$169,2,FALSE) -> Porcentaje del diseño e implementación de la ruta integral de atenciones para la infancia y la adolescencia. | E18: - | F18: =+VLOOKUP(B18,'tablero nal'!$W$9:$BB$169,4,FALSE) -> 1 | G18: 0.764 | H18: 0.764 | I18: 0.3 | J18: 0.3529 | K18: 1.176333333 | L18: 0.5 | M18: 0.529 | N18: 1.058 | O18: 0.76 | P18: 0.934 | Q18: 1.228947368 | R18: =+VLOOKUP(B18,'tablero nal'!$W$9:$AB$169,6,FALSE) -> 1 | S18: =+IFERROR(LOOKUP(10000000,$Z18:$AK18),"NA") -> 0.764 | T18: 0.764 | Y18: =+VLOOKUP(B18,'tablero nal'!$W$9:$AL$169,16,FALSE) -> Porcentaje | Z18: =IF(IF($Y18="Número",VLOOKUP($B18&"_1",Base!$E$4:$BO$7924,Z$6,FALSE),VLOOKUP($B18&"_1",Base!$E$4:$BO$7924,Z$5,FALSE))="","",IF($Y18="Número",VLOOKUP($B18&"_1",Base!$E$4:$BO$7924,Z$6,FALSE),VLOOKUP($B18&"_1",Base!$E$4:$BO$7924,Z$5,FALSE))) -> NA | AA18: =IF(IF($Y18="Número",VLOOKUP($B18&"_1",Base!$E$4:$BO$7924,AA$6,FALSE),VLOOKUP($B18&"_1",Base!$E$4:$BO$7924,AA$5,FALSE))="","",IF($Y18="Número",VLOOKUP($B18&"_1",Base!$E$4:$BO$7924,AA$6,FALSE),VLOOKUP($B18&"_1",Base!$E$4:$BO$7924,AA$5,FALSE))) -> NA | AB18: =IF(IF($Y18="Número",VLOOKUP($B18&"_1",Base!$E$4:$BO$7924,AB$6,FALSE),VLOOKUP($B18&"_1",Base!$E$4:$BO$7924,AB$5,FALSE))="","",IF($Y18="Número",VLOOKUP($B18&"_1",Base!$E$4:$BO$7924,AB$6,FALSE),VLOOKUP($B18&"_1",Base!$E$4:$BO$7924,AB$5,FALSE))) -> NA | AC18: =IF(IF($Y18="Número",VLOOKUP($B18&"_1",Base!$E$4:$BO$7924,AC$6,FALSE),VLOOKUP($B18&"_1",Base!$E$4:$BO$7924,AC$5,FALSE))="","",IF($Y18="Número",VLOOKUP($B18&"_1",Base!$E$4:$BO$7924,AC$6,FALSE),VLOOKUP($B18&"_1",Base!$E$4:$BO$7924,AC$5,FALSE))) -> NA | AD18: =IF(IF($Y18="Número",VLOOKUP($B18&"_1",Base!$E$4:$BO$7924,AD$6,FALSE),VLOOKUP($B18&"_1",Base!$E$4:$BO$7924,AD$5,FALSE))="","",IF($Y18="Número",VLOOKUP($B18&"_1",Base!$E$4:$BO$7924,AD$6,FALSE),VLOOKUP($B18&"_1",Base!$E$4:$BO$7924,AD$5,FALSE))) -> NA | AE18: =IF(IF($Y18="Número",VLOOKUP($B18&"_1",Base!$E$4:$BO$7924,AE$6,FALSE),VLOOKUP($B18&"_1",Base!$E$4:$BO$7924,AE$5,FALSE))="","",IF($Y18="Número",VLOOKUP($B18&"_1",Base!$E$4:$BO$7924,AE$6,FALSE),VLOOKUP($B18&"_1",Base!$E$4:$BO$7924,AE$5,FALSE))) -> 0.764 | AF18: =IF(IF($Y18="Número",VLOOKUP($B18&"_1",Base!$E$4:$BO$7924,AF$6,FALSE),VLOOKUP($B18&"_1",Base!$E$4:$BO$7924,AF$5,FALSE))="","",IF($Y18="Número",VLOOKUP($B18&"_1",Base!$E$4:$BO$7924,AF$6,FALSE),VLOOKUP($B18&"_1",Base!$E$4:$BO$7924,AF$5,FALSE))) -> NA | AG18: =IF(IF($Y18="Número",VLOOKUP($B18&"_1",Base!$E$4:$BO$7924,AG$6,FALSE),VLOOKUP($B18&"_1",Base!$E$4:$BO$7924,AG$5,FALSE))="","",IF($Y18="Número",VLOOKUP($B18&"_1",Base!$E$4:$BO$7924,AG$6,FALSE),VLOOKUP($B18&"_1",Base!$E$4:$BO$7924,AG$5,FALSE))) -> NA | AH18: =IF(IF($Y18="Número",VLOOKUP($B18&"_1",Base!$E$4:$BO$7924,AH$6,FALSE),VLOOKUP($B18&"_1",Base!$E$4:$BO$7924,AH$5,FALSE))="","",IF($Y18="Número",VLOOKUP($B18&"_1",Base!$E$4:$BO$7924,AH$6,FALSE),VLOOKUP($B18&"_1",Base!$E$4:$BO$7924,AH$5,FALSE))) ->  | AI18: =IF(IF($Y18="Número",VLOOKUP($B18&"_1",Base!$E$4:$BO$7924,AI$6,FALSE),VLOOKUP($B18&"_1",Base!$E$4:$BO$7924,AI$5,FALSE))="","",IF($Y18="Número",VLOOKUP($B18&"_1",Base!$E$4:$BO$7924,AI$6,FALSE),VLOOKUP($B18&"_1",Base!$E$4:$BO$7924,AI$5,FALSE))) ->  | AJ18: =IF(IF($Y18="Número",VLOOKUP($B18&"_1",Base!$E$4:$BO$7924,AJ$6,FALSE),VLOOKUP($B18&"_1",Base!$E$4:$BO$7924,AJ$5,FALSE))="","",IF($Y18="Número",VLOOKUP($B18&"_1",Base!$E$4:$BO$7924,AJ$6,FALSE),VLOOKUP($B18&"_1",Base!$E$4:$BO$7924,AJ$5,FALSE))) ->  | AK18: =IF(IF($Y18="Número",VLOOKUP($B18&"_1",Base!$E$4:$BO$7924,AK$6,FALSE),VLOOKUP($B18&"_1",Base!$E$4:$BO$7924,AK$5,FALSE))="","",IF($Y18="Número",VLOOKUP($B18&"_1",Base!$E$4:$BO$7924,AK$6,FALSE),VLOOKUP($B18&"_1",Base!$E$4:$BO$7924,AK$5,FALSE))) -> 
B19: PA-12 | C19: =+VLOOKUP(B19,'tablero nal'!$W$9:$X$169,2,FALSE) -> Porcentaje del diseño e implementación de la política Nacional para la infancia y la adolescencia. | E19: - | F19: =+VLOOKUP(B19,'tablero nal'!$W$9:$BB$169,4,FALSE) -> 1 | G19: 0.706 | H19: 0.706 | I19: 0.3 | J19: 0.3529 | K19: 1.176333333 | L19: 0.5 | M19: 0.529 | N19: 1.058 | O19: 0.76 | P19: 0.934 | Q19: 1.228947368 | R19: =+VLOOKUP(B19,'tablero nal'!$W$9:$AB$169,6,FALSE) -> 1 | S19: 0.706 | T19: 0.706 | Y19: =+VLOOKUP(B19,'tablero nal'!$W$9:$AL$169,16,FALSE) -> Porcentaje | Z19: =IF(IF($Y19="Número",VLOOKUP($B19&"_1",Base!$E$4:$BO$7924,Z$6,FALSE),VLOOKUP($B19&"_1",Base!$E$4:$BO$7924,Z$5,FALSE))="","",IF($Y19="Número",VLOOKUP($B19&"_1",Base!$E$4:$BO$7924,Z$6,FALSE),VLOOKUP($B19&"_1",Base!$E$4:$BO$7924,Z$5,FALSE))) -> NA | AA19: =IF(IF($Y19="Número",VLOOKUP($B19&"_1",Base!$E$4:$BO$7924,AA$6,FALSE),VLOOKUP($B19&"_1",Base!$E$4:$BO$7924,AA$5,FALSE))="","",IF($Y19="Número",VLOOKUP($B19&"_1",Base!$E$4:$BO$7924,AA$6,FALSE),VLOOKUP($B19&"_1",Base!$E$4:$BO$7924,AA$5,FALSE))) -> NA | AB19: =IF(IF($Y19="Número",VLOOKUP($B19&"_1",Base!$E$4:$BO$7924,AB$6,FALSE),VLOOKUP($B19&"_1",Base!$E$4:$BO$7924,AB$5,FALSE))="","",IF($Y19="Número",VLOOKUP($B19&"_1",Base!$E$4:$BO$7924,AB$6,FALSE),VLOOKUP($B19&"_1",Base!$E$4:$BO$7924,AB$5,FALSE))) -> NA | AC19: =IF(IF($Y19="Número",VLOOKUP($B19&"_1",Base!$E$4:$BO$7924,AC$6,FALSE),VLOOKUP($B19&"_1",Base!$E$4:$BO$7924,AC$5,FALSE))="","",IF($Y19="Número",VLOOKUP($B19&"_1",Base!$E$4:$BO$7924,AC$6,FALSE),VLOOKUP($B19&"_1",Base!$E$4:$BO$7924,AC$5,FALSE))) -> NA | AD19: =IF(IF($Y19="Número",VLOOKUP($B19&"_1",Base!$E$4:$BO$7924,AD$6,FALSE),VLOOKUP($B19&"_1",Base!$E$4:$BO$7924,AD$5,FALSE))="","",IF($Y19="Número",VLOOKUP($B19&"_1",Base!$E$4:$BO$7924,AD$6,FALSE),VLOOKUP($B19&"_1",Base!$E$4:$BO$7924,AD$5,FALSE))) -> NA | AE19: =IF(IF($Y19="Número",VLOOKUP($B19&"_1",Base!$E$4:$BO$7924,AE$6,FALSE),VLOOKUP($B19&"_1",Base!$E$4:$BO$7924,AE$5,FALSE))="","",IF($Y19="Número",VLOOKUP($B19&"_1",Base!$E$4:$BO$7924,AE$6,FALSE),VLOOKUP($B19&"_1",Base!$E$4:$BO$7924,AE$5,FALSE))) -> 0.706 | AF19: =IF(IF($Y19="Número",VLOOKUP($B19&"_1",Base!$E$4:$BO$7924,AF$6,FALSE),VLOOKUP($B19&"_1",Base!$E$4:$BO$7924,AF$5,FALSE))="","",IF($Y19="Número",VLOOKUP($B19&"_1",Base!$E$4:$BO$7924,AF$6,FALSE),VLOOKUP($B19&"_1",Base!$E$4:$BO$7924,AF$5,FALSE))) -> NA | AG19: =IF(IF($Y19="Número",VLOOKUP($B19&"_1",Base!$E$4:$BO$7924,AG$6,FALSE),VLOOKUP($B19&"_1",Base!$E$4:$BO$7924,AG$5,FALSE))="","",IF($Y19="Número",VLOOKUP($B19&"_1",Base!$E$4:$BO$7924,AG$6,FALSE),VLOOKUP($B19&"_1",Base!$E$4:$BO$7924,AG$5,FALSE))) -> NA | AH19: =IF(IF($Y19="Número",VLOOKUP($B19&"_1",Base!$E$4:$BO$7924,AH$6,FALSE),VLOOKUP($B19&"_1",Base!$E$4:$BO$7924,AH$5,FALSE))="","",IF($Y19="Número",VLOOKUP($B19&"_1",Base!$E$4:$BO$7924,AH$6,FALSE),VLOOKUP($B19&"_1",Base!$E$4:$BO$7924,AH$5,FALSE))) ->  | AI19: =IF(IF($Y19="Número",VLOOKUP($B19&"_1",Base!$E$4:$BO$7924,AI$6,FALSE),VLOOKUP($B19&"_1",Base!$E$4:$BO$7924,AI$5,FALSE))="","",IF($Y19="Número",VLOOKUP($B19&"_1",Base!$E$4:$BO$7924,AI$6,FALSE),VLOOKUP($B19&"_1",Base!$E$4:$BO$7924,AI$5,FALSE))) ->  | AJ19: =IF(IF($Y19="Número",VLOOKUP($B19&"_1",Base!$E$4:$BO$7924,AJ$6,FALSE),VLOOKUP($B19&"_1",Base!$E$4:$BO$7924,AJ$5,FALSE))="","",IF($Y19="Número",VLOOKUP($B19&"_1",Base!$E$4:$BO$7924,AJ$6,FALSE),VLOOKUP($B19&"_1",Base!$E$4:$BO$7924,AJ$5,FALSE))) ->  | AK19: =IF(IF($Y19="Número",VLOOKUP($B19&"_1",Base!$E$4:$BO$7924,AK$6,FALSE),VLOOKUP($B19&"_1",Base!$E$4:$BO$7924,AK$5,FALSE))="","",IF($Y19="Número",VLOOKUP($B19&"_1",Base!$E$4:$BO$7924,AK$6,FALSE),VLOOKUP($B19&"_1",Base!$E$4:$BO$7924,AK$5,FALSE))) -> 
B20: PA-13 | C20: =+VLOOKUP(B20,'tablero nal'!$W$9:$X$169,2,FALSE) -> Número de departamentos con la estrategia de prevención de embarazo en la adolescencia implementada | E20: - | F20: =+VLOOKUP(B20,'tablero nal'!$W$9:$BB$169,4,FALSE) -> 33 | G20: 29 | H20: 0.8787878788 | I20: 6 | J20: 6 | K20: 1 | L20: 15 | M20: 15 | N20: 1 | O20: 24 | P20: 24 | Q20: 1 | R20: =+VLOOKUP(B20,'tablero nal'!$W$9:$AB$169,6,FALSE) -> 33 | S20: 29 | T20: 0.8787878788 | Y20: =+VLOOKUP(B20,'tablero nal'!$W$9:$AL$169,16,FALSE) -> Número | Z20: =IF(IF($Y20="Número",VLOOKUP($B20&"_1",Base!$E$4:$BO$7924,Z$6,FALSE),VLOOKUP($B20&"_1",Base!$E$4:$BO$7924,Z$5,FALSE))="","",IF($Y20="Número",VLOOKUP($B20&"_1",Base!$E$4:$BO$7924,Z$6,FALSE),VLOOKUP($B20&"_1",Base!$E$4:$BO$7924,Z$5,FALSE))) -> NA | AA20: =IF(IF($Y20="Número",VLOOKUP($B20&"_1",Base!$E$4:$BO$7924,AA$6,FALSE),VLOOKUP($B20&"_1",Base!$E$4:$BO$7924,AA$5,FALSE))="","",IF($Y20="Número",VLOOKUP($B20&"_1",Base!$E$4:$BO$7924,AA$6,FALSE),VLOOKUP($B20&"_1",Base!$E$4:$BO$7924,AA$5,FALSE))) -> NA | AB20: =IF(IF($Y20="Número",VLOOKUP($B20&"_1",Base!$E$4:$BO$7924,AB$6,FALSE),VLOOKUP($B20&"_1",Base!$E$4:$BO$7924,AB$5,FALSE))="","",IF($Y20="Número",VLOOKUP($B20&"_1",Base!$E$4:$BO$7924,AB$6,FALSE),VLOOKUP($B20&"_1",Base!$E$4:$BO$7924,AB$5,FALSE))) -> 27 | AC20: =IF(IF($Y20="Número",VLOOKUP($B20&"_1",Base!$E$4:$BO$7924,AC$6,FALSE),VLOOKUP($B20&"_1",Base!$E$4:$BO$7924,AC$5,FALSE))="","",IF($Y20="Número",VLOOKUP($B20&"_1",Base!$E$4:$BO$7924,AC$6,FALSE),VLOOKUP($B20&"_1",Base!$E$4:$BO$7924,AC$5,FALSE))) -> NA | AD20: =IF(IF($Y20="Número",VLOOKUP($B20&"_1",Base!$E$4:$BO$7924,AD$6,FALSE),VLOOKUP($B20&"_1",Base!$E$4:$BO$7924,AD$5,FALSE))="","",IF($Y20="Número",VLOOKUP($B20&"_1",Base!$E$4:$BO$7924,AD$6,FALSE),VLOOKUP($B20&"_1",Base!$E$4:$BO$7924,AD$5,FALSE))) -> NA | AE20: =IF(IF($Y20="Número",VLOOKUP($B20&"_1",Base!$E$4:$BO$7924,AE$6,FALSE),VLOOKUP($B20&"_1",Base!$E$4:$BO$7924,AE$5,FALSE))="","",IF($Y20="Número",VLOOKUP($B20&"_1",Base!$E$4:$BO$7924,AE$6,FALSE),VLOOKUP($B20&"_1",Base!$E$4:$BO$7924,AE$5,FALSE))) -> 29 | AF20: =IF(IF($Y20="Número",VLOOKUP($B20&"_1",Base!$E$4:$BO$7924,AF$6,FALSE),VLOOKUP($B20&"_1",Base!$E$4:$BO$7924,AF$5,FALSE))="","",IF($Y20="Número",VLOOKUP($B20&"_1",Base!$E$4:$BO$7924,AF$6,FALSE),VLOOKUP($B20&"_1",Base!$E$4:$BO$7924,AF$5,FALSE))) -> NA | AG20: =IF(IF($Y20="Número",VLOOKUP($B20&"_1",Base!$E$4:$BO$7924,AG$6,FALSE),VLOOKUP($B20&"_1",Base!$E$4:$BO$7924,AG$5,FALSE))="","",IF($Y20="Número",VLOOKUP($B20&"_1",Base!$E$4:$BO$7924,AG$6,FALSE),VLOOKUP($B20&"_1",Base!$E$4:$BO$7924,AG$5,FALSE))) -> NA | AH20: =IF(IF($Y20="Número",VLOOKUP($B20&"_1",Base!$E$4:$BO$7924,AH$6,FALSE),VLOOKUP($B20&"_1",Base!$E$4:$BO$7924,AH$5,FALSE))="","",IF($Y20="Número",VLOOKUP($B20&"_1",Base!$E$4:$BO$7924,AH$6,FALSE),VLOOKUP($B20&"_1",Base!$E$4:$BO$7924,AH$5,FALSE))) ->  | AI20: =IF(IF($Y20="Número",VLOOKUP($B20&"_1",Base!$E$4:$BO$7924,AI$6,FALSE),VLOOKUP($B20&"_1",Base!$E$4:$BO$7924,AI$5,FALSE))="","",IF($Y20="Número",VLOOKUP($B20&"_1",Base!$E$4:$BO$7924,AI$6,FALSE),VLOOKUP($B20&"_1",Base!$E$4:$BO$7924,AI$5,FALSE))) ->  | AJ20: =IF(IF($Y20="Número",VLOOKUP($B20&"_1",Base!$E$4:$BO$7924,AJ$6,FALSE),VLOOKUP($B20&"_1",Base!$E$4:$BO$7924,AJ$5,FALSE))="","",IF($Y20="Número",VLOOKUP($B20&"_1",Base!$E$4:$BO$7924,AJ$6,FALSE),VLOOKUP($B20&"_1",Base!$E$4:$BO$7924,AJ$5,FALSE))) ->  | AK20: =IF(IF($Y20="Número",VLOOKUP($B20&"_1",Base!$E$4:$BO$7924,AK$6,FALSE),VLOOKUP($B20&"_1",Base!$E$4:$BO$7924,AK$5,FALSE))="","",IF($Y20="Número",VLOOKUP($B20&"_1",Base!$E$4:$BO$7924,AK$6,FALSE),VLOOKUP($B20&"_1",Base!$E$4:$BO$7924,AK$5,FALSE))) -> 
B21: PA-14 | C21: =+VLOOKUP(B21,'tablero nal'!$W$9:$X$169,2,FALSE) -> Número de Municipios priorizados con la implementación de la estrategia de prevención de embarazo en la adolescencia | D21: X | E21: 192 | F21: =+VLOOKUP(B21,'tablero nal'!$W$9:$BB$169,4,FALSE) -> 353 | G21: 364 | H21: 1.031161473 | I21: 75 | J21: 75 | K21: 1 | L21: 190 | M21: 190 | N21: 1 | O21: 305 | P21: 313 | Q21: 1.026229508 | R21: =+VLOOKUP(B21,'tablero nal'!$W$9:$AB$169,6,FALSE) -> 353 | S21: 364 | T21: 1.031161473 | Y21: =+VLOOKUP(B21,'tablero nal'!$W$9:$AL$169,16,FALSE) -> Número | Z21: =IF(IF($Y21="Número",VLOOKUP($B21&"_1",Base!$E$4:$BO$7924,Z$6,FALSE),VLOOKUP($B21&"_1",Base!$E$4:$BO$7924,Z$5,FALSE))="","",IF($Y21="Número",VLOOKUP($B21&"_1",Base!$E$4:$BO$7924,Z$6,FALSE),VLOOKUP($B21&"_1",Base!$E$4:$BO$7924,Z$5,FALSE))) -> NA | AA21: =IF(IF($Y21="Número",VLOOKUP($B21&"_1",Base!$E$4:$BO$7924,AA$6,FALSE),VLOOKUP($B21&"_1",Base!$E$4:$BO$7924,AA$5,FALSE))="","",IF($Y21="Número",VLOOKUP($B21&"_1",Base!$E$4:$BO$7924,AA$6,FALSE),VLOOKUP($B21&"_1",Base!$E$4:$BO$7924,AA$5,FALSE))) -> NA | AB21: =IF(IF($Y21="Número",VLOOKUP($B21&"_1",Base!$E$4:$BO$7924,AB$6,FALSE),VLOOKUP($B21&"_1",Base!$E$4:$BO$7924,AB$5,FALSE))="","",IF($Y21="Número",VLOOKUP($B21&"_1",Base!$E$4:$BO$7924,AB$6,FALSE),VLOOKUP($B21&"_1",Base!$E$4:$BO$7924,AB$5,FALSE))) -> 364 | AC21: =IF(IF($Y21="Número",VLOOKUP($B21&"_1",Base!$E$4:$BO$7924,AC$6,FALSE),VLOOKUP($B21&"_1",Base!$E$4:$BO$7924,AC$5,FALSE))="","",IF($Y21="Número",VLOOKUP($B21&"_1",Base!$E$4:$BO$7924,AC$6,FALSE),VLOOKUP($B21&"_1",Base!$E$4:$BO$7924,AC$5,FALSE))) -> NA | AD21: =IF(IF($Y21="Número",VLOOKUP($B21&"_1",Base!$E$4:$BO$7924,AD$6,FALSE),VLOOKUP($B21&"_1",Base!$E$4:$BO$7924,AD$5,FALSE))="","",IF($Y21="Número",VLOOKUP($B21&"_1",Base!$E$4:$BO$7924,AD$6,FALSE),VLOOKUP($B21&"_1",Base!$E$4:$BO$7924,AD$5,FALSE))) -> NA | AE21: =IF(IF($Y21="Número",VLOOKUP($B21&"_1",Base!$E$4:$BO$7924,AE$6,FALSE),VLOOKUP($B21&"_1",Base!$E$4:$BO$7924,AE$5,FALSE))="","",IF($Y21="Número",VLOOKUP($B21&"_1",Base!$E$4:$BO$7924,AE$6,FALSE),VLOOKUP($B21&"_1",Base!$E$4:$BO$7924,AE$5,FALSE))) -> 364 | AF21: =IF(IF($Y21="Número",VLOOKUP($B21&"_1",Base!$E$4:$BO$7924,AF$6,FALSE),VLOOKUP($B21&"_1",Base!$E$4:$BO$7924,AF$5,FALSE))="","",IF($Y21="Número",VLOOKUP($B21&"_1",Base!$E$4:$BO$7924,AF$6,FALSE),VLOOKUP($B21&"_1",Base!$E$4:$BO$7924,AF$5,FALSE))) -> NA | AG21: =IF(IF($Y21="Número",VLOOKUP($B21&"_1",Base!$E$4:$BO$7924,AG$6,FALSE),VLOOKUP($B21&"_1",Base!$E$4:$BO$7924,AG$5,FALSE))="","",IF($Y21="Número",VLOOKUP($B21&"_1",Base!$E$4:$BO$7924,AG$6,FALSE),VLOOKUP($B21&"_1",Base!$E$4:$BO$7924,AG$5,FALSE))) -> NA | AH21: =IF(IF($Y21="Número",VLOOKUP($B21&"_1",Base!$E$4:$BO$7924,AH$6,FALSE),VLOOKUP($B21&"_1",Base!$E$4:$BO$7924,AH$5,FALSE))="","",IF($Y21="Número",VLOOKUP($B21&"_1",Base!$E$4:$BO$7924,AH$6,FALSE),VLOOKUP($B21&"_1",Base!$E$4:$BO$7924,AH$5,FALSE))) ->  | AI21: =IF(IF($Y21="Número",VLOOKUP($B21&"_1",Base!$E$4:$BO$7924,AI$6,FALSE),VLOOKUP($B21&"_1",Base!$E$4:$BO$7924,AI$5,FALSE))="","",IF($Y21="Número",VLOOKUP($B21&"_1",Base!$E$4:$BO$7924,AI$6,FALSE),VLOOKUP($B21&"_1",Base!$E$4:$BO$7924,AI$5,FALSE))) ->  | AJ21: =IF(IF($Y21="Número",VLOOKUP($B21&"_1",Base!$E$4:$BO$7924,AJ$6,FALSE),VLOOKUP($B21&"_1",Base!$E$4:$BO$7924,AJ$5,FALSE))="","",IF($Y21="Número",VLOOKUP($B21&"_1",Base!$E$4:$BO$7924,AJ$6,FALSE),VLOOKUP($B21&"_1",Base!$E$4:$BO$7924,AJ$5,FALSE))) ->  | AK21: =IF(IF($Y21="Número",VLOOKUP($B21&"_1",Base!$E$4:$BO$7924,AK$6,FALSE),VLOOKUP($B21&"_1",Base!$E$4:$BO$7924,AK$5,FALSE))="","",IF($Y21="Número",VLOOKUP($B21&"_1",Base!$E$4:$BO$7924,AK$6,FALSE),VLOOKUP($B21&"_1",Base!$E$4:$BO$7924,AK$5,FALSE))) -> 
B22: PA-15 | C22: =+VLOOKUP(B22,'tablero nal'!$W$9:$X$169,2,FALSE) -> Número de Agentes educativos, institucionales y comunitarios de Programas del ICBF formados en derechos sexuales y reproductivos y prevención del embarazo en la adolescencia | E22: 3790 | F22: =+VLOOKUP(B22,'tablero nal'!$W$9:$BB$169,4,FALSE) -> 15042 | G22: 14875 | H22: 0.988897753 | I22: 4000 | J22: 934 | K22: 0.2335 | L22: 5800 | M22: 7499 | N22: 1.292931034 | O22: 11600 | P22: 12574 | Q22: 1.083965517 | R22: =+VLOOKUP(B22,'tablero nal'!$W$9:$AB$169,6,FALSE) -> 15042 | S22: 14875 | T22: 0.988897753 | Y22: =+VLOOKUP(B22,'tablero nal'!$W$9:$AL$169,16,FALSE) -> Número | Z22: =IF(IF($Y22="Número",VLOOKUP($B22&"_1",Base!$E$4:$BO$7924,Z$6,FALSE),VLOOKUP($B22&"_1",Base!$E$4:$BO$7924,Z$5,FALSE))="","",IF($Y22="Número",VLOOKUP($B22&"_1",Base!$E$4:$BO$7924,Z$6,FALSE),VLOOKUP($B22&"_1",Base!$E$4:$BO$7924,Z$5,FALSE))) -> NA | AA22: =IF(IF($Y22="Número",VLOOKUP($B22&"_1",Base!$E$4:$BO$7924,AA$6,FALSE),VLOOKUP($B22&"_1",Base!$E$4:$BO$7924,AA$5,FALSE))="","",IF($Y22="Número",VLOOKUP($B22&"_1",Base!$E$4:$BO$7924,AA$6,FALSE),VLOOKUP($B22&"_1",Base!$E$4:$BO$7924,AA$5,FALSE))) -> NA | AB22: =IF(IF($Y22="Número",VLOOKUP($B22&"_1",Base!$E$4:$BO$7924,AB$6,FALSE),VLOOKUP($B22&"_1",Base!$E$4:$BO$7924,AB$5,FALSE))="","",IF($Y22="Número",VLOOKUP($B22&"_1",Base!$E$4:$BO$7924,AB$6,FALSE),VLOOKUP($B22&"_1",Base!$E$4:$BO$7924,AB$5,FALSE))) -> NA | AC22: =IF(IF($Y22="Número",VLOOKUP($B22&"_1",Base!$E$4:$BO$7924,AC$6,FALSE),VLOOKUP($B22&"_1",Base!$E$4:$BO$7924,AC$5,FALSE))="","",IF($Y22="Número",VLOOKUP($B22&"_1",Base!$E$4:$BO$7924,AC$6,FALSE),VLOOKUP($B22&"_1",Base!$E$4:$BO$7924,AC$5,FALSE))) -> 13612 | AD22: =IF(IF($Y22="Número",VLOOKUP($B22&"_1",Base!$E$4:$BO$7924,AD$6,FALSE),VLOOKUP($B22&"_1",Base!$E$4:$BO$7924,AD$5,FALSE))="","",IF($Y22="Número",VLOOKUP($B22&"_1",Base!$E$4:$BO$7924,AD$6,FALSE),VLOOKUP($B22&"_1",Base!$E$4:$BO$7924,AD$5,FALSE))) -> NA | AE22: =IF(IF($Y22="Número",VLOOKUP($B22&"_1",Base!$E$4:$BO$7924,AE$6,FALSE),VLOOKUP($B22&"_1",Base!$E$4:$BO$7924,AE$5,FALSE))="","",IF($Y22="Número",VLOOKUP($B22&"_1",Base!$E$4:$BO$7924,AE$6,FALSE),VLOOKUP($B22&"_1",Base!$E$4:$BO$7924,AE$5,FALSE))) -> 14373 | AF22: =IF(IF($Y22="Número",VLOOKUP($B22&"_1",Base!$E$4:$BO$7924,AF$6,FALSE),VLOOKUP($B22&"_1",Base!$E$4:$BO$7924,AF$5,FALSE))="","",IF($Y22="Número",VLOOKUP($B22&"_1",Base!$E$4:$BO$7924,AF$6,FALSE),VLOOKUP($B22&"_1",Base!$E$4:$BO$7924,AF$5,FALSE))) -> NA | AG22: =IF(IF($Y22="Número",VLOOKUP($B22&"_1",Base!$E$4:$BO$7924,AG$6,FALSE),VLOOKUP($B22&"_1",Base!$E$4:$BO$7924,AG$5,FALSE))="","",IF($Y22="Número",VLOOKUP($B22&"_1",Base!$E$4:$BO$7924,AG$6,FALSE),VLOOKUP($B22&"_1",Base!$E$4:$BO$7924,AG$5,FALSE))) -> 14875 | AH22: =IF(IF($Y22="Número",VLOOKUP($B22&"_1",Base!$E$4:$BO$7924,AH$6,FALSE),VLOOKUP($B22&"_1",Base!$E$4:$BO$7924,AH$5,FALSE))="","",IF($Y22="Número",VLOOKUP($B22&"_1",Base!$E$4:$BO$7924,AH$6,FALSE),VLOOKUP($B22&"_1",Base!$E$4:$BO$7924,AH$5,FALSE))) ->  | AI22: =IF(IF($Y22="Número",VLOOKUP($B22&"_1",Base!$E$4:$BO$7924,AI$6,FALSE),VLOOKUP($B22&"_1",Base!$E$4:$BO$7924,AI$5,FALSE))="","",IF($Y22="Número",VLOOKUP($B22&"_1",Base!$E$4:$BO$7924,AI$6,FALSE),VLOOKUP($B22&"_1",Base!$E$4:$BO$7924,AI$5,FALSE))) ->  | AJ22: =IF(IF($Y22="Número",VLOOKUP($B22&"_1",Base!$E$4:$BO$7924,AJ$6,FALSE),VLOOKUP($B22&"_1",Base!$E$4:$BO$7924,AJ$5,FALSE))="","",IF($Y22="Número",VLOOKUP($B22&"_1",Base!$E$4:$BO$7924,AJ$6,FALSE),VLOOKUP($B22&"_1",Base!$E$4:$BO$7924,AJ$5,FALSE))) ->  | AK22: =IF(IF($Y22="Número",VLOOKUP($B22&"_1",Base!$E$4:$BO$7924,AK$6,FALSE),VLOOKUP($B22&"_1",Base!$E$4:$BO$7924,AK$5,FALSE))="","",IF($Y22="Número",VLOOKUP($B22&"_1",Base!$E$4:$BO$7924,AK$6,FALSE),VLOOKUP($B22&"_1",Base!$E$4:$BO$7924,AK$5,FALSE))) -> 
B23: PA-16 | C23: =+VLOOKUP(B23,'tablero nal'!$W$9:$X$169,2,FALSE) -> Número de niños, niñas y adolescentes participantes en estrategias de prevención | D23: X | E23: 712188 | F23: =+VLOOKUP(B23,'tablero nal'!$W$9:$BB$169,4,FALSE) -> 770000 | G23: 836323 | H23: 1.086133766 | I23: 195600 | J23: 206060 | K23: 1.053476483 | L23: 348675 | M23: =151665+206060 -> 357725 | N23: =+M23/L23 -> 1.025955403 | O23: 548675 | P23: 598840 | Q23: 1.091429353 | R23: =+VLOOKUP(B23,'tablero nal'!$W$9:$AB$169,6,FALSE) -> 770000 | S23: 836323 | T23: 1.086133766 | Y23: =+VLOOKUP(B23,'tablero nal'!$W$9:$AL$169,16,FALSE) -> Número | Z23: =IF(IF($Y23="Número",VLOOKUP($B23&"_1",Base!$E$4:$BO$7924,Z$6,FALSE),VLOOKUP($B23&"_1",Base!$E$4:$BO$7924,Z$5,FALSE))="","",IF($Y23="Número",VLOOKUP($B23&"_1",Base!$E$4:$BO$7924,Z$6,FALSE),VLOOKUP($B23&"_1",Base!$E$4:$BO$7924,Z$5,FALSE))) -> NA | AA23: =IF(IF($Y23="Número",VLOOKUP($B23&"_1",Base!$E$4:$BO$7924,AA$6,FALSE),VLOOKUP($B23&"_1",Base!$E$4:$BO$7924,AA$5,FALSE))="","",IF($Y23="Número",VLOOKUP($B23&"_1",Base!$E$4:$BO$7924,AA$6,FALSE),VLOOKUP($B23&"_1",Base!$E$4:$BO$7924,AA$5,FALSE))) -> 797741 | AB23: =IF(IF($Y23="Número",VLOOKUP($B23&"_1",Base!$E$4:$BO$7924,AB$6,FALSE),VLOOKUP($B23&"_1",Base!$E$4:$BO$7924,AB$5,FALSE))="","",IF($Y23="Número",VLOOKUP($B23&"_1",Base!$E$4:$BO$7924,AB$6,FALSE),VLOOKUP($B23&"_1",Base!$E$4:$BO$7924,AB$5,FALSE))) -> 817554 | AC23: =IF(IF($Y23="Número",VLOOKUP($B23&"_1",Base!$E$4:$BO$7924,AC$6,FALSE),VLOOKUP($B23&"_1",Base!$E$4:$BO$7924,AC$5,FALSE))="","",IF($Y23="Número",VLOOKUP($B23&"_1",Base!$E$4:$BO$7924,AC$6,FALSE),VLOOKUP($B23&"_1",Base!$E$4:$BO$7924,AC$5,FALSE))) -> 821594 | AD23: =IF(IF($Y23="Número",VLOOKUP($B23&"_1",Base!$E$4:$BO$7924,AD$6,FALSE),VLOOKUP($B23&"_1",Base!$E$4:$BO$7924,AD$5,FALSE))="","",IF($Y23="Número",VLOOKUP($B23&"_1",Base!$E$4:$BO$7924,AD$6,FALSE),VLOOKUP($B23&"_1",Base!$E$4:$BO$7924,AD$5,FALSE))) -> 822855 | AE23: =IF(IF($Y23="Número",VLOOKUP($B23&"_1",Base!$E$4:$BO$7924,AE$6,FALSE),VLOOKUP($B23&"_1",Base!$E$4:$BO$7924,AE$5,FALSE))="","",IF($Y23="Número",VLOOKUP($B23&"_1",Base!$E$4:$BO$7924,AE$6,FALSE),VLOOKUP($B23&"_1",Base!$E$4:$BO$7924,AE$5,FALSE))) -> 825176 | AF23: =IF(IF($Y23="Número",VLOOKUP($B23&"_1",Base!$E$4:$BO$7924,AF$6,FALSE),VLOOKUP($B23&"_1",Base!$E$4:$BO$7924,AF$5,FALSE))="","",IF($Y23="Número",VLOOKUP($B23&"_1",Base!$E$4:$BO$7924,AF$6,FALSE),VLOOKUP($B23&"_1",Base!$E$4:$BO$7924,AF$5,FALSE))) -> 832805 | AG23: =IF(IF($Y23="Número",VLOOKUP($B23&"_1",Base!$E$4:$BO$7924,AG$6,FALSE),VLOOKUP($B23&"_1",Base!$E$4:$BO$7924,AG$5,FALSE))="","",IF($Y23="Número",VLOOKUP($B23&"_1",Base!$E$4:$BO$7924,AG$6,FALSE),VLOOKUP($B23&"_1",Base!$E$4:$BO$7924,AG$5,FALSE))) -> 836323 | AH23: =IF(IF($Y23="Número",VLOOKUP($B23&"_1",Base!$E$4:$BO$7924,AH$6,FALSE),VLOOKUP($B23&"_1",Base!$E$4:$BO$7924,AH$5,FALSE))="","",IF($Y23="Número",VLOOKUP($B23&"_1",Base!$E$4:$BO$7924,AH$6,FALSE),VLOOKUP($B23&"_1",Base!$E$4:$BO$7924,AH$5,FALSE))) ->  | AI23: =IF(IF($Y23="Número",VLOOKUP($B23&"_1",Base!$E$4:$BO$7924,AI$6,FALSE),VLOOKUP($B23&"_1",Base!$E$4:$BO$7924,AI$5,FALSE))="","",IF($Y23="Número",VLOOKUP($B23&"_1",Base!$E$4:$BO$7924,AI$6,FALSE),VLOOKUP($B23&"_1",Base!$E$4:$BO$7924,AI$5,FALSE))) ->  | AJ23: =IF(IF($Y23="Número",VLOOKUP($B23&"_1",Base!$E$4:$BO$7924,AJ$6,FALSE),VLOOKUP($B23&"_1",Base!$E$4:$BO$7924,AJ$5,FALSE))="","",IF($Y23="Número",VLOOKUP($B23&"_1",Base!$E$4:$BO$7924,AJ$6,FALSE),VLOOKUP($B23&"_1",Base!$E$4:$BO$7924,AJ$5,FALSE))) ->  | AK23: =IF(IF($Y23="Número",VLOOKUP($B23&"_1",Base!$E$4:$BO$7924,AK$6,FALSE),VLOOKUP($B23&"_1",Base!$E$4:$BO$7924,AK$5,FALSE))="","",IF($Y23="Número",VLOOKUP($B23&"_1",Base!$E$4:$BO$7924,AK$6,FALSE),VLOOKUP($B23&"_1",Base!$E$4:$BO$7924,AK$5,FALSE))) -> 
B24: PA-17 | C24: =+VLOOKUP(B24,'tablero nal'!$W$9:$X$169,2,FALSE) -> Número de ejercicios de promoción de la participación significativa de niños, niñas y adolescentes en políticas, programas, proyectos y estrategias desarrollados en los territorios. | E24: - | F24: =+VLOOKUP(B24,'tablero nal'!$W$9:$BB$169,4,FALSE) -> 6000 | G24: 7596 | H24: 1.266 | I24: 436 | J24: 1016 | K24: 2.330275229 | L24: 1200 | M24: 3069 | N24: 2.5575 | O24: 4034 | P24: 5121 | Q24: 1.269459593 | R24: =+VLOOKUP(B24,'tablero nal'!$W$9:$AB$169,6,FALSE) -> 6000 | S24: 7596 | T24: 1.266 | Y24: =+VLOOKUP(B24,'tablero nal'!$W$9:$AL$169,16,FALSE) -> Número | Z24: =IF(IF($Y24="Número",VLOOKUP($B24&"_1",Base!$E$4:$BO$7924,Z$6,FALSE),VLOOKUP($B24&"_1",Base!$E$4:$BO$7924,Z$5,FALSE))="","",IF($Y24="Número",VLOOKUP($B24&"_1",Base!$E$4:$BO$7924,Z$6,FALSE),VLOOKUP($B24&"_1",Base!$E$4:$BO$7924,Z$5,FALSE))) -> NA | AA24: =IF(IF($Y24="Número",VLOOKUP($B24&"_1",Base!$E$4:$BO$7924,AA$6,FALSE),VLOOKUP($B24&"_1",Base!$E$4:$BO$7924,AA$5,FALSE))="","",IF($Y24="Número",VLOOKUP($B24&"_1",Base!$E$4:$BO$7924,AA$6,FALSE),VLOOKUP($B24&"_1",Base!$E$4:$BO$7924,AA$5,FALSE))) -> NA | AB24: =IF(IF($Y24="Número",VLOOKUP($B24&"_1",Base!$E$4:$BO$7924,AB$6,FALSE),VLOOKUP($B24&"_1",Base!$E$4:$BO$7924,AB$5,FALSE))="","",IF($Y24="Número",VLOOKUP($B24&"_1",Base!$E$4:$BO$7924,AB$6,FALSE),VLOOKUP($B24&"_1",Base!$E$4:$BO$7924,AB$5,FALSE))) -> NA | AC24: =IF(IF($Y24="Número",VLOOKUP($B24&"_1",Base!$E$4:$BO$7924,AC$6,FALSE),VLOOKUP($B24&"_1",Base!$E$4:$BO$7924,AC$5,FALSE))="","",IF($Y24="Número",VLOOKUP($B24&"_1",Base!$E$4:$BO$7924,AC$6,FALSE),VLOOKUP($B24&"_1",Base!$E$4:$BO$7924,AC$5,FALSE))) -> NA | AD24: =IF(IF($Y24="Número",VLOOKUP($B24&"_1",Base!$E$4:$BO$7924,AD$6,FALSE),VLOOKUP($B24&"_1",Base!$E$4:$BO$7924,AD$5,FALSE))="","",IF($Y24="Número",VLOOKUP($B24&"_1",Base!$E$4:$BO$7924,AD$6,FALSE),VLOOKUP($B24&"_1",Base!$E$4:$BO$7924,AD$5,FALSE))) -> NA | AE24: =IF(IF($Y24="Número",VLOOKUP($B24&"_1",Base!$E$4:$BO$7924,AE$6,FALSE),VLOOKUP($B24&"_1",Base!$E$4:$BO$7924,AE$5,FALSE))="","",IF($Y24="Número",VLOOKUP($B24&"_1",Base!$E$4:$BO$7924,AE$6,FALSE),VLOOKUP($B24&"_1",Base!$E$4:$BO$7924,AE$5,FALSE))) -> 7596 | AF24: =IF(IF($Y24="Número",VLOOKUP($B24&"_1",Base!$E$4:$BO$7924,AF$6,FALSE),VLOOKUP($B24&"_1",Base!$E$4:$BO$7924,AF$5,FALSE))="","",IF($Y24="Número",VLOOKUP($B24&"_1",Base!$E$4:$BO$7924,AF$6,FALSE),VLOOKUP($B24&"_1",Base!$E$4:$BO$7924,AF$5,FALSE))) -> NA | AG24: =IF(IF($Y24="Número",VLOOKUP($B24&"_1",Base!$E$4:$BO$7924,AG$6,FALSE),VLOOKUP($B24&"_1",Base!$E$4:$BO$7924,AG$5,FALSE))="","",IF($Y24="Número",VLOOKUP($B24&"_1",Base!$E$4:$BO$7924,AG$6,FALSE),VLOOKUP($B24&"_1",Base!$E$4:$BO$7924,AG$5,FALSE))) -> NA | AH24: =IF(IF($Y24="Número",VLOOKUP($B24&"_1",Base!$E$4:$BO$7924,AH$6,FALSE),VLOOKUP($B24&"_1",Base!$E$4:$BO$7924,AH$5,FALSE))="","",IF($Y24="Número",VLOOKUP($B24&"_1",Base!$E$4:$BO$7924,AH$6,FALSE),VLOOKUP($B24&"_1",Base!$E$4:$BO$7924,AH$5,FALSE))) ->  | AI24: =IF(IF($Y24="Número",VLOOKUP($B24&"_1",Base!$E$4:$BO$7924,AI$6,FALSE),VLOOKUP($B24&"_1",Base!$E$4:$BO$7924,AI$5,FALSE))="","",IF($Y24="Número",VLOOKUP($B24&"_1",Base!$E$4:$BO$7924,AI$6,FALSE),VLOOKUP($B24&"_1",Base!$E$4:$BO$7924,AI$5,FALSE))) ->  | AJ24: =IF(IF($Y24="Número",VLOOKUP($B24&"_1",Base!$E$4:$BO$7924,AJ$6,FALSE),VLOOKUP($B24&"_1",Base!$E$4:$BO$7924,AJ$5,FALSE))="","",IF($Y24="Número",VLOOKUP($B24&"_1",Base!$E$4:$BO$7924,AJ$6,FALSE),VLOOKUP($B24&"_1",Base!$E$4:$BO$7924,AJ$5,FALSE))) ->  | AK24: =IF(IF($Y24="Número",VLOOKUP($B24&"_1",Base!$E$4:$BO$7924,AK$6,FALSE),VLOOKUP($B24&"_1",Base!$E$4:$BO$7924,AK$5,FALSE))="","",IF($Y24="Número",VLOOKUP($B24&"_1",Base!$E$4:$BO$7924,AK$6,FALSE),VLOOKUP($B24&"_1",Base!$E$4:$BO$7924,AK$5,FALSE))) -> 
B25: PA-18 | C25: =+VLOOKUP(B25,'tablero nal'!$W$9:$X$169,2,FALSE) -> Familias en situación de vulnerabilidad afectadas en su estructura y dinámica relacional atendidas mediante la estrategia Familias para la Paz. | D25: X | E25: 541854 | F25: =+VLOOKUP(B25,'tablero nal'!$W$9:$BB$169,4,FALSE) -> 560000 | G25: 560717 | H25: 1.001280357 | I25: 105488 | J25: 105473 | K25: 0.9998578037 | L25: 264916 | M25: 265264 | N25: 1.001313624 | O25: 411391 | P25: 411739 | Q25: 1.000845911 | R25: =+VLOOKUP(B25,'tablero nal'!$W$9:$AB$169,6,FALSE) -> 560000 | S25: 560717 | T25: 1.001280357 | Y25: =+VLOOKUP(B25,'tablero nal'!$W$9:$AL$169,16,FALSE) -> Número | Z25: =IF(IF($Y25="Número",VLOOKUP($B25&"_1",Base!$E$4:$BO$7924,Z$6,FALSE),VLOOKUP($B25&"_1",Base!$E$4:$BO$7924,Z$5,FALSE))="","",IF($Y25="Número",VLOOKUP($B25&"_1",Base!$E$4:$BO$7924,Z$6,FALSE),VLOOKUP($B25&"_1",Base!$E$4:$BO$7924,Z$5,FALSE))) -> NA | AA25: =IF(IF($Y25="Número",VLOOKUP($B25&"_1",Base!$E$4:$BO$7924,AA$6,FALSE),VLOOKUP($B25&"_1",Base!$E$4:$BO$7924,AA$5,FALSE))="","",IF($Y25="Número",VLOOKUP($B25&"_1",Base!$E$4:$BO$7924,AA$6,FALSE),VLOOKUP($B25&"_1",Base!$E$4:$BO$7924,AA$5,FALSE))) -> NA | AB25: =IF(IF($Y25="Número",VLOOKUP($B25&"_1",Base!$E$4:$BO$7924,AB$6,FALSE),VLOOKUP($B25&"_1",Base!$E$4:$BO$7924,AB$5,FALSE))="","",IF($Y25="Número",VLOOKUP($B25&"_1",Base!$E$4:$BO$7924,AB$6,FALSE),VLOOKUP($B25&"_1",Base!$E$4:$BO$7924,AB$5,FALSE))) -> NA | AC25: =IF(IF($Y25="Número",VLOOKUP($B25&"_1",Base!$E$4:$BO$7924,AC$6,FALSE),VLOOKUP($B25&"_1",Base!$E$4:$BO$7924,AC$5,FALSE))="","",IF($Y25="Número",VLOOKUP($B25&"_1",Base!$E$4:$BO$7924,AC$6,FALSE),VLOOKUP($B25&"_1",Base!$E$4:$BO$7924,AC$5,FALSE))) -> 493658 | AD25: =IF(IF($Y25="Número",VLOOKUP($B25&"_1",Base!$E$4:$BO$7924,AD$6,FALSE),VLOOKUP($B25&"_1",Base!$E$4:$BO$7924,AD$5,FALSE))="","",IF($Y25="Número",VLOOKUP($B25&"_1",Base!$E$4:$BO$7924,AD$6,FALSE),VLOOKUP($B25&"_1",Base!$E$4:$BO$7924,AD$5,FALSE))) -> 559391 | AE25: =IF(IF($Y25="Número",VLOOKUP($B25&"_1",Base!$E$4:$BO$7924,AE$6,FALSE),VLOOKUP($B25&"_1",Base!$E$4:$BO$7924,AE$5,FALSE))="","",IF($Y25="Número",VLOOKUP($B25&"_1",Base!$E$4:$BO$7924,AE$6,FALSE),VLOOKUP($B25&"_1",Base!$E$4:$BO$7924,AE$5,FALSE))) -> 560356 | AF25: =IF(IF($Y25="Número",VLOOKUP($B25&"_1",Base!$E$4:$BO$7924,AF$6,FALSE),VLOOKUP($B25&"_1",Base!$E$4:$BO$7924,AF$5,FALSE))="","",IF($Y25="Número",VLOOKUP($B25&"_1",Base!$E$4:$BO$7924,AF$6,FALSE),VLOOKUP($B25&"_1",Base!$E$4:$BO$7924,AF$5,FALSE))) -> 560635 | AG25: =IF(IF($Y25="Número",VLOOKUP($B25&"_1",Base!$E$4:$BO$7924,AG$6,FALSE),VLOOKUP($B25&"_1",Base!$E$4:$BO$7924,AG$5,FALSE))="","",IF($Y25="Número",VLOOKUP($B25&"_1",Base!$E$4:$BO$7924,AG$6,FALSE),VLOOKUP($B25&"_1",Base!$E$4:$BO$7924,AG$5,FALSE))) -> 560717 | AH25: =IF(IF($Y25="Número",VLOOKUP($B25&"_1",Base!$E$4:$BO$7924,AH$6,FALSE),VLOOKUP($B25&"_1",Base!$E$4:$BO$7924,AH$5,FALSE))="","",IF($Y25="Número",VLOOKUP($B25&"_1",Base!$E$4:$BO$7924,AH$6,FALSE),VLOOKUP($B25&"_1",Base!$E$4:$BO$7924,AH$5,FALSE))) ->  | AI25: =IF(IF($Y25="Número",VLOOKUP($B25&"_1",Base!$E$4:$BO$7924,AI$6,FALSE),VLOOKUP($B25&"_1",Base!$E$4:$BO$7924,AI$5,FALSE))="","",IF($Y25="Número",VLOOKUP($B25&"_1",Base!$E$4:$BO$7924,AI$6,FALSE),VLOOKUP($B25&"_1",Base!$E$4:$BO$7924,AI$5,FALSE))) ->  | AJ25: =IF(IF($Y25="Número",VLOOKUP($B25&"_1",Base!$E$4:$BO$7924,AJ$6,FALSE),VLOOKUP($B25&"_1",Base!$E$4:$BO$7924,AJ$5,FALSE))="","",IF($Y25="Número",VLOOKUP($B25&"_1",Base!$E$4:$BO$7924,AJ$6,FALSE),VLOOKUP($B25&"_1",Base!$E$4:$BO$7924,AJ$5,FALSE))) ->  | AK25: =IF(IF($Y25="Número",VLOOKUP($B25&"_1",Base!$E$4:$BO$7924,AK$6,FALSE),VLOOKUP($B25&"_1",Base!$E$4:$BO$7924,AK$5,FALSE))="","",IF($Y25="Número",VLOOKUP($B25&"_1",Base!$E$4:$BO$7924,AK$6,FALSE),VLOOKUP($B25&"_1",Base!$E$4:$BO$7924,AK$5,FALSE))) -> 
B26: PA-19 | C26: =+VLOOKUP(B26,'tablero nal'!$W$9:$X$169,2,FALSE) -> Número de Familias de Grupos Étnicos atendidas por la modalidad | E26: 21000 | F26: =+VLOOKUP(B26,'tablero nal'!$W$9:$BB$169,4,FALSE) -> 114000 | G26: 117677 | H26: 1.032254386 | I26: 22000 | J26: 37033 | K26: 1.683318182 | L26: 49300 | M26: 64049 | N26: 1.299168357 | O26: 79189 | P26: 93736 | Q26: 1.183699756 | R26: =+VLOOKUP(B26,'tablero nal'!$W$9:$AB$169,6,FALSE) -> 114000 | S26: 117677 | T26: 1.032254386 | Y26: =+VLOOKUP(B26,'tablero nal'!$W$9:$AL$169,16,FALSE) -> Número | Z26: =IF(IF($Y26="Número",VLOOKUP($B26&"_1",Base!$E$4:$BO$7924,Z$6,FALSE),VLOOKUP($B26&"_1",Base!$E$4:$BO$7924,Z$5,FALSE))="","",IF($Y26="Número",VLOOKUP($B26&"_1",Base!$E$4:$BO$7924,Z$6,FALSE),VLOOKUP($B26&"_1",Base!$E$4:$BO$7924,Z$5,FALSE))) -> NA | AA26: =IF(IF($Y26="Número",VLOOKUP($B26&"_1",Base!$E$4:$BO$7924,AA$6,FALSE),VLOOKUP($B26&"_1",Base!$E$4:$BO$7924,AA$5,FALSE))="","",IF($Y26="Número",VLOOKUP($B26&"_1",Base!$E$4:$BO$7924,AA$6,FALSE),VLOOKUP($B26&"_1",Base!$E$4:$BO$7924,AA$5,FALSE))) -> 115831 | AB26: =IF(IF($Y26="Número",VLOOKUP($B26&"_1",Base!$E$4:$BO$7924,AB$6,FALSE),VLOOKUP($B26&"_1",Base!$E$4:$BO$7924,AB$5,FALSE))="","",IF($Y26="Número",VLOOKUP($B26&"_1",Base!$E$4:$BO$7924,AB$6,FALSE),VLOOKUP($B26&"_1",Base!$E$4:$BO$7924,AB$5,FALSE))) -> 116529 | AC26: =IF(IF($Y26="Número",VLOOKUP($B26&"_1",Base!$E$4:$BO$7924,AC$6,FALSE),VLOOKUP($B26&"_1",Base!$E$4:$BO$7924,AC$5,FALSE))="","",IF($Y26="Número",VLOOKUP($B26&"_1",Base!$E$4:$BO$7924,AC$6,FALSE),VLOOKUP($B26&"_1",Base!$E$4:$BO$7924,AC$5,FALSE))) -> 117020 | AD26: =IF(IF($Y26="Número",VLOOKUP($B26&"_1",Base!$E$4:$BO$7924,AD$6,FALSE),VLOOKUP($B26&"_1",Base!$E$4:$BO$7924,AD$5,FALSE))="","",IF($Y26="Número",VLOOKUP($B26&"_1",Base!$E$4:$BO$7924,AD$6,FALSE),VLOOKUP($B26&"_1",Base!$E$4:$BO$7924,AD$5,FALSE))) -> 117252 | AE26: =IF(IF($Y26="Número",VLOOKUP($B26&"_1",Base!$E$4:$BO$7924,AE$6,FALSE),VLOOKUP($B26&"_1",Base!$E$4:$BO$7924,AE$5,FALSE))="","",IF($Y26="Número",VLOOKUP($B26&"_1",Base!$E$4:$BO$7924,AE$6,FALSE),VLOOKUP($B26&"_1",Base!$E$4:$BO$7924,AE$5,FALSE))) -> 117343 | AF26: =IF(IF($Y26="Número",VLOOKUP($B26&"_1",Base!$E$4:$BO$7924,AF$6,FALSE),VLOOKUP($B26&"_1",Base!$E$4:$BO$7924,AF$5,FALSE))="","",IF($Y26="Número",VLOOKUP($B26&"_1",Base!$E$4:$BO$7924,AF$6,FALSE),VLOOKUP($B26&"_1",Base!$E$4:$BO$7924,AF$5,FALSE))) -> 117619 | AG26: =IF(IF($Y26="Número",VLOOKUP($B26&"_1",Base!$E$4:$BO$7924,AG$6,FALSE),VLOOKUP($B26&"_1",Base!$E$4:$BO$7924,AG$5,FALSE))="","",IF($Y26="Número",VLOOKUP($B26&"_1",Base!$E$4:$BO$7924,AG$6,FALSE),VLOOKUP($B26&"_1",Base!$E$4:$BO$7924,AG$5,FALSE))) -> 117677 | AH26: =IF(IF($Y26="Número",VLOOKUP($B26&"_1",Base!$E$4:$BO$7924,AH$6,FALSE),VLOOKUP($B26&"_1",Base!$E$4:$BO$7924,AH$5,FALSE))="","",IF($Y26="Número",VLOOKUP($B26&"_1",Base!$E$4:$BO$7924,AH$6,FALSE),VLOOKUP($B26&"_1",Base!$E$4:$BO$7924,AH$5,FALSE))) ->  | AI26: =IF(IF($Y26="Número",VLOOKUP($B26&"_1",Base!$E$4:$BO$7924,AI$6,FALSE),VLOOKUP($B26&"_1",Base!$E$4:$BO$7924,AI$5,FALSE))="","",IF($Y26="Número",VLOOKUP($B26&"_1",Base!$E$4:$BO$7924,AI$6,FALSE),VLOOKUP($B26&"_1",Base!$E$4:$BO$7924,AI$5,FALSE))) ->  | AJ26: =IF(IF($Y26="Número",VLOOKUP($B26&"_1",Base!$E$4:$BO$7924,AJ$6,FALSE),VLOOKUP($B26&"_1",Base!$E$4:$BO$7924,AJ$5,FALSE))="","",IF($Y26="Número",VLOOKUP($B26&"_1",Base!$E$4:$BO$7924,AJ$6,FALSE),VLOOKUP($B26&"_1",Base!$E$4:$BO$7924,AJ$5,FALSE))) ->  | AK26: =IF(IF($Y26="Número",VLOOKUP($B26&"_1",Base!$E$4:$BO$7924,AK$6,FALSE),VLOOKUP($B26&"_1",Base!$E$4:$BO$7924,AK$5,FALSE))="","",IF($Y26="Número",VLOOKUP($B26&"_1",Base!$E$4:$BO$7924,AK$6,FALSE),VLOOKUP($B26&"_1",Base!$E$4:$BO$7924,AK$5,FALSE))) -> 
B27: PA-20 | C27: =+VLOOKUP(B27,'tablero nal'!$W$9:$X$169,2,FALSE) -> Porcentaje de avance en el diseño e implementación de un modelo de enfoque conceptual de inclusión y atención a las familias con las áreas misionales | E27: - | F27: =+VLOOKUP(B27,'tablero nal'!$W$9:$BB$169,4,FALSE) -> 1 | G27: 0.886 | H27: 0.886 | I27: 0.2 | J27: 0.192 | K27: 0.96 | L27: 0.5 | M27: 0.492 | N27: 0.984 | O27: 0.75 | P27: 0.75 | Q27: 1 | R27: =+VLOOKUP(B27,'tablero nal'!$W$9:$AB$169,6,FALSE) -> 1 | S27: 0.886 | T27: 0.886 | Y27: =+VLOOKUP(B27,'tablero nal'!$W$9:$AL$169,16,FALSE) -> Porcentaje Avance | Z27: =IF(IF($Y27="Número",VLOOKUP($B27&"_1",Base!$E$4:$BO$7924,Z$6,FALSE),VLOOKUP($B27&"_1",Base!$E$4:$BO$7924,Z$5,FALSE))="","",IF($Y27="Número",VLOOKUP($B27&"_1",Base!$E$4:$BO$7924,Z$6,FALSE),VLOOKUP($B27&"_1",Base!$E$4:$BO$7924,Z$5,FALSE))) -> NA | AA27: =IF(IF($Y27="Número",VLOOKUP($B27&"_1",Base!$E$4:$BO$7924,AA$6,FALSE),VLOOKUP($B27&"_1",Base!$E$4:$BO$7924,AA$5,FALSE))="","",IF($Y27="Número",VLOOKUP($B27&"_1",Base!$E$4:$BO$7924,AA$6,FALSE),VLOOKUP($B27&"_1",Base!$E$4:$BO$7924,AA$5,FALSE))) -> NA | AB27: =IF(IF($Y27="Número",VLOOKUP($B27&"_1",Base!$E$4:$BO$7924,AB$6,FALSE),VLOOKUP($B27&"_1",Base!$E$4:$BO$7924,AB$5,FALSE))="","",IF($Y27="Número",VLOOKUP($B27&"_1",Base!$E$4:$BO$7924,AB$6,FALSE),VLOOKUP($B27&"_1",Base!$E$4:$BO$7924,AB$5,FALSE))) -> 0.8 | AC27: =IF(IF($Y27="Número",VLOOKUP($B27&"_1",Base!$E$4:$BO$7924,AC$6,FALSE),VLOOKUP($B27&"_1",Base!$E$4:$BO$7924,AC$5,FALSE))="","",IF($Y27="Número",VLOOKUP($B27&"_1",Base!$E$4:$BO$7924,AC$6,FALSE),VLOOKUP($B27&"_1",Base!$E$4:$BO$7924,AC$5,FALSE))) -> NA | AD27: =IF(IF($Y27="Número",VLOOKUP($B27&"_1",Base!$E$4:$BO$7924,AD$6,FALSE),VLOOKUP($B27&"_1",Base!$E$4:$BO$7924,AD$5,FALSE))="","",IF($Y27="Número",VLOOKUP($B27&"_1",Base!$E$4:$BO$7924,AD$6,FALSE),VLOOKUP($B27&"_1",Base!$E$4:$BO$7924,AD$5,FALSE))) -> NA | AE27: =IF(IF($Y27="Número",VLOOKUP($B27&"_1",Base!$E$4:$BO$7924,AE$6,FALSE),VLOOKUP($B27&"_1",Base!$E$4:$BO$7924,AE$5,FALSE))="","",IF($Y27="Número",VLOOKUP($B27&"_1",Base!$E$4:$BO$7924,AE$6,FALSE),VLOOKUP($B27&"_1",Base!$E$4:$BO$7924,AE$5,FALSE))) -> 0.886 | AF27: =IF(IF($Y27="Número",VLOOKUP($B27&"_1",Base!$E$4:$BO$7924,AF$6,FALSE),VLOOKUP($B27&"_1",Base!$E$4:$BO$7924,AF$5,FALSE))="","",IF($Y27="Número",VLOOKUP($B27&"_1",Base!$E$4:$BO$7924,AF$6,FALSE),VLOOKUP($B27&"_1",Base!$E$4:$BO$7924,AF$5,FALSE))) -> NA | AG27: =IF(IF($Y27="Número",VLOOKUP($B27&"_1",Base!$E$4:$BO$7924,AG$6,FALSE),VLOOKUP($B27&"_1",Base!$E$4:$BO$7924,AG$5,FALSE))="","",IF($Y27="Número",VLOOKUP($B27&"_1",Base!$E$4:$BO$7924,AG$6,FALSE),VLOOKUP($B27&"_1",Base!$E$4:$BO$7924,AG$5,FALSE))) -> NA | AH27: =IF(IF($Y27="Número",VLOOKUP($B27&"_1",Base!$E$4:$BO$7924,AH$6,FALSE),VLOOKUP($B27&"_1",Base!$E$4:$BO$7924,AH$5,FALSE))="","",IF($Y27="Número",VLOOKUP($B27&"_1",Base!$E$4:$BO$7924,AH$6,FALSE),VLOOKUP($B27&"_1",Base!$E$4:$BO$7924,AH$5,FALSE))) ->  | AI27: =IF(IF($Y27="Número",VLOOKUP($B27&"_1",Base!$E$4:$BO$7924,AI$6,FALSE),VLOOKUP($B27&"_1",Base!$E$4:$BO$7924,AI$5,FALSE))="","",IF($Y27="Número",VLOOKUP($B27&"_1",Base!$E$4:$BO$7924,AI$6,FALSE),VLOOKUP($B27&"_1",Base!$E$4:$BO$7924,AI$5,FALSE))) ->  | AJ27: =IF(IF($Y27="Número",VLOOKUP($B27&"_1",Base!$E$4:$BO$7924,AJ$6,FALSE),VLOOKUP($B27&"_1",Base!$E$4:$BO$7924,AJ$5,FALSE))="","",IF($Y27="Número",VLOOKUP($B27&"_1",Base!$E$4:$BO$7924,AJ$6,FALSE),VLOOKUP($B27&"_1",Base!$E$4:$BO$7924,AJ$5,FALSE))) ->  | AK27: =IF(IF($Y27="Número",VLOOKUP($B27&"_1",Base!$E$4:$BO$7924,AK$6,FALSE),VLOOKUP($B27&"_1",Base!$E$4:$BO$7924,AK$5,FALSE))="","",IF($Y27="Número",VLOOKUP($B27&"_1",Base!$E$4:$BO$7924,AK$6,FALSE),VLOOKUP($B27&"_1",Base!$E$4:$BO$7924,AK$5,FALSE))) -> 
B28: PA-21 | C28: =+VLOOKUP(B28,'tablero nal'!$W$9:$X$169,2,FALSE) -> Número de Familias atendidas mediante formas innovadoras de intervención | E28: - | F28: =+VLOOKUP(B28,'tablero nal'!$W$9:$BB$169,4,FALSE) -> 51581 | G28: 51987 | H28: 1.007871115 | I28: 1028 | J28: 1028 | K28: 1 | L28: 8078 | M28: 8078 | N28: 1 | O28: 21181 | P28: 24447 | Q28: 1.154194797 | R28: =+VLOOKUP(B28,'tablero nal'!$W$9:$AB$169,6,FALSE) -> 51581 | S28: 51987 | T28: 1.007871115 | Y28: =+VLOOKUP(B28,'tablero nal'!$W$9:$AL$169,16,FALSE) -> Número | Z28: =IF(IF($Y28="Número",VLOOKUP($B28&"_1",Base!$E$4:$BO$7924,Z$6,FALSE),VLOOKUP($B28&"_1",Base!$E$4:$BO$7924,Z$5,FALSE))="","",IF($Y28="Número",VLOOKUP($B28&"_1",Base!$E$4:$BO$7924,Z$6,FALSE),VLOOKUP($B28&"_1",Base!$E$4:$BO$7924,Z$5,FALSE))) -> NA | AA28: =IF(IF($Y28="Número",VLOOKUP($B28&"_1",Base!$E$4:$BO$7924,AA$6,FALSE),VLOOKUP($B28&"_1",Base!$E$4:$BO$7924,AA$5,FALSE))="","",IF($Y28="Número",VLOOKUP($B28&"_1",Base!$E$4:$BO$7924,AA$6,FALSE),VLOOKUP($B28&"_1",Base!$E$4:$BO$7924,AA$5,FALSE))) -> 40424 | AB28: =IF(IF($Y28="Número",VLOOKUP($B28&"_1",Base!$E$4:$BO$7924,AB$6,FALSE),VLOOKUP($B28&"_1",Base!$E$4:$BO$7924,AB$5,FALSE))="","",IF($Y28="Número",VLOOKUP($B28&"_1",Base!$E$4:$BO$7924,AB$6,FALSE),VLOOKUP($B28&"_1",Base!$E$4:$BO$7924,AB$5,FALSE))) -> 47527 | AC28: =IF(IF($Y28="Número",VLOOKUP($B28&"_1",Base!$E$4:$BO$7924,AC$6,FALSE),VLOOKUP($B28&"_1",Base!$E$4:$BO$7924,AC$5,FALSE))="","",IF($Y28="Número",VLOOKUP($B28&"_1",Base!$E$4:$BO$7924,AC$6,FALSE),VLOOKUP($B28&"_1",Base!$E$4:$BO$7924,AC$5,FALSE))) -> 50938 | AD28: =IF(IF($Y28="Número",VLOOKUP($B28&"_1",Base!$E$4:$BO$7924,AD$6,FALSE),VLOOKUP($B28&"_1",Base!$E$4:$BO$7924,AD$5,FALSE))="","",IF($Y28="Número",VLOOKUP($B28&"_1",Base!$E$4:$BO$7924,AD$6,FALSE),VLOOKUP($B28&"_1",Base!$E$4:$BO$7924,AD$5,FALSE))) -> 51432 | AE28: =IF(IF($Y28="Número",VLOOKUP($B28&"_1",Base!$E$4:$BO$7924,AE$6,FALSE),VLOOKUP($B28&"_1",Base!$E$4:$BO$7924,AE$5,FALSE))="","",IF($Y28="Número",VLOOKUP($B28&"_1",Base!$E$4:$BO$7924,AE$6,FALSE),VLOOKUP($B28&"_1",Base!$E$4:$BO$7924,AE$5,FALSE))) -> 51955 | AF28: =IF(IF($Y28="Número",VLOOKUP($B28&"_1",Base!$E$4:$BO$7924,AF$6,FALSE),VLOOKUP($B28&"_1",Base!$E$4:$BO$7924,AF$5,FALSE))="","",IF($Y28="Número",VLOOKUP($B28&"_1",Base!$E$4:$BO$7924,AF$6,FALSE),VLOOKUP($B28&"_1",Base!$E$4:$BO$7924,AF$5,FALSE))) -> 51987 | AG28: =IF(IF($Y28="Número",VLOOKUP($B28&"_1",Base!$E$4:$BO$7924,AG$6,FALSE),VLOOKUP($B28&"_1",Base!$E$4:$BO$7924,AG$5,FALSE))="","",IF($Y28="Número",VLOOKUP($B28&"_1",Base!$E$4:$BO$7924,AG$6,FALSE),VLOOKUP($B28&"_1",Base!$E$4:$BO$7924,AG$5,FALSE))) -> 51987 | AH28: =IF(IF($Y28="Número",VLOOKUP($B28&"_1",Base!$E$4:$BO$7924,AH$6,FALSE),VLOOKUP($B28&"_1",Base!$E$4:$BO$7924,AH$5,FALSE))="","",IF($Y28="Número",VLOOKUP($B28&"_1",Base!$E$4:$BO$7924,AH$6,FALSE),VLOOKUP($B28&"_1",Base!$E$4:$BO$7924,AH$5,FALSE))) ->  | AI28: =IF(IF($Y28="Número",VLOOKUP($B28&"_1",Base!$E$4:$BO$7924,AI$6,FALSE),VLOOKUP($B28&"_1",Base!$E$4:$BO$7924,AI$5,FALSE))="","",IF($Y28="Número",VLOOKUP($B28&"_1",Base!$E$4:$BO$7924,AI$6,FALSE),VLOOKUP($B28&"_1",Base!$E$4:$BO$7924,AI$5,FALSE))) ->  | AJ28: =IF(IF($Y28="Número",VLOOKUP($B28&"_1",Base!$E$4:$BO$7924,AJ$6,FALSE),VLOOKUP($B28&"_1",Base!$E$4:$BO$7924,AJ$5,FALSE))="","",IF($Y28="Número",VLOOKUP($B28&"_1",Base!$E$4:$BO$7924,AJ$6,FALSE),VLOOKUP($B28&"_1",Base!$E$4:$BO$7924,AJ$5,FALSE))) ->  | AK28: =IF(IF($Y28="Número",VLOOKUP($B28&"_1",Base!$E$4:$BO$7924,AK$6,FALSE),VLOOKUP($B28&"_1",Base!$E$4:$BO$7924,AK$5,FALSE))="","",IF($Y28="Número",VLOOKUP($B28&"_1",Base!$E$4:$BO$7924,AK$6,FALSE),VLOOKUP($B28&"_1",Base!$E$4:$BO$7924,AK$5,FALSE))) -> 
B29: PA-24 | C29: =+VLOOKUP(B29,'tablero nal'!$W$9:$X$169,2,FALSE) -> Número de Toneladas distribuidas de Alimentos de Alto Valor Nutricional | E29: 21427.6608 | F29: =+VLOOKUP(B29,'tablero nal'!$W$9:$BB$169,4,FALSE) -> 80000 | G29: 79288 | H29: 0.9911 | I29: 22000 | J29: 26893 | K29: 1.222409091 | L29: 44000 | M29: 47493.5 | N29: NA | O29: 62000 | P29: 66440 | Q29: 1.071612903 | R29: =+VLOOKUP(B29,'tablero nal'!$W$9:$AB$169,6,FALSE) -> 80000 | S29: 79288 | T29: 0.9911 | Y29: =+VLOOKUP(B29,'tablero nal'!$W$9:$AL$169,16,FALSE) -> Número | Z29: =IF(IF($Y29="Número",VLOOKUP($B29&"_1",Base!$E$4:$BO$7924,Z$6,FALSE),VLOOKUP($B29&"_1",Base!$E$4:$BO$7924,Z$5,FALSE))="","",IF($Y29="Número",VLOOKUP($B29&"_1",Base!$E$4:$BO$7924,Z$6,FALSE),VLOOKUP($B29&"_1",Base!$E$4:$BO$7924,Z$5,FALSE))) -> 67122 | AA29: =IF(IF($Y29="Número",VLOOKUP($B29&"_1",Base!$E$4:$BO$7924,AA$6,FALSE),VLOOKUP($B29&"_1",Base!$E$4:$BO$7924,AA$5,FALSE))="","",IF($Y29="Número",VLOOKUP($B29&"_1",Base!$E$4:$BO$7924,AA$6,FALSE),VLOOKUP($B29&"_1",Base!$E$4:$BO$7924,AA$5,FALSE))) -> 69341 | AB29: =IF(IF($Y29="Número",VLOOKUP($B29&"_1",Base!$E$4:$BO$7924,AB$6,FALSE),VLOOKUP($B29&"_1",Base!$E$4:$BO$7924,AB$5,FALSE))="","",IF($Y29="Número",VLOOKUP($B29&"_1",Base!$E$4:$BO$7924,AB$6,FALSE),VLOOKUP($B29&"_1",Base!$E$4:$BO$7924,AB$5,FALSE))) -> 71642 | AC29: =IF(IF($Y29="Número",VLOOKUP($B29&"_1",Base!$E$4:$BO$7924,AC$6,FALSE),VLOOKUP($B29&"_1",Base!$E$4:$BO$7924,AC$5,FALSE))="","",IF($Y29="Número",VLOOKUP($B29&"_1",Base!$E$4:$BO$7924,AC$6,FALSE),VLOOKUP($B29&"_1",Base!$E$4:$BO$7924,AC$5,FALSE))) -> 73154 | AD29: =IF(IF($Y29="Número",VLOOKUP($B29&"_1",Base!$E$4:$BO$7924,AD$6,FALSE),VLOOKUP($B29&"_1",Base!$E$4:$BO$7924,AD$5,FALSE))="","",IF($Y29="Número",VLOOKUP($B29&"_1",Base!$E$4:$BO$7924,AD$6,FALSE),VLOOKUP($B29&"_1",Base!$E$4:$BO$7924,AD$5,FALSE))) -> 74834 | AE29: =IF(IF($Y29="Número",VLOOKUP($B29&"_1",Base!$E$4:$BO$7924,AE$6,FALSE),VLOOKUP($B29&"_1",Base!$E$4:$BO$7924,AE$5,FALSE))="","",IF($Y29="Número",VLOOKUP($B29&"_1",Base!$E$4:$BO$7924,AE$6,FALSE),VLOOKUP($B29&"_1",Base!$E$4:$BO$7924,AE$5,FALSE))) -> 76279 | AF29: =IF(IF($Y29="Número",VLOOKUP($B29&"_1",Base!$E$4:$BO$7924,AF$6,FALSE),VLOOKUP($B29&"_1",Base!$E$4:$BO$7924,AF$5,FALSE))="","",IF($Y29="Número",VLOOKUP($B29&"_1",Base!$E$4:$BO$7924,AF$6,FALSE),VLOOKUP($B29&"_1",Base!$E$4:$BO$7924,AF$5,FALSE))) -> 77918 | AG29: =IF(IF($Y29="Número",VLOOKUP($B29&"_1",Base!$E$4:$BO$7924,AG$6,FALSE),VLOOKUP($B29&"_1",Base!$E$4:$BO$7924,AG$5,FALSE))="","",IF($Y29="Número",VLOOKUP($B29&"_1",Base!$E$4:$BO$7924,AG$6,FALSE),VLOOKUP($B29&"_1",Base!$E$4:$BO$7924,AG$5,FALSE))) -> 79288 | AH29: =IF(IF($Y29="Número",VLOOKUP($B29&"_1",Base!$E$4:$BO$7924,AH$6,FALSE),VLOOKUP($B29&"_1",Base!$E$4:$BO$7924,AH$5,FALSE))="","",IF($Y29="Número",VLOOKUP($B29&"_1",Base!$E$4:$BO$7924,AH$6,FALSE),VLOOKUP($B29&"_1",Base!$E$4:$BO$7924,AH$5,FALSE))) ->  | AI29: =IF(IF($Y29="Número",VLOOKUP($B29&"_1",Base!$E$4:$BO$7924,AI$6,FALSE),VLOOKUP($B29&"_1",Base!$E$4:$BO$7924,AI$5,FALSE))="","",IF($Y29="Número",VLOOKUP($B29&"_1",Base!$E$4:$BO$7924,AI$6,FALSE),VLOOKUP($B29&"_1",Base!$E$4:$BO$7924,AI$5,FALSE))) ->  | AJ29: =IF(IF($Y29="Número",VLOOKUP($B29&"_1",Base!$E$4:$BO$7924,AJ$6,FALSE),VLOOKUP($B29&"_1",Base!$E$4:$BO$7924,AJ$5,FALSE))="","",IF($Y29="Número",VLOOKUP($B29&"_1",Base!$E$4:$BO$7924,AJ$6,FALSE),VLOOKUP($B29&"_1",Base!$E$4:$BO$7924,AJ$5,FALSE))) ->  | AK29: =IF(IF($Y29="Número",VLOOKUP($B29&"_1",Base!$E$4:$BO$7924,AK$6,FALSE),VLOOKUP($B29&"_1",Base!$E$4:$BO$7924,AK$5,FALSE))="","",IF($Y29="Número",VLOOKUP($B29&"_1",Base!$E$4:$BO$7924,AK$6,FALSE),VLOOKUP($B29&"_1",Base!$E$4:$BO$7924,AK$5,FALSE))) -> 
B30: PA-25 | C30: =+VLOOKUP(B30,'tablero nal'!$W$9:$X$169,2,FALSE) -> Número de Toneladas producidas de Alimentos de Alto Valor Nutricional | E30: 22074.198 | F30: =+VLOOKUP(B30,'tablero nal'!$W$9:$BB$169,4,FALSE) -> 80000 | G30: 76268.5 | H30: 0.95335625 | I30: 22000 | J30: 26741 | K30: 1.2155 | L30: 44000 | M30: 44769 | N30: 1.017477273 | O30: 62000 | P30: 63198.1 | Q30: 1.019324194 | R30: =+VLOOKUP(B30,'tablero nal'!$W$9:$AB$169,6,FALSE) -> 80000 | S30: 76268.5 | T30: 0.95335625 | Y30: =+VLOOKUP(B30,'tablero nal'!$W$9:$AL$169,16,FALSE) -> Número | Z30: =IF(IF($Y30="Número",VLOOKUP($B30&"_1",Base!$E$4:$BO$7924,Z$6,FALSE),VLOOKUP($B30&"_1",Base!$E$4:$BO$7924,Z$5,FALSE))="","",IF($Y30="Número",VLOOKUP($B30&"_1",Base!$E$4:$BO$7924,Z$6,FALSE),VLOOKUP($B30&"_1",Base!$E$4:$BO$7924,Z$5,FALSE))) -> 64015.5 | AA30: =IF(IF($Y30="Número",VLOOKUP($B30&"_1",Base!$E$4:$BO$7924,AA$6,FALSE),VLOOKUP($B30&"_1",Base!$E$4:$BO$7924,AA$5,FALSE))="","",IF($Y30="Número",VLOOKUP($B30&"_1",Base!$E$4:$BO$7924,AA$6,FALSE),VLOOKUP($B30&"_1",Base!$E$4:$BO$7924,AA$5,FALSE))) -> 66686.3 | AB30: =IF(IF($Y30="Número",VLOOKUP($B30&"_1",Base!$E$4:$BO$7924,AB$6,FALSE),VLOOKUP($B30&"_1",Base!$E$4:$BO$7924,AB$5,FALSE))="","",IF($Y30="Número",VLOOKUP($B30&"_1",Base!$E$4:$BO$7924,AB$6,FALSE),VLOOKUP($B30&"_1",Base!$E$4:$BO$7924,AB$5,FALSE))) -> 68440.6 | AC30: =IF(IF($Y30="Número",VLOOKUP($B30&"_1",Base!$E$4:$BO$7924,AC$6,FALSE),VLOOKUP($B30&"_1",Base!$E$4:$BO$7924,AC$5,FALSE))="","",IF($Y30="Número",VLOOKUP($B30&"_1",Base!$E$4:$BO$7924,AC$6,FALSE),VLOOKUP($B30&"_1",Base!$E$4:$BO$7924,AC$5,FALSE))) -> 70149.7 | AD30: =IF(IF($Y30="Número",VLOOKUP($B30&"_1",Base!$E$4:$BO$7924,AD$6,FALSE),VLOOKUP($B30&"_1",Base!$E$4:$BO$7924,AD$5,FALSE))="","",IF($Y30="Número",VLOOKUP($B30&"_1",Base!$E$4:$BO$7924,AD$6,FALSE),VLOOKUP($B30&"_1",Base!$E$4:$BO$7924,AD$5,FALSE))) -> 71912.4 | AE30: =IF(IF($Y30="Número",VLOOKUP($B30&"_1",Base!$E$4:$BO$7924,AE$6,FALSE),VLOOKUP($B30&"_1",Base!$E$4:$BO$7924,AE$5,FALSE))="","",IF($Y30="Número",VLOOKUP($B30&"_1",Base!$E$4:$BO$7924,AE$6,FALSE),VLOOKUP($B30&"_1",Base!$E$4:$BO$7924,AE$5,FALSE))) -> 73208.4 | AF30: =IF(IF($Y30="Número",VLOOKUP($B30&"_1",Base!$E$4:$BO$7924,AF$6,FALSE),VLOOKUP($B30&"_1",Base!$E$4:$BO$7924,AF$5,FALSE))="","",IF($Y30="Número",VLOOKUP($B30&"_1",Base!$E$4:$BO$7924,AF$6,FALSE),VLOOKUP($B30&"_1",Base!$E$4:$BO$7924,AF$5,FALSE))) -> 74917.3 | AG30: =IF(IF($Y30="Número",VLOOKUP($B30&"_1",Base!$E$4:$BO$7924,AG$6,FALSE),VLOOKUP($B30&"_1",Base!$E$4:$BO$7924,AG$5,FALSE))="","",IF($Y30="Número",VLOOKUP($B30&"_1",Base!$E$4:$BO$7924,AG$6,FALSE),VLOOKUP($B30&"_1",Base!$E$4:$BO$7924,AG$5,FALSE))) -> 76268.5 | AH30: =IF(IF($Y30="Número",VLOOKUP($B30&"_1",Base!$E$4:$BO$7924,AH$6,FALSE),VLOOKUP($B30&"_1",Base!$E$4:$BO$7924,AH$5,FALSE))="","",IF($Y30="Número",VLOOKUP($B30&"_1",Base!$E$4:$BO$7924,AH$6,FALSE),VLOOKUP($B30&"_1",Base!$E$4:$BO$7924,AH$5,FALSE))) ->  | AI30: =IF(IF($Y30="Número",VLOOKUP($B30&"_1",Base!$E$4:$BO$7924,AI$6,FALSE),VLOOKUP($B30&"_1",Base!$E$4:$BO$7924,AI$5,FALSE))="","",IF($Y30="Número",VLOOKUP($B30&"_1",Base!$E$4:$BO$7924,AI$6,FALSE),VLOOKUP($B30&"_1",Base!$E$4:$BO$7924,AI$5,FALSE))) ->  | AJ30: =IF(IF($Y30="Número",VLOOKUP($B30&"_1",Base!$E$4:$BO$7924,AJ$6,FALSE),VLOOKUP($B30&"_1",Base!$E$4:$BO$7924,AJ$5,FALSE))="","",IF($Y30="Número",VLOOKUP($B30&"_1",Base!$E$4:$BO$7924,AJ$6,FALSE),VLOOKUP($B30&"_1",Base!$E$4:$BO$7924,AJ$5,FALSE))) ->  | AK30: =IF(IF($Y30="Número",VLOOKUP($B30&"_1",Base!$E$4:$BO$7924,AK$6,FALSE),VLOOKUP($B30&"_1",Base!$E$4:$BO$7924,AK$5,FALSE))="","",IF($Y30="Número",VLOOKUP($B30&"_1",Base!$E$4:$BO$7924,AK$6,FALSE),VLOOKUP($B30&"_1",Base!$E$4:$BO$7924,AK$5,FALSE))) -> 
B31: PA-26 | C31: =+VLOOKUP(B31,'tablero nal'!$W$9:$X$169,2,FALSE) -> Porcentaje de mujeres en periodo de gestación atendidas en la modalidad 1.000 días para cambiar el mundo que mejoran su estado nutricional | E31: - | F31: =+VLOOKUP(B31,'tablero nal'!$W$9:$BB$169,4,FALSE) -> 0.65 | G31: 0.575 | H31: 0.8846153846 | I31: 0.7 | J31: 0.5703 | K31: 0.8147142857 | L31: 0.7 | M31: 0.407 | N31: 0.5814285714 | O31: 0.5 | P31: 0.501 | Q31: 1.002 | R31: =+VLOOKUP(B31,'tablero nal'!$W$9:$AB$169,6,FALSE) -> 0.65 | S31: 0.575 | T31: 0.8846153846 | Y31: =+VLOOKUP(B31,'tablero nal'!$W$9:$AL$169,16,FALSE) -> Porcentaje | Z31: =IF(IF($Y31="Número",VLOOKUP($B31&"_1",Base!$E$4:$BO$7924,Z$6,FALSE),VLOOKUP($B31&"_1",Base!$E$4:$BO$7924,Z$5,FALSE))="","",IF($Y31="Número",VLOOKUP($B31&"_1",Base!$E$4:$BO$7924,Z$6,FALSE),VLOOKUP($B31&"_1",Base!$E$4:$BO$7924,Z$5,FALSE))) -> NA | AA31: =IF(IF($Y31="Número",VLOOKUP($B31&"_1",Base!$E$4:$BO$7924,AA$6,FALSE),VLOOKUP($B31&"_1",Base!$E$4:$BO$7924,AA$5,FALSE))="","",IF($Y31="Número",VLOOKUP($B31&"_1",Base!$E$4:$BO$7924,AA$6,FALSE),VLOOKUP($B31&"_1",Base!$E$4:$BO$7924,AA$5,FALSE))) -> NA | AB31: =IF(IF($Y31="Número",VLOOKUP($B31&"_1",Base!$E$4:$BO$7924,AB$6,FALSE),VLOOKUP($B31&"_1",Base!$E$4:$BO$7924,AB$5,FALSE))="","",IF($Y31="Número",VLOOKUP($B31&"_1",Base!$E$4:$BO$7924,AB$6,FALSE),VLOOKUP($B31&"_1",Base!$E$4:$BO$7924,AB$5,FALSE))) -> NA | AC31: =IF(IF($Y31="Número",VLOOKUP($B31&"_1",Base!$E$4:$BO$7924,AC$6,FALSE),VLOOKUP($B31&"_1",Base!$E$4:$BO$7924,AC$5,FALSE))="","",IF($Y31="Número",VLOOKUP($B31&"_1",Base!$E$4:$BO$7924,AC$6,FALSE),VLOOKUP($B31&"_1",Base!$E$4:$BO$7924,AC$5,FALSE))) -> 0.547 | AD31: =IF(IF($Y31="Número",VLOOKUP($B31&"_1",Base!$E$4:$BO$7924,AD$6,FALSE),VLOOKUP($B31&"_1",Base!$E$4:$BO$7924,AD$5,FALSE))="","",IF($Y31="Número",VLOOKUP($B31&"_1",Base!$E$4:$BO$7924,AD$6,FALSE),VLOOKUP($B31&"_1",Base!$E$4:$BO$7924,AD$5,FALSE))) -> NA | AE31: =IF(IF($Y31="Número",VLOOKUP($B31&"_1",Base!$E$4:$BO$7924,AE$6,FALSE),VLOOKUP($B31&"_1",Base!$E$4:$BO$7924,AE$5,FALSE))="","",IF($Y31="Número",VLOOKUP($B31&"_1",Base!$E$4:$BO$7924,AE$6,FALSE),VLOOKUP($B31&"_1",Base!$E$4:$BO$7924,AE$5,FALSE))) -> NA | AF31: =IF(IF($Y31="Número",VLOOKUP($B31&"_1",Base!$E$4:$BO$7924,AF$6,FALSE),VLOOKUP($B31&"_1",Base!$E$4:$BO$7924,AF$5,FALSE))="","",IF($Y31="Número",VLOOKUP($B31&"_1",Base!$E$4:$BO$7924,AF$6,FALSE),VLOOKUP($B31&"_1",Base!$E$4:$BO$7924,AF$5,FALSE))) -> NA | AG31: =IF(IF($Y31="Número",VLOOKUP($B31&"_1",Base!$E$4:$BO$7924,AG$6,FALSE),VLOOKUP($B31&"_1",Base!$E$4:$BO$7924,AG$5,FALSE))="","",IF($Y31="Número",VLOOKUP($B31&"_1",Base!$E$4:$BO$7924,AG$6,FALSE),VLOOKUP($B31&"_1",Base!$E$4:$BO$7924,AG$5,FALSE))) -> 0.575 | AH31: =IF(IF($Y31="Número",VLOOKUP($B31&"_1",Base!$E$4:$BO$7924,AH$6,FALSE),VLOOKUP($B31&"_1",Base!$E$4:$BO$7924,AH$5,FALSE))="","",IF($Y31="Número",VLOOKUP($B31&"_1",Base!$E$4:$BO$7924,AH$6,FALSE),VLOOKUP($B31&"_1",Base!$E$4:$BO$7924,AH$5,FALSE))) ->  | AI31: =IF(IF($Y31="Número",VLOOKUP($B31&"_1",Base!$E$4:$BO$7924,AI$6,FALSE),VLOOKUP($B31&"_1",Base!$E$4:$BO$7924,AI$5,FALSE))="","",IF($Y31="Número",VLOOKUP($B31&"_1",Base!$E$4:$BO$7924,AI$6,FALSE),VLOOKUP($B31&"_1",Base!$E$4:$BO$7924,AI$5,FALSE))) ->  | AJ31: =IF(IF($Y31="Número",VLOOKUP($B31&"_1",Base!$E$4:$BO$7924,AJ$6,FALSE),VLOOKUP($B31&"_1",Base!$E$4:$BO$7924,AJ$5,FALSE))="","",IF($Y31="Número",VLOOKUP($B31&"_1",Base!$E$4:$BO$7924,AJ$6,FALSE),VLOOKUP($B31&"_1",Base!$E$4:$BO$7924,AJ$5,FALSE))) ->  | AK31: =IF(IF($Y31="Número",VLOOKUP($B31&"_1",Base!$E$4:$BO$7924,AK$6,FALSE),VLOOKUP($B31&"_1",Base!$E$4:$BO$7924,AK$5,FALSE))="","",IF($Y31="Número",VLOOKUP($B31&"_1",Base!$E$4:$BO$7924,AK$6,FALSE),VLOOKUP($B31&"_1",Base!$E$4:$BO$7924,AK$5,FALSE))) -> 
B32: PA-27 | C32: =+VLOOKUP(B32,'tablero nal'!$W$9:$X$169,2,FALSE) -> Porcentaje de niños y niñas menores de 2 años que mejoraron su estado nutricional atendidos en la modalidad 1.000 días para cambiar el mundo. | E32: 0.7 | F32: =+VLOOKUP(B32,'tablero nal'!$W$9:$BB$169,4,FALSE) -> 0.8 | G32: 0.769 | H32: 0.96125 | I32: 0.8 | J32: 0.7089 | K32: 0.886125 | L32: 0.8 | M32: 0.775 | N32: 0.96875 | O32: 0.8 | P32: 0.8 | Q32: 1 | R32: =+VLOOKUP(B32,'tablero nal'!$W$9:$AB$169,6,FALSE) -> 0.8 | S32: 0.769 | T32: 0.96125 | Y32: =+VLOOKUP(B32,'tablero nal'!$W$9:$AL$169,16,FALSE) -> Porcentaje | Z32: =IF(IF($Y32="Número",VLOOKUP($B32&"_1",Base!$E$4:$BO$7924,Z$6,FALSE),VLOOKUP($B32&"_1",Base!$E$4:$BO$7924,Z$5,FALSE))="","",IF($Y32="Número",VLOOKUP($B32&"_1",Base!$E$4:$BO$7924,Z$6,FALSE),VLOOKUP($B32&"_1",Base!$E$4:$BO$7924,Z$5,FALSE))) -> NA | AA32: =IF(IF($Y32="Número",VLOOKUP($B32&"_1",Base!$E$4:$BO$7924,AA$6,FALSE),VLOOKUP($B32&"_1",Base!$E$4:$BO$7924,AA$5,FALSE))="","",IF($Y32="Número",VLOOKUP($B32&"_1",Base!$E$4:$BO$7924,AA$6,FALSE),VLOOKUP($B32&"_1",Base!$E$4:$BO$7924,AA$5,FALSE))) -> NA | AB32: =IF(IF($Y32="Número",VLOOKUP($B32&"_1",Base!$E$4:$BO$7924,AB$6,FALSE),VLOOKUP($B32&"_1",Base!$E$4:$BO$7924,AB$5,FALSE))="","",IF($Y32="Número",VLOOKUP($B32&"_1",Base!$E$4:$BO$7924,AB$6,FALSE),VLOOKUP($B32&"_1",Base!$E$4:$BO$7924,AB$5,FALSE))) -> NA | AC32: =IF(IF($Y32="Número",VLOOKUP($B32&"_1",Base!$E$4:$BO$7924,AC$6,FALSE),VLOOKUP($B32&"_1",Base!$E$4:$BO$7924,AC$5,FALSE))="","",IF($Y32="Número",VLOOKUP($B32&"_1",Base!$E$4:$BO$7924,AC$6,FALSE),VLOOKUP($B32&"_1",Base!$E$4:$BO$7924,AC$5,FALSE))) -> 0.685 | AD32: =IF(IF($Y32="Número",VLOOKUP($B32&"_1",Base!$E$4:$BO$7924,AD$6,FALSE),VLOOKUP($B32&"_1",Base!$E$4:$BO$7924,AD$5,FALSE))="","",IF($Y32="Número",VLOOKUP($B32&"_1",Base!$E$4:$BO$7924,AD$6,FALSE),VLOOKUP($B32&"_1",Base!$E$4:$BO$7924,AD$5,FALSE))) -> NA | AE32: =IF(IF($Y32="Número",VLOOKUP($B32&"_1",Base!$E$4:$BO$7924,AE$6,FALSE),VLOOKUP($B32&"_1",Base!$E$4:$BO$7924,AE$5,FALSE))="","",IF($Y32="Número",VLOOKUP($B32&"_1",Base!$E$4:$BO$7924,AE$6,FALSE),VLOOKUP($B32&"_1",Base!$E$4:$BO$7924,AE$5,FALSE))) -> NA | AF32: =IF(IF($Y32="Número",VLOOKUP($B32&"_1",Base!$E$4:$BO$7924,AF$6,FALSE),VLOOKUP($B32&"_1",Base!$E$4:$BO$7924,AF$5,FALSE))="","",IF($Y32="Número",VLOOKUP($B32&"_1",Base!$E$4:$BO$7924,AF$6,FALSE),VLOOKUP($B32&"_1",Base!$E$4:$BO$7924,AF$5,FALSE))) -> NA | AG32: =IF(IF($Y32="Número",VLOOKUP($B32&"_1",Base!$E$4:$BO$7924,AG$6,FALSE),VLOOKUP($B32&"_1",Base!$E$4:$BO$7924,AG$5,FALSE))="","",IF($Y32="Número",VLOOKUP($B32&"_1",Base!$E$4:$BO$7924,AG$6,FALSE),VLOOKUP($B32&"_1",Base!$E$4:$BO$7924,AG$5,FALSE))) -> 0.769 | AH32: =IF(IF($Y32="Número",VLOOKUP($B32&"_1",Base!$E$4:$BO$7924,AH$6,FALSE),VLOOKUP($B32&"_1",Base!$E$4:$BO$7924,AH$5,FALSE))="","",IF($Y32="Número",VLOOKUP($B32&"_1",Base!$E$4:$BO$7924,AH$6,FALSE),VLOOKUP($B32&"_1",Base!$E$4:$BO$7924,AH$5,FALSE))) ->  | AI32: =IF(IF($Y32="Número",VLOOKUP($B32&"_1",Base!$E$4:$BO$7924,AI$6,FALSE),VLOOKUP($B32&"_1",Base!$E$4:$BO$7924,AI$5,FALSE))="","",IF($Y32="Número",VLOOKUP($B32&"_1",Base!$E$4:$BO$7924,AI$6,FALSE),VLOOKUP($B32&"_1",Base!$E$4:$BO$7924,AI$5,FALSE))) ->  | AJ32: =IF(IF($Y32="Número",VLOOKUP($B32&"_1",Base!$E$4:$BO$7924,AJ$6,FALSE),VLOOKUP($B32&"_1",Base!$E$4:$BO$7924,AJ$5,FALSE))="","",IF($Y32="Número",VLOOKUP($B32&"_1",Base!$E$4:$BO$7924,AJ$6,FALSE),VLOOKUP($B32&"_1",Base!$E$4:$BO$7924,AJ$5,FALSE))) ->  | AK32: =IF(IF($Y32="Número",VLOOKUP($B32&"_1",Base!$E$4:$BO$7924,AK$6,FALSE),VLOOKUP($B32&"_1",Base!$E$4:$BO$7924,AK$5,FALSE))="","",IF($Y32="Número",VLOOKUP($B32&"_1",Base!$E$4:$BO$7924,AK$6,FALSE),VLOOKUP($B32&"_1",Base!$E$4:$BO$7924,AK$5,FALSE))) -> 
B33: PA-28 | C33: =+VLOOKUP(B33,'tablero nal'!$W$9:$X$169,2,FALSE) -> Porcentaje de Regionales del ICBF asesoradas en las acciones propias de los ejes de acceso y consumo establecidos en la política de seguridad alimentaria y nutricional. | E33: - | F33: =+VLOOKUP(B33,'tablero nal'!$W$9:$BB$169,4,FALSE) -> 1 | G33: 0.879 | H33: 0.879 | I33: 16 | J33: 19 | K33: 1.1875 | L33: 33 | M33: 33 | N33: 1 | O33: 1 | P33: 1 | Q33: 1 | R33: =+VLOOKUP(B33,'tablero nal'!$W$9:$AB$169,6,FALSE) -> 1 | S33: 0.879 | T33: 0.879 | Y33: =+VLOOKUP(B33,'tablero nal'!$W$9:$AL$169,16,FALSE) -> Porcentaje | Z33: =IF(IF($Y33="Número",VLOOKUP($B33&"_1",Base!$E$4:$BO$7924,Z$6,FALSE),VLOOKUP($B33&"_1",Base!$E$4:$BO$7924,Z$5,FALSE))="","",IF($Y33="Número",VLOOKUP($B33&"_1",Base!$E$4:$BO$7924,Z$6,FALSE),VLOOKUP($B33&"_1",Base!$E$4:$BO$7924,Z$5,FALSE))) -> NA | AA33: =IF(IF($Y33="Número",VLOOKUP($B33&"_1",Base!$E$4:$BO$7924,AA$6,FALSE),VLOOKUP($B33&"_1",Base!$E$4:$BO$7924,AA$5,FALSE))="","",IF($Y33="Número",VLOOKUP($B33&"_1",Base!$E$4:$BO$7924,AA$6,FALSE),VLOOKUP($B33&"_1",Base!$E$4:$BO$7924,AA$5,FALSE))) -> NA | AB33: =IF(IF($Y33="Número",VLOOKUP($B33&"_1",Base!$E$4:$BO$7924,AB$6,FALSE),VLOOKUP($B33&"_1",Base!$E$4:$BO$7924,AB$5,FALSE))="","",IF($Y33="Número",VLOOKUP($B33&"_1",Base!$E$4:$BO$7924,AB$6,FALSE),VLOOKUP($B33&"_1",Base!$E$4:$BO$7924,AB$5,FALSE))) -> NA | AC33: =IF(IF($Y33="Número",VLOOKUP($B33&"_1",Base!$E$4:$BO$7924,AC$6,FALSE),VLOOKUP($B33&"_1",Base!$E$4:$BO$7924,AC$5,FALSE))="","",IF($Y33="Número",VLOOKUP($B33&"_1",Base!$E$4:$BO$7924,AC$6,FALSE),VLOOKUP($B33&"_1",Base!$E$4:$BO$7924,AC$5,FALSE))) -> NA | AD33: =IF(IF($Y33="Número",VLOOKUP($B33&"_1",Base!$E$4:$BO$7924,AD$6,FALSE),VLOOKUP($B33&"_1",Base!$E$4:$BO$7924,AD$5,FALSE))="","",IF($Y33="Número",VLOOKUP($B33&"_1",Base!$E$4:$BO$7924,AD$6,FALSE),VLOOKUP($B33&"_1",Base!$E$4:$BO$7924,AD$5,FALSE))) -> NA | AE33: =IF(IF($Y33="Número",VLOOKUP($B33&"_1",Base!$E$4:$BO$7924,AE$6,FALSE),VLOOKUP($B33&"_1",Base!$E$4:$BO$7924,AE$5,FALSE))="","",IF($Y33="Número",VLOOKUP($B33&"_1",Base!$E$4:$BO$7924,AE$6,FALSE),VLOOKUP($B33&"_1",Base!$E$4:$BO$7924,AE$5,FALSE))) -> 0.879 | AF33: =IF(IF($Y33="Número",VLOOKUP($B33&"_1",Base!$E$4:$BO$7924,AF$6,FALSE),VLOOKUP($B33&"_1",Base!$E$4:$BO$7924,AF$5,FALSE))="","",IF($Y33="Número",VLOOKUP($B33&"_1",Base!$E$4:$BO$7924,AF$6,FALSE),VLOOKUP($B33&"_1",Base!$E$4:$BO$7924,AF$5,FALSE))) -> NA | AG33: =IF(IF($Y33="Número",VLOOKUP($B33&"_1",Base!$E$4:$BO$7924,AG$6,FALSE),VLOOKUP($B33&"_1",Base!$E$4:$BO$7924,AG$5,FALSE))="","",IF($Y33="Número",VLOOKUP($B33&"_1",Base!$E$4:$BO$7924,AG$6,FALSE),VLOOKUP($B33&"_1",Base!$E$4:$BO$7924,AG$5,FALSE))) -> NA | AH33: =IF(IF($Y33="Número",VLOOKUP($B33&"_1",Base!$E$4:$BO$7924,AH$6,FALSE),VLOOKUP($B33&"_1",Base!$E$4:$BO$7924,AH$5,FALSE))="","",IF($Y33="Número",VLOOKUP($B33&"_1",Base!$E$4:$BO$7924,AH$6,FALSE),VLOOKUP($B33&"_1",Base!$E$4:$BO$7924,AH$5,FALSE))) ->  | AI33: =IF(IF($Y33="Número",VLOOKUP($B33&"_1",Base!$E$4:$BO$7924,AI$6,FALSE),VLOOKUP($B33&"_1",Base!$E$4:$BO$7924,AI$5,FALSE))="","",IF($Y33="Número",VLOOKUP($B33&"_1",Base!$E$4:$BO$7924,AI$6,FALSE),VLOOKUP($B33&"_1",Base!$E$4:$BO$7924,AI$5,FALSE))) ->  | AJ33: =IF(IF($Y33="Número",VLOOKUP($B33&"_1",Base!$E$4:$BO$7924,AJ$6,FALSE),VLOOKUP($B33&"_1",Base!$E$4:$BO$7924,AJ$5,FALSE))="","",IF($Y33="Número",VLOOKUP($B33&"_1",Base!$E$4:$BO$7924,AJ$6,FALSE),VLOOKUP($B33&"_1",Base!$E$4:$BO$7924,AJ$5,FALSE))) ->  | AK33: =IF(IF($Y33="Número",VLOOKUP($B33&"_1",Base!$E$4:$BO$7924,AK$6,FALSE),VLOOKUP($B33&"_1",Base!$E$4:$BO$7924,AK$5,FALSE))="","",IF($Y33="Número",VLOOKUP($B33&"_1",Base!$E$4:$BO$7924,AK$6,FALSE),VLOOKUP($B33&"_1",Base!$E$4:$BO$7924,AK$5,FALSE))) -> 
B34: PA-29 | C34: =+VLOOKUP(B34,'tablero nal'!$W$9:$X$169,2,FALSE) -> Número de Servidores Públicos, contratistas y Agentes del Sistema Nacional de Bienestar Familiar capacitados en las acciones propias de la Política de Seguridad Alimentaria y Nutricional | E34: - | F34: =+VLOOKUP(B34,'tablero nal'!$W$9:$BB$169,4,FALSE) -> 4758 | G34: 4357 | H34: 0.9157208911 | I34: 1050 | J34: 1050 | K34: 1 | L34: 2240 | M34: 2240 | N34: 1 | O34: 3499 | P34: 3499 | Q34: 1 | R34: =+VLOOKUP(B34,'tablero nal'!$W$9:$AB$169,6,FALSE) -> 4758 | S34: 4357 | T34: 0.9157208911 | Y34: =+VLOOKUP(B34,'tablero nal'!$W$9:$AL$169,16,FALSE) -> Número | Z34: =IF(IF($Y34="Número",VLOOKUP($B34&"_1",Base!$E$4:$BO$7924,Z$6,FALSE),VLOOKUP($B34&"_1",Base!$E$4:$BO$7924,Z$5,FALSE))="","",IF($Y34="Número",VLOOKUP($B34&"_1",Base!$E$4:$BO$7924,Z$6,FALSE),VLOOKUP($B34&"_1",Base!$E$4:$BO$7924,Z$5,FALSE))) -> NA | AA34: =IF(IF($Y34="Número",VLOOKUP($B34&"_1",Base!$E$4:$BO$7924,AA$6,FALSE),VLOOKUP($B34&"_1",Base!$E$4:$BO$7924,AA$5,FALSE))="","",IF($Y34="Número",VLOOKUP($B34&"_1",Base!$E$4:$BO$7924,AA$6,FALSE),VLOOKUP($B34&"_1",Base!$E$4:$BO$7924,AA$5,FALSE))) -> NA | AB34: =IF(IF($Y34="Número",VLOOKUP($B34&"_1",Base!$E$4:$BO$7924,AB$6,FALSE),VLOOKUP($B34&"_1",Base!$E$4:$BO$7924,AB$5,FALSE))="","",IF($Y34="Número",VLOOKUP($B34&"_1",Base!$E$4:$BO$7924,AB$6,FALSE),VLOOKUP($B34&"_1",Base!$E$4:$BO$7924,AB$5,FALSE))) -> NA | AC34: =IF(IF($Y34="Número",VLOOKUP($B34&"_1",Base!$E$4:$BO$7924,AC$6,FALSE),VLOOKUP($B34&"_1",Base!$E$4:$BO$7924,AC$5,FALSE))="","",IF($Y34="Número",VLOOKUP($B34&"_1",Base!$E$4:$BO$7924,AC$6,FALSE),VLOOKUP($B34&"_1",Base!$E$4:$BO$7924,AC$5,FALSE))) -> NA | AD34: =IF(IF($Y34="Número",VLOOKUP($B34&"_1",Base!$E$4:$BO$7924,AD$6,FALSE),VLOOKUP($B34&"_1",Base!$E$4:$BO$7924,AD$5,FALSE))="","",IF($Y34="Número",VLOOKUP($B34&"_1",Base!$E$4:$BO$7924,AD$6,FALSE),VLOOKUP($B34&"_1",Base!$E$4:$BO$7924,AD$5,FALSE))) -> NA | AE34: =IF(IF($Y34="Número",VLOOKUP($B34&"_1",Base!$E$4:$BO$7924,AE$6,FALSE),VLOOKUP($B34&"_1",Base!$E$4:$BO$7924,AE$5,FALSE))="","",IF($Y34="Número",VLOOKUP($B34&"_1",Base!$E$4:$BO$7924,AE$6,FALSE),VLOOKUP($B34&"_1",Base!$E$4:$BO$7924,AE$5,FALSE))) -> 4357 | AF34: =IF(IF($Y34="Número",VLOOKUP($B34&"_1",Base!$E$4:$BO$7924,AF$6,FALSE),VLOOKUP($B34&"_1",Base!$E$4:$BO$7924,AF$5,FALSE))="","",IF($Y34="Número",VLOOKUP($B34&"_1",Base!$E$4:$BO$7924,AF$6,FALSE),VLOOKUP($B34&"_1",Base!$E$4:$BO$7924,AF$5,FALSE))) -> NA | AG34: =IF(IF($Y34="Número",VLOOKUP($B34&"_1",Base!$E$4:$BO$7924,AG$6,FALSE),VLOOKUP($B34&"_1",Base!$E$4:$BO$7924,AG$5,FALSE))="","",IF($Y34="Número",VLOOKUP($B34&"_1",Base!$E$4:$BO$7924,AG$6,FALSE),VLOOKUP($B34&"_1",Base!$E$4:$BO$7924,AG$5,FALSE))) -> NA | AH34: =IF(IF($Y34="Número",VLOOKUP($B34&"_1",Base!$E$4:$BO$7924,AH$6,FALSE),VLOOKUP($B34&"_1",Base!$E$4:$BO$7924,AH$5,FALSE))="","",IF($Y34="Número",VLOOKUP($B34&"_1",Base!$E$4:$BO$7924,AH$6,FALSE),VLOOKUP($B34&"_1",Base!$E$4:$BO$7924,AH$5,FALSE))) ->  | AI34: =IF(IF($Y34="Número",VLOOKUP($B34&"_1",Base!$E$4:$BO$7924,AI$6,FALSE),VLOOKUP($B34&"_1",Base!$E$4:$BO$7924,AI$5,FALSE))="","",IF($Y34="Número",VLOOKUP($B34&"_1",Base!$E$4:$BO$7924,AI$6,FALSE),VLOOKUP($B34&"_1",Base!$E$4:$BO$7924,AI$5,FALSE))) ->  | AJ34: =IF(IF($Y34="Número",VLOOKUP($B34&"_1",Base!$E$4:$BO$7924,AJ$6,FALSE),VLOOKUP($B34&"_1",Base!$E$4:$BO$7924,AJ$5,FALSE))="","",IF($Y34="Número",VLOOKUP($B34&"_1",Base!$E$4:$BO$7924,AJ$6,FALSE),VLOOKUP($B34&"_1",Base!$E$4:$BO$7924,AJ$5,FALSE))) ->  | AK34: =IF(IF($Y34="Número",VLOOKUP($B34&"_1",Base!$E$4:$BO$7924,AK$6,FALSE),VLOOKUP($B34&"_1",Base!$E$4:$BO$7924,AK$5,FALSE))="","",IF($Y34="Número",VLOOKUP($B34&"_1",Base!$E$4:$BO$7924,AK$6,FALSE),VLOOKUP($B34&"_1",Base!$E$4:$BO$7924,AK$5,FALSE))) -> 
B35: PA-30 | C35: =+VLOOKUP(B35,'tablero nal'!$W$9:$X$169,2,FALSE) -> Niñas y niños menores de 5 años y mujeres gestantes microfocalizados en el marco de la prestación del servicio del ICBF. | D35: X | E35: 44049 | F35: =+VLOOKUP(B35,'tablero nal'!$W$9:$BB$169,4,FALSE) -> 376528 | G35: 402242 | H35: 1.068292398 | I35: 40000 | J35: 38689 | K35: 0.967225 | L35: 130000 | M35: 127893 | N35: 0.9837923077 | O35: 220000 | P35: 223070 | Q35: 1.013954545 | R35: =+VLOOKUP(B35,'tablero nal'!$W$9:$AB$169,6,FALSE) -> 376528 | S35: 402242 | T35: 1.068292398 | Y35: =+VLOOKUP(B35,'tablero nal'!$W$9:$AL$169,16,FALSE) -> Número | Z35: =IF(IF($Y35="Número",VLOOKUP($B35&"_1",Base!$E$4:$BO$7924,Z$6,FALSE),VLOOKUP($B35&"_1",Base!$E$4:$BO$7924,Z$5,FALSE))="","",IF($Y35="Número",VLOOKUP($B35&"_1",Base!$E$4:$BO$7924,Z$6,FALSE),VLOOKUP($B35&"_1",Base!$E$4:$BO$7924,Z$5,FALSE))) -> NA | AA35: =IF(IF($Y35="Número",VLOOKUP($B35&"_1",Base!$E$4:$BO$7924,AA$6,FALSE),VLOOKUP($B35&"_1",Base!$E$4:$BO$7924,AA$5,FALSE))="","",IF($Y35="Número",VLOOKUP($B35&"_1",Base!$E$4:$BO$7924,AA$6,FALSE),VLOOKUP($B35&"_1",Base!$E$4:$BO$7924,AA$5,FALSE))) -> NA | AB35: =IF(IF($Y35="Número",VLOOKUP($B35&"_1",Base!$E$4:$BO$7924,AB$6,FALSE),VLOOKUP($B35&"_1",Base!$E$4:$BO$7924,AB$5,FALSE))="","",IF($Y35="Número",VLOOKUP($B35&"_1",Base!$E$4:$BO$7924,AB$6,FALSE),VLOOKUP($B35&"_1",Base!$E$4:$BO$7924,AB$5,FALSE))) -> 331997 | AC35: =IF(IF($Y35="Número",VLOOKUP($B35&"_1",Base!$E$4:$BO$7924,AC$6,FALSE),VLOOKUP($B35&"_1",Base!$E$4:$BO$7924,AC$5,FALSE))="","",IF($Y35="Número",VLOOKUP($B35&"_1",Base!$E$4:$BO$7924,AC$6,FALSE),VLOOKUP($B35&"_1",Base!$E$4:$BO$7924,AC$5,FALSE))) -> NA | AD35: =IF(IF($Y35="Número",VLOOKUP($B35&"_1",Base!$E$4:$BO$7924,AD$6,FALSE),VLOOKUP($B35&"_1",Base!$E$4:$BO$7924,AD$5,FALSE))="","",IF($Y35="Número",VLOOKUP($B35&"_1",Base!$E$4:$BO$7924,AD$6,FALSE),VLOOKUP($B35&"_1",Base!$E$4:$BO$7924,AD$5,FALSE))) -> NA | AE35: =IF(IF($Y35="Número",VLOOKUP($B35&"_1",Base!$E$4:$BO$7924,AE$6,FALSE),VLOOKUP($B35&"_1",Base!$E$4:$BO$7924,AE$5,FALSE))="","",IF($Y35="Número",VLOOKUP($B35&"_1",Base!$E$4:$BO$7924,AE$6,FALSE),VLOOKUP($B35&"_1",Base!$E$4:$BO$7924,AE$5,FALSE))) -> 402242 | AF35: =IF(IF($Y35="Número",VLOOKUP($B35&"_1",Base!$E$4:$BO$7924,AF$6,FALSE),VLOOKUP($B35&"_1",Base!$E$4:$BO$7924,AF$5,FALSE))="","",IF($Y35="Número",VLOOKUP($B35&"_1",Base!$E$4:$BO$7924,AF$6,FALSE),VLOOKUP($B35&"_1",Base!$E$4:$BO$7924,AF$5,FALSE))) -> NA | AG35: =IF(IF($Y35="Número",VLOOKUP($B35&"_1",Base!$E$4:$BO$7924,AG$6,FALSE),VLOOKUP($B35&"_1",Base!$E$4:$BO$7924,AG$5,FALSE))="","",IF($Y35="Número",VLOOKUP($B35&"_1",Base!$E$4:$BO$7924,AG$6,FALSE),VLOOKUP($B35&"_1",Base!$E$4:$BO$7924,AG$5,FALSE))) -> NA | AH35: =IF(IF($Y35="Número",VLOOKUP($B35&"_1",Base!$E$4:$BO$7924,AH$6,FALSE),VLOOKUP($B35&"_1",Base!$E$4:$BO$7924,AH$5,FALSE))="","",IF($Y35="Número",VLOOKUP($B35&"_1",Base!$E$4:$BO$7924,AH$6,FALSE),VLOOKUP($B35&"_1",Base!$E$4:$BO$7924,AH$5,FALSE))) ->  | AI35: =IF(IF($Y35="Número",VLOOKUP($B35&"_1",Base!$E$4:$BO$7924,AI$6,FALSE),VLOOKUP($B35&"_1",Base!$E$4:$BO$7924,AI$5,FALSE))="","",IF($Y35="Número",VLOOKUP($B35&"_1",Base!$E$4:$BO$7924,AI$6,FALSE),VLOOKUP($B35&"_1",Base!$E$4:$BO$7924,AI$5,FALSE))) ->  | AJ35: =IF(IF($Y35="Número",VLOOKUP($B35&"_1",Base!$E$4:$BO$7924,AJ$6,FALSE),VLOOKUP($B35&"_1",Base!$E$4:$BO$7924,AJ$5,FALSE))="","",IF($Y35="Número",VLOOKUP($B35&"_1",Base!$E$4:$BO$7924,AJ$6,FALSE),VLOOKUP($B35&"_1",Base!$E$4:$BO$7924,AJ$5,FALSE))) ->  | AK35: =IF(IF($Y35="Número",VLOOKUP($B35&"_1",Base!$E$4:$BO$7924,AK$6,FALSE),VLOOKUP($B35&"_1",Base!$E$4:$BO$7924,AK$5,FALSE))="","",IF($Y35="Número",VLOOKUP($B35&"_1",Base!$E$4:$BO$7924,AK$6,FALSE),VLOOKUP($B35&"_1",Base!$E$4:$BO$7924,AK$5,FALSE))) -> 
B36: PA-36 | C36: =+VLOOKUP(B36,'tablero nal'!$W$9:$X$169,2,FALSE) -> Porcentaje de Autoridades Administrativas y Equipos Técnicos Interdisciplinarios, capacitados en el proceso Administrativo de Restablecimiento de Derechos y temáticas afines. | E36: 0.22 | F36: =+VLOOKUP(B36,'tablero nal'!$W$9:$BB$169,4,FALSE) -> 1 | G36: 1 | H36: 1 | I36: 0.44 | J36: 0.5735 | K36: 1.303409091 | L36: 0.62 | M36: 0.62 | N36: 1 | O36: 0.8 | P36: 0.935 | Q36: 1.16875 | R36: =+VLOOKUP(B36,'tablero nal'!$W$9:$AB$169,6,FALSE) -> 1 | S36: 1 | T36: 1 | Y36: =+VLOOKUP(B36,'tablero nal'!$W$9:$AL$169,16,FALSE) -> Porcentaje | Z36: =IF(IF($Y36="Número",VLOOKUP($B36&"_1",Base!$E$4:$BO$7924,Z$6,FALSE),VLOOKUP($B36&"_1",Base!$E$4:$BO$7924,Z$5,FALSE))="","",IF($Y36="Número",VLOOKUP($B36&"_1",Base!$E$4:$BO$7924,Z$6,FALSE),VLOOKUP($B36&"_1",Base!$E$4:$BO$7924,Z$5,FALSE))) -> NA | AA36: =IF(IF($Y36="Número",VLOOKUP($B36&"_1",Base!$E$4:$BO$7924,AA$6,FALSE),VLOOKUP($B36&"_1",Base!$E$4:$BO$7924,AA$5,FALSE))="","",IF($Y36="Número",VLOOKUP($B36&"_1",Base!$E$4:$BO$7924,AA$6,FALSE),VLOOKUP($B36&"_1",Base!$E$4:$BO$7924,AA$5,FALSE))) -> NA | AB36: =IF(IF($Y36="Número",VLOOKUP($B36&"_1",Base!$E$4:$BO$7924,AB$6,FALSE),VLOOKUP($B36&"_1",Base!$E$4:$BO$7924,AB$5,FALSE))="","",IF($Y36="Número",VLOOKUP($B36&"_1",Base!$E$4:$BO$7924,AB$6,FALSE),VLOOKUP($B36&"_1",Base!$E$4:$BO$7924,AB$5,FALSE))) -> NA | AC36: =IF(IF($Y36="Número",VLOOKUP($B36&"_1",Base!$E$4:$BO$7924,AC$6,FALSE),VLOOKUP($B36&"_1",Base!$E$4:$BO$7924,AC$5,FALSE))="","",IF($Y36="Número",VLOOKUP($B36&"_1",Base!$E$4:$BO$7924,AC$6,FALSE),VLOOKUP($B36&"_1",Base!$E$4:$BO$7924,AC$5,FALSE))) -> 1.139 | AD36: =IF(IF($Y36="Número",VLOOKUP($B36&"_1",Base!$E$4:$BO$7924,AD$6,FALSE),VLOOKUP($B36&"_1",Base!$E$4:$BO$7924,AD$5,FALSE))="","",IF($Y36="Número",VLOOKUP($B36&"_1",Base!$E$4:$BO$7924,AD$6,FALSE),VLOOKUP($B36&"_1",Base!$E$4:$BO$7924,AD$5,FALSE))) -> NA | AE36: =IF(IF($Y36="Número",VLOOKUP($B36&"_1",Base!$E$4:$BO$7924,AE$6,FALSE),VLOOKUP($B36&"_1",Base!$E$4:$BO$7924,AE$5,FALSE))="","",IF($Y36="Número",VLOOKUP($B36&"_1",Base!$E$4:$BO$7924,AE$6,FALSE),VLOOKUP($B36&"_1",Base!$E$4:$BO$7924,AE$5,FALSE))) -> NA | AF36: =IF(IF($Y36="Número",VLOOKUP($B36&"_1",Base!$E$4:$BO$7924,AF$6,FALSE),VLOOKUP($B36&"_1",Base!$E$4:$BO$7924,AF$5,FALSE))="","",IF($Y36="Número",VLOOKUP($B36&"_1",Base!$E$4:$BO$7924,AF$6,FALSE),VLOOKUP($B36&"_1",Base!$E$4:$BO$7924,AF$5,FALSE))) -> NA | AG36: =IF(IF($Y36="Número",VLOOKUP($B36&"_1",Base!$E$4:$BO$7924,AG$6,FALSE),VLOOKUP($B36&"_1",Base!$E$4:$BO$7924,AG$5,FALSE))="","",IF($Y36="Número",VLOOKUP($B36&"_1",Base!$E$4:$BO$7924,AG$6,FALSE),VLOOKUP($B36&"_1",Base!$E$4:$BO$7924,AG$5,FALSE))) -> 1 | AH36: =IF(IF($Y36="Número",VLOOKUP($B36&"_1",Base!$E$4:$BO$7924,AH$6,FALSE),VLOOKUP($B36&"_1",Base!$E$4:$BO$7924,AH$5,FALSE))="","",IF($Y36="Número",VLOOKUP($B36&"_1",Base!$E$4:$BO$7924,AH$6,FALSE),VLOOKUP($B36&"_1",Base!$E$4:$BO$7924,AH$5,FALSE))) ->  | AI36: =IF(IF($Y36="Número",VLOOKUP($B36&"_1",Base!$E$4:$BO$7924,AI$6,FALSE),VLOOKUP($B36&"_1",Base!$E$4:$BO$7924,AI$5,FALSE))="","",IF($Y36="Número",VLOOKUP($B36&"_1",Base!$E$4:$BO$7924,AI$6,FALSE),VLOOKUP($B36&"_1",Base!$E$4:$BO$7924,AI$5,FALSE))) ->  | AJ36: =IF(IF($Y36="Número",VLOOKUP($B36&"_1",Base!$E$4:$BO$7924,AJ$6,FALSE),VLOOKUP($B36&"_1",Base!$E$4:$BO$7924,AJ$5,FALSE))="","",IF($Y36="Número",VLOOKUP($B36&"_1",Base!$E$4:$BO$7924,AJ$6,FALSE),VLOOKUP($B36&"_1",Base!$E$4:$BO$7924,AJ$5,FALSE))) ->  | AK36: =IF(IF($Y36="Número",VLOOKUP($B36&"_1",Base!$E$4:$BO$7924,AK$6,FALSE),VLOOKUP($B36&"_1",Base!$E$4:$BO$7924,AK$5,FALSE))="","",IF($Y36="Número",VLOOKUP($B36&"_1",Base!$E$4:$BO$7924,AK$6,FALSE),VLOOKUP($B36&"_1",Base!$E$4:$BO$7924,AK$5,FALSE))) -> 
B37: PA-37 | C37: =+VLOOKUP(B37,'tablero nal'!$W$9:$X$169,2,FALSE) -> Porcentaje de Autoridades Administrativas, Equipos Técnicos, capacitados en la Ruta de Restablecimiento de Derechos con Enfoque Diferencial Étnico. | E37: 0.12 | F37: =+VLOOKUP(B37,'tablero nal'!$W$9:$BB$169,4,FALSE) -> 1 | G37: 0.87 | H37: 0.87 | I37: 0.34 | J37: 0.3286 | K37: 0.9664705882 | L37: 0.56 | M37: 0.47 | N37: 0.8392857143 | O37: 0.78 | P37: 0.78 | Q37: 1 | R37: =+VLOOKUP(B37,'tablero nal'!$W$9:$AB$169,6,FALSE) -> 1 | S37: 0.87 | T37: 0.87 | Y37: =+VLOOKUP(B37,'tablero nal'!$W$9:$AL$169,16,FALSE) -> Porcentaje | Z37: =IF(IF($Y37="Número",VLOOKUP($B37&"_1",Base!$E$4:$BO$7924,Z$6,FALSE),VLOOKUP($B37&"_1",Base!$E$4:$BO$7924,Z$5,FALSE))="","",IF($Y37="Número",VLOOKUP($B37&"_1",Base!$E$4:$BO$7924,Z$6,FALSE),VLOOKUP($B37&"_1",Base!$E$4:$BO$7924,Z$5,FALSE))) -> NA | AA37: =IF(IF($Y37="Número",VLOOKUP($B37&"_1",Base!$E$4:$BO$7924,AA$6,FALSE),VLOOKUP($B37&"_1",Base!$E$4:$BO$7924,AA$5,FALSE))="","",IF($Y37="Número",VLOOKUP($B37&"_1",Base!$E$4:$BO$7924,AA$6,FALSE),VLOOKUP($B37&"_1",Base!$E$4:$BO$7924,AA$5,FALSE))) -> NA | AB37: =IF(IF($Y37="Número",VLOOKUP($B37&"_1",Base!$E$4:$BO$7924,AB$6,FALSE),VLOOKUP($B37&"_1",Base!$E$4:$BO$7924,AB$5,FALSE))="","",IF($Y37="Número",VLOOKUP($B37&"_1",Base!$E$4:$BO$7924,AB$6,FALSE),VLOOKUP($B37&"_1",Base!$E$4:$BO$7924,AB$5,FALSE))) -> NA | AC37: =IF(IF($Y37="Número",VLOOKUP($B37&"_1",Base!$E$4:$BO$7924,AC$6,FALSE),VLOOKUP($B37&"_1",Base!$E$4:$BO$7924,AC$5,FALSE))="","",IF($Y37="Número",VLOOKUP($B37&"_1",Base!$E$4:$BO$7924,AC$6,FALSE),VLOOKUP($B37&"_1",Base!$E$4:$BO$7924,AC$5,FALSE))) -> 0.832 | AD37: =IF(IF($Y37="Número",VLOOKUP($B37&"_1",Base!$E$4:$BO$7924,AD$6,FALSE),VLOOKUP($B37&"_1",Base!$E$4:$BO$7924,AD$5,FALSE))="","",IF($Y37="Número",VLOOKUP($B37&"_1",Base!$E$4:$BO$7924,AD$6,FALSE),VLOOKUP($B37&"_1",Base!$E$4:$BO$7924,AD$5,FALSE))) -> NA | AE37: =IF(IF($Y37="Número",VLOOKUP($B37&"_1",Base!$E$4:$BO$7924,AE$6,FALSE),VLOOKUP($B37&"_1",Base!$E$4:$BO$7924,AE$5,FALSE))="","",IF($Y37="Número",VLOOKUP($B37&"_1",Base!$E$4:$BO$7924,AE$6,FALSE),VLOOKUP($B37&"_1",Base!$E$4:$BO$7924,AE$5,FALSE))) -> NA | AF37: =IF(IF($Y37="Número",VLOOKUP($B37&"_1",Base!$E$4:$BO$7924,AF$6,FALSE),VLOOKUP($B37&"_1",Base!$E$4:$BO$7924,AF$5,FALSE))="","",IF($Y37="Número",VLOOKUP($B37&"_1",Base!$E$4:$BO$7924,AF$6,FALSE),VLOOKUP($B37&"_1",Base!$E$4:$BO$7924,AF$5,FALSE))) -> NA | AG37: =IF(IF($Y37="Número",VLOOKUP($B37&"_1",Base!$E$4:$BO$7924,AG$6,FALSE),VLOOKUP($B37&"_1",Base!$E$4:$BO$7924,AG$5,FALSE))="","",IF($Y37="Número",VLOOKUP($B37&"_1",Base!$E$4:$BO$7924,AG$6,FALSE),VLOOKUP($B37&"_1",Base!$E$4:$BO$7924,AG$5,FALSE))) -> 0.87 | AH37: =IF(IF($Y37="Número",VLOOKUP($B37&"_1",Base!$E$4:$BO$7924,AH$6,FALSE),VLOOKUP($B37&"_1",Base!$E$4:$BO$7924,AH$5,FALSE))="","",IF($Y37="Número",VLOOKUP($B37&"_1",Base!$E$4:$BO$7924,AH$6,FALSE),VLOOKUP($B37&"_1",Base!$E$4:$BO$7924,AH$5,FALSE))) ->  | AI37: =IF(IF($Y37="Número",VLOOKUP($B37&"_1",Base!$E$4:$BO$7924,AI$6,FALSE),VLOOKUP($B37&"_1",Base!$E$4:$BO$7924,AI$5,FALSE))="","",IF($Y37="Número",VLOOKUP($B37&"_1",Base!$E$4:$BO$7924,AI$6,FALSE),VLOOKUP($B37&"_1",Base!$E$4:$BO$7924,AI$5,FALSE))) ->  | AJ37: =IF(IF($Y37="Número",VLOOKUP($B37&"_1",Base!$E$4:$BO$7924,AJ$6,FALSE),VLOOKUP($B37&"_1",Base!$E$4:$BO$7924,AJ$5,FALSE))="","",IF($Y37="Número",VLOOKUP($B37&"_1",Base!$E$4:$BO$7924,AJ$6,FALSE),VLOOKUP($B37&"_1",Base!$E$4:$BO$7924,AJ$5,FALSE))) ->  | AK37: =IF(IF($Y37="Número",VLOOKUP($B37&"_1",Base!$E$4:$BO$7924,AK$6,FALSE),VLOOKUP($B37&"_1",Base!$E$4:$BO$7924,AK$5,FALSE))="","",IF($Y37="Número",VLOOKUP($B37&"_1",Base!$E$4:$BO$7924,AK$6,FALSE),VLOOKUP($B37&"_1",Base!$E$4:$BO$7924,AK$5,FALSE))) -> 
B38: PA-38 | C38: =+VLOOKUP(B38,'tablero nal'!$W$9:$X$169,2,FALSE) -> Número de municipios con asistencia técnica para la implementación de las rutas de atención integral para el Restablecimiento de Derechos de la menor de 14 años embarazada. | D38: X | E38: 20 | F38: =+VLOOKUP(B38,'tablero nal'!$W$9:$BB$169,4,FALSE) -> 700 | G38: 706 | H38: 1.008571429 | I38: 100 | J38: 120 | K38: 1.2 | L38: 350 | M38: 380 | N38: 1.085714286 | O38: 600 | P38: 650 | Q38: 1.083333333 | R38: =+VLOOKUP(B38,'tablero nal'!$W$9:$AB$169,6,FALSE) -> 700 | S38: 706 | T38: 1.008571429 | Y38: =+VLOOKUP(B38,'tablero nal'!$W$9:$AL$169,16,FALSE) -> Número | Z38: =IF(IF($Y38="Número",VLOOKUP($B38&"_1",Base!$E$4:$BO$7924,Z$6,FALSE),VLOOKUP($B38&"_1",Base!$E$4:$BO$7924,Z$5,FALSE))="","",IF($Y38="Número",VLOOKUP($B38&"_1",Base!$E$4:$BO$7924,Z$6,FALSE),VLOOKUP($B38&"_1",Base!$E$4:$BO$7924,Z$5,FALSE))) -> NA | AA38: =IF(IF($Y38="Número",VLOOKUP($B38&"_1",Base!$E$4:$BO$7924,AA$6,FALSE),VLOOKUP($B38&"_1",Base!$E$4:$BO$7924,AA$5,FALSE))="","",IF($Y38="Número",VLOOKUP($B38&"_1",Base!$E$4:$BO$7924,AA$6,FALSE),VLOOKUP($B38&"_1",Base!$E$4:$BO$7924,AA$5,FALSE))) -> NA | AB38: =IF(IF($Y38="Número",VLOOKUP($B38&"_1",Base!$E$4:$BO$7924,AB$6,FALSE),VLOOKUP($B38&"_1",Base!$E$4:$BO$7924,AB$5,FALSE))="","",IF($Y38="Número",VLOOKUP($B38&"_1",Base!$E$4:$BO$7924,AB$6,FALSE),VLOOKUP($B38&"_1",Base!$E$4:$BO$7924,AB$5,FALSE))) -> 659 | AC38: =IF(IF($Y38="Número",VLOOKUP($B38&"_1",Base!$E$4:$BO$7924,AC$6,FALSE),VLOOKUP($B38&"_1",Base!$E$4:$BO$7924,AC$5,FALSE))="","",IF($Y38="Número",VLOOKUP($B38&"_1",Base!$E$4:$BO$7924,AC$6,FALSE),VLOOKUP($B38&"_1",Base!$E$4:$BO$7924,AC$5,FALSE))) -> NA | AD38: =IF(IF($Y38="Número",VLOOKUP($B38&"_1",Base!$E$4:$BO$7924,AD$6,FALSE),VLOOKUP($B38&"_1",Base!$E$4:$BO$7924,AD$5,FALSE))="","",IF($Y38="Número",VLOOKUP($B38&"_1",Base!$E$4:$BO$7924,AD$6,FALSE),VLOOKUP($B38&"_1",Base!$E$4:$BO$7924,AD$5,FALSE))) -> NA | AE38: =IF(IF($Y38="Número",VLOOKUP($B38&"_1",Base!$E$4:$BO$7924,AE$6,FALSE),VLOOKUP($B38&"_1",Base!$E$4:$BO$7924,AE$5,FALSE))="","",IF($Y38="Número",VLOOKUP($B38&"_1",Base!$E$4:$BO$7924,AE$6,FALSE),VLOOKUP($B38&"_1",Base!$E$4:$BO$7924,AE$5,FALSE))) -> 706 | AF38: =IF(IF($Y38="Número",VLOOKUP($B38&"_1",Base!$E$4:$BO$7924,AF$6,FALSE),VLOOKUP($B38&"_1",Base!$E$4:$BO$7924,AF$5,FALSE))="","",IF($Y38="Número",VLOOKUP($B38&"_1",Base!$E$4:$BO$7924,AF$6,FALSE),VLOOKUP($B38&"_1",Base!$E$4:$BO$7924,AF$5,FALSE))) -> NA | AG38: =IF(IF($Y38="Número",VLOOKUP($B38&"_1",Base!$E$4:$BO$7924,AG$6,FALSE),VLOOKUP($B38&"_1",Base!$E$4:$BO$7924,AG$5,FALSE))="","",IF($Y38="Número",VLOOKUP($B38&"_1",Base!$E$4:$BO$7924,AG$6,FALSE),VLOOKUP($B38&"_1",Base!$E$4:$BO$7924,AG$5,FALSE))) -> NA | AH38: =IF(IF($Y38="Número",VLOOKUP($B38&"_1",Base!$E$4:$BO$7924,AH$6,FALSE),VLOOKUP($B38&"_1",Base!$E$4:$BO$7924,AH$5,FALSE))="","",IF($Y38="Número",VLOOKUP($B38&"_1",Base!$E$4:$BO$7924,AH$6,FALSE),VLOOKUP($B38&"_1",Base!$E$4:$BO$7924,AH$5,FALSE))) ->  | AI38: =IF(IF($Y38="Número",VLOOKUP($B38&"_1",Base!$E$4:$BO$7924,AI$6,FALSE),VLOOKUP($B38&"_1",Base!$E$4:$BO$7924,AI$5,FALSE))="","",IF($Y38="Número",VLOOKUP($B38&"_1",Base!$E$4:$BO$7924,AI$6,FALSE),VLOOKUP($B38&"_1",Base!$E$4:$BO$7924,AI$5,FALSE))) ->  | AJ38: =IF(IF($Y38="Número",VLOOKUP($B38&"_1",Base!$E$4:$BO$7924,AJ$6,FALSE),VLOOKUP($B38&"_1",Base!$E$4:$BO$7924,AJ$5,FALSE))="","",IF($Y38="Número",VLOOKUP($B38&"_1",Base!$E$4:$BO$7924,AJ$6,FALSE),VLOOKUP($B38&"_1",Base!$E$4:$BO$7924,AJ$5,FALSE))) ->  | AK38: =IF(IF($Y38="Número",VLOOKUP($B38&"_1",Base!$E$4:$BO$7924,AK$6,FALSE),VLOOKUP($B38&"_1",Base!$E$4:$BO$7924,AK$5,FALSE))="","",IF($Y38="Número",VLOOKUP($B38&"_1",Base!$E$4:$BO$7924,AK$6,FALSE),VLOOKUP($B38&"_1",Base!$E$4:$BO$7924,AK$5,FALSE))) -> 
B39: PA-40 | C39: =+VLOOKUP(B39,'tablero nal'!$W$9:$X$169,2,FALSE) -> Porcentaje de niños, niñas y adolescentes CON características y necesidades especiales, con familia asignada. | D39: X | E39: 0.65 | F39: =+VLOOKUP(B39,'tablero nal'!$W$9:$BB$169,4,FALSE) -> 0.7 | G39: 0.846 | H39: 1.208571429 | I39: 0.65 | J39: 0.7444 | K39: 1.145230769 | L39: 0.65 | M39: 0.759 | N39: 1.167692308 | O39: 0.67 | P39: 0.795 | Q39: 1.186567164 | R39: =+VLOOKUP(B39,'tablero nal'!$W$9:$AB$169,6,FALSE) -> 0.7 | S39: 0.846 | T39: 1.208571429 | Y39: =+VLOOKUP(B39,'tablero nal'!$W$9:$AL$169,16,FALSE) -> Porcentaje | Z39: =IF(IF($Y39="Número",VLOOKUP($B39&"_1",Base!$E$4:$BO$7924,Z$6,FALSE),VLOOKUP($B39&"_1",Base!$E$4:$BO$7924,Z$5,FALSE))="","",IF($Y39="Número",VLOOKUP($B39&"_1",Base!$E$4:$BO$7924,Z$6,FALSE),VLOOKUP($B39&"_1",Base!$E$4:$BO$7924,Z$5,FALSE))) -> 0.786 | AA39: =IF(IF($Y39="Número",VLOOKUP($B39&"_1",Base!$E$4:$BO$7924,AA$6,FALSE),VLOOKUP($B39&"_1",Base!$E$4:$BO$7924,AA$5,FALSE))="","",IF($Y39="Número",VLOOKUP($B39&"_1",Base!$E$4:$BO$7924,AA$6,FALSE),VLOOKUP($B39&"_1",Base!$E$4:$BO$7924,AA$5,FALSE))) -> 0.797 | AB39: =IF(IF($Y39="Número",VLOOKUP($B39&"_1",Base!$E$4:$BO$7924,AB$6,FALSE),VLOOKUP($B39&"_1",Base!$E$4:$BO$7924,AB$5,FALSE))="","",IF($Y39="Número",VLOOKUP($B39&"_1",Base!$E$4:$BO$7924,AB$6,FALSE),VLOOKUP($B39&"_1",Base!$E$4:$BO$7924,AB$5,FALSE))) -> 0.806 | AC39: =IF(IF($Y39="Número",VLOOKUP($B39&"_1",Base!$E$4:$BO$7924,AC$6,FALSE),VLOOKUP($B39&"_1",Base!$E$4:$BO$7924,AC$5,FALSE))="","",IF($Y39="Número",VLOOKUP($B39&"_1",Base!$E$4:$BO$7924,AC$6,FALSE),VLOOKUP($B39&"_1",Base!$E$4:$BO$7924,AC$5,FALSE))) -> 0.814 | AD39: =IF(IF($Y39="Número",VLOOKUP($B39&"_1",Base!$E$4:$BO$7924,AD$6,FALSE),VLOOKUP($B39&"_1",Base!$E$4:$BO$7924,AD$5,FALSE))="","",IF($Y39="Número",VLOOKUP($B39&"_1",Base!$E$4:$BO$7924,AD$6,FALSE),VLOOKUP($B39&"_1",Base!$E$4:$BO$7924,AD$5,FALSE))) -> 0.822 | AE39: =IF(IF($Y39="Número",VLOOKUP($B39&"_1",Base!$E$4:$BO$7924,AE$6,FALSE),VLOOKUP($B39&"_1",Base!$E$4:$BO$7924,AE$5,FALSE))="","",IF($Y39="Número",VLOOKUP($B39&"_1",Base!$E$4:$BO$7924,AE$6,FALSE),VLOOKUP($B39&"_1",Base!$E$4:$BO$7924,AE$5,FALSE))) -> 0.826 | AF39: =IF(IF($Y39="Número",VLOOKUP($B39&"_1",Base!$E$4:$BO$7924,AF$6,FALSE),VLOOKUP($B39&"_1",Base!$E$4:$BO$7924,AF$5,FALSE))="","",IF($Y39="Número",VLOOKUP($B39&"_1",Base!$E$4:$BO$7924,AF$6,FALSE),VLOOKUP($B39&"_1",Base!$E$4:$BO$7924,AF$5,FALSE))) -> 0.838 | AG39: =IF(IF($Y39="Número",VLOOKUP($B39&"_1",Base!$E$4:$BO$7924,AG$6,FALSE),VLOOKUP($B39&"_1",Base!$E$4:$BO$7924,AG$5,FALSE))="","",IF($Y39="Número",VLOOKUP($B39&"_1",Base!$E$4:$BO$7924,AG$6,FALSE),VLOOKUP($B39&"_1",Base!$E$4:$BO$7924,AG$5,FALSE))) -> 0.846 | AH39: =IF(IF($Y39="Número",VLOOKUP($B39&"_1",Base!$E$4:$BO$7924,AH$6,FALSE),VLOOKUP($B39&"_1",Base!$E$4:$BO$7924,AH$5,FALSE))="","",IF($Y39="Número",VLOOKUP($B39&"_1",Base!$E$4:$BO$7924,AH$6,FALSE),VLOOKUP($B39&"_1",Base!$E$4:$BO$7924,AH$5,FALSE))) ->  | AI39: =IF(IF($Y39="Número",VLOOKUP($B39&"_1",Base!$E$4:$BO$7924,AI$6,FALSE),VLOOKUP($B39&"_1",Base!$E$4:$BO$7924,AI$5,FALSE))="","",IF($Y39="Número",VLOOKUP($B39&"_1",Base!$E$4:$BO$7924,AI$6,FALSE),VLOOKUP($B39&"_1",Base!$E$4:$BO$7924,AI$5,FALSE))) ->  | AJ39: =IF(IF($Y39="Número",VLOOKUP($B39&"_1",Base!$E$4:$BO$7924,AJ$6,FALSE),VLOOKUP($B39&"_1",Base!$E$4:$BO$7924,AJ$5,FALSE))="","",IF($Y39="Número",VLOOKUP($B39&"_1",Base!$E$4:$BO$7924,AJ$6,FALSE),VLOOKUP($B39&"_1",Base!$E$4:$BO$7924,AJ$5,FALSE))) ->  | AK39: =IF(IF($Y39="Número",VLOOKUP($B39&"_1",Base!$E$4:$BO$7924,AK$6,FALSE),VLOOKUP($B39&"_1",Base!$E$4:$BO$7924,AK$5,FALSE))="","",IF($Y39="Número",VLOOKUP($B39&"_1",Base!$E$4:$BO$7924,AK$6,FALSE),VLOOKUP($B39&"_1",Base!$E$4:$BO$7924,AK$5,FALSE))) -> 
B40: PA-41 | C40: =+VLOOKUP(B40,'tablero nal'!$W$9:$X$169,2,FALSE) -> Porcentaje de niños, niñas y adolescentes que cumple con el número de informes de seguimientos post adopción | E40: 0.95 | F40: =+VLOOKUP(B40,'tablero nal'!$W$9:$BB$169,4,FALSE) -> 1 | G40: 0.974 | H40: 0.974 | I40: 1 | J40: 0.957 | K40: 0.957 | L40: 1 | M40: 0.96 | N40: 0.96 | O40: 1 | P40: 0.974 | Q40: 0.974 | R40: =+VLOOKUP(B40,'tablero nal'!$W$9:$AB$169,6,FALSE) -> 1 | S40: 0.974 | T40: 0.974 | Y40: =+VLOOKUP(B40,'tablero nal'!$W$9:$AL$169,16,FALSE) -> Porcentaje | Z40: =IF(IF($Y40="Número",VLOOKUP($B40&"_1",Base!$E$4:$BO$7924,Z$6,FALSE),VLOOKUP($B40&"_1",Base!$E$4:$BO$7924,Z$5,FALSE))="","",IF($Y40="Número",VLOOKUP($B40&"_1",Base!$E$4:$BO$7924,Z$6,FALSE),VLOOKUP($B40&"_1",Base!$E$4:$BO$7924,Z$5,FALSE))) -> NA | AA40: =IF(IF($Y40="Número",VLOOKUP($B40&"_1",Base!$E$4:$BO$7924,AA$6,FALSE),VLOOKUP($B40&"_1",Base!$E$4:$BO$7924,AA$5,FALSE))="","",IF($Y40="Número",VLOOKUP($B40&"_1",Base!$E$4:$BO$7924,AA$6,FALSE),VLOOKUP($B40&"_1",Base!$E$4:$BO$7924,AA$5,FALSE))) -> NA | AB40: =IF(IF($Y40="Número",VLOOKUP($B40&"_1",Base!$E$4:$BO$7924,AB$6,FALSE),VLOOKUP($B40&"_1",Base!$E$4:$BO$7924,AB$5,FALSE))="","",IF($Y40="Número",VLOOKUP($B40&"_1",Base!$E$4:$BO$7924,AB$6,FALSE),VLOOKUP($B40&"_1",Base!$E$4:$BO$7924,AB$5,FALSE))) -> 0.973 | AC40: =IF(IF($Y40="Número",VLOOKUP($B40&"_1",Base!$E$4:$BO$7924,AC$6,FALSE),VLOOKUP($B40&"_1",Base!$E$4:$BO$7924,AC$5,FALSE))="","",IF($Y40="Número",VLOOKUP($B40&"_1",Base!$E$4:$BO$7924,AC$6,FALSE),VLOOKUP($B40&"_1",Base!$E$4:$BO$7924,AC$5,FALSE))) -> 0.973 | AD40: =IF(IF($Y40="Número",VLOOKUP($B40&"_1",Base!$E$4:$BO$7924,AD$6,FALSE),VLOOKUP($B40&"_1",Base!$E$4:$BO$7924,AD$5,FALSE))="","",IF($Y40="Número",VLOOKUP($B40&"_1",Base!$E$4:$BO$7924,AD$6,FALSE),VLOOKUP($B40&"_1",Base!$E$4:$BO$7924,AD$5,FALSE))) -> 0.975 | AE40: =IF(IF($Y40="Número",VLOOKUP($B40&"_1",Base!$E$4:$BO$7924,AE$6,FALSE),VLOOKUP($B40&"_1",Base!$E$4:$BO$7924,AE$5,FALSE))="","",IF($Y40="Número",VLOOKUP($B40&"_1",Base!$E$4:$BO$7924,AE$6,FALSE),VLOOKUP($B40&"_1",Base!$E$4:$BO$7924,AE$5,FALSE))) -> 0.974 | AF40: =IF(IF($Y40="Número",VLOOKUP($B40&"_1",Base!$E$4:$BO$7924,AF$6,FALSE),VLOOKUP($B40&"_1",Base!$E$4:$BO$7924,AF$5,FALSE))="","",IF($Y40="Número",VLOOKUP($B40&"_1",Base!$E$4:$BO$7924,AF$6,FALSE),VLOOKUP($B40&"_1",Base!$E$4:$BO$7924,AF$5,FALSE))) -> 0.975 | AG40: =IF(IF($Y40="Número",VLOOKUP($B40&"_1",Base!$E$4:$BO$7924,AG$6,FALSE),VLOOKUP($B40&"_1",Base!$E$4:$BO$7924,AG$5,FALSE))="","",IF($Y40="Número",VLOOKUP($B40&"_1",Base!$E$4:$BO$7924,AG$6,FALSE),VLOOKUP($B40&"_1",Base!$E$4:$BO$7924,AG$5,FALSE))) -> 0.974 | AH40: =IF(IF($Y40="Número",VLOOKUP($B40&"_1",Base!$E$4:$BO$7924,AH$6,FALSE),VLOOKUP($B40&"_1",Base!$E$4:$BO$7924,AH$5,FALSE))="","",IF($Y40="Número",VLOOKUP($B40&"_1",Base!$E$4:$BO$7924,AH$6,FALSE),VLOOKUP($B40&"_1",Base!$E$4:$BO$7924,AH$5,FALSE))) ->  | AI40: =IF(IF($Y40="Número",VLOOKUP($B40&"_1",Base!$E$4:$BO$7924,AI$6,FALSE),VLOOKUP($B40&"_1",Base!$E$4:$BO$7924,AI$5,FALSE))="","",IF($Y40="Número",VLOOKUP($B40&"_1",Base!$E$4:$BO$7924,AI$6,FALSE),VLOOKUP($B40&"_1",Base!$E$4:$BO$7924,AI$5,FALSE))) ->  | AJ40: =IF(IF($Y40="Número",VLOOKUP($B40&"_1",Base!$E$4:$BO$7924,AJ$6,FALSE),VLOOKUP($B40&"_1",Base!$E$4:$BO$7924,AJ$5,FALSE))="","",IF($Y40="Número",VLOOKUP($B40&"_1",Base!$E$4:$BO$7924,AJ$6,FALSE),VLOOKUP($B40&"_1",Base!$E$4:$BO$7924,AJ$5,FALSE))) ->  | AK40: =IF(IF($Y40="Número",VLOOKUP($B40&"_1",Base!$E$4:$BO$7924,AK$6,FALSE),VLOOKUP($B40&"_1",Base!$E$4:$BO$7924,AK$5,FALSE))="","",IF($Y40="Número",VLOOKUP($B40&"_1",Base!$E$4:$BO$7924,AK$6,FALSE),VLOOKUP($B40&"_1",Base!$E$4:$BO$7924,AK$5,FALSE))) -> 
B41: PA-42 | C41: =+VLOOKUP(B41,'tablero nal'!$W$9:$X$169,2,FALSE) -> Porcentaje de adolescentes y jóvenes del SRPA, con más de seis meses de permanencia en el Programa de Atención con la garantía de ejercicio de sus derechos (Identidad, Salud y Educación) | D41: X | E41: - | F41: =+VLOOKUP(B41,'tablero nal'!$W$9:$BB$169,4,FALSE) -> 1 | G41: 0.954 | H41: 0.954 | I41: 0.25 | J41: 0.3592 | K41: 1.4368 | L41: 1 | M41: 0.997 | N41: 0.997 | O41: 1 | P41: 0.959 | Q41: 0.959 | R41: =+VLOOKUP(B41,'tablero nal'!$W$9:$AB$169,6,FALSE) -> 1 | S41: 0.954 | T41: 0.954 | Y41: =+VLOOKUP(B41,'tablero nal'!$W$9:$AL$169,16,FALSE) -> Porcentaje | Z41: =IF(IF($Y41="Número",VLOOKUP($B41&"_1",Base!$E$4:$BO$7924,Z$6,FALSE),VLOOKUP($B41&"_1",Base!$E$4:$BO$7924,Z$5,FALSE))="","",IF($Y41="Número",VLOOKUP($B41&"_1",Base!$E$4:$BO$7924,Z$6,FALSE),VLOOKUP($B41&"_1",Base!$E$4:$BO$7924,Z$5,FALSE))) -> NA | AA41: =IF(IF($Y41="Número",VLOOKUP($B41&"_1",Base!$E$4:$BO$7924,AA$6,FALSE),VLOOKUP($B41&"_1",Base!$E$4:$BO$7924,AA$5,FALSE))="","",IF($Y41="Número",VLOOKUP($B41&"_1",Base!$E$4:$BO$7924,AA$6,FALSE),VLOOKUP($B41&"_1",Base!$E$4:$BO$7924,AA$5,FALSE))) -> NA | AB41: =IF(IF($Y41="Número",VLOOKUP($B41&"_1",Base!$E$4:$BO$7924,AB$6,FALSE),VLOOKUP($B41&"_1",Base!$E$4:$BO$7924,AB$5,FALSE))="","",IF($Y41="Número",VLOOKUP($B41&"_1",Base!$E$4:$BO$7924,AB$6,FALSE),VLOOKUP($B41&"_1",Base!$E$4:$BO$7924,AB$5,FALSE))) -> 0.869 | AC41: =IF(IF($Y41="Número",VLOOKUP($B41&"_1",Base!$E$4:$BO$7924,AC$6,FALSE),VLOOKUP($B41&"_1",Base!$E$4:$BO$7924,AC$5,FALSE))="","",IF($Y41="Número",VLOOKUP($B41&"_1",Base!$E$4:$BO$7924,AC$6,FALSE),VLOOKUP($B41&"_1",Base!$E$4:$BO$7924,AC$5,FALSE))) -> NA | AD41: =IF(IF($Y41="Número",VLOOKUP($B41&"_1",Base!$E$4:$BO$7924,AD$6,FALSE),VLOOKUP($B41&"_1",Base!$E$4:$BO$7924,AD$5,FALSE))="","",IF($Y41="Número",VLOOKUP($B41&"_1",Base!$E$4:$BO$7924,AD$6,FALSE),VLOOKUP($B41&"_1",Base!$E$4:$BO$7924,AD$5,FALSE))) -> NA | AE41: =IF(IF($Y41="Número",VLOOKUP($B41&"_1",Base!$E$4:$BO$7924,AE$6,FALSE),VLOOKUP($B41&"_1",Base!$E$4:$BO$7924,AE$5,FALSE))="","",IF($Y41="Número",VLOOKUP($B41&"_1",Base!$E$4:$BO$7924,AE$6,FALSE),VLOOKUP($B41&"_1",Base!$E$4:$BO$7924,AE$5,FALSE))) -> 0.954 | AF41: =IF(IF($Y41="Número",VLOOKUP($B41&"_1",Base!$E$4:$BO$7924,AF$6,FALSE),VLOOKUP($B41&"_1",Base!$E$4:$BO$7924,AF$5,FALSE))="","",IF($Y41="Número",VLOOKUP($B41&"_1",Base!$E$4:$BO$7924,AF$6,FALSE),VLOOKUP($B41&"_1",Base!$E$4:$BO$7924,AF$5,FALSE))) -> NA | AG41: =IF(IF($Y41="Número",VLOOKUP($B41&"_1",Base!$E$4:$BO$7924,AG$6,FALSE),VLOOKUP($B41&"_1",Base!$E$4:$BO$7924,AG$5,FALSE))="","",IF($Y41="Número",VLOOKUP($B41&"_1",Base!$E$4:$BO$7924,AG$6,FALSE),VLOOKUP($B41&"_1",Base!$E$4:$BO$7924,AG$5,FALSE))) -> NA | AH41: =IF(IF($Y41="Número",VLOOKUP($B41&"_1",Base!$E$4:$BO$7924,AH$6,FALSE),VLOOKUP($B41&"_1",Base!$E$4:$BO$7924,AH$5,FALSE))="","",IF($Y41="Número",VLOOKUP($B41&"_1",Base!$E$4:$BO$7924,AH$6,FALSE),VLOOKUP($B41&"_1",Base!$E$4:$BO$7924,AH$5,FALSE))) ->  | AI41: =IF(IF($Y41="Número",VLOOKUP($B41&"_1",Base!$E$4:$BO$7924,AI$6,FALSE),VLOOKUP($B41&"_1",Base!$E$4:$BO$7924,AI$5,FALSE))="","",IF($Y41="Número",VLOOKUP($B41&"_1",Base!$E$4:$BO$7924,AI$6,FALSE),VLOOKUP($B41&"_1",Base!$E$4:$BO$7924,AI$5,FALSE))) ->  | AJ41: =IF(IF($Y41="Número",VLOOKUP($B41&"_1",Base!$E$4:$BO$7924,AJ$6,FALSE),VLOOKUP($B41&"_1",Base!$E$4:$BO$7924,AJ$5,FALSE))="","",IF($Y41="Número",VLOOKUP($B41&"_1",Base!$E$4:$BO$7924,AJ$6,FALSE),VLOOKUP($B41&"_1",Base!$E$4:$BO$7924,AJ$5,FALSE))) ->  | AK41: =IF(IF($Y41="Número",VLOOKUP($B41&"_1",Base!$E$4:$BO$7924,AK$6,FALSE),VLOOKUP($B41&"_1",Base!$E$4:$BO$7924,AK$5,FALSE))="","",IF($Y41="Número",VLOOKUP($B41&"_1",Base!$E$4:$BO$7924,AK$6,FALSE),VLOOKUP($B41&"_1",Base!$E$4:$BO$7924,AK$5,FALSE))) -> 
B42: PA-43 | C42: =+VLOOKUP(B42,'tablero nal'!$W$9:$X$169,2,FALSE) -> Porcentaje de adolescentes y jóvenes que egresan el ultimo año del SRPA por cumplimiento de sanción privativa de la libertad, atendidos con estrategias post egreso o inclusión social. | D42: X | E42: - | F42: =+VLOOKUP(B42,'tablero nal'!$W$9:$BB$169,4,FALSE) -> 0.65 | G42: 0.672 | H42: 1.033846154 | I42: 0.12 | J42: 0.1705 | K42: 1.420833333 | L42: 0.55 | M42: 0.549 | N42: 0.9981818182 | O42: 0.6 | P42: 0.5 | Q42: 0.8333333333 | R42: =+VLOOKUP(B42,'tablero nal'!$W$9:$AB$169,6,FALSE) -> 0.65 | S42: 0.672 | T42: 1.033846154 | Y42: =+VLOOKUP(B42,'tablero nal'!$W$9:$AL$169,16,FALSE) -> Porcentaje | Z42: =IF(IF($Y42="Número",VLOOKUP($B42&"_1",Base!$E$4:$BO$7924,Z$6,FALSE),VLOOKUP($B42&"_1",Base!$E$4:$BO$7924,Z$5,FALSE))="","",IF($Y42="Número",VLOOKUP($B42&"_1",Base!$E$4:$BO$7924,Z$6,FALSE),VLOOKUP($B42&"_1",Base!$E$4:$BO$7924,Z$5,FALSE))) -> NA | AA42: =IF(IF($Y42="Número",VLOOKUP($B42&"_1",Base!$E$4:$BO$7924,AA$6,FALSE),VLOOKUP($B42&"_1",Base!$E$4:$BO$7924,AA$5,FALSE))="","",IF($Y42="Número",VLOOKUP($B42&"_1",Base!$E$4:$BO$7924,AA$6,FALSE),VLOOKUP($B42&"_1",Base!$E$4:$BO$7924,AA$5,FALSE))) -> NA | AB42: =IF(IF($Y42="Número",VLOOKUP($B42&"_1",Base!$E$4:$BO$7924,AB$6,FALSE),VLOOKUP($B42&"_1",Base!$E$4:$BO$7924,AB$5,FALSE))="","",IF($Y42="Número",VLOOKUP($B42&"_1",Base!$E$4:$BO$7924,AB$6,FALSE),VLOOKUP($B42&"_1",Base!$E$4:$BO$7924,AB$5,FALSE))) -> 0.818 | AC42: =IF(IF($Y42="Número",VLOOKUP($B42&"_1",Base!$E$4:$BO$7924,AC$6,FALSE),VLOOKUP($B42&"_1",Base!$E$4:$BO$7924,AC$5,FALSE))="","",IF($Y42="Número",VLOOKUP($B42&"_1",Base!$E$4:$BO$7924,AC$6,FALSE),VLOOKUP($B42&"_1",Base!$E$4:$BO$7924,AC$5,FALSE))) -> NA | AD42: =IF(IF($Y42="Número",VLOOKUP($B42&"_1",Base!$E$4:$BO$7924,AD$6,FALSE),VLOOKUP($B42&"_1",Base!$E$4:$BO$7924,AD$5,FALSE))="","",IF($Y42="Número",VLOOKUP($B42&"_1",Base!$E$4:$BO$7924,AD$6,FALSE),VLOOKUP($B42&"_1",Base!$E$4:$BO$7924,AD$5,FALSE))) -> NA | AE42: =IF(IF($Y42="Número",VLOOKUP($B42&"_1",Base!$E$4:$BO$7924,AE$6,FALSE),VLOOKUP($B42&"_1",Base!$E$4:$BO$7924,AE$5,FALSE))="","",IF($Y42="Número",VLOOKUP($B42&"_1",Base!$E$4:$BO$7924,AE$6,FALSE),VLOOKUP($B42&"_1",Base!$E$4:$BO$7924,AE$5,FALSE))) -> 0.672 | AF42: =IF(IF($Y42="Número",VLOOKUP($B42&"_1",Base!$E$4:$BO$7924,AF$6,FALSE),VLOOKUP($B42&"_1",Base!$E$4:$BO$7924,AF$5,FALSE))="","",IF($Y42="Número",VLOOKUP($B42&"_1",Base!$E$4:$BO$7924,AF$6,FALSE),VLOOKUP($B42&"_1",Base!$E$4:$BO$7924,AF$5,FALSE))) -> NA | AG42: =IF(IF($Y42="Número",VLOOKUP($B42&"_1",Base!$E$4:$BO$7924,AG$6,FALSE),VLOOKUP($B42&"_1",Base!$E$4:$BO$7924,AG$5,FALSE))="","",IF($Y42="Número",VLOOKUP($B42&"_1",Base!$E$4:$BO$7924,AG$6,FALSE),VLOOKUP($B42&"_1",Base!$E$4:$BO$7924,AG$5,FALSE))) -> NA | AH42: =IF(IF($Y42="Número",VLOOKUP($B42&"_1",Base!$E$4:$BO$7924,AH$6,FALSE),VLOOKUP($B42&"_1",Base!$E$4:$BO$7924,AH$5,FALSE))="","",IF($Y42="Número",VLOOKUP($B42&"_1",Base!$E$4:$BO$7924,AH$6,FALSE),VLOOKUP($B42&"_1",Base!$E$4:$BO$7924,AH$5,FALSE))) ->  | AI42: =IF(IF($Y42="Número",VLOOKUP($B42&"_1",Base!$E$4:$BO$7924,AI$6,FALSE),VLOOKUP($B42&"_1",Base!$E$4:$BO$7924,AI$5,FALSE))="","",IF($Y42="Número",VLOOKUP($B42&"_1",Base!$E$4:$BO$7924,AI$6,FALSE),VLOOKUP($B42&"_1",Base!$E$4:$BO$7924,AI$5,FALSE))) ->  | AJ42: =IF(IF($Y42="Número",VLOOKUP($B42&"_1",Base!$E$4:$BO$7924,AJ$6,FALSE),VLOOKUP($B42&"_1",Base!$E$4:$BO$7924,AJ$5,FALSE))="","",IF($Y42="Número",VLOOKUP($B42&"_1",Base!$E$4:$BO$7924,AJ$6,FALSE),VLOOKUP($B42&"_1",Base!$E$4:$BO$7924,AJ$5,FALSE))) ->  | AK42: =IF(IF($Y42="Número",VLOOKUP($B42&"_1",Base!$E$4:$BO$7924,AK$6,FALSE),VLOOKUP($B42&"_1",Base!$E$4:$BO$7924,AK$5,FALSE))="","",IF($Y42="Número",VLOOKUP($B42&"_1",Base!$E$4:$BO$7924,AK$6,FALSE),VLOOKUP($B42&"_1",Base!$E$4:$BO$7924,AK$5,FALSE))) -> 
B43: PA-44 | C43: =+VLOOKUP(B43,'tablero nal'!$W$9:$X$169,2,FALSE) -> Porcentaje de Regionales con la implementación de servicios para el cumplimiento de sanciones no privativas de libertad. | E43: 0.25 | F43: =+VLOOKUP(B43,'tablero nal'!$W$9:$BB$169,4,FALSE) -> 1 | G43: 1 | H43: 1 | I43: 0.25 | J43: 0.2581 | K43: 1.0324 | L43: 0.5 | M43: 0.516 | N43: 1.032 | O43: 0.75 | P43: 0.774 | Q43: 1.032 | R43: =+VLOOKUP(B43,'tablero nal'!$W$9:$AB$169,6,FALSE) -> 1 | S43: 1 | T43: 1 | Y43: =+VLOOKUP(B43,'tablero nal'!$W$9:$AL$169,16,FALSE) -> Porcentaje | Z43: =IF(IF($Y43="Número",VLOOKUP($B43&"_1",Base!$E$4:$BO$7924,Z$6,FALSE),VLOOKUP($B43&"_1",Base!$E$4:$BO$7924,Z$5,FALSE))="","",IF($Y43="Número",VLOOKUP($B43&"_1",Base!$E$4:$BO$7924,Z$6,FALSE),VLOOKUP($B43&"_1",Base!$E$4:$BO$7924,Z$5,FALSE))) -> NA | AA43: =IF(IF($Y43="Número",VLOOKUP($B43&"_1",Base!$E$4:$BO$7924,AA$6,FALSE),VLOOKUP($B43&"_1",Base!$E$4:$BO$7924,AA$5,FALSE))="","",IF($Y43="Número",VLOOKUP($B43&"_1",Base!$E$4:$BO$7924,AA$6,FALSE),VLOOKUP($B43&"_1",Base!$E$4:$BO$7924,AA$5,FALSE))) -> NA | AB43: =IF(IF($Y43="Número",VLOOKUP($B43&"_1",Base!$E$4:$BO$7924,AB$6,FALSE),VLOOKUP($B43&"_1",Base!$E$4:$BO$7924,AB$5,FALSE))="","",IF($Y43="Número",VLOOKUP($B43&"_1",Base!$E$4:$BO$7924,AB$6,FALSE),VLOOKUP($B43&"_1",Base!$E$4:$BO$7924,AB$5,FALSE))) -> 0.871 | AC43: =IF(IF($Y43="Número",VLOOKUP($B43&"_1",Base!$E$4:$BO$7924,AC$6,FALSE),VLOOKUP($B43&"_1",Base!$E$4:$BO$7924,AC$5,FALSE))="","",IF($Y43="Número",VLOOKUP($B43&"_1",Base!$E$4:$BO$7924,AC$6,FALSE),VLOOKUP($B43&"_1",Base!$E$4:$BO$7924,AC$5,FALSE))) -> NA | AD43: =IF(IF($Y43="Número",VLOOKUP($B43&"_1",Base!$E$4:$BO$7924,AD$6,FALSE),VLOOKUP($B43&"_1",Base!$E$4:$BO$7924,AD$5,FALSE))="","",IF($Y43="Número",VLOOKUP($B43&"_1",Base!$E$4:$BO$7924,AD$6,FALSE),VLOOKUP($B43&"_1",Base!$E$4:$BO$7924,AD$5,FALSE))) -> NA | AE43: =IF(IF($Y43="Número",VLOOKUP($B43&"_1",Base!$E$4:$BO$7924,AE$6,FALSE),VLOOKUP($B43&"_1",Base!$E$4:$BO$7924,AE$5,FALSE))="","",IF($Y43="Número",VLOOKUP($B43&"_1",Base!$E$4:$BO$7924,AE$6,FALSE),VLOOKUP($B43&"_1",Base!$E$4:$BO$7924,AE$5,FALSE))) -> 1 | AF43: =IF(IF($Y43="Número",VLOOKUP($B43&"_1",Base!$E$4:$BO$7924,AF$6,FALSE),VLOOKUP($B43&"_1",Base!$E$4:$BO$7924,AF$5,FALSE))="","",IF($Y43="Número",VLOOKUP($B43&"_1",Base!$E$4:$BO$7924,AF$6,FALSE),VLOOKUP($B43&"_1",Base!$E$4:$BO$7924,AF$5,FALSE))) -> NA | AG43: =IF(IF($Y43="Número",VLOOKUP($B43&"_1",Base!$E$4:$BO$7924,AG$6,FALSE),VLOOKUP($B43&"_1",Base!$E$4:$BO$7924,AG$5,FALSE))="","",IF($Y43="Número",VLOOKUP($B43&"_1",Base!$E$4:$BO$7924,AG$6,FALSE),VLOOKUP($B43&"_1",Base!$E$4:$BO$7924,AG$5,FALSE))) -> NA | AH43: =IF(IF($Y43="Número",VLOOKUP($B43&"_1",Base!$E$4:$BO$7924,AH$6,FALSE),VLOOKUP($B43&"_1",Base!$E$4:$BO$7924,AH$5,FALSE))="","",IF($Y43="Número",VLOOKUP($B43&"_1",Base!$E$4:$BO$7924,AH$6,FALSE),VLOOKUP($B43&"_1",Base!$E$4:$BO$7924,AH$5,FALSE))) ->  | AI43: =IF(IF($Y43="Número",VLOOKUP($B43&"_1",Base!$E$4:$BO$7924,AI$6,FALSE),VLOOKUP($B43&"_1",Base!$E$4:$BO$7924,AI$5,FALSE))="","",IF($Y43="Número",VLOOKUP($B43&"_1",Base!$E$4:$BO$7924,AI$6,FALSE),VLOOKUP($B43&"_1",Base!$E$4:$BO$7924,AI$5,FALSE))) ->  | AJ43: =IF(IF($Y43="Número",VLOOKUP($B43&"_1",Base!$E$4:$BO$7924,AJ$6,FALSE),VLOOKUP($B43&"_1",Base!$E$4:$BO$7924,AJ$5,FALSE))="","",IF($Y43="Número",VLOOKUP($B43&"_1",Base!$E$4:$BO$7924,AJ$6,FALSE),VLOOKUP($B43&"_1",Base!$E$4:$BO$7924,AJ$5,FALSE))) ->  | AK43: =IF(IF($Y43="Número",VLOOKUP($B43&"_1",Base!$E$4:$BO$7924,AK$6,FALSE),VLOOKUP($B43&"_1",Base!$E$4:$BO$7924,AK$5,FALSE))="","",IF($Y43="Número",VLOOKUP($B43&"_1",Base!$E$4:$BO$7924,AK$6,FALSE),VLOOKUP($B43&"_1",Base!$E$4:$BO$7924,AK$5,FALSE))) -> 
B44: PA-45 | C44: =+VLOOKUP(B44,'tablero nal'!$W$9:$X$169,2,FALSE) -> Porcentaje de Unidades de Servicio de Atención a adolescentes y jóvenes del Sistema de Responsbilidad Penal - SRPA, con implementación de procesos de formación en prácticas restaurativas | D44: X | E44: 0.3 | F44: =+VLOOKUP(B44,'tablero nal'!$W$9:$BB$169,4,FALSE) -> 1 | G44: 1 | H44: 1 | I44: 0.5 | J44: 0.5 | K44: 1 | L44: 0.67 | M44: 0.674 | N44: 1.005970149 | O44: 0.84 | P44: 0.848 | Q44: 1.00952381 | R44: =+VLOOKUP(B44,'tablero nal'!$W$9:$AB$169,6,FALSE) -> 1 | S44: 1 | T44: 1 | Y44: =+VLOOKUP(B44,'tablero nal'!$W$9:$AL$169,16,FALSE) -> Porcentaje | Z44: =IF(IF($Y44="Número",VLOOKUP($B44&"_1",Base!$E$4:$BO$7924,Z$6,FALSE),VLOOKUP($B44&"_1",Base!$E$4:$BO$7924,Z$5,FALSE))="","",IF($Y44="Número",VLOOKUP($B44&"_1",Base!$E$4:$BO$7924,Z$6,FALSE),VLOOKUP($B44&"_1",Base!$E$4:$BO$7924,Z$5,FALSE))) -> NA | AA44: =IF(IF($Y44="Número",VLOOKUP($B44&"_1",Base!$E$4:$BO$7924,AA$6,FALSE),VLOOKUP($B44&"_1",Base!$E$4:$BO$7924,AA$5,FALSE))="","",IF($Y44="Número",VLOOKUP($B44&"_1",Base!$E$4:$BO$7924,AA$6,FALSE),VLOOKUP($B44&"_1",Base!$E$4:$BO$7924,AA$5,FALSE))) -> NA | AB44: =IF(IF($Y44="Número",VLOOKUP($B44&"_1",Base!$E$4:$BO$7924,AB$6,FALSE),VLOOKUP($B44&"_1",Base!$E$4:$BO$7924,AB$5,FALSE))="","",IF($Y44="Número",VLOOKUP($B44&"_1",Base!$E$4:$BO$7924,AB$6,FALSE),VLOOKUP($B44&"_1",Base!$E$4:$BO$7924,AB$5,FALSE))) -> 0.88 | AC44: =IF(IF($Y44="Número",VLOOKUP($B44&"_1",Base!$E$4:$BO$7924,AC$6,FALSE),VLOOKUP($B44&"_1",Base!$E$4:$BO$7924,AC$5,FALSE))="","",IF($Y44="Número",VLOOKUP($B44&"_1",Base!$E$4:$BO$7924,AC$6,FALSE),VLOOKUP($B44&"_1",Base!$E$4:$BO$7924,AC$5,FALSE))) -> NA | AD44: =IF(IF($Y44="Número",VLOOKUP($B44&"_1",Base!$E$4:$BO$7924,AD$6,FALSE),VLOOKUP($B44&"_1",Base!$E$4:$BO$7924,AD$5,FALSE))="","",IF($Y44="Número",VLOOKUP($B44&"_1",Base!$E$4:$BO$7924,AD$6,FALSE),VLOOKUP($B44&"_1",Base!$E$4:$BO$7924,AD$5,FALSE))) -> NA | AE44: =IF(IF($Y44="Número",VLOOKUP($B44&"_1",Base!$E$4:$BO$7924,AE$6,FALSE),VLOOKUP($B44&"_1",Base!$E$4:$BO$7924,AE$5,FALSE))="","",IF($Y44="Número",VLOOKUP($B44&"_1",Base!$E$4:$BO$7924,AE$6,FALSE),VLOOKUP($B44&"_1",Base!$E$4:$BO$7924,AE$5,FALSE))) -> 1 | AF44: =IF(IF($Y44="Número",VLOOKUP($B44&"_1",Base!$E$4:$BO$7924,AF$6,FALSE),VLOOKUP($B44&"_1",Base!$E$4:$BO$7924,AF$5,FALSE))="","",IF($Y44="Número",VLOOKUP($B44&"_1",Base!$E$4:$BO$7924,AF$6,FALSE),VLOOKUP($B44&"_1",Base!$E$4:$BO$7924,AF$5,FALSE))) -> NA | AG44: =IF(IF($Y44="Número",VLOOKUP($B44&"_1",Base!$E$4:$BO$7924,AG$6,FALSE),VLOOKUP($B44&"_1",Base!$E$4:$BO$7924,AG$5,FALSE))="","",IF($Y44="Número",VLOOKUP($B44&"_1",Base!$E$4:$BO$7924,AG$6,FALSE),VLOOKUP($B44&"_1",Base!$E$4:$BO$7924,AG$5,FALSE))) -> NA | AH44: =IF(IF($Y44="Número",VLOOKUP($B44&"_1",Base!$E$4:$BO$7924,AH$6,FALSE),VLOOKUP($B44&"_1",Base!$E$4:$BO$7924,AH$5,FALSE))="","",IF($Y44="Número",VLOOKUP($B44&"_1",Base!$E$4:$BO$7924,AH$6,FALSE),VLOOKUP($B44&"_1",Base!$E$4:$BO$7924,AH$5,FALSE))) ->  | AI44: =IF(IF($Y44="Número",VLOOKUP($B44&"_1",Base!$E$4:$BO$7924,AI$6,FALSE),VLOOKUP($B44&"_1",Base!$E$4:$BO$7924,AI$5,FALSE))="","",IF($Y44="Número",VLOOKUP($B44&"_1",Base!$E$4:$BO$7924,AI$6,FALSE),VLOOKUP($B44&"_1",Base!$E$4:$BO$7924,AI$5,FALSE))) ->  | AJ44: =IF(IF($Y44="Número",VLOOKUP($B44&"_1",Base!$E$4:$BO$7924,AJ$6,FALSE),VLOOKUP($B44&"_1",Base!$E$4:$BO$7924,AJ$5,FALSE))="","",IF($Y44="Número",VLOOKUP($B44&"_1",Base!$E$4:$BO$7924,AJ$6,FALSE),VLOOKUP($B44&"_1",Base!$E$4:$BO$7924,AJ$5,FALSE))) ->  | AK44: =IF(IF($Y44="Número",VLOOKUP($B44&"_1",Base!$E$4:$BO$7924,AK$6,FALSE),VLOOKUP($B44&"_1",Base!$E$4:$BO$7924,AK$5,FALSE))="","",IF($Y44="Número",VLOOKUP($B44&"_1",Base!$E$4:$BO$7924,AK$6,FALSE),VLOOKUP($B44&"_1",Base!$E$4:$BO$7924,AK$5,FALSE))) -> 
